Workbook

Sheet Cover Page
B2: PUBLIC RELEASE DRAFT
B3: November 2024
B5: Draft Air Releases (TRI) for 1,3-Butadiene
B8: CASRN: 106-99-0

Sheet Read Me
A1: Description of this spreadsheet
A2: This spreadsheet contains a summary of stack and fugitive air emissions for each occupational exposure scenario (OES) in the 1,3-Butadiene Risk Evaluation.
A3: TRI data in this spreadsheet are for the 2016-2021 reporting years.
A5: Worksheet | B5: Description
A6: Overall Release Summary | B6: Summary of the total TRI annual emissions in kg/yr.
A7: TRI Release Summary | B7: Summary of the TRI annual and daily average stack and fugitive air releases for each OES/facility (median and maximum over the 5-year period), which was used for exposure modeling.
A8: 2016-2021 TRI | B8: Raw annual stack and fugitive air release data from 2016 through 2021 reported in TRI
A9: OES Summary | B9: Summary of OES, assumed # of release days, and releases by media per OES.

Sheet Overall Release Summary
B1: Annual Releases (kg/yr)
B2: TRI
B3: 2021 | C3: 2020 | D3: 2019 | E3: 2018 | F3: 2017 | G3: 2016
A4: Stack | B4: =CONVERT(SUMIFS('2016-2021 TRI'!$Q:$Q, '2016-2021 TRI'!$B:$B, 'Overall Release Summary'!B$3), "lbm", "kg") -> 379,989 | C4: =CONVERT(SUMIFS('2016-2021 TRI'!$Q:$Q, '2016-2021 TRI'!$B:$B, 'Overall Release Summary'!C$3), "lbm", "kg") -> 325,629 | D4: =CONVERT(SUMIFS('2016-2021 TRI'!$Q:$Q, '2016-2021 TRI'!$B:$B, 'Overall Release Summary'!D$3), "lbm", "kg") -> 471,927 | E4: =CONVERT(SUMIFS('2016-2021 TRI'!$Q:$Q, '2016-2021 TRI'!$B:$B, 'Overall Release Summary'!E$3), "lbm", "kg") -> 357,218 | F4: =CONVERT(SUMIFS('2016-2021 TRI'!$Q:$Q, '2016-2021 TRI'!$B:$B, 'Overall Release Summary'!F$3), "lbm", "kg") -> 459,895 | G4: =CONVERT(SUMIFS('2016-2021 TRI'!$Q:$Q, '2016-2021 TRI'!$B:$B, 'Overall Release Summary'!G$3), "lbm", "kg") -> 402,128
A5: Fugitive | B5: =CONVERT(SUMIFS('2016-2021 TRI'!$P:$P, '2016-2021 TRI'!$B:$B, 'Overall Release Summary'!B$3), "lbm", "kg") -> 163,852 | C5: =CONVERT(SUMIFS('2016-2021 TRI'!$P:$P, '2016-2021 TRI'!$B:$B, 'Overall Release Summary'!C$3), "lbm", "kg") -> 157,471 | D5: =CONVERT(SUMIFS('2016-2021 TRI'!$P:$P, '2016-2021 TRI'!$B:$B, 'Overall Release Summary'!D$3), "lbm", "kg") -> 167,970 | E5: =CONVERT(SUMIFS('2016-2021 TRI'!$P:$P, '2016-2021 TRI'!$B:$B, 'Overall Release Summary'!E$3), "lbm", "kg") -> 140,613 | F5: =CONVERT(SUMIFS('2016-2021 TRI'!$P:$P, '2016-2021 TRI'!$B:$B, 'Overall Release Summary'!F$3), "lbm", "kg") -> 149,745 | G5: =CONVERT(SUMIFS('2016-2021 TRI'!$P:$P, '2016-2021 TRI'!$B:$B, 'Overall Release Summary'!G$3), "lbm", "kg") -> 158,088

Sheet 2016-2021 TRI (old) (hidden)
A1: Form | B1: Reporting Year | C1: Chemical Name | D1: TRI Chemical ID | E1: Document Control Number | F1: TRI Facility ID | G1: Industry | H1: Primary NAICS | I1: Facility Name | J1: Street Address | K1: City | L1: State | M1: Zip | N1: OES | O1: Rationale | P1: Fugitive Air Release (lb) | Q1: Stack Air Release (lb) | R1: Total air release (lb) | S1: Manufactured flag | T1: Processed | U1: Otherwise Used | V1: Manufacture-Produced flag | W1: Manufacture-Imported flag | X1: Manufacture-On-site Use/Processing flag | Y1: Manufacture-Sale/Distribution Flag | Z1: Manufacture-Byproduct | AA1: Manufacture-Impurity | AB1: Process-Reactant | AC1: 96. P101 FEEDSTOCKS | AD1: 97. P102 RAW MATERIALS | AE1: 98. P103 INTERMEDIATES | AF1: 99. P104 INITIATORS | AG1: 100. P199 OTHER | AH1: Process-Formulation Component | AI1: 102. P201 ADDITIVES | AJ1: 103. P202 DYES | AK1: 104. P203 REACTION DILUENTS | AL1: 105. P204 INITIATORS | AM1: 106. P205 SOLVENTS | AN1: 107. P206 INHIBITORS | AO1: 108. P207 EMULSIFIERS | AP1: 109. P208 SURFACTANTS | AQ1: 110. P209 LUBRICANTS | AR1: 111. P210 FLAME RETARDANTS | AS1: 112. P211 RHEOLOGICAL MODIFIERS | AT1: 113. P299 OTHER | AU1: Process-Article Component | AV1: Process-Repackaging | AW1: Process-Impurity | AX1: Otherwise Use-Chemical Processing Aid | AY1: 119. Z101 PROCESS SOLVENTS | AZ1: 120. Z102 CATALYSTS | BA1: 121. Z103 INHIBITORS | BB1: 122. Z104 INITIATORS | BC1: 123. Z105 REACTION TERMINATORS | BD1: 124. Z106 SOLUTION BUFFERS | BE1: 125. Z199 OTHER | BF1: Otherwise Use-Manufacture Aid | BG1: 127. Z201 PROCESS LUBRICANTS | BH1: 128. Z202 METALWORKING FLUIDS | BI1: 129. Z203 COOLANTS | BJ1: 130. Z204 REFRIGERANTS | BK1: 131. Z205 HYDRAULIC FLUIDS | BL1: 132. Z299 OTHER | BM1: Otherwise Use-Ancillary/Other | BN1: 134. Z301 CLEANER | BO1: 135. Z302 DEGREASER | BP1: 136. Z303 LUBRICANT | BQ1: 137. Z304 FUEL | BR1: 138. Z305 FLAME RETARDANT | BS1: 139. Z306 WASTE TREATMENT | BT1: 140. Z307 WATER TREATMENT | BU1: 141. Z308 CONSTRUCTION MATERIALS | BV1: 142. Z399 OTHER | BW1: Processed - Recycling
B2: 2016 | C2: 1,3-BUTADIENE | D2: 000106990 | E2: 1316215639372 | F2: 7101WDCRBN21RED | G2: 325 Chemicals | H2: 325998 | I2: ADA CARBON SOLUTIONS (RED RIVER) LLC | J2: 201 RED RIVER MINE RD | K2: COUSHATTA | L2: LA | M2: 71019 | P2: 0 | Q2: 86 | R2: =SUM(P2:Q2) -> 86 | S2: 1 | T2: 1 | U2: 1 | V2: 1 | W2: 0 | X2: 1 | Y2: 0 | Z2: 1 | AA2: 0 | AB2: 0 | AH2: 0 | AU2: 0 | AV2: 0 | AW2: 0 | AX2: 0 | BF2: 0 | BM2: 1
B3: 2016 | C3: 1,3-BUTADIENE | D3: 000106990 | E3: 1316215088295 | F3: 79721FNLNDIS20E | G3: 324 Petroleum | H3: 324110 | I3: ALON USA-BIG SPRING REFINERY | J3: IH 20 AT REFINERY RD | K3: BIG SPRING | L3: TX | M3: 79720 | P3: 5 | Q3: 5 | R3: 10 | S3: 1 | T3: 1 | U3: 1 | V3: 0 | W3: 0 | X3: 0 | Y3: 0 | Z3: 0 | AA3: 0 | AB3: 0 | AH3: 0 | AU3: 0 | AV3: 0 | AW3: 1 | AX3: 0 | BF3: 0 | BM3: 0
B4: 2016 | C4: 1,3-BUTADIENE | D4: 000106990 | E4: 1316215654106 | F4: 40216MRCNS4500C | G4: 325 Chemicals | H4: 325212 | I4: AMERICAN SYNTHETIC RUBBER CO | J4: 4500 CAMPGROUND RD | K4: LOUISVILLE | L4: KY | M4: 40216 | N4: Processing as a reactant | O4: TRI subuse Info | P4: 3723.2 | Q4: 3273.1 | R4: 6996.3 | S4: 1 | T4: 1 | U4: 1 | V4: 0 | W4: 0 | X4: 0 | Y4: 0 | Z4: 0 | AA4: 0 | AB4: 1 | AH4: 0 | AU4: 0 | AV4: 0 | AW4: 0 | AX4: 0 | BF4: 0 | BM4: 0
B5: 2016 | C5: 1,3-BUTADIENE | D5: 000106990 | E5: 1316215472186 | F5: 46304BTHLHBURNS | G5: 331 Primary Metals | H5: 331110 | I5: ARCELORMITTAL BURNS HARBOR LLC | J5: 250 W US HWY 12 | K5: BURNS HARBOR | L5: IN | M5: 46304 | P5: 155 | Q5: 0 | R5: 155 | S5: 1 | T5: 1 | U5: 1 | V5: 1 | W5: 0 | X5: 0 | Y5: 0 | Z5: 1 | AA5: 0 | AB5: 0 | AH5: 0 | AU5: 0 | AV5: 0 | AW5: 0 | AX5: 0 | BF5: 0 | BM5: 0
B6: 2016 | C6: 1,3-BUTADIENE | D6: 000106990 | E6: 1316215467578 | F6: 36505MTCHMHWY43 | G6: 325 Chemicals | H6: 325211 | I6: ARKEMA INC | J6: 13755 HIGHWAY 43 N | K6: AXIS | L6: AL | M6: 36505 | P6: 1500 | Q6: 250 | R6: 1750 | S6: 1 | T6: 1 | U6: 1 | V6: 0 | W6: 0 | X6: 0 | Y6: 0 | Z6: 0 | AA6: 0 | AB6: 1 | AH6: 0 | AU6: 0 | AV6: 0 | AW6: 0 | AX6: 0 | BF6: 0 | BM6: 0
B7: 2016 | C7: 1,3-BUTADIENE | D7: 000106990 | E7: 1316215697982 | F7: 77631PLYSRFM100 | G7: 325 Chemicals | H7: 325212 | I7: ARLANXEO | J7: 4647 FM 1006 | K7: ORANGE | L7: TX | M7: 77630 | P7: 20944 | Q7: 35789 | R7: 56733 | S7: 1 | T7: 1 | U7: 1 | V7: 0 | W7: 0 | X7: 0 | Y7: 0 | Z7: 0 | AA7: 0 | AB7: 1 | AH7: 0 | AU7: 0 | AV7: 0 | AW7: 0 | AX7: 0 | BF7: 0 | BM7: 0
B8: 2016 | C8: 1,3-BUTADIENE | D8: 000106990 | E8: 1316215044557 | F8: 37421PLYSR2200P | G8: 325 Chemicals | H8: 325211 | I8: BASF CORP | J8: 2120 POLYMER DR | K8: CHATTANOOGA | L8: TN | M8: 37421 | P8: 159 | Q8: 87.6 | R8: 246.6 | S8: 1 | T8: 1 | U8: 1 | V8: 0 | W8: 0 | X8: 0 | Y8: 0 | Z8: 0 | AA8: 0 | AB8: 1 | AH8: 0 | AU8: 0 | AV8: 0 | AW8: 0 | AX8: 0 | BF8: 0 | BM8: 0
B9: 2016 | C9: 1,3-BUTADIENE | D9: 000106990 | E9: 1316215505280 | F9: 15061PLYSR370FR | G9: 325 Chemicals | H9: 325211 | I9: BASF CORP | J9: 370 FRANKFORT RD | K9: MONACA | L9: PA | M9: 15061 | P9: 3920 | Q9: 169 | R9: 4089 | S9: 1 | T9: 1 | U9: 1 | V9: 0 | W9: 0 | X9: 0 | Y9: 0 | Z9: 0 | AA9: 0 | AB9: 1 | AH9: 0 | AU9: 0 | AV9: 0 | AW9: 0 | AX9: 0 | BF9: 0 | BM9: 0
B10: 2016 | C10: 1,3-BUTADIENE | D10: 000106990 | E10: 1316215044569 | F10: 37406PLYSR3805A | G10: 325 Chemicals | H10: 325212 | I10: BASF CORP | J10: 32 LOST MOUND DRIVE | K10: CHATTANOOGA | L10: TN | M10: 37406 | P10: 362 | Q10: 19 | R10: 381 | S10: 1 | T10: 1 | U10: 1 | V10: 0 | W10: 0 | X10: 0 | Y10: 0 | Z10: 0 | AA10: 0 | AB10: 1 | AH10: 0 | AU10: 0 | AV10: 0 | AW10: 0 | AX10: 0 | BF10: 0 | BM10: 0
B11: 2016 | C11: 1,3-BUTADIENE | D11: 000106990 | E11: 1316215307784 | F11: 77643BSFFNNEOFI | G11: 325 Chemicals | H11: 325110 | I11: BASF TOTAL PETROCHEMICALS LLC | J11: NE OF INTERSECTION OF HWY 73 & HWY 366 | K11: PORT ARTHUR | L11: TX | M11: 77642 | N11: Manufacturing | O11: Based on CDR | P11: 12000 | Q11: 24000 | R11: 36000 | S11: 1 | T11: 1 | U11: 1 | V11: 1 | W11: 0 | X11: 0 | Y11: 1 | Z11: 1 | AA11: 0 | AB11: 0 | AH11: 0 | AU11: 0 | AV11: 0 | AW11: 1 | AX11: 0 | BF11: 0 | BM11: 0
B12: 2016 | C12: 1,3-BUTADIENE | D12: 000106990 | E12: 1316215242621 | F12: 7759WBLNCH2415T | G12: 2211 Electric Utilities | H12: 221112 | I12: BLANCHARD REFINING CO LLC | J12: 2401 5TH AVE S | K12: TEXAS CITY | L12: TX | M12: 77590 | P12: 0 | Q12: 1 | R12: 1 | S12: 1 | T12: 1 | U12: 1 | V12: 1 | W12: 0 | X12: 0 | Y12: 0 | Z12: 1 | AA12: 0 | AB12: 0 | AH12: 0 | AU12: 0 | AV12: 0 | AW12: 0 | AX12: 0 | BF12: 0 | BM12: 0
B13: 2016 | C13: 1,3-BUTADIENE | D13: 000106990 | E13: 1316215242102 | F13: 7759WBLNCH2415T | G13: 324 Petroleum | H13: 324110 | I13: BLANCHARD REFINING CO LLC | J13: 2401 5TH AVE S | K13: TEXAS CITY | L13: TX | M13: 77590 | N13: Manufacturing or Processing as a reactant | O13: Based on NAICS Code for Petroleum refineries | P13: 60 | Q13: 1600 | R13: 1660 | S13: 1 | T13: 1 | U13: 1 | V13: 1 | W13: 0 | X13: 1 | Y13: 1 | Z13: 0 | AA13: 0 | AB13: 1 | AH13: 0 | AU13: 0 | AV13: 0 | AW13: 0 | AX13: 0 | BF13: 0 | BM13: 1
B14: 2016 | C14: 1,3-BUTADIENE | D14: 000106990 | E14: 1316215218544 | F14: 28214TRNSM7401O | G14: 4247 Petroleum Bulk Terminals | H14: 424710 | I14: BLANCHARD TERMINAL CO - CHARLOTTE EAST NC TERMINAL | J14: 7401 OLD MT HOLLY RD | K14: CHARLOTTE | L14: NC | M14: 28214 | N14: Repackaging | O14: Based on NAICS Code for Petroleum Bulk Stations and Terminals | P14: 0 | Q14: 1 | R14: 1 | S14: 1 | T14: 1 | U14: 1 | V14: 0 | W14: 0 | X14: 0 | Y14: 0 | Z14: 0 | AA14: 0 | AB14: 0 | AH14: 1 | AU14: 0 | AV14: 1 | AW14: 0 | AX14: 0 | BF14: 0 | BM14: 0
B15: 2016 | C15: 1,3-BUTADIENE | D15: 000106990 | E15: 1316215218518 | F15: 37209BPXPL14095 | G15: 4247 Petroleum Bulk Terminals | H15: 424710 | I15: BLANCHARD TERMINAL CO - NASHVILLE 51 AVE TN TERMINAL | J15: 1409 51ST AVE N | K15: NASHVILLE | L15: TN | M15: 37209 | N15: Repackaging | O15: Based on NAICS Code for Petroleum Bulk Stations and Terminals | P15: 1 | Q15: 1 | R15: 2 | S15: 1 | T15: 1 | U15: 1 | V15: 0 | W15: 0 | X15: 0 | Y15: 0 | Z15: 0 | AA15: 0 | AB15: 0 | AH15: 1 | AU15: 0 | AV15: 1 | AW15: 0 | AX15: 0 | BF15: 0 | BM15: 0
B16: 2016 | C16: 1,3-BUTADIENE | D16: 000106990 | E16: 1316215218621 | F16: 2757WBPPRD377BU | G16: 4247 Petroleum Bulk Terminals | H16: 424710 | I16: BLANCHARD TERMINAL CO - SELMA BUFFALO NC TERMINAL | J16: 3707 BUFFALO ROAD | K16: SELMA | L16: NC | M16: 27576 | N16: Repackaging | O16: Based on NAICS Code for Petroleum Bulk Stations and Terminals | P16: 2 | Q16: 1 | R16: 3 | S16: 1 | T16: 1 | U16: 1 | V16: 0 | W16: 0 | X16: 0 | Y16: 0 | Z16: 0 | AA16: 0 | AB16: 0 | AH16: 1 | AU16: 0 | AV16: 1 | AW16: 0 | AX16: 0 | BF16: 0 | BM16: 0
B17: 2016 | C17: 1,3-BUTADIENE | D17: 000106990 | E17: 1316215296258 | F17: 98248RCCHR4519G | G17: 324 Petroleum | H17: 324110 | I17: BP CHERRY POINT REFINERY | J17: 4519 GRANDVIEW RD | K17: BLAINE | L17: WA | M17: 98230 | P17: 379.32 | Q17: 0 | R17: 379.32 | S17: 1 | T17: 1 | U17: 1 | V17: 1 | W17: 0 | X17: 0 | Y17: 0 | Z17: 0 | AA17: 1 | AB17: 0 | AH17: 0 | AU17: 0 | AV17: 0 | AW17: 1 | AX17: 0 | BF17: 0 | BM17: 0
B18: 2016 | C18: 1,3-BUTADIENE | D18: 000106990 | E18: 1316215465752 | F18: 46394MCLCX2815I | G18: 324 Petroleum | H18: 324110 | I18: BP PRODUCTS NA WHITING BUSINESS UNIT | J18: 2815 INDIANAPOLIS BLVD | K18: WHITING | L18: IN | M18: 46394 | N18: Processing as a reactant | O18: TRI subuse Info | P18: 1100 | Q18: 2800 | R18: 3900 | S18: 1 | T18: 1 | U18: 1 | V18: 1 | W18: 0 | X18: 1 | Y18: 1 | Z18: 0 | AA18: 0 | AB18: 1 | AH18: 0 | AU18: 0 | AV18: 1 | AW18: 0 | AX18: 0 | BF18: 0 | BM18: 1
B19: 2016 | C19: 1,3-BUTADIENE | D19: 000106990 | E19: 1316215466222 | F19: 46394MCLCX2815I | G19: 324 Petroleum | H19: 324110 | I19: BP PRODUCTS NA WHITING BUSINESS UNIT | J19: 2815 INDIANAPOLIS BLVD | K19: WHITING | L19: IN | M19: 46394 | N19: Processing as a reactant | O19: TRI subuse Info | P19: 0 | Q19: 11 | R19: 11 | S19: 1 | T19: 1 | U19: 1 | V19: 1 | W19: 0 | X19: 0 | Y19: 0 | Z19: 1 | AA19: 0 | AB19: 0 | AH19: 0 | AU19: 0 | AV19: 0 | AW19: 0 | AX19: 0 | BF19: 0 | BM19: 0
B20: 2016 | C20: 1,3-BUTADIENE | D20: 000106990 | E20: 1316215643077 | F20: 43616SHLCM4001C | G20: 324 Petroleum | H20: 324110 | I20: BP-HUSKY REFINING LLC | J20: 4001 CEDAR POINT RD | K20: OREGON | L20: OH | M20: 43616 | N20: Processing as a reactant | O20: TRI subuse Info | P20: 32 | Q20: 830 | R20: 862 | S20: 1 | T20: 1 | U20: 1 | V20: 1 | W20: 0 | X20: 1 | Y20: 1 | Z20: 0 | AA20: 0 | AB20: 1 | AH20: 0 | AU20: 0 | AV20: 1 | AW20: 0 | AX20: 0 | BF20: 0 | BM20: 0
B21: 2016 | C21: 1,3-BUTADIENE | D21: 000106990 | E21: 1316215716061 | F21: 59414MNTNR19001 | G21: 324 Petroleum | H21: 324110 | I21: CALUMET MONTANA REFINING LLC | J21: 1900 10TH ST NE | K21: GREAT FALLS | L21: MT | M21: 59404 | P21: 0 | Q21: 420 | R21: 420 | S21: 1 | T21: 1 | U21: 1 | V21: 1 | W21: 0 | X21: 1 | Y21: 0 | Z21: 0 | AA21: 1 | AB21: 0 | AH21: 0 | AU21: 0 | AV21: 0 | AW21: 1 | AX21: 0 | BF21: 0 | BM21: 0
B22: 2016 | C22: 1,3-BUTADIENE | D22: 000106990 | E22: 1316215748144 | F22: 41114CTLTTPOBOX | G22: 324 Petroleum | H22: 324110 | I22: CATLETTSBURG REFINING LLC | J22: 11631 US RT 23 | K22: CATLETTSBURG | L22: KY | M22: 41129 | N22: Processing as a reactant | O22: TRI subuse Info | P22: 182 | Q22: 198 | R22: 380 | S22: 1 | T22: 1 | U22: 1 | V22: 1 | W22: 0 | X22: 1 | Y22: 0 | Z22: 1 | AA22: 1 | AB22: 1 | AH22: 0 | AU22: 0 | AV22: 0 | AW22: 0 | AX22: 0 | BF22: 0 | BM22: 0
B23: 2016 | C23: 1,3-BUTADIENE | D23: 000106990 | E23: 1316215463199 | F23: 24124HCHSTRT460 | G23: 325 Chemicals | H23: 325220 | I23: CELANESE ACETATE LLC - CELCO P LANT | J23: 3520 VIRGINIA AVE | K23: NARROWS | L23: VA | M23: 24124 | P23: 250 | Q23: 250 | R23: 500 | S23: 1 | T23: 1 | U23: 1 | V23: 1 | W23: 0 | X23: 0 | Y23: 0 | Z23: 1 | AA23: 0 | AB23: 0 | AH23: 0 | AU23: 0 | AV23: 0 | AW23: 0 | AX23: 0 | BF23: 0 | BM23: 0
B24: 2016 | C24: 1,3-BUTADIENE | D24: 000106990 | E24: 1316215550690 | F24: 70143TNNCL500WE | G24: 324 Petroleum | H24: 324110 | I24: CHALMETTE REFINING LLC | J24: 500 W ST BERNARD HWY | K24: CHALMETTE | L24: LA | M24: 70043 | N24: Processing as a reactant | O24: TRI subuse Info | P24: 100 | Q24: 1700 | R24: 1800 | S24: 1 | T24: 1 | U24: 1 | V24: 1 | W24: 0 | X24: 1 | Y24: 0 | Z24: 0 | AA24: 1 | AB24: 1 | AH24: 0 | AU24: 0 | AV24: 0 | AW24: 1 | AX24: 0 | BF24: 0 | BM24: 0
B25: 2016 | C25: 1,3-BUTADIENE | D25: 000106990 | E25: 1316215113630 | F25: 77640CHVRN2001S | G25: 325 Chemicals | H25: 325110 | I25: CHEVRON PHILLIPS CHEMICAL CO | J25: 2001 S GULFWAY DR | K25: PORT ARTHUR | L25: TX | M25: 77640 | N25: Manufacturing | O25: Based on company website | P25: 1438 | Q25: 206 | R25: 1644 | S25: 1 | T25: 1 | U25: 1 | V25: 1 | W25: 0 | X25: 0 | Y25: 1 | Z25: 1 | AA25: 0 | AB25: 0 | AH25: 0 | AU25: 0 | AV25: 0 | AW25: 0 | AX25: 0 | BF25: 0 | BM25: 0
B26: 2016 | C26: 1,3-BUTADIENE | D26: 000106990 | E26: 1316215261330 | F26: 77522CHVRN9500I | G26: 325 Chemicals | H26: 325110 | I26: CHEVRON PHILLIPS CHEMICAL CO LP | J26: 9500 IH-10 E | K26: BAYTOWN | L26: TX | M26: 77521 | N26: Manufacturing | O26: Based on company website | P26: 726 | Q26: 21734 | R26: 22460 | S26: 1 | T26: 1 | U26: 1 | V26: 1 | W26: 0 | X26: 0 | Y26: 1 | Z26: 1 | AA26: 0 | AB26: 0 | AH26: 1 | AU26: 0 | AV26: 0 | AW26: 0 | AX26: 0 | BF26: 0 | BM26: 0
B27: 2016 | C27: 1,3-BUTADIENE | D27: 000106990 | E27: 1316215471513 | F27: 79008PHLLP2MILE | G27: 325 Chemicals | H27: 325199 | I27: CHEVRON PHILLIPS CHEMICAL CO LP BORGER PLANT | J27: SPUR 119 E | K27: BORGER | L27: TX | M27: 79007 | P27: 5211 | Q27: 2379.6 | R27: 7590.6 | S27: 1 | T27: 1 | U27: 1 | V27: 0 | W27: 0 | X27: 0 | Y27: 0 | Z27: 0 | AA27: 0 | AB27: 1 | AH27: 0 | AU27: 0 | AV27: 0 | AW27: 0 | AX27: 0 | BF27: 0 | BM27: 0
B28: 2016 | C28: 1,3-BUTADIENE | D28: 000106990 | E28: 1316215493848 | F28: 77465CHVRNSTATE | G28: 325 Chemicals | H28: 325110 | I28: CHEVRON PHILLIPS CHEMICAL CO LP SWEENY COMPLEX | J28: 21441 LOOP 419 | K28: SWEENY | L28: TX | M28: 77480 | N28: Manufacturing | O28: Based on company website | P28: 4325 | Q28: 2429 | R28: 6754 | S28: 1 | T28: 1 | U28: 1 | V28: 1 | W28: 0 | X28: 0 | Y28: 1 | Z28: 0 | AA28: 0 | AB28: 0 | AH28: 0 | AU28: 0 | AV28: 0 | AW28: 0 | AX28: 0 | BF28: 0 | BM28: 0
B29: 2016 | C29: 1,3-BUTADIENE | D29: 000106990 | E29: 1316215281041 | F29: 84116CHVRN2351N | G29: 324 Petroleum | H29: 324110 | I29: CHEVRON PRODUCTS CO - SALT LAKE REFINERY | J29: 2351 NORTH 1100 WEST | K29: SALT LAKE CITY | L29: UT | M29: 84116 | N29: Processing as a reactant | O29: TRI subuse Info | P29: 18 | Q29: 643 | R29: 661 | S29: 1 | T29: 1 | U29: 1 | V29: 1 | W29: 0 | X29: 1 | Y29: 0 | Z29: 0 | AA29: 0 | AB29: 1 | AH29: 0 | AU29: 0 | AV29: 0 | AW29: 0 | AX29: 0 | BF29: 0 | BM29: 0
B30: 2016 | C30: 1,3-BUTADIENE | D30: 000106990 | E30: 1316215554926 | F30: 90245CHVRN324WE | G30: 324 Petroleum | H30: 324110 | I30: CHEVRON PRODUCTS CO DIV OF CHEVRON USA INC | J30: 324 W EL SEGUNDO BLVD | K30: EL SEGUNDO | L30: CA | M30: 90245 | P30: 23 | Q30: 11 | R30: 34 | S30: 1 | T30: 1 | U30: 1 | V30: 1 | W30: 0 | X30: 0 | Y30: 1 | Z30: 0 | AA30: 1 | AB30: 0 | AH30: 0 | AU30: 0 | AV30: 0 | AW30: 0 | AX30: 0 | BF30: 0 | BM30: 0
B31: 2016 | C31: 1,3-BUTADIENE | D31: 000106990 | E31: 1316215386602 | F31: 39567CHVRNPOBOX | G31: 324 Petroleum | H31: 324110 | I31: CHEVRON PRODUCTS CO PASCAGOULA REFINERY | J31: 250 IND US TRIAL RD | K31: PASCAGOULA | L31: MS | M31: 39581 | N31: Processing as a reactant | O31: TRI subuse Info | P31: 1100 | Q31: 70 | R31: 1170 | S31: 1 | T31: 1 | U31: 1 | V31: 1 | W31: 0 | X31: 1 | Y31: 1 | Z31: 1 | AA31: 1 | AB31: 1 | AH31: 0 | AU31: 0 | AV31: 0 | AW31: 1 | AX31: 0 | BF31: 0 | BM31: 0
B32: 2016 | C32: 1,3-BUTADIENE | D32: 000106990 | E32: 1316215745720 | F32: 94802CHVRN841ST | G32: 324 Petroleum | H32: 324110 | I32: CHEVRON PRODUCTS CO RICHMOND REFINERY | J32: 841 CHEVRON WAY | K32: RICHMOND | L32: CA | M32: 94801 | N32: Processing as a reactant | O32: TRI subuse Info | P32: 98 | Q32: 3 | R32: 101 | S32: 1 | T32: 1 | U32: 1 | V32: 1 | W32: 0 | X32: 1 | Y32: 0 | Z32: 0 | AA32: 1 | AB32: 1 | AH32: 0 | AU32: 0 | AV32: 0 | AW32: 0 | AX32: 0 | BF32: 0 | BM32: 0
B33: 2016 | C33: 1,3-BUTADIENE | D33: 000106990 | E33: 1316215700232 | F33: 94802CHVRN576ST | G33: Other | H33: 541712 | I33: CHEVRON RICHMOND TECHNOLOGY CENTER | J33: 100 CHEVRON WAY - RM10-3114 | K33: RICHMOND | L33: CA | M33: 94801 | N33: Processing as a reactant | O33: TRI subuse Info | P33: 0 | Q33: 0.019 | R33: 0.019 | S33: 1 | T33: 1 | U33: 1 | V33: 1 | W33: 0 | X33: 0 | Y33: 0 | Z33: 1 | AA33: 0 | AB33: 0 | AH33: 0 | AU33: 0 | AV33: 0 | AW33: 0 | AX33: 0 | BF33: 0 | BM33: 0
B34: 2016 | C34: 1,3-BUTADIENE | D34: 000106990 | E34: 1316215678133 | F34: 59044CNXRF803HI | G34: 324 Petroleum | H34: 324110 | I34: CHS INC LAUREL REFINERY | J34: 803 HWY 212 S | K34: LAUREL | L34: MT | M34: 59044 | N34: Processing as a reactant | O34: TRI subuse Info | P34: 109 | Q34: 4825 | R34: 4934 | S34: 1 | T34: 1 | U34: 1 | V34: 1 | W34: 1 | X34: 0 | Y34: 0 | Z34: 1 | AA34: 1 | AB34: 1 | AH34: 0 | AU34: 0 | AV34: 0 | AW34: 0 | AX34: 0 | BF34: 0 | BM34: 1
B35: 2016 | C35: 1,3-BUTADIENE | D35: 000106990 | E35: 1316215523844 | F35: 67460NTNLC2000M | G35: 324 Petroleum | H35: 324110 | I35: CHS MCPHERSON REFINERY | J35: 2000 S MAIN ST | K35: MCPHERSON | L35: KS | M35: 67460 | N35: Processing as a reactant | O35: TRI subuse Info | P35: 5 | Q35: 28 | R35: 33 | S35: 1 | T35: 1 | U35: 1 | V35: 1 | W35: 0 | X35: 1 | Y35: 0 | Z35: 0 | AA35: 0 | AB35: 1 | AH35: 0 | AU35: 0 | AV35: 0 | AW35: 0 | AX35: 0 | BF35: 0 | BM35: 0
B36: 2016 | C36: 1,3-BUTADIENE | D36: 000106990 | E36: 1316215050547 | F36: 70602CTGPTHIGHW | G36: 324 Petroleum | H36: 324110 | I36: CITGO PETROLEUM CORP | J36: 1601 HWY 108 E | K36: SULPHUR | L36: LA | M36: 70665 | P36: 293 | Q36: 259 | R36: 552 | S36: 1 | T36: 1 | U36: 1 | V36: 1 | W36: 0 | X36: 0 | Y36: 0 | Z36: 0 | AA36: 1 | AB36: 0 | AH36: 0 | AU36: 0 | AV36: 0 | AW36: 0 | AX36: 0 | BF36: 0 | BM36: 0
B37: 2016 | C37: 1,3-BUTADIENE | D37: 000106990 | E37: 1316215448919 | F37: 60439NCLCR135TH | G37: 324 Petroleum | H37: 324110 | I37: CITGO PETROLEUM CORP LEMONT REFINERY | J37: 135TH ST & NEW AVE | K37: LEMONT | L37: IL | M37: 60439 | P37: 8 | Q37: 0 | R37: 8 | S37: 1 | T37: 1 | U37: 1 | V37: 1 | W37: 0 | X37: 0 | Y37: 0 | Z37: 0 | AA37: 1 | AB37: 0 | AH37: 0 | AU37: 0 | AV37: 0 | AW37: 0 | AX37: 0 | BF37: 0 | BM37: 0
B38: 2016 | C38: 1,3-BUTADIENE | D38: 000106990 | E38: 1316215367057 | F38: 78408CHMPL1801N | G38: 324 Petroleum | H38: 324110 | I38: CITGO REFINING & CHEMICALS CO LP EAST PLANT | J38: 1801 NUECES BAY BLVD | K38: CORPUS CHRISTI | L38: TX | M38: 78407 | P38: 80 | Q38: 0 | R38: 80 | S38: 1 | T38: 1 | U38: 1 | V38: 0 | W38: 0 | X38: 0 | Y38: 0 | Z38: 0 | AA38: 0 | AB38: 0 | AH38: 0 | AU38: 0 | AV38: 0 | AW38: 1 | AX38: 0 | BF38: 0 | BM38: 0
B39: 2016 | C39: 1,3-BUTADIENE | D39: 000106990 | E39: 1316215367069 | F39: 78409CHMPL7350I | G39: 324 Petroleum | H39: 324110 | I39: CITGO REFINING & CHEMICALS CO LP-WEST PLANT | J39: 7350 INTERSTATE HWY 37 | K39: CORPUS CHRISTI | L39: TX | M39: 78409 | P39: 22 | Q39: 0 | R39: 22 | S39: 1 | T39: 1 | U39: 1 | V39: 0 | W39: 0 | X39: 0 | Y39: 0 | Z39: 0 | AA39: 0 | AB39: 0 | AH39: 0 | AU39: 0 | AV39: 0 | AW39: 1 | AX39: 0 | BF39: 0 | BM39: 0
B40: 2016 | C40: 1,3-BUTADIENE | D40: 000106990 | E40: 1316215652280 | F40: 77536SFTYK2027B | G40: 562 Hazardous Waste | H40: 562211 | I40: CLEAN HARBORS DEER PARK LLC | J40: 2027 INDEPENDENCE PARKWAY SOUTH | K40: LA PORTE | L40: TX | M40: 77571 | N40: Disposal | O40: NAICS Code | P40: 0.13 | Q40: 1.42 | R40: 1.55 | S40: 1 | T40: 1 | U40: 1 | V40: 0 | W40: 0 | X40: 0 | Y40: 0 | Z40: 0 | AA40: 0 | AB40: 0 | AH40: 0 | AU40: 0 | AV40: 0 | AW40: 0 | AX40: 0 | BF40: 0 | BM40: 1
B41: 2016 | C41: 1,3-BUTADIENE | D41: 000106990 | E41: 1316215376207 | F41: 71730NVRNM309AM | G41: 562 Hazardous Waste | H41: 562211 | I41: CLEAN HARBORS EL DORADO LLC | J41: 309 AMERICAN CIR UNION | K41: EL DORADO | L41: AR | M41: 71730 | N41: Disposal | O41: NAICS Code | P41: 0.01 | Q41: 0.56 | R41: 0.57 | S41: 1 | T41: 1 | U41: 1 | V41: 0 | W41: 0 | X41: 0 | Y41: 0 | Z41: 0 | AA41: 0 | AB41: 0 | AH41: 0 | AU41: 0 | AV41: 1 | AW41: 0 | AX41: 0 | BF41: 0 | BM41: 1
B42: 2016 | C42: 1,3-BUTADIENE | D42: 000106990 | E42: 1316215341278 | F42: 70723TXCRFFOOTO | G42: 324 Petroleum | H42: 324110 | I42: CONVENT REFINERY | J42: FOOT OF SUNSHINE BRIDGE- LA HW Y 44 | K42: CONVENT | L42: LA | M42: 70723 | N42: Processing – incorporation into formulation, mixture, or reaction product | O42: TRI subuse Info | P42: 13 | Q42: 10 | R42: 23 | S42: 1 | T42: 1 | U42: 1 | V42: 1 | W42: 0 | X42: 1 | Y42: 0 | Z42: 1 | AA42: 0 | AB42: 0 | AH42: 1 | AU42: 0 | AV42: 1 | AW42: 0 | AX42: 0 | BF42: 0 | BM42: 0
B43: 2016 | C43: 1,3-BUTADIENE | D43: 000106990 | E43: 1316216660377 | F43: 77536DRPRK5900H | G43: 324 Petroleum | H43: 324110 | I43: DEER PARK REFINING LP | J43: 5900 HWY 225 EAST | K43: DEER PARK | L43: TX | M43: 77536 | N43: Processing as a reactant | O43: TRI subuse Info | P43: 43 | Q43: 12000 | R43: 12043 | S43: 1 | T43: 1 | U43: 1 | V43: 1 | W43: 0 | X43: 1 | Y43: 1 | Z43: 0 | AA43: 0 | AB43: 0 | AH43: 1 | AU43: 1 | AV43: 0 | AW43: 0 | AX43: 0 | BF43: 0 | BM43: 1
B44: 2016 | C44: 1,3-BUTADIENE | D44: 000106990 | E44: 1316215401985 | F44: 19706TXCDL2000W | G44: 324 Petroleum | H44: 324110 | I44: DELAWARE CITY REFINERY | J44: 4550 WRANGLE HILL RD | K44: DELAWARE CITY | L44: DE | M44: 19706 | N44: Processing as a reactant | O44: TRI subuse Info | P44: 197 | Q44: 76 | R44: 273 | S44: 1 | T44: 1 | U44: 1 | V44: 1 | W44: 0 | X44: 1 | Y44: 0 | Z44: 0 | AA44: 1 | AB44: 1 | AH44: 0 | AU44: 0 | AV44: 1 | AW44: 0 | AX44: 0 | BF44: 0 | BM44: 0
B45: 2016 | C45: 1,3-BUTADIENE | D45: 000106990 | E45: 1316215178385 | F45: 75702LGLRL1702E | G45: 324 Petroleum | H45: 324110 | I45: DELEK TYLER REFINERY | J45: 1702 E COMMERCE ST | K45: TYLER | L45: TX | M45: 75702 | N45: Processing as a reactant | O45: TRI subuse Info | P45: 41.5 | Q45: 1098.4 | R45: 1139.9 | S45: 1 | T45: 1 | U45: 1 | V45: 1 | W45: 0 | X45: 0 | Y45: 0 | Z45: 1 | AA45: 0 | AB45: 1 | AH45: 0 | AU45: 0 | AV45: 0 | AW45: 1 | AX45: 0 | BF45: 0 | BM45: 0
B46: 2016 | C46: 1,3-BUTADIENE | D46: 000106990 | E46: 1316215633759 | F46: 7006WDNKPR56HIG | G46: 325 Chemicals | H46: 325212 | I46: DENKA PERFORMANCE ELASTOMER LLC | J46: 560 HIGHWAY 44 | K46: LA PLACE | L46: LA | M46: 70068 | N46: Plastics and Rubber Compounding | O46: TRI subuse Info and Company information | P46: 909 | Q46: 3305 | R46: 4214 | S46: 1 | T46: 1 | U46: 1 | V46: 0 | W46: 0 | X46: 0 | Y46: 0 | Z46: 0 | AA46: 0 | AB46: 1 | AH46: 0 | AU46: 0 | AV46: 0 | AW46: 0 | AX46: 0 | BF46: 0 | BM46: 0
B47: 2016 | C47: 1,3-BUTADIENE | D47: 000106990 | E47: 1316215434010 | F47: 7076WDXCPL21255 | G47: 325 Chemicals | H47: 325211 | I47: DEXCO POLYMERS LP | J47: 21255 LA HWY 1 | K47: PLAQUEMINE | L47: LA | M47: 70764 | N47: Plastics and Rubber Compounding | O47: TRI subuse Info and Company information | P47: 2280 | Q47: 2166 | R47: 4446 | S47: 1 | T47: 1 | U47: 1 | V47: 0 | W47: 0 | X47: 0 | Y47: 0 | Z47: 0 | AA47: 0 | AB47: 1 | AH47: 0 | AU47: 0 | AV47: 0 | AW47: 0 | AX47: 0 | BF47: 0 | BM47: 0
B48: 2016 | C48: 1,3-BUTADIENE | D48: 000106990 | E48: 1316215580059 | F48: 7007WDMNDG14891 | G48: 325 Chemicals | H48: 325199 | I48: DIAMOND GREEN DIESEL LLC | J48: 14891 AIRLINE DR | K48: NORCO | L48: LA | M48: 70079 | P48: 0 | Q48: 0 | R48: 0 | S48: 1 | T48: 1 | U48: 1 | V48: 1 | W48: 0 | X48: 0 | Y48: 0 | Z48: 1 | AA48: 1 | AB48: 0 | AH48: 0 | AU48: 0 | AV48: 0 | AW48: 1 | AX48: 0 | BF48: 0 | BM48: 0
B49: 2016 | C49: 1,3-BUTADIENE | D49: 000106990 | E49: 1316215704471 | F49: 79086DMNDSSTARR | G49: 324 Petroleum | H49: 324110 | I49: DIAMOND SHAMROCK REFINING CO LP | J49: 6701 FM 119 | K49: SUNRAY | L49: TX | M49: 79086 | P49: 250 | Q49: 250 | R49: 500 | S49: 1 | T49: 1 | U49: 1 | V49: 1 | W49: 0 | X49: 0 | Y49: 0 | Z49: 0 | AA49: 1 | AB49: 0 | AH49: 0 | AU49: 0 | AV49: 0 | AW49: 0 | AX49: 0 | BF49: 0 | BM49: 0
B50: 2016 | C50: 1,3-BUTADIENE | D50: 000106990 | E50: 1316215533605 | F50: 77507DXCHM10701 | G50: 325 Chemicals | H50: 325199 | I50: DIXIE CHEMICAL CO INC | J50: 10601 BAY AREA BLVD | K50: PASADENA | L50: TX | M50: 77507 | N50: Processing as a reactant | O50: TRI subuse Info | P50: 884.15 | Q50: 1347.28 | R50: 2231.43 | S50: 1 | T50: 1 | U50: 1 | V50: 0 | W50: 0 | X50: 0 | Y50: 0 | Z50: 0 | AA50: 0 | AB50: 1 | AH50: 0 | AU50: 0 | AV50: 0 | AW50: 0 | AX50: 0 | BF50: 0 | BM50: 0
B51: 2016 | C51: 1,3-BUTADIENE | D51: 000106990 | E51: 1316215480411 | F51: 77541THDWCBUILD | G51: 325 Chemicals | H51: 325199 | I51: DOW CHEMICAL CO FREEPORT FACILITY | J51: 2301 N BRAZOSPORT BLVD | K51: FREEPORT | L51: TX | M51: 775413257 | N51: Processing as a reactant | O51: TRI subuse Info | P51: 891 | Q51: 8768 | R51: 9659 | S51: 1 | T51: 1 | U51: 1 | V51: 1 | W51: 0 | X51: 0 | Y51: 0 | Z51: 1 | AA51: 0 | AB51: 1 | AH51: 0 | AU51: 0 | AV51: 0 | AW51: 0 | AX51: 0 | BF51: 0 | BM51: 1
B52: 2016 | C52: 1,3-BUTADIENE | D52: 000106990 | E52: 1316215479801 | F52: 77541THDWCBUILD | G52: Other | H52: 486990 | I52: DOW CHEMICAL CO FREEPORT FACILITY | J52: 2301 N BRAZOSPORT BLVD | K52: FREEPORT | L52: TX | M52: 775413257 | N52: Processing as a reactant | O52: TRI subuse Info | P52: 3 | Q52: 0 | R52: 3 | S52: 1 | T52: 1 | U52: 1 | V52: 1 | W52: 0 | X52: 0 | Y52: 0 | Z52: 1 | AA52: 0 | AB52: 1 | AH52: 0 | AU52: 0 | AV52: 1 | AW52: 0 | AX52: 0 | BF52: 0 | BM52: 0
B53: 2016 | C53: 1,3-BUTADIENE | D53: 000106990 | E53: 1316215046424 | F53: 35217BCCKDRAILR | G53: 324 Petroleum | H53: 324199 | I53: DRUMMOND CO INC ABC COKE DIV | J53: ONE RAILROAD AVE | K53: TARRANT | L53: AL | M53: 35217 | P53: 38 | Q53: 452 | R53: 490 | S53: 1 | T53: 1 | U53: 1 | V53: 1 | W53: 0 | X53: 0 | Y53: 0 | Z53: 1 | AA53: 0 | AB53: 0 | AH53: 0 | AU53: 0 | AV53: 0 | AW53: 0 | AX53: 0 | BF53: 0 | BM53: 0
B54: 2016 | C54: 1,3-BUTADIENE | D54: 000106990 | E54: 1316215309877 | F54: 7051WDHNBR818SU | G54: Other | H54: 447190 | I54: DUHON BROTHERS OIL CO INC | J54: 818 SOUTH HENRY STREET | K54: ABBEVILLE | L54: LA | M54: 70510 | N54: Repackaging | O54: Based on NAICS Code for Petroleum Bulk Stations and Terminals | P54: 30 | Q54: 100 | R54: 130 | S54: 1 | T54: 1 | U54: 1 | V54: 0 | W54: 0 | X54: 0 | Y54: 0 | Z54: 0 | AA54: 0 | AB54: 0 | AH54: 0 | AU54: 1 | AV54: 0 | AW54: 0 | AX54: 0 | BF54: 0 | BM54: 0
B55: 2016 | C55: 1,3-BUTADIENE | D55: 000106990 | E55: 1316215177407 | F55: 37662TNNSSEASTM | G55: 325 Chemicals | H55: 325211 | I55: EASTMAN CHEMICAL CO TENNESSEE OPERATIONS | J55: 100 EASTMAN RD | K55: KINGSPORT | L55: TN | M55: 37660 | P55: 1932 | Q55: 1868 | R55: 3800 | S55: 1 | T55: 1 | U55: 1 | V55: 1 | W55: 0 | X55: 0 | Y55: 0 | Z55: 1 | AA55: 1 | AB55: 0 | AH55: 0 | AU55: 0 | AV55: 0 | AW55: 0 | AX55: 0 | BF55: 0 | BM55: 0
B56: 2016 | C56: 1,3-BUTADIENE | D56: 000106990 | E56: 1316215479332 | F56: 75607TXSSTOFFHI | G56: 325 Chemicals | H56: 325199 | I56: EASTMAN CHEMICAL CO TEXAS OPERATIONS | J56: 300 KODAK BLVD | K56: LONGVIEW | L56: TX | M56: 75602 | N56: Processing as a reactant | O56: TRI subuse Info | P56: 2839 | Q56: 17331 | R56: 20170 | S56: 1 | T56: 1 | U56: 1 | V56: 1 | W56: 0 | X56: 0 | Y56: 1 | Z56: 1 | AA56: 0 | AB56: 1 | AH56: 0 | AU56: 0 | AV56: 0 | AW56: 0 | AX56: 0 | BF56: 1 | BM56: 0
B57: 2016 | C57: 1,3-BUTADIENE | D57: 000106990 | E57: 1316215605965 | F57: 44301BFGDR240WE | G57: 325 Chemicals | H57: 325199 | I57: EMERALD PERFORMANCE MATERIALS | J57: 240 W EMERLING AVE | K57: AKRON | L57: OH | M57: 44301 | N57: Plastics and Rubber Compounding | O57: TRI subuse Info and Company information | P57: 550 | Q57: 1580 | R57: 2130 | S57: 1 | T57: 1 | U57: 1 | V57: 0 | W57: 0 | X57: 0 | Y57: 0 | Z57: 0 | AA57: 0 | AB57: 1 | AH57: 0 | AU57: 0 | AV57: 0 | AW57: 0 | AX57: 0 | BF57: 0 | BM57: 0
B58: 2016 | C58: 1,3-BUTADIENE | D58: 000106990 | E58: 1316215526981 | F58: 77580NTRPR10207 | G58: Other | H58: 211112 | I58: ENTERPRISE PRODUCTS OPERATING LLC | J58: 10207 FM 1942 | K58: MONT BELVIEU | L58: TX | M58: 77580 | N58: Repackaging | O58: Based on Company Information (Wholsale MarketerSite/Name (Terminal) | P58: 0 | Q58: 747 | R58: 747 | S58: 1 | T58: 1 | U58: 1 | V58: 1 | W58: 0 | X58: 0 | Y58: 0 | Z58: 0 | AA58: 1 | AB58: 0 | AH58: 0 | AU58: 0 | AV58: 0 | AW58: 0 | AX58: 0 | BF58: 0 | BM58: 0
B59: 2016 | C59: 1,3-BUTADIENE | D59: 000106990 | E59: 1316215672371 | F59: 52732QNTMCUSHWY | G59: 325 Chemicals | H59: 325199 | I59: EQUISTAR CHEMICALS CLINTON PL ANT | J59: 3400 ANAMOSA RD HWY 30 W | K59: CLINTON | L59: IA | M59: 52732 | N59: Plastics and Rubber Compounding | O59: Company information | P59: 488 | Q59: 2031 | R59: 2519 | S59: 1 | T59: 1 | U59: 1 | V59: 1 | W59: 0 | X59: 0 | Y59: 1 | Z59: 0 | AA59: 0 | AB59: 0 | AH59: 0 | AU59: 0 | AV59: 0 | AW59: 0 | AX59: 0 | BF59: 0 | BM59: 0
B60: 2016 | C60: 1,3-BUTADIENE | D60: 000106990 | E60: 1316215193576 | F60: 60450QNTMC8805N | G60: 325 Chemicals | H60: 325110 | I60: EQUISTAR CHEMICALS LP | J60: 8805 NORTH TABLER RD | K60: MORRIS | L60: IL | M60: 60450 | P60: 316 | Q60: 721 | R60: 1037 | S60: 1 | T60: 1 | U60: 1 | V60: 1 | W60: 0 | X60: 0 | Y60: 1 | Z60: 1 | AA60: 0 | AB60: 0 | AH60: 0 | AU60: 0 | AV60: 1 | AW60: 0 | AX60: 0 | BF60: 0 | BM60: 0
B61: 2016 | C61: 1,3-BUTADIENE | D61: 000106990 | E61: 1316215317936 | F61: 78410CCPCC1501M | G61: 325 Chemicals | H61: 325110 | I61: EQUISTAR CHEMICALS LP | J61: 1501 MCKINZIE RD | K61: CORPUS CHRISTI | L61: TX | M61: 78410 | P61: 1983 | Q61: 2140 | R61: 4123 | S61: 1 | T61: 1 | U61: 1 | V61: 1 | W61: 0 | X61: 0 | Y61: 1 | Z61: 0 | AA61: 0 | AB61: 0 | AH61: 1 | AU61: 0 | AV61: 0 | AW61: 0 | AX61: 0 | BF61: 0 | BM61: 0
B62: 2016 | C62: 1,3-BUTADIENE | D62: 000106990 | E62: 1316215527918 | F62: 77571QNTMC1515M | G62: 325 Chemicals | H62: 325199 | I62: EQUISTAR CHEMICALS LP | J62: 1515 MILLER CUT OFF RD | K62: LA PORTE | L62: TX | M62: 77571 | P62: 1300 | Q62: 4500 | R62: 5800 | S62: 1 | T62: 1 | U62: 1 | V62: 1 | W62: 0 | X62: 0 | Y62: 0 | Z62: 1 | AA62: 0 | AB62: 0 | AH62: 0 | AU62: 0 | AV62: 0 | AW62: 0 | AX62: 0 | BF62: 0 | BM62: 0
B63: 2016 | C63: 1,3-BUTADIENE | D63: 000106990 | E63: 1316215673258 | F63: 70767XXNPR2230H | G63: 324 Petroleum | H63: 324191 | I63: EXXONMOBIL ANCHORAGE TANK FARM | J63: 1420 LAFITON LN | K63: PORT ALLEN | L63: LA | M63: 70767 | P63: 6.78 | Q63: 0 | R63: 6.78 | S63: 1 | T63: 1 | U63: 1 | V63: 1 | W63: 0 | X63: 0 | Y63: 0 | Z63: 1 | AA63: 0 | AB63: 0 | AH63: 0 | AU63: 0 | AV63: 0 | AW63: 0 | AX63: 0 | BF63: 0 | BM63: 0
B64: 2016 | C64: 1,3-BUTADIENE | D64: 000106990 | E64: 1316215691852 | F64: 70767XXNPR2230H | G64: 4246 Chemical Wholesalers | H64: 424690 | I64: EXXONMOBIL ANCHORAGE TANK FARM | J64: 1420 LAFITON LN | K64: PORT ALLEN | L64: LA | M64: 70767 | P64: 250 | Q64: 1281 | R64: 1531 | S64: 1 | T64: 1 | U64: 1 | V64: 1 | W64: 0 | X64: 0 | Y64: 0 | Z64: 1 | AA64: 0 | AB64: 0 | AH64: 0 | AU64: 0 | AV64: 1 | AW64: 0 | AX64: 0 | BF64: 0 | BM64: 0
B65: 2016 | C65: 1,3-BUTADIENE | D65: 000106990 | E65: 1316215729688 | F65: 70767XXNPR2230H | G65: 4247 Petroleum Bulk Terminals | H65: 424710 | I65: EXXONMOBIL ANCHORAGE TANK FARM | J65: 1420 LAFITON LN | K65: PORT ALLEN | L65: LA | M65: 70767 | N65: Repackaging | O65: Based on NAICS Code for Petroleum Bulk Stations and Terminals | P65: 2 | Q65: 0 | R65: 2 | S65: 1 | T65: 1 | U65: 1 | V65: 1 | W65: 0 | X65: 0 | Y65: 0 | Z65: 1 | AA65: 0 | AB65: 0 | AH65: 0 | AU65: 0 | AV65: 0 | AW65: 0 | AX65: 0 | BF65: 0 | BM65: 0
B66: 2016 | C66: 1,3-BUTADIENE | D66: 000106990 | E66: 1316215760760 | F66: 70805XXNCH4999S | G66: 325 Chemicals | H66: 325110 | I66: EXXONMOBIL BATON ROUGE CHEMICAL PLANT (PART) | J66: 4999 SCENIC HWY | K66: BATON ROUGE | L66: LA | M66: 70805 | N66: Manufacturing | O66: Based on CDR | P66: 4500 | Q66: 2900 | R66: =SUM(P66:Q66) -> 7400 | S66: 1 | T66: 1 | U66: 1 | V66: 1 | W66: 0 | X66: 1 | Y66: 1 | Z66: 1 | AA66: 1 | AB66: 1 | AH66: 0 | AU66: 0 | AV66: 1 | AW66: 1 | AX66: 0 | BF66: 0 | BM66: 1
B67: 2016 | C67: 1,3-BUTADIENE | D67: 000106990 | E67: 1316215753144 | F67: 70821CPLYM5955S | G67: 325 Chemicals | H67: 325212 | I67: EXXONMOBIL BATON ROUGE CHEMICAL PLANT NORTH | J67: 1836 SHADA AVE | K67: BATON ROUGE | L67: LA | M67: 70805 | P67: 889 | Q67: 2783 | R67: 3672 | S67: 1 | T67: 1 | U67: 1 | V67: 0 | W67: 0 | X67: 0 | Y67: 0 | Z67: 0 | AA67: 0 | AB67: 1 | AH67: 0 | AU67: 0 | AV67: 0 | AW67: 0 | AX67: 0 | BF67: 0 | BM67: 0
B68: 2016 | C68: 1,3-BUTADIENE | D68: 000106990 | E68: 1316215733193 | F68: 70805XXNBT4050S | G68: 324 Petroleum | H68: 324110 | I68: EXXONMOBIL BATON ROUGE REFINERY (PART) | J68: 4045 SCENIC HWY | K68: BATON ROUGE | L68: LA | M68: 70805 | N68: Mfg or Process as Reactant | P68: 370 | Q68: 68 | R68: 438 | S68: 1 | T68: 1 | U68: 1 | V68: 1 | W68: 0 | X68: 0 | Y68: 1 | Z68: 1 | AA68: 1 | AB68: 0 | AH68: 0 | AU68: 0 | AV68: 0 | AW68: 1 | AX68: 0 | BF68: 0 | BM68: 0
B69: 2016 | C69: 1,3-BUTADIENE | D69: 000106990 | E69: 1316215488750 | F69: 77522XXNCH5000B | G69: 325 Chemicals | H69: 325110 | I69: EXXONMOBIL BAYTOWN CHEMICAL PLANT (PART) | J69: 5000 BAYWAY DR | K69: BAYTOWN | L69: TX | M69: 77520 | N69: Manufacturing | O69: Based on TRI Reporting as Manufactured onsite | P69: 910 | Q69: 950 | R69: 1860 | S69: 1 | T69: 1 | U69: 1 | V69: 1 | W69: 0 | X69: 0 | Y69: 0 | Z69: 1 | AA69: 0 | AB69: 1 | AH69: 0 | AU69: 0 | AV69: 0 | AW69: 1 | AX69: 0 | BF69: 0 | BM69: 1
B70: 2016 | C70: 1,3-BUTADIENE | D70: 000106990 | E70: 1316215460092 | F70: 59101XXNBL700EX | G70: 324 Petroleum | H70: 324110 | I70: EXXONMOBIL BILLINGS REFINERY | J70: 700 EXXONMOBIL RD | K70: BILLINGS | L70: MT | M70: 59101 | N70: Processing as a reactant | O70: TRI subuse Info | P70: 770 | Q70: 200 | R70: 970 | S70: 1 | T70: 1 | U70: 1 | V70: 1 | W70: 0 | X70: 1 | Y70: 0 | Z70: 1 | AA70: 1 | AB70: 1 | AH70: 0 | AU70: 0 | AV70: 0 | AW70: 1 | AX70: 0 | BF70: 0 | BM70: 1
B71: 2016 | C71: 1,3-BUTADIENE | D71: 000106990 | E71: 1316215487861 | F71: 77522XXNCH3525D | G71: 325 Chemicals | H71: 325110 | I71: EXXONMOBIL CHEMICAL CO BAYTOWN OLEFINS PLANT (PART) | J71: 3525 DECKER DR | K71: BAYTOWN | L71: TX | M71: 77520 | N71: Manufacturing | O71: Based on CDR | P71: 11000 | Q71: 28000 | R71: 39000 | S71: 1 | T71: 1 | U71: 1 | V71: 1 | W71: 0 | X71: 0 | Y71: 1 | Z71: 1 | AA71: 0 | AB71: 1 | AH71: 0 | AU71: 0 | AV71: 0 | AW71: 0 | AX71: 0 | BF71: 0 | BM71: 0
B72: 2016 | C72: 1,3-BUTADIENE | D72: 000106990 | E72: 1316215582255 | F72: 77701BMNTREASTE | G72: 324 Petroleum | H72: 324110 | I72: EXXONMOBIL OIL BEAUMONT REFINERY (PART) | J72: E END OF BURT ST | K72: BEAUMONT | L72: TX | M72: 77701 | N72: Processing as a reactant | O72: TRI subuse Info | P72: 1100 | Q72: 210 | R72: 1310 | S72: 1 | T72: 1 | U72: 1 | V72: 1 | W72: 1 | X72: 1 | Y72: 0 | Z72: 1 | AA72: 1 | AB72: 0 | AH72: 1 | AU72: 0 | AV72: 0 | AW72: 1 | AX72: 0 | BF72: 0 | BM72: 0
B73: 2016 | C73: 1,3-BUTADIENE | D73: 000106990 | E73: 1316215642531 | F73: 77704MBLCHGULFS | G73: 325 Chemicals | H73: 325110 | I73: EXXONMOBIL OIL CORP CHEMICAL PLANT (PART) | J73: 2775 GULF STATES RD | K73: BEAUMONT | L73: TX | M73: 77701 | P73: 2616 | Q73: 22686 | R73: 25302 | S73: 1 | T73: 1 | U73: 1 | V73: 1 | W73: 0 | X73: 0 | Y73: 1 | Z73: 1 | AA73: 0 | AB73: 0 | AH73: 0 | AU73: 0 | AV73: 0 | AW73: 0 | AX73: 0 | BF73: 0 | BM73: 0
B74: 2016 | C74: 1,3-BUTADIENE | D74: 000106990 | E74: 1316215393012 | F74: 60434MBLJLINTER | G74: 324 Petroleum | H74: 324110 | I74: EXXONMOBIL OIL CORP JOLIET REFINERY | J74: 25915 S FRONTAGE RD | K74: CHANNAHON | L74: IL | M74: 60410 | N74: Fuels and related products | O74: TRI subuse Info | P74: 329 | Q74: 40 | R74: 369 | S74: 1 | T74: 1 | U74: 1 | V74: 1 | W74: 0 | X74: 1 | Y74: 0 | Z74: 1 | AA74: 1 | AB74: 0 | AH74: 0 | AU74: 0 | AV74: 0 | AW74: 1 | AX74: 0 | BF74: 0 | BM74: 0
B75: 2016 | C75: 1,3-BUTADIENE | D75: 000106990 | E75: 1316215488711 | F75: 77522XXNBY2800D | G75: 324 Petroleum | H75: 324110 | I75: EXXONMOBIL REFINING & SUPPLY BAYTOWN REFINERY (PART) | J75: 2800 DECKER DR | K75: BAYTOWN | L75: TX | M75: 775202099 | N75: Processing as a reactant | O75: TRI subuse Info | P75: 500 | Q75: 11000 | R75: 11500 | S75: 1 | T75: 1 | U75: 1 | V75: 1 | W75: 0 | X75: 0 | Y75: 1 | Z75: 1 | AA75: 1 | AB75: 0 | AH75: 0 | AU75: 0 | AV75: 0 | AW75: 1 | AX75: 0 | BF75: 0 | BM75: 1
B76: 2016 | C76: 1,3-BUTADIENE | D76: 000106990 | E76: 1316215037007 | F76: 44319FRSTN381WE | G76: 325 Chemicals | H76: 325212 | I76: FIRESTONE POLYMERS LLC | J76: 381 W WILBETH RD | K76: AKRON | L76: OH | M76: 44301 | N76: Plastics and Rubber Compounding | O76: TRI subuse Info and Company information | P76: 0 | Q76: 123.63 | R76: 123.63 | S76: 1 | T76: 1 | U76: 1 | V76: 0 | W76: 0 | X76: 0 | Y76: 0 | Z76: 0 | AA76: 0 | AB76: 1 | AH76: 0 | AU76: 0 | AV76: 0 | AW76: 0 | AX76: 0 | BF76: 0 | BM76: 0
B77: 2016 | C77: 1,3-BUTADIENE | D77: 000106990 | E77: 1316217588793 | F77: 70602FRSTNLA108 | G77: 325 Chemicals | H77: 325212 | I77: FIRESTONE POLYMERS LLC | J77: 1801 E LA HWY 108 | K77: SULPHUR | L77: LA | M77: 70665 | N77: Plastics and Rubber Compounding | O77: TRI subuse Info and Company information | P77: 51000 | Q77: 15000 | R77: 66000 | S77: 1 | T77: 1 | U77: 1 | V77: 0 | W77: 0 | X77: 0 | Y77: 0 | Z77: 0 | AA77: 0 | AB77: 1 | AH77: 0 | AU77: 0 | AV77: 0 | AW77: 0 | AX77: 0 | BF77: 0 | BM77: 0 | BW77: 0
B78: 2016 | C78: 1,3-BUTADIENE | D78: 000106990 | E78: 1316215427562 | F78: 78408STHWS1700N | G78: 324 Petroleum | H78: 324110 | I78: FLINT HILLS RESOURCES CORPUS CHRISTI LLC - EAST PLANT | J78: 1700 NUECES BAY BLVD | K78: CORPUS CHRISTI | L78: TX | M78: 78407 | N78: Fuels and related products | O78: TRI subuse Info | P78: 56 | Q78: 4 | R78: 60 | S78: 1 | T78: 1 | U78: 1 | V78: 1 | W78: 0 | X78: 0 | Y78: 0 | Z78: 1 | AA78: 1 | AB78: 0 | AH78: 0 | AU78: 0 | AV78: 0 | AW78: 1 | AX78: 0 | BF78: 0 | BM78: 0
B79: 2016 | C79: 1,3-BUTADIENE | D79: 000106990 | E79: 1316215428044 | F79: 78410KCHRFSUNTI | G79: 324 Petroleum | H79: 324110 | I79: FLINT HILLS RESOURCES CORPUS CHRISTI LLC - WEST PLANT | J79: 2825 SUNTIDE RD | K79: CORPUS CHRISTI | L79: TX | M79: 78409 | N79: Fuels and related products | O79: TRI subuse Info | P79: 279 | Q79: 3 | R79: 282 | S79: 1 | T79: 1 | U79: 1 | V79: 1 | W79: 0 | X79: 1 | Y79: 0 | Z79: 1 | AA79: 0 | AB79: 0 | AH79: 0 | AU79: 0 | AV79: 1 | AW79: 0 | AX79: 0 | BF79: 0 | BM79: 0
B80: 2016 | C80: 1,3-BUTADIENE | D80: 000106990 | E80: 1316216668350 | F80: 55164KCHRFPOBOX | G80: 324 Petroleum | H80: 324110 | I80: FLINT HILLS RESOURCES PINE BEND LLC | J80: 13775 CLARK RD | K80: ROSEMOUNT | L80: MN | M80: 55068 | N80: Processing as a reactant | O80: TRI subuse Info | P80: 1 | Q80: 0 | R80: 1 | S80: 1 | T80: 1 | U80: 1 | V80: 1 | W80: 0 | X80: 1 | Y80: 0 | Z80: 1 | AA80: 0 | AB80: 1 | AH80: 0 | AU80: 0 | AV80: 1 | AW80: 0 | AX80: 0 | BF80: 0 | BM80: 0
B81: 2016 | C81: 1,3-BUTADIENE | D81: 000106990 | E81: 1316215730211 | F81: 77978FRMSPPOBOX | G81: 325 Chemicals | H81: 325211 | I81: FORMOSA PLASTICS CORP TEXAS | J81: 201 FORMOSA DR | K81: POINT COMFORT | L81: TX | M81: 77978 | N81: Plastics and Rubber Compounding | O81: NAICS Code and Company information | P81: 1252 | Q81: 1569 | R81: 2821 | S81: 1 | T81: 1 | U81: 1 | V81: 1 | W81: 0 | X81: 0 | Y81: 1 | Z81: 1 | AA81: 1 | AB81: 0 | AH81: 0 | AU81: 0 | AV81: 0 | AW81: 1 | AX81: 0 | BF81: 0 | BM81: 0
B82: 2016 | C82: 1,3-BUTADIENE | D82: 000106990 | E82: 1316215584994 | F82: 81001BFGDR50WIL | G82: 336 Transportation Equipment | H82: 336413 | I82: GOODRICH CARBON OPERATIONS | J82: 50 WILLIAM WHITE BLVD | K82: PUEBLO | L82: CO | M82: 81001 | P82: 5 | Q82: 10 | R82: 15 | S82: 1 | T82: 1 | U82: 1 | V82: 1 | W82: 0 | X82: 1 | Y82: 0 | Z82: 1 | AA82: 0 | AB82: 0 | AH82: 0 | AU82: 0 | AV82: 0 | AW82: 0 | AX82: 0 | BF82: 0 | BM82: 1
B83: 2016 | C83: 1,3-BUTADIENE | D83: 000106990 | E83: 1316215734551 | F83: 99224GDRCH11135 | G83: 336 Transportation Equipment | H83: 336413 | I83: GOODRICH LANDING SYSTEMS CARBON OPERATIONS | J83: 11135 W WESTBOW BLVD | K83: SPOKANE | L83: WA | M83: 99224 | P83: 0 | Q83: 3.8 | R83: 3.8 | S83: 1 | T83: 1 | U83: 1 | V83: 1 | W83: 0 | X83: 1 | Y83: 0 | Z83: 1 | AA83: 0 | AB83: 0 | AH83: 0 | AU83: 0 | AV83: 0 | AW83: 0 | AX83: 0 | BF83: 0 | BM83: 1
B84: 2016 | C84: 1,3-BUTADIENE | D84: 000106990 | E84: 1316215470206 | F84: 44306THGDY1452E | G84: 325 Chemicals | H84: 325212 | I84: GOODYEAR AKRON PLANT 5 | J84: 1452 E ARCHWOOD AVE | K84: AKRON | L84: OH | M84: 44306 | N84: Plastics and Rubber Compounding | O84: TRI subuse Info and Company information | P84: 435 | Q84: 509 | R84: 944 | S84: 1 | T84: 1 | U84: 1 | V84: 0 | W84: 0 | X84: 0 | Y84: 0 | Z84: 0 | AA84: 0 | AB84: 1 | AH84: 0 | AU84: 0 | AV84: 0 | AW84: 0 | AX84: 0 | BF84: 0 | BM84: 0
B85: 2016 | C85: 1,3-BUTADIENE | D85: 000106990 | E85: 1316215677016 | F85: 77720THGDYINTER | G85: 325 Chemicals | H85: 325212 | I85: GOODYEAR TIRE & RUBBER CO | J85: 11241 INTERSTATE HWY 10 | K85: BEAUMONT | L85: TX | M85: 77705 | N85: Plastics and Rubber Compounding | O85: TRI subuse Info and Company information | P85: 21912 | Q85: 11419 | R85: 33331 | S85: 1 | T85: 1 | U85: 1 | V85: 0 | W85: 0 | X85: 0 | Y85: 0 | Z85: 0 | AA85: 0 | AB85: 1 | AH85: 1 | AU85: 0 | AV85: 0 | AW85: 0 | AX85: 0 | BF85: 0 | BM85: 0
B86: 2016 | C86: 1,3-BUTADIENE | D86: 000106990 | E86: 1316215781129 | F86: 77011HBFLL6107I | G86: 325 Chemicals | H86: 325520 | I86: HB FULLER CONSTRUCTION PRODUCTS INC | J86: 6107 INDUSTRIAL WAY | K86: HOUSTON | L86: TX | M86: 77011 | P86: 0 | Q86: 0.4 | R86: 0.4 | S86: 1 | T86: 1 | U86: 1 | V86: 0 | W86: 0 | X86: 0 | Y86: 0 | Z86: 0 | AA86: 0 | AB86: 0 | AH86: 1 | AU86: 0 | AV86: 0 | AW86: 0 | AX86: 0 | BF86: 0 | BM86: 0
B87: 2016 | C87: 1,3-BUTADIENE | D87: 000106990 | E87: 1316215560145 | F87: 82007FRNTR2700E | G87: 324 Petroleum | H87: 324110 | I87: HOLLYFRONTIER CHEYENNE REFINING LLC | J87: 2700 E. 5TH STREET | K87: CHEYENNE | L87: WY | M87: 82007 | N87: Processing as a reactant | O87: TRI subuse Info | P87: 7 | Q87: 0 | R87: 7 | S87: 1 | T87: 1 | U87: 1 | V87: 1 | W87: 0 | X87: 1 | Y87: 0 | Z87: 0 | AA87: 0 | AB87: 1 | AH87: 1 | AU87: 0 | AV87: 1 | AW87: 0 | AX87: 0 | BF87: 0 | BM87: 0
B88: 2016 | C88: 1,3-BUTADIENE | D88: 000106990 | E88: 1316215122920 | F88: 67042TXCRF1401S | G88: 324 Petroleum | H88: 324110 | I88: HOLLYFRONTIER EL DORADO REFINING LLC | J88: 1401 S DOUGLAS RD | K88: EL DORADO | L88: KS | M88: 67042 | N88: Processing as a reactant | O88: TRI subuse Info | P88: 1 | Q88: 440 | R88: 441 | S88: 1 | T88: 1 | U88: 1 | V88: 1 | W88: 0 | X88: 1 | Y88: 0 | Z88: 0 | AA88: 0 | AB88: 1 | AH88: 1 | AU88: 0 | AV88: 1 | AW88: 0 | AX88: 0 | BF88: 0 | BM88: 0
B89: 2016 | C89: 1,3-BUTADIENE | D89: 000106990 | E89: 1316215494865 | F89: 84087PHLLP393SO | G89: 324 Petroleum | H89: 324110 | I89: HOLLYFRONTIER WOODS CROSS REFINING LLC | J89: 393 S 800 W | K89: WOODS CROSS | L89: UT | M89: 84087 | N89: Processing as a reactant | O89: TRI subuse Info | P89: 5 | Q89: 0 | R89: 5 | S89: 1 | T89: 1 | U89: 1 | V89: 1 | W89: 0 | X89: 1 | Y89: 0 | Z89: 0 | AA89: 0 | AB89: 1 | AH89: 1 | AU89: 0 | AV89: 1 | AW89: 0 | AX89: 0 | BF89: 0 | BM89: 1
B90: 2016 | C90: 1,3-BUTADIENE | D90: 000106990 | E90: 1316215343854 | F90: 77017LYNDL12000 | G90: 324 Petroleum | H90: 324110 | I90: HOUSTON REFINING LP | J90: 12000 LAWNDALE ST | K90: HOUSTON | L90: TX | M90: 77017 | P90: 82 | Q90: 3020 | R90: 3102 | S90: 1 | T90: 1 | U90: 1 | V90: 0 | W90: 0 | X90: 0 | Y90: 0 | Z90: 0 | AA90: 0 | AB90: 0 | AH90: 0 | AU90: 0 | AV90: 0 | AW90: 1 | AX90: 1 | BF90: 0 | BM90: 0
B91: 2016 | C91: 1,3-BUTADIENE | D91: 000106990 | E91: 1316215701436 | F91: 77651TXCCHHWY36 | G91: 325 Chemicals | H91: 325199 | I91: HUNTSMAN PETROCHEMICAL LLC PORT NECHES FACILITY | J91: 6001 HWY 366 | K91: PORT NECHES | L91: TX | M91: 77651 | P91: 215 | Q91: 155 | R91: 370 | S91: 1 | T91: 1 | U91: 1 | V91: 1 | W91: 0 | X91: 0 | Y91: 0 | Z91: 1 | AA91: 0 | AB91: 0 | AH91: 0 | AU91: 0 | AV91: 0 | AW91: 0 | AX91: 0 | BF91: 0 | BM91: 1
B92: 2016 | C92: 1,3-BUTADIENE | D92: 000106990 | E92: 1316215744145 | F92: 96707CHVRN91480 | G92: 324 Petroleum | H92: 324110 | I92: IES DOWNSTREAM LLC - KAPOLEI TERMINAL | J92: 91-480 MALAKOLE ST | K92: KAPOLEI | L92: HI | M92: 96707 | N92: Repackaging | O92: Based on Site/Name (Terminal) | P92: 2200 | Q92: 17 | R92: 2217 | S92: 1 | T92: 1 | U92: 1 | V92: 1 | W92: 0 | X92: 1 | Y92: 0 | Z92: 1 | AA92: 1 | AB92: 1 | AH92: 0 | AU92: 0 | AV92: 0 | AW92: 1 | AX92: 0 | BF92: 0 | BM92: 0
B93: 2016 | C93: 1,3-BUTADIENE | D93: 000106990 | E93: 1316215366271 | F93: 35601MCCHMFINLE | G93: 325 Chemicals | H93: 325110 | I93: INDORAMA VENTURES | J93: 1401 FINLEY ISLAND RD | K93: DECATUR | L93: AL | M93: 35601 | P93: 1800 | Q93: 860 | R93: 2660 | S93: 1 | T93: 1 | U93: 1 | V93: 1 | W93: 0 | X93: 0 | Y93: 0 | Z93: 1 | AA93: 0 | AB93: 1 | AH93: 0 | AU93: 0 | AV93: 0 | AW93: 0 | AX93: 0 | BF93: 0 | BM93: 0
B94: 2016 | C94: 1,3-BUTADIENE | D94: 000106990 | E94: 1316215272079 | F94: 45805BPCHMFORTA | G94: 325 Chemicals | H94: 325199 | I94: INEOS NITRILES USA LLC | J94: 1900 FORT AMANDA RD | K94: LIMA | L94: OH | M94: 45804 | P94: 0 | Q94: 515 | R94: 515 | S94: 1 | T94: 1 | U94: 1 | V94: 0 | W94: 0 | X94: 0 | Y94: 0 | Z94: 0 | AA94: 0 | AB94: 1 | AH94: 0 | AU94: 0 | AV94: 0 | AW94: 0 | AX94: 0 | BF94: 0 | BM94: 0
B95: 2016 | C95: 1,3-BUTADIENE | D95: 000106990 | E95: 1316215513680 | F95: 77507HNTSM12222 | G95: 325 Chemicals | H95: 325110 | I95: INEOS STYROLUTION AMERICA LLC | J95: 12222 PORT RD | K95: PASADENA | L95: TX | M95: 77507 | P95: 0 | Q95: 465 | R95: 465 | S95: 1 | T95: 1 | U95: 1 | V95: 0 | W95: 0 | X95: 0 | Y95: 0 | Z95: 0 | AA95: 0 | AB95: 0 | AH95: 0 | AU95: 0 | AV95: 0 | AW95: 1 | AX95: 0 | BF95: 0 | BM95: 0
B96: 2016 | C96: 1,3-BUTADIENE | D96: 000106990 | E96: 1316215538392 | F96: 45001MNSNT356TH | G96: 325 Chemicals | H96: 325211 | I96: INEOS USA LLC | J96: 356 THREE RIVERS PKWY | K96: ADDYSTON | L96: OH | M96: 45001 | N96: Plastics and Rubber Compounding | O96: TRI subuse Info and Company information | P96: 220 | Q96: 4000 | R96: 4220 | S96: 1 | T96: 1 | U96: 1 | V96: 0 | W96: 0 | X96: 0 | Y96: 0 | Z96: 0 | AA96: 0 | AB96: 1 | AH96: 0 | AU96: 0 | AV96: 0 | AW96: 0 | AX96: 0 | BF96: 0 | BM96: 0
B97: 2016 | C97: 1,3-BUTADIENE | D97: 000106990 | E97: 1316215455268 | F97: 77511MCCHM2MISO | G97: 325 Chemicals | H97: 325199 | I97: INEOS USA LLC - CHOCOLATE BAYOU PLANT | J97: 2 MILES S OF INTERSECTION FM2004 & FM2917 | K97: ALVIN | L97: TX | M97: 77511 | N97: Manufacturing | O97: Based on CDR | P97: 19836 | Q97: 74832 | R97: 94668 | S97: 1 | T97: 1 | U97: 1 | V97: 1 | W97: 0 | X97: 0 | Y97: 1 | Z97: 1 | AA97: 0 | AB97: 0 | AH97: 0 | AU97: 0 | AV97: 0 | AW97: 0 | AX97: 0 | BF97: 0 | BM97: 1
B98: 2016 | C98: 1,3-BUTADIENE | D98: 000106990 | E98: 1316215530662 | F98: 77905NVSTS2695L | G98: 325 Chemicals | H98: 325199 | I98: INVISTA SA RL | J98: 2695 OLD BLOOMINGTON RD NORTH | K98: VICTORIA | L98: TX | M98: 77905 | P98: 2100 | Q98: 19000 | R98: 21100 | S98: 1 | T98: 1 | U98: 1 | V98: 0 | W98: 0 | X98: 0 | Y98: 0 | Z98: 0 | AA98: 0 | AB98: 1 | AH98: 0 | AU98: 0 | AV98: 0 | AW98: 0 | AX98: 0 | BF98: 0 | BM98: 1
B99: 2016 | C99: 1,3-BUTADIENE | D99: 000106990 | E99: 1316215587635 | F99: 77630NVSTS355AF | G99: 325 Chemicals | H99: 325199 | I99: INVISTA SARL - ORANGE SITE | J99: 3055A FM 1006 | K99: ORANGE | L99: TX | M99: 77630 | N99: Plastics and Rubber Compounding | O99: TRI subuse Info and Company information | P99: 1500 | Q99: 18000 | R99: 19500 | S99: 1 | T99: 1 | U99: 1 | V99: 1 | W99: 0 | X99: 0 | Y99: 0 | Z99: 1 | AA99: 0 | AB99: 1 | AH99: 0 | AU99: 0 | AV99: 0 | AW99: 0 | AX99: 0 | BF99: 0 | BM99: 0
B100: 2016 | C100: 1,3-BUTADIENE | D100: 000106990 | E100: 1316215628645 | F100: 79008CNCPHSTATE | G100: Other | H100: 486910 | I100: JOHNSON TANK FARM | J100: STATE HWY SPUR 119 N | K100: BORGER | L100: TX | M100: 79007 | N100: Repackaging | O100: Based on Site/Name (Tank Farm) | P100: 0 | Q100: 155 | R100: 155 | S100: 1 | T100: 1 | U100: 1 | V100: 1 | W100: 1 | X100: 0 | Y100: 0 | Z100: 0 | AA100: 1 | AB100: 0 | AH100: 0 | AU100: 0 | AV100: 0 | AW100: 1 | AX100: 0 | BF100: 0 | BM100: 0
B101: 2016 | C101: 1,3-BUTADIENE | D101: 000106990 | E101: 1316215607603 | F101: 77507NSSKC10500 | G101: 325 Chemicals | H101: 325110 | I101: JX NIPPON CHEMICAL TEXAS INC | J101: 10500 BAY AREA BLVD | K101: PASADENA | L101: TX | M101: 77507 | N101: Processing as a reactant | O101: TRI subuse Info | P101: 1009.76 | Q101: 1776.55 | R101: 2786.31 | S101: 1 | T101: 1 | U101: 1 | V101: 0 | W101: 0 | X101: 0 | Y101: 0 | Z101: 0 | AA101: 0 | AB101: 1 | AH101: 0 | AU101: 0 | AV101: 0 | AW101: 0 | AX101: 0 | BF101: 0 | BM101: 0
B102: 2016 | C102: 1,3-BUTADIENE | D102: 000106990 | E102: 1316215410022 | F102: 77507KNKTX6161U | G102: 325 Chemicals | H102: 325211 | I102: KANEKA NORTH AMERICA LLC | J102: 6161 UNDERWOOD RD | K102: PASADENA | L102: TX | M102: 77507 | N102: Plastics and Rubber Compounding | O102: NAICS Code and Company information | P102: 3675 | Q102: 3589 | R102: 7264 | S102: 1 | T102: 1 | U102: 1 | V102: 0 | W102: 0 | X102: 0 | Y102: 0 | Z102: 0 | AA102: 0 | AB102: 1 | AH102: 0 | AU102: 0 | AV102: 0 | AW102: 0 | AX102: 0 | BF102: 0 | BM102: 0
B103: 2016 | C103: 1,3-BUTADIENE | D103: 000106990 | E103: 1316215573546 | F103: 7754WKNDRM47CLI | G103: 324 Petroleum | H103: 324110 | I103: KINDER MORGAN CRUDE & CONDENSATE LLC | J103: 407 CLINTON DR | K103: GALENA PARK | L103: TX | M103: 77547 | P103: 0 | Q103: 0 | R103: 0 | S103: 1 | T103: 1 | U103: 1 | V103: 0 | W103: 0 | X103: 0 | Y103: 0 | Z103: 0 | AA103: 0 | AB103: 0 | AH103: 0 | AU103: 0 | AV103: 0 | AW103: 0 | AX103: 0 | BF103: 0 | BM103: 0
B104: 2016 | C104: 1,3-BUTADIENE | D104: 000106990 | E104: 1316215236151 | F104: 45714SHLLC2982W | G104: 325 Chemicals | H104: 325212 | I104: KRATON POLYMERS US LLC | J104: 2419 STATE RT 618 | K104: BELPRE | L104: OH | M104: 45714 | N104: Plastics and Rubber Compounding | O104: TRI subuse Info and Company information | P104: 1400 | Q104: 580 | R104: 1980 | S104: 1 | T104: 1 | U104: 1 | V104: 0 | W104: 0 | X104: 0 | Y104: 0 | Z104: 0 | AA104: 0 | AB104: 1 | AH104: 0 | AU104: 0 | AV104: 0 | AW104: 0 | AX104: 0 | BF104: 0 | BM104: 0
B105: 2016 | C105: 1,3-BUTADIENE | D105: 000106990 | E105: 1316215141868 | F105: 77507SPTNC11414 | G105: 325 Chemicals | H105: 325211 | I105: KURARAY AMERICA INC SEPTON BU | J105: 11414 CHOATE RD | K105: PASADENA | L105: TX | M105: 77507 | N105: Plastics and Rubber Compounding | O105: NAICS Code and Company information | P105: 458 | Q105: 1072 | R105: 1530 | S105: 1 | T105: 1 | U105: 1 | V105: 0 | W105: 1 | X105: 1 | Y105: 0 | Z105: 0 | AA105: 0 | AB105: 1 | AH105: 0 | AU105: 0 | AV105: 0 | AW105: 0 | AX105: 0 | BF105: 0 | BM105: 0
B106: 2016 | C106: 1,3-BUTADIENE | D106: 000106990 | E106: 1316215293491 | F106: 77521NCHML4803D | G106: 325 Chemicals | H106: 325212 | I106: LCY ELASTOMERS LP | J106: 4803 DECKER DR | K106: BAYTOWN | L106: TX | M106: 77520 | P106: 1624 | Q106: 2053 | R106: 3677 | S106: 1 | T106: 1 | U106: 1 | V106: 0 | W106: 0 | X106: 0 | Y106: 0 | Z106: 0 | AA106: 0 | AB106: 1 | AH106: 0 | AU106: 0 | AV106: 0 | AW106: 0 | AX106: 0 | BF106: 0 | BM106: 0
B107: 2016 | C107: 1,3-BUTADIENE | D107: 000106990 | E107: 1316215251758 | F107: 45804SHLCM1150S | G107: 324 Petroleum | H107: 324110 | I107: LIMA REFINING CO | J107: 1150 S METCALF ST | K107: LIMA | L107: OH | M107: 45804 | N107: Processing as a reactant | O107: TRI subuse Info | P107: 166.99 | Q107: 1453.05 | R107: 1620.04 | S107: 1 | T107: 1 | U107: 1 | V107: 1 | W107: 0 | X107: 1 | Y107: 0 | Z107: 0 | AA107: 1 | AB107: 0 | AH107: 0 | AU107: 0 | AV107: 0 | AW107: 0 | AX107: 0 | BF107: 0 | BM107: 0
B108: 2016 | C108: 1,3-BUTADIENE | D108: 000106990 | E108: 1316215202971 | F108: 29201LNDCH750GR | G108: 325 Chemicals | H108: 325199 | I108: LINDAU CHEMICALS INC | J108: 750 GRANBY LN | K108: COLUMBIA | L108: SC | M108: 29201 | P108: 360 | Q108: 1470 | R108: 1830 | S108: 1 | T108: 1 | U108: 1 | V108: 0 | W108: 0 | X108: 0 | Y108: 0 | Z108: 0 | AA108: 0 | AB108: 1 | AH108: 0 | AU108: 0 | AV108: 0 | AW108: 0 | AX108: 0 | BF108: 0 | BM108: 0
B109: 2016 | C109: 1,3-BUTADIENE | D109: 000106990 | E109: 1316215733825 | F109: 77651SPSYN1615M | G109: 325 Chemicals | H109: 325212 | I109: LION ELASTOMERS LLC | J109: 1615 MAIN ST | K109: PORT NECHES | L109: TX | M109: 77651 | N109: Plastics and Rubber Compounding | O109: Based on CDR | P109: 2792 | Q109: 830 | R109: 3622 | S109: 1 | T109: 1 | U109: 1 | V109: 0 | W109: 0 | X109: 0 | Y109: 0 | Z109: 0 | AA109: 0 | AB109: 1 | AH109: 0 | AU109: 0 | AV109: 0 | AW109: 0 | AX109: 0 | BF109: 0 | BM109: 0
B110: 2016 | C110: 1,3-BUTADIENE | D110: 000106990 | E110: 1316215248408 | F110: 77630FRSTNFARMR | G110: 325 Chemicals | H110: 325212 | I110: LION ELASTOMERS ORANGE LLC | J110: 5713 FM 1006 | K110: ORANGE | L110: TX | M110: 77630 | N110: Plastics and Rubber Compounding | O110: TRI subuse Info and Company information | P110: 4072 | Q110: 478 | R110: 4550 | S110: 1 | T110: 1 | U110: 1 | V110: 0 | W110: 0 | X110: 0 | Y110: 0 | Z110: 0 | AA110: 0 | AB110: 1 | AH110: 0 | AU110: 0 | AV110: 0 | AW110: 0 | AX110: 0 | BF110: 0 | BM110: 0
B111: 2016 | C111: 1,3-BUTADIENE | D111: 000106990 | E111: 1316215743725 | F111: 71730LNLRF1000M | G111: 324 Petroleum | H111: 324110 | I111: LION OIL CO | J111: 1000 MCHENRY AVE | K111: EL DORADO | L111: AR | M111: 71730 | P111: 7 | Q111: 1246 | R111: 1253 | S111: 1 | T111: 1 | U111: 1 | V111: 1 | W111: 0 | X111: 1 | Y111: 0 | Z111: 0 | AA111: 0 | AB111: 1 | AH111: 0 | AU111: 0 | AV111: 0 | AW111: 0 | AX111: 0 | BF111: 0 | BM111: 0
B112: 2016 | C112: 1,3-BUTADIENE | D112: 000106990 | E112: 1316215551779 | F112: 77536LBRZL41TID | G112: 325 Chemicals | H112: 325199 | I112: LUBRIZOL CORP DEER PARK PLANT | J112: 41 TIDAL RD | K112: DEER PARK | L112: TX | M112: 77536 | P112: 1210 | Q112: 4039 | R112: 5249 | S112: 1 | T112: 1 | U112: 1 | V112: 0 | W112: 0 | X112: 0 | Y112: 0 | Z112: 0 | AA112: 0 | AB112: 1 | AH112: 0 | AU112: 0 | AV112: 0 | AW112: 1 | AX112: 0 | BF112: 0 | BM112: 0
B113: 2016 | C113: 1,3-BUTADIENE | D113: 000106990 | E113: 1316215703455 | F113: 77530RCCHM2502S | G113: 325 Chemicals | H113: 325110 | I113: LYONDELL CHEMICAL CO | J113: 2502 SHELDON RD | K113: CHANNELVIEW | L113: TX | M113: 77530 | P113: 17456 | Q113: 123857 | R113: 141313 | S113: 1 | T113: 1 | U113: 1 | V113: 1 | W113: 0 | X113: 1 | Y113: 1 | Z113: 1 | AA113: 0 | AB113: 1 | AH113: 0 | AU113: 0 | AV113: 0 | AW113: 0 | AX113: 0 | BF113: 0 | BM113: 0
B114: 2016 | C114: 1,3-BUTADIENE | D114: 000106990 | E114: 1316215380700 | F114: 44306NTWRK1353E | G114: 325 Chemicals | H114: 325991 | I114: LYONDELLBASELL ADVANCED POLYMERS INC | J114: 1353 EXETER RD | K114: AKRON | L114: OH | M114: 44306 | P114: 5 | Q114: 5 | R114: 10 | S114: 1 | T114: 1 | U114: 1 | V114: 0 | W114: 1 | X114: 1 | Y114: 0 | Z114: 0 | AA114: 0 | AB114: 0 | AH114: 1 | AU114: 0 | AV114: 0 | AW114: 0 | AX114: 0 | BF114: 0 | BM114: 0
B115: 2016 | C115: 1,3-BUTADIENE | D115: 000106990 | E115: 1316215158458 | F115: 28213NCLCH14700 | G115: 325 Chemicals | H115: 325211 | I115: MALLARD CREEK POLYMERS | J115: 2800 MOREHEAD RD | K115: CHARLOTTE | L115: NC | M115: 28262 | P115: 42 | Q115: 92 | R115: 134 | S115: 1 | T115: 1 | U115: 1 | V115: 0 | W115: 0 | X115: 0 | Y115: 0 | Z115: 0 | AA115: 0 | AB115: 1 | AH115: 0 | AU115: 0 | AV115: 0 | AW115: 0 | AX115: 0 | BF115: 0 | BM115: 0
B116: 2016 | C116: 1,3-BUTADIENE | D116: 000106990 | E116: 1316215708227 | F116: 5860WDKTPR38151 | G116: 324 Petroleum | H116: 324110 | I116: MARATHON DICKINSON REFINERY | J116: 3815 116TH AVE SW | K116: DICKINSON | L116: ND | M116: 58601 | P116: 7 | Q116: 2722 | R116: 2729 | S116: 1 | T116: 1 | U116: 1 | V116: 1 | W116: 1 | X116: 0 | Y116: 0 | Z116: 1 | AA116: 1 | AB116: 0 | AH116: 0 | AU116: 0 | AV116: 0 | AW116: 1 | AX116: 0 | BF116: 0 | BM116: 0
B117: 2016 | C117: 1,3-BUTADIENE | D117: 000106990 | E117: 1316215546627 | F117: 58554MCLCMNORTH | G117: 324 Petroleum | H117: 324110 | I117: MARATHON MANDAN REFINERY | J117: 900 OLD RED TRL NE | K117: MANDAN | L117: ND | M117: 58554 | N117: Processing as a reactant | O117: TRI subuse Info | P117: 51 | Q117: 5 | R117: 56 | S117: 1 | T117: 1 | U117: 1 | V117: 1 | W117: 0 | X117: 1 | Y117: 1 | Z117: 0 | AA117: 0 | AB117: 1 | AH117: 0 | AU117: 0 | AV117: 0 | AW117: 0 | AX117: 0 | BF117: 0 | BM117: 0
B118: 2016 | C118: 1,3-BUTADIENE | D118: 000106990 | E118: 1316215451333 | F118: 70051MRTHNHWY61 | G118: 324 Petroleum | H118: 324110 | I118: MARATHON PETROLEUM CO LP | J118: 4663 W AIRLINE HWY | K118: GARYVILLE | L118: LA | M118: 70051 | N118: Processing – incorporation into formulation, mixture, or reaction product | O118: TRI subuse Info | P118: 93 | Q118: 138 | R118: 231 | S118: 1 | T118: 1 | U118: 1 | V118: 1 | W118: 0 | X118: 0 | Y118: 0 | Z118: 0 | AA118: 1 | AB118: 0 | AH118: 0 | AU118: 0 | AV118: 0 | AW118: 0 | AX118: 0 | BF118: 0 | BM118: 0
B119: 2016 | C119: 1,3-BUTADIENE | D119: 000106990 | E119: 1316215333725 | F119: 48217MRTHN1300S | G119: 324 Petroleum | H119: 324110 | I119: MARATHON PETROLEUM CO LP - MICHIGAN REFINING DIV | J119: 1300 S FORT ST HES DEPT | K119: DETROIT | L119: MI | M119: 48217 | P119: 1641 | Q119: 653 | R119: 2294 | S119: 1 | T119: 1 | U119: 1 | V119: 1 | W119: 0 | X119: 1 | Y119: 0 | Z119: 1 | AA119: 0 | AB119: 0 | AH119: 0 | AU119: 0 | AV119: 0 | AW119: 1 | AX119: 0 | BF119: 0 | BM119: 0
B120: 2016 | C120: 1,3-BUTADIENE | D120: 000106990 | E120: 1316215242189 | F120: 77590MRTHNFOOTO | G120: 324 Petroleum | H120: 324110 | I120: MARATHON PETROLEUM CO LP (PART) | J120: 502 10TH ST S | K120: TEXAS CITY | L120: TX | M120: 77590 | P120: 57 | Q120: 5 | R120: 62 | S120: 1 | T120: 1 | U120: 1 | V120: 1 | W120: 0 | X120: 1 | Y120: 1 | Z120: 0 | AA120: 1 | AB120: 1 | AH120: 0 | AU120: 0 | AV120: 0 | AW120: 1 | AX120: 0 | BF120: 0 | BM120: 1
B121: 2016 | C121: 1,3-BUTADIENE | D121: 000106990 | E121: 1316215407659 | F121: 62454MRTHNMARAT | G121: 324 Petroleum | H121: 324110 | I121: MARATHON PETROLEUM CO LP ILLINOIS REFINING DIV | J121: 100 MARATHON AVE | K121: ROBINSON | L121: IL | M121: 62454 | P121: 11 | Q121: 133 | R121: 144 | S121: 1 | T121: 1 | U121: 1 | V121: 1 | W121: 0 | X121: 1 | Y121: 0 | Z121: 0 | AA121: 0 | AB121: 0 | AH121: 0 | AU121: 0 | AV121: 0 | AW121: 0 | AX121: 0 | BF121: 0 | BM121: 0
B122: 2016 | C122: 1,3-BUTADIENE | D122: 000106990 | E122: 1316215343599 | F122: 44711SHLND2408G | G122: 324 Petroleum | H122: 324110 | I122: MARATHON PETROLEUM CO LP OHIO REFINING DIV | J122: 2408 GAMBRINUS AVE SW | K122: CANTON | L122: OH | M122: 44706 | N122: Fuels and related products | O122: TRI subuse Info | P122: 76 | Q122: 15 | R122: 91 | S122: 1 | T122: 1 | U122: 1 | V122: 1 | W122: 0 | X122: 1 | Y122: 0 | Z122: 0 | AA122: 1 | AB122: 0 | AH122: 0 | AU122: 0 | AV122: 0 | AW122: 1 | AX122: 0 | BF122: 0 | BM122: 1
B123: 2016 | C123: 1,3-BUTADIENE | D123: 000106990 | E123: 1316215715386 | F123: 19061BPLCMPOSTR | G123: 324 Petroleum | H123: 324110 | I123: MONROE ENERGY LLC-TRAINER REFINERY | J123: 4101 POST RD | K123: TRAINER | L123: PA | M123: 19061 | P123: 6 | Q123: 5 | R123: 11 | S123: 1 | T123: 1 | U123: 1 | V123: 1 | W123: 1 | X123: 0 | Y123: 0 | Z123: 1 | AA123: 1 | AB123: 0 | AH123: 0 | AU123: 0 | AV123: 0 | AW123: 1 | AX123: 0 | BF123: 0 | BM123: 0
B124: 2016 | C124: 1,3-BUTADIENE | D124: 000106990 | E124: 1316215497177 | F124: 77641TXCCHGATE2 | G124: 325 Chemicals | H124: 325110 | I124: MOTIVA CHEMICALS LLC | J124: 4241 SAVANNAH AVE | K124: PORT ARTHUR | L124: TX | M124: 77640 | P124: 2316 | Q124: 664 | R124: 2980 | S124: 1 | T124: 1 | U124: 1 | V124: 1 | W124: 0 | X124: 0 | Y124: 0 | Z124: 1 | AA124: 1 | AB124: 0 | AH124: 0 | AU124: 0 | AV124: 0 | AW124: 1 | AX124: 0 | BF124: 0 | BM124: 0
B125: 2016 | C125: 1,3-BUTADIENE | D125: 000106990 | E125: 1316215626348 | F125: 77640TXCRFNORTH | G125: 324 Petroleum | H125: 324110 | I125: MOTIVA-PORT ARTHUR REFINERY | J125: 2555 SAVANNAH AVE | K125: PORT ARTHUR | L125: TX | M125: 77640 | P125: 44 | Q125: 1 | R125: 45 | S125: 1 | T125: 1 | U125: 1 | V125: 1 | W125: 1 | X125: 0 | Y125: 0 | Z125: 0 | AA125: 1 | AB125: 0 | AH125: 0 | AU125: 0 | AV125: 0 | AW125: 1 | AX125: 0 | BF125: 0 | BM125: 0
B126: 2016 | C126: 1,3-BUTADIENE | D126: 000106990 | E126: 1316215283096 | F126: 7610WMSKTF2189G | G126: 4247 Petroleum Bulk Terminals | H126: 424710 | I126: MUSKET FT WORTH BULK PLANT | J126: 5101 LONE STAR BLVD | K126: FORT WORTH | L126: TX | M126: 76106 | N126: Repackaging | O126: Based on NAICS Code for Petroleum Bulk Stations and Terminals | P126: 0.1 | Q126: 1.1 | R126: 1.2 | S126: 1 | T126: 1 | U126: 1 | V126: 0 | W126: 1 | X126: 0 | Y126: 1 | Z126: 0 | AA126: 0 | AB126: 0 | AH126: 0 | AU126: 0 | AV126: 1 | AW126: 0 | AX126: 0 | BF126: 0 | BM126: 0
B127: 2016 | C127: 1,3-BUTADIENE | D127: 000106990 | E127: 1316215138138 | F127: 70734NNTXSLAHWY | G127: 325 Chemicals | H127: 325110 | I127: NOVA CHEMICALS OLEFINS LLC | J127: 5205 HWY 3115 | K127: GEISMAR | L127: LA | M127: 70734 | P127: 6787 | Q127: 650 | R127: 7437 | S127: 1 | T127: 1 | U127: 1 | V127: 1 | W127: 0 | X127: 0 | Y127: 1 | Z127: 0 | AA127: 0 | AB127: 0 | AH127: 0 | AU127: 0 | AV127: 0 | AW127: 0 | AX127: 0 | BF127: 0 | BM127: 0
B128: 2016 | C128: 1,3-BUTADIENE | D128: 000106990 | E128: 1316215572722 | F128: 7754WBLCBP231NB | G128: 325 Chemicals | H128: 325199 | I128: OLIN BLUE CUBE FREEPORT TX | J128: 2301 N BRAZOSPORT BLVD - OC-1120 | K128: FREEPORT | L128: TX | M128: 77541 | P128: 0 | Q128: 0 | R128: 0 | S128: 1 | T128: 1 | U128: 1 | V128: 0 | W128: 0 | X128: 0 | Y128: 0 | Z128: 0 | AA128: 0 | AB128: 0 | AH128: 0 | AU128: 0 | AV128: 0 | AW128: 0 | AX128: 0 | BF128: 0 | BM128: 1
B129: 2016 | C129: 1,3-BUTADIENE | D129: 000106990 | E129: 1316215383338 | F129: 30701THGDY1601H | G129: 325 Chemicals | H129: 325212 | I129: OMNOVA SOLUTIONS INC | J129: 1601 HWY 41, SW | K129: CALHOUN | L129: GA | M129: 30701 | P129: 67 | Q129: 51.97 | R129: 118.97 | S129: 1 | T129: 1 | U129: 1 | V129: 0 | W129: 0 | X129: 0 | Y129: 0 | Z129: 0 | AA129: 0 | AB129: 1 | AH129: 0 | AU129: 0 | AV129: 0 | AW129: 0 | AX129: 0 | BF129: 0 | BM129: 0
B130: 2016 | C130: 1,3-BUTADIENE | D130: 000106990 | E130: 1316215651151 | F130: 44260DVRST165SC | G130: 325 Chemicals | H130: 325212 | I130: OMNOVA SOLUTIONS INC-MOGADORE PLANT | J130: 165 S CLEVELAND AVE | K130: MOGADORE | L130: OH | M130: 44260 | N130: Processing – incorporation into formulation, mixture, or reaction product | O130: TRI subuse Info and Company information | P130: 51 | Q130: 168 | R130: =SUM(P130:Q130) -> 219 | S130: 1 | T130: 1 | U130: 1 | V130: 0 | W130: 1 | X130: 1 | Y130: 0 | Z130: 0 | AA130: 0 | AB130: 1 | AH130: 0 | AU130: 0 | AV130: 0 | AW130: 0 | AX130: 0 | BF130: 0 | BM130: 0
B131: 2016 | C131: 1,3-BUTADIENE | D131: 000106990 | E131: 1316214984597 | F131: 54313GNCRP1701C | G131: 325 Chemicals | H131: 325212 | I131: OMNOVA SOLUTIONS PERFORMANCE CHEMICALS GREEN BAY FACILITY | J131: 1701 CORNELL RD | K131: GREEN BAY | L131: WI | M131: 54313 | N131: Processing – incorporation into formulation, mixture, or reaction product | O131: TRI subuse Info and Company information | P131: 9.98 | Q131: 64.26 | R131: 74.24 | S131: 1 | T131: 1 | U131: 1 | V131: 0 | W131: 0 | X131: 0 | Y131: 0 | Z131: 0 | AA131: 0 | AB131: 1 | AH131: 0 | AU131: 0 | AV131: 0 | AW131: 0 | AX131: 0 | BF131: 0 | BM131: 0
B132: 2016 | C132: 1,3-BUTADIENE | D132: 000106990 | E132: 1316215714623 | F132: 77506CRWNC111RE | G132: 324 Petroleum | H132: 324110 | I132: PASADENA REFINING SYSTEM INC | J132: 111 RED BLUFF RD | K132: PASADENA | L132: TX | M132: 77506 | N132: Processing as a reactant | O132: TRI subuse Info | P132: 221.37 | Q132: 5604.13 | R132: 5825.5 | S132: 1 | T132: 1 | U132: 1 | V132: 1 | W132: 0 | X132: 0 | Y132: 0 | Z132: 0 | AA132: 1 | AB132: 0 | AH132: 0 | AU132: 0 | AV132: 0 | AW132: 0 | AX132: 0 | BF132: 0 | BM132: 0
B133: 2016 | C133: 1,3-BUTADIENE | D133: 000106990 | E133: 1316215573484 | F133: 08066MBLLCBILLI | G133: 324 Petroleum | H133: 324110 | I133: PAULSBORO REFINING CO LLC | J133: 800 BILLINGSPORT RD | K133: PAULSBORO | L133: NJ | M133: 08066 | N133: Processing as a reactant | O133: TRI subuse Info | P133: 44 | Q133: 122 | R133: 166 | S133: 1 | T133: 1 | U133: 1 | V133: 1 | W133: 0 | X133: 1 | Y133: 0 | Z133: 0 | AA133: 0 | AB133: 1 | AH133: 0 | AU133: 0 | AV133: 0 | AW133: 0 | AX133: 0 | BF133: 0 | BM133: 0
B134: 2016 | C134: 1,3-BUTADIENE | D134: 000106990 | E134: 1316215798517 | F134: 77631DPNTSFARMR | G134: 325 Chemicals | H134: 325110 | I134: PERFORMANCE MATERIALS NA INC | J134: FARM RD 1006 | K134: ORANGE | L134: TX | M134: 77630 | P134: 1469 | Q134: 3998.6 | R134: 5467.6 | S134: 1 | T134: 1 | U134: 1 | V134: 1 | W134: 0 | X134: 0 | Y134: 1 | Z134: 0 | AA134: 1 | AB134: 0 | AH134: 0 | AU134: 0 | AV134: 0 | AW134: 0 | AX134: 0 | BF134: 0 | BM134: 1
B135: 2016 | C135: 1,3-BUTADIENE | D135: 000106990 | E135: 1316215577875 | F135: 70037LLNCRHIGHW | G135: 324 Petroleum | H135: 324110 | I135: PHILLIPS 66 - ALLIANCE REFINERY | J135: 15551 HIGHWAY 23 | K135: BELLE CHASSE | L135: LA | M135: 70037 | N135: Processing – incorporation into formulation, mixture, or reaction product | O135: TRI subuse Info | P135: 105 | Q135: 254 | R135: 359 | S135: 1 | T135: 1 | U135: 1 | V135: 1 | W135: 0 | X135: 1 | Y135: 0 | Z135: 0 | AA135: 0 | AB135: 0 | AH135: 1 | AU135: 0 | AV135: 0 | AW135: 0 | AX135: 0 | BF135: 0 | BM135: 0
B136: 2016 | C136: 1,3-BUTADIENE | D136: 000106990 | E136: 1316215515115 | F136: 59101CNCBL401SO | G136: 324 Petroleum | H136: 324110 | I136: PHILLIPS 66 CO BILLINGS REFINERY | J136: 401 S 23RD ST | K136: BILLINGS | L136: MT | M136: 59101 | N136: Processing as a reactant | O136: TRI subuse Info | P136: 60 | Q136: 3100 | R136: 3160 | S136: 1 | T136: 1 | U136: 1 | V136: 1 | W136: 0 | X136: 1 | Y136: 0 | Z136: 1 | AA136: 0 | AB136: 1 | AH136: 0 | AU136: 0 | AV136: 0 | AW136: 0 | AX136: 0 | BF136: 0 | BM136: 1
B137: 2016 | C137: 1,3-BUTADIENE | D137: 000106990 | E137: 1316215675149 | F137: 77480PHLLPSH35A | G137: 324 Petroleum | H137: 324110 | I137: PHILLIPS 66 CO SWEENY REFINERY COMPLEX | J137: 8189 OLD FM 524 | K137: OLD OCEAN | L137: TX | M137: 77463 | N137: Processing as a reactant | O137: TRI subuse Info | P137: 600 | Q137: 2260 | R137: 2860 | S137: 1 | T137: 1 | U137: 1 | V137: 1 | W137: 0 | X137: 1 | Y137: 0 | Z137: 1 | AA137: 0 | AB137: 1 | AH137: 0 | AU137: 0 | AV137: 0 | AW137: 0 | AX137: 0 | BF137: 0 | BM137: 0
B138: 2016 | C138: 1,3-BUTADIENE | D138: 000106990 | E138: 1316215654613 | F138: 07036XXNXX1400P | G138: 324 Petroleum | H138: 324110 | I138: PHILLIPS 66 CO-BAYWAY REFINERY | J138: 1400 PARK AVE | K138: LINDEN | L138: NJ | M138: 07036 | N138: Processing as a reactant | O138: TRI subuse Info | P138: 7 | Q138: 0 | R138: 7 | S138: 1 | T138: 1 | U138: 1 | V138: 1 | W138: 0 | X138: 1 | Y138: 0 | Z138: 1 | AA138: 0 | AB138: 1 | AH138: 0 | AU138: 0 | AV138: 0 | AW138: 0 | AX138: 0 | BF138: 0 | BM138: 0
B139: 2016 | C139: 1,3-BUTADIENE | D139: 000106990 | E139: 1316215619836 | F139: 93420NCLSN2555W | G139: 324 Petroleum | H139: 324110 | I139: PHILLIPS 66 CO-SANTA MARIA REFINERY | J139: 2555 WILLOW RD | K139: ARROYO GRANDE | L139: CA | M139: 93420 | P139: 11 | Q139: 6 | R139: 17 | S139: 1 | T139: 1 | U139: 1 | V139: 1 | W139: 0 | X139: 0 | Y139: 0 | Z139: 1 | AA139: 1 | AB139: 0 | AH139: 0 | AU139: 0 | AV139: 0 | AW139: 1 | AX139: 0 | BF139: 0 | BM139: 1
B140: 2016 | C140: 1,3-BUTADIENE | D140: 000106990 | E140: 1316215648116 | F140: 98248MBLLC3901U | G140: 324 Petroleum | H140: 324110 | I140: PHILLIPS 66 FERNDALE REFINERY | J140: 3901 UNICK RD | K140: FERNDALE | L140: WA | M140: 98248 | P140: 19 | Q140: 0 | R140: 19 | S140: 1 | T140: 1 | U140: 1 | V140: 1 | W140: 0 | X140: 0 | Y140: 0 | Z140: 1 | AA140: 0 | AB140: 0 | AH140: 0 | AU140: 0 | AV140: 0 | AW140: 0 | AX140: 0 | BF140: 0 | BM140: 0
B141: 2016 | C141: 1,3-BUTADIENE | D141: 000106990 | E141: 1316215346216 | F141: 70669CNCLKOLDSP | G141: 324 Petroleum | H141: 324110 | I141: PHILLIPS 66 LAKE CHARLES REFINERY | J141: 2200 OLD SPANISH TRAIL | K141: WESTLAKE | L141: LA | M141: 70669 | N141: Processing as a reactant | O141: TRI subuse Info | P141: 13.96 | Q141: 134.59 | R141: 148.55 | S141: 1 | T141: 1 | U141: 1 | V141: 1 | W141: 0 | X141: 0 | Y141: 0 | Z141: 0 | AA141: 1 | AB141: 1 | AH141: 0 | AU141: 0 | AV141: 0 | AW141: 0 | AX141: 0 | BF141: 0 | BM141: 0
B142: 2016 | C142: 1,3-BUTADIENE | D142: 000106990 | E142: 1316215348208 | F142: 90745NCLCR1520E | G142: 324 Petroleum | H142: 324110 | I142: PHILLIPS 66 LOS ANGELES REFINERY CARSON PLANT | J142: 1520 E SEPULVEDA BLVD | K142: CARSON | L142: CA | M142: 90745 | P142: 28 | Q142: 130 | R142: 158 | S142: 1 | T142: 1 | U142: 1 | V142: 1 | W142: 0 | X142: 1 | Y142: 0 | Z142: 0 | AA142: 0 | AB142: 1 | AH142: 0 | AU142: 0 | AV142: 0 | AW142: 0 | AX142: 0 | BF142: 0 | BM142: 0
B143: 2016 | C143: 1,3-BUTADIENE | D143: 000106990 | E143: 1316215348145 | F143: 90748NCLLS1660W | G143: 324 Petroleum | H143: 324110 | I143: PHILLIPS 66 LOS ANGELES REFINERY WILMINGTON PLANT | J143: 1660 W ANAHEIM ST | K143: WILMINGTON | L143: CA | M143: 90744 | P143: 41 | Q143: 130 | R143: 171 | S143: 1 | T143: 1 | U143: 1 | V143: 1 | W143: 0 | X143: 1 | Y143: 0 | Z143: 0 | AA143: 0 | AB143: 1 | AH143: 0 | AU143: 0 | AV143: 0 | AW143: 0 | AX143: 0 | BF143: 0 | BM143: 0
B144: 2016 | C144: 1,3-BUTADIENE | D144: 000106990 | E144: 1316215562036 | F144: 77627NNLCMHWY36 | G144: 4247 Petroleum Bulk Terminals | H144: 424710 | I144: PHILLIPS 66 PIPELINE LLC-BEAUMONT TERMINAL | J144: HWY 366 1/2 MILE E OF INTERSECTION W HWY 347 | K144: NEDERLAND | L144: TX | M144: 77627 | N144: Repackaging | O144: Based on NAICS Code for Petroleum Bulk Stations and Terminals | P144: 110 | Q144: 2100 | R144: 2210 | S144: 1 | T144: 1 | U144: 1 | V144: 1 | W144: 0 | X144: 0 | Y144: 0 | Z144: 1 | AA144: 0 | AB144: 0 | AH144: 0 | AU144: 0 | AV144: 1 | AW144: 0 | AX144: 0 | BF144: 0 | BM144: 0
B145: 2016 | C145: 1,3-BUTADIENE | D145: 000106990 | E145: 1316215509858 | F145: 74603CNCPN1000S | G145: 324 Petroleum | H145: 324110 | I145: PHILLIPS 66 PONCA CITY SITE | J145: 1000 S PINE ST | K145: PONCA CITY | L145: OK | M145: 746017501 | N145: Processing as a reactant | O145: TRI subuse Info | P145: 380 | Q145: 80 | R145: 460 | S145: 1 | T145: 1 | U145: 1 | V145: 1 | W145: 0 | X145: 1 | Y145: 0 | Z145: 0 | AA145: 0 | AB145: 1 | AH145: 0 | AU145: 0 | AV145: 0 | AW145: 0 | AX145: 0 | BF145: 0 | BM145: 0
B146: 2016 | C146: 1,3-BUTADIENE | D146: 000106990 | E146: 1316215742242 | F146: 94572NCLSNOLDHI | G146: 324 Petroleum | H146: 324110 | I146: PHILLIPS 66 SAN FRANCISCO REFINERY | J146: 1380 SAN PABLO AVE | K146: RODEO | L146: CA | M146: 94572 | P146: 16 | Q146: 42 | R146: 58 | S146: 1 | T146: 1 | U146: 1 | V146: 1 | W146: 0 | X146: 0 | Y146: 0 | Z146: 1 | AA146: 1 | AB146: 0 | AH146: 0 | AU146: 0 | AV146: 0 | AW146: 1 | AX146: 0 | BF146: 0 | BM146: 0
B147: 2016 | C147: 1,3-BUTADIENE | D147: 000106990 | E147: 1316215634585 | F147: 79008PHLLPSTATE | G147: 324 Petroleum | H147: 324110 | I147: PHILLLIPS 66 CO BORGER REFINERY | J147: STATE HWY SPUR 119 N | K147: BORGER | L147: TX | M147: 79007 | P147: 145 | Q147: 2 | R147: 147 | S147: 1 | T147: 1 | U147: 1 | V147: 1 | W147: 1 | X147: 0 | Y147: 0 | Z147: 0 | AA147: 1 | AB147: 0 | AH147: 0 | AU147: 0 | AV147: 0 | AW147: 1 | AX147: 0 | BF147: 0 | BM147: 0
B148: 2016 | C148: 1,3-BUTADIENE | D148: 000106990 | E148: 1316215565577 | F148: 77640CLRKR1801S | G148: 324 Petroleum | H148: 324110 | I148: PREMCOR REFINING GROUP INC PORT ARTHUR | J148: 1801 S GULFWAY DR | K148: PORT ARTHUR | L148: TX | M148: 77640 | N148: Processing as a reactant | O148: TRI subuse Info | P148: 146 | Q148: 73 | R148: 219 | S148: 1 | T148: 1 | U148: 1 | V148: 1 | W148: 0 | X148: 0 | Y148: 0 | Z148: 0 | AA148: 1 | AB148: 0 | AH148: 0 | AU148: 0 | AV148: 0 | AW148: 0 | AX148: 0 | BF148: 0 | BM148: 1
B149: 2016 | C149: 1,3-BUTADIENE | D149: 000106990 | E149: 1316215526462 | F149: 77503MCCHM1500N | G149: 325 Chemicals | H149: 325199 | I149: PURITY ISOBUTYLENE PLANT | J149: 1500 N S ST | K149: PASADENA | L149: TX | M149: 77508 | P149: 0 | Q149: 36.4 | R149: 36.4 | S149: 1 | T149: 1 | U149: 1 | V149: 0 | W149: 0 | X149: 0 | Y149: 0 | Z149: 0 | AA149: 0 | AB149: 0 | AH149: 0 | AU149: 1 | AV149: 1 | AW149: 0 | AX149: 0 | BF149: 0 | BM149: 0
B150: 2016 | C150: 1,3-BUTADIENE | D150: 000106990 | E150: 1316215236288 | F150: 61350BRGWRCANAL | G150: 325 Chemicals | H150: 325211 | I150: SABIC INNOVATIVE PLASTICS US LLC | J150: 2148 N 2753RD RD | K150: OTTAWA | L150: IL | M150: 61350 | N150: Plastics and Rubber Compounding | O150: TRI subuse Info and Company information | P150: 215 | Q150: 51539 | R150: 51754 | S150: 1 | T150: 1 | U150: 1 | V150: 0 | W150: 0 | X150: 0 | Y150: 0 | Z150: 0 | AA150: 0 | AB150: 1 | AH150: 0 | AU150: 0 | AV150: 0 | AW150: 0 | AX150: 0 | BF150: 0 | BM150: 0
B151: 2016 | C151: 1,3-BUTADIENE | D151: 000106990 | E151: 1316215283969 | F151: 70669VSTCHOLDSP | G151: 325 Chemicals | H151: 325199 | I151: SASOL CHEMICALS (USA) LLC-LAKE CHARLES CHEMICAL COMPLEX | J151: 2201 OLD SPANISH TRAIL | K151: WESTLAKE | L151: LA | M151: 70669 | P151: 569 | Q151: 1079 | R151: 1648 | S151: 1 | T151: 1 | U151: 1 | V151: 1 | W151: 0 | X151: 0 | Y151: 0 | Z151: 1 | AA151: 0 | AB151: 0 | AH151: 0 | AU151: 0 | AV151: 0 | AW151: 0 | AX151: 0 | BF151: 0 | BM151: 0
B152: 2016 | C152: 1,3-BUTADIENE | D152: 000106990 | E152: 1316216656215 | F152: 77536SHLLLHIGHW | G152: 325 Chemicals | H152: 325110 | I152: SHELL CHEMICAL LP | J152: 5900 HWY 225 EAST | K152: DEER PARK | L152: TX | M152: 77536 | N152: Manufacturing | O152: Based on CDR | P152: 5300 | Q152: 23000 | R152: 28300 | S152: 1 | T152: 1 | U152: 1 | V152: 0 | W152: 1 | X152: 0 | Y152: 1 | Z152: 0 | AA152: 0 | AB152: 0 | AH152: 1 | AU152: 0 | AV152: 0 | AW152: 0 | AX152: 0 | BF152: 0 | BM152: 0
B153: 2016 | C153: 1,3-BUTADIENE | D153: 000106990 | E153: 1316215209750 | F153: 70079SHLLL1205R | G153: 324 Petroleum | H153: 324110 | I153: SHELL NORCO CHEMICAL PLANT | J153: 15536 RIVER RD | K153: NORCO | L153: LA | M153: 70079 | N153: Manufacturing | O153: Based on CDR | P153: 2043 | Q153: 3123 | R153: 5166 | S153: 1 | T153: 1 | U153: 1 | V153: 1 | W153: 0 | X153: 1 | Y153: 1 | Z153: 0 | AA153: 0 | AB153: 0 | AH153: 1 | AU153: 0 | AV153: 0 | AW153: 0 | AX153: 1 | BF153: 0 | BM153: 0
B154: 2016 | C154: 1,3-BUTADIENE | D154: 000106990 | E154: 1316215209774 | F154: 70079SHLLL1205R | G154: 325 Chemicals | H154: 325110 | I154: SHELL NORCO CHEMICAL PLANT | J154: 15536 RIVER RD | K154: NORCO | L154: LA | M154: 70079 | N154: Manufacturing | O154: Based on CDR | P154: 22653 | Q154: 27296 | R154: 49949 | S154: 1 | T154: 1 | U154: 1 | V154: 1 | W154: 0 | X154: 1 | Y154: 1 | Z154: 0 | AA154: 0 | AB154: 0 | AH154: 1 | AU154: 0 | AV154: 0 | AW154: 0 | AX154: 1 | BF154: 0 | BM154: 0
B155: 2016 | C155: 1,3-BUTADIENE | D155: 000106990 | E155: 1316215209851 | F155: 70079SHLLL265RI | G155: 325 Chemicals | H155: 325110 | I155: SHELL NORCO CHEMICAL PLANT WEST SITE | J155: 16122 RIVER RD | K155: NORCO | L155: LA | M155: 70079 | P155: 2992 | Q155: 0.14 | R155: 2992.14 | S155: 1 | T155: 1 | U155: 1 | V155: 0 | W155: 0 | X155: 0 | Y155: 0 | Z155: 0 | AA155: 0 | AB155: 0 | AH155: 0 | AU155: 0 | AV155: 0 | AW155: 0 | AX155: 0 | BF155: 0 | BM155: 1
B156: 2016 | C156: 1,3-BUTADIENE | D156: 000106990 | E156: 1316215371345 | F156: 98221PGTSN600ST | G156: 324 Petroleum | H156: 324110 | I156: SHELL OIL PRODUCTS US - PUGET SOUND REFINERY | J156: 8505 SOUTH TEXAS RD | K156: ANACORTES | L156: WA | M156: 98221 | N156: Fuels and related products | O156: TRI subuse Info | P156: 14 | Q156: 28 | R156: 42 | S156: 1 | T156: 1 | U156: 1 | V156: 1 | W156: 0 | X156: 1 | Y156: 0 | Z156: 1 | AA156: 0 | AB156: 0 | AH156: 0 | AU156: 0 | AV156: 0 | AW156: 0 | AX156: 0 | BF156: 0 | BM156: 1
B157: 2016 | C157: 1,3-BUTADIENE | D157: 000106990 | E157: 1316215618024 | F157: 94553SHLLL3485P | G157: 324 Petroleum | H157: 324110 | I157: SHELL OIL PRODUCTS US-MARTINEZ REFINERY | J157: 3485 PACHECO BLVD | K157: MARTINEZ | L157: CA | M157: 94553 | N157: Fuels and related products | O157: TRI subuse Info | P157: 32 | Q157: 5 | R157: 37 | S157: 1 | T157: 1 | U157: 1 | V157: 1 | W157: 0 | X157: 0 | Y157: 0 | Z157: 0 | AA157: 1 | AB157: 0 | AH157: 0 | AU157: 0 | AV157: 0 | AW157: 0 | AX157: 0 | BF157: 0 | BM157: 1
B158: 2016 | C158: 1,3-BUTADIENE | D158: 000106990 | E158: 1316215632555 | F158: 77520TXSPT464WB | G158: 325 Chemicals | H158: 325110 | I158: SI GROUP BAYTOWN | J158: 4604 W BAKER RD | K158: BAYTOWN | L158: TX | M158: 77520 | P158: 667 | Q158: 23 | R158: 690 | S158: 1 | T158: 1 | U158: 1 | V158: 0 | W158: 0 | X158: 0 | Y158: 0 | Z158: 0 | AA158: 0 | AB158: 0 | AH158: 0 | AU158: 0 | AV158: 1 | AW158: 0 | AX158: 0 | BF158: 0 | BM158: 0
B159: 2016 | C159: 1,3-BUTADIENE | D159: 000106990 | E159: 1316215147671 | F159: 82609LTTLM5700E | G159: 324 Petroleum | H159: 324110 | I159: SINCLAIR CASPER REFINING CO | J159: 5700 E HWY 20/26 | K159: CASPER | L159: WY | M159: 82609 | P159: 1 | Q159: 0 | R159: 1 | S159: 1 | T159: 1 | U159: 1 | V159: 1 | W159: 0 | X159: 1 | Y159: 1 | Z159: 0 | AA159: 0 | AB159: 1 | AH159: 0 | AU159: 0 | AV159: 0 | AW159: 0 | AX159: 0 | BF159: 0 | BM159: 0
B160: 2016 | C160: 1,3-BUTADIENE | D160: 000106990 | E160: 1316215607730 | F160: 82334SNCLREASTL | G160: 324 Petroleum | H160: 324110 | I160: SINCLAIR WYOMING REFINING CO | J160: 100 E LINCOLN AVE | K160: SINCLAIR | L160: WY | M160: 82334 | N160: Processing as a reactant | O160: TRI subuse Info | P160: 4 | Q160: 48 | R160: 52 | S160: 1 | T160: 1 | U160: 1 | V160: 1 | W160: 0 | X160: 1 | Y160: 1 | Z160: 0 | AA160: 0 | AB160: 1 | AH160: 0 | AU160: 0 | AV160: 0 | AW160: 0 | AX160: 0 | BF160: 0 | BM160: 0
B161: 2016 | C161: 1,3-BUTADIENE | D161: 000106990 | E161: 1316217695218 | F161: 77562STHWS18310 | G161: 336 Transportation Equipment | H161: 336611 | I161: SOUTHWEST SHIPYARD LP | J161: 18310 MARKET ST | K161: CHANNELVIEW | L161: TX | M161: 77530 | P161: 0 | Q161: 532 | R161: 532 | S161: 1 | T161: 1 | U161: 1 | V161: 0 | W161: 0 | X161: 0 | Y161: 0 | Z161: 0 | AA161: 0 | AB161: 0 | AH161: 0 | AU161: 0 | AV161: 0 | AW161: 0 | AX161: 0 | BF161: 0 | BM161: 1 | BW161: 0
B162: 2016 | C162: 1,3-BUTADIENE | D162: 000106990 | E162: 1316215011851 | F162: 70057NNCRBHWY31 | G162: 325 Chemicals | H162: 325199 | I162: ST CHARLES OPERATIONS (TAFT/STAR) UNION CARBIDE CORP | J162: 355 LA HWY 3142 (GATE 1) | K162: HAHNVILLE | L162: LA | M162: 70057 | P162: 686 | Q162: 3223 | R162: 3909 | S162: 1 | T162: 1 | U162: 1 | V162: 1 | W162: 0 | X162: 0 | Y162: 1 | Z162: 0 | AA162: 0 | AB162: 0 | AH162: 0 | AU162: 0 | AV162: 0 | AW162: 0 | AX162: 0 | BF162: 0 | BM162: 0
B163: 2016 | C163: 1,3-BUTADIENE | D163: 000106990 | E163: 1316215504630 | F163: 55071SHLND100WT | G163: 324 Petroleum | H163: 324110 | I163: ST PAUL PARK REFINING CO LLC | J163: 301 ST PAUL PARK RD | K163: SAINT PAUL PARK | L163: MN | M163: 55071 | N163: Fuels and related products | O163: TRI subuse Info | P163: 74 | Q163: 540 | R163: 614 | S163: 1 | T163: 1 | U163: 1 | V163: 1 | W163: 0 | X163: 1 | Y163: 0 | Z163: 1 | AA163: 1 | AB163: 1 | AH163: 1 | AU163: 0 | AV163: 0 | AW163: 0 | AX163: 0 | BF163: 0 | BM163: 1
B164: 2016 | C164: 1,3-BUTADIENE | D164: 000106990 | E164: 1316215174842 | F164: 80022CNCDN5801B | G164: 324 Petroleum | H164: 324110 | I164: SUNCOR ENERGY COMMERCE CITY REFINERY | J164: 5801 BRIGHTON BLVD | K164: COMMERCE CITY | L164: CO | M164: 80022 | P164: 85 | Q164: 0.5 | R164: 85.5 | S164: 1 | T164: 1 | U164: 1 | V164: 1 | W164: 0 | X164: 0 | Y164: 0 | Z164: 1 | AA164: 1 | AB164: 0 | AH164: 0 | AU164: 0 | AV164: 0 | AW164: 0 | AX164: 0 | BF164: 0 | BM164: 0
B165: 2016 | C165: 1,3-BUTADIENE | D165: 000106990 | E165: 1316215606157 | F165: 77547DYNGY12801 | G165: 4247 Petroleum Bulk Terminals | H165: 424710 | I165: TARGA DOWNSTREAM LLC - GALENA PARK MARINE TERMINAL | J165: 12510 AMERICAN PETROLEUM RD | K165: GALENA PARK | L165: TX | M165: 77547 | N165: Repackaging | O165: Based on NAICS Code for Petroleum Bulk Stations and Terminals | P165: 7540 | Q165: 2010 | R165: 9550 | S165: 1 | T165: 1 | U165: 1 | V165: 0 | W165: 0 | X165: 0 | Y165: 0 | Z165: 0 | AA165: 0 | AB165: 0 | AH165: 0 | AU165: 0 | AV165: 1 | AW165: 0 | AX165: 0 | BF165: 0 | BM165: 0
B166: 2016 | C166: 1,3-BUTADIENE | D166: 000106990 | E166: 1316215622426 | F166: 90749RCPRD1801E | G166: 324 Petroleum | H166: 324110 | I166: TESORO LOS ANGELES REFINERY-CARSON OPERATIONS | J166: 24696 S WILMINGTON AVE | K166: CARSON | L166: CA | M166: 90745 | N166: Fuels and related products | O166: TRI subuse Info | P166: 4 | Q166: 0 | R166: 4 | S166: 1 | T166: 1 | U166: 1 | V166: 1 | W166: 0 | X166: 0 | Y166: 0 | Z166: 0 | AA166: 1 | AB166: 0 | AH166: 0 | AU166: 0 | AV166: 0 | AW166: 1 | AX166: 0 | BF166: 0 | BM166: 1
B167: 2016 | C167: 1,3-BUTADIENE | D167: 000106990 | E167: 1316215622667 | F167: 90749RCPRD1801E | G167: 324 Petroleum | H167: 324110 | I167: TESORO LOS ANGELES REFINERY-CARSON OPERATIONS | J167: 24696 S WILMINGTON AVE | K167: CARSON | L167: CA | M167: 90745 | N167: Fuels and related products | O167: TRI subuse Info | P167: 20 | Q167: 3 | R167: 23 | S167: 1 | T167: 1 | U167: 1 | V167: 1 | W167: 0 | X167: 0 | Y167: 0 | Z167: 0 | AA167: 1 | AB167: 0 | AH167: 0 | AU167: 0 | AV167: 0 | AW167: 1 | AX167: 0 | BF167: 0 | BM167: 1
B168: 2016 | C168: 1,3-BUTADIENE | D168: 000106990 | E168: 1316215622832 | F168: 90749RCPRD1801E | G168: 324 Petroleum | H168: 324110 | I168: TESORO LOS ANGELES REFINERY-CARSON OPERATIONS | J168: 24696 S WILMINGTON AVE | K168: CARSON | L168: CA | M168: 90745 | N168: Fuels and related products | O168: TRI subuse Info | P168: 37 | Q168: 4 | R168: 41 | S168: 1 | T168: 1 | U168: 1 | V168: 1 | W168: 0 | X168: 1 | Y168: 0 | Z168: 0 | AA168: 1 | AB168: 1 | AH168: 0 | AU168: 0 | AV168: 0 | AW168: 0 | AX168: 0 | BF168: 0 | BM168: 1
B169: 2016 | C169: 1,3-BUTADIENE | D169: 000106990 | E169: 1316215673664 | F169: 90749RCPRD1801E | G169: 324 Petroleum | H169: 324110 | I169: TESORO LOS ANGELES REFINERY-CARSON OPERATIONS | J169: 24696 S WILMINGTON AVE | K169: CARSON | L169: CA | M169: 90745 | N169: Fuels and related products | O169: TRI subuse Info | P169: 0 | Q169: 0 | R169: 0 | S169: 1 | T169: 1 | U169: 1 | V169: 1 | W169: 0 | X169: 0 | Y169: 0 | Z169: 1 | AA169: 0 | AB169: 0 | AH169: 0 | AU169: 0 | AV169: 0 | AW169: 0 | AX169: 0 | BF169: 0 | BM169: 0
B170: 2016 | C170: 1,3-BUTADIENE | D170: 000106990 | E170: 1316215278351 | F170: 90749RCPRD1801E | G170: 4247 Petroleum Bulk Terminals | H170: 424710 | I170: TESORO LOS ANGELES REFINERY-CARSON OPERATIONS | J170: 24696 S WILMINGTON AVE | K170: CARSON | L170: CA | M170: 90745 | N170: Repackaging | O170: Based on NAICS Code for Petroleum Bulk Stations and Terminals | P170: 0 | Q170: 0 | R170: 0 | S170: 1 | T170: 1 | U170: 1 | V170: 1 | W170: 0 | X170: 0 | Y170: 0 | Z170: 1 | AA170: 0 | AB170: 0 | AH170: 0 | AU170: 0 | AV170: 0 | AW170: 0 | AX170: 0 | BF170: 0 | BM170: 1
B171: 2016 | C171: 1,3-BUTADIENE | D171: 000106990 | E171: 1316215680164 | F171: 90749RCPRD1801E | G171: 4247 Petroleum Bulk Terminals | H171: 424710 | I171: TESORO LOS ANGELES REFINERY-CARSON OPERATIONS | J171: 24696 S WILMINGTON AVE | K171: CARSON | L171: CA | M171: 90745 | N171: Repackaging | O171: Based on NAICS Code for Petroleum Bulk Stations and Terminals | P171: 0 | Q171: 0 | R171: 0 | S171: 1 | T171: 1 | U171: 1 | V171: 1 | W171: 0 | X171: 0 | Y171: 0 | Z171: 1 | AA171: 0 | AB171: 0 | AH171: 0 | AU171: 0 | AV171: 0 | AW171: 0 | AX171: 0 | BF171: 0 | BM171: 0
B172: 2016 | C172: 1,3-BUTADIENE | D172: 000106990 | E172: 1316215680315 | F172: 90749RCPRD1801E | G172: 4247 Petroleum Bulk Terminals | H172: 424710 | I172: TESORO LOS ANGELES REFINERY-CARSON OPERATIONS | J172: 24696 S WILMINGTON AVE | K172: CARSON | L172: CA | M172: 90745 | N172: Repackaging | O172: Based on NAICS Code for Petroleum Bulk Stations and Terminals | P172: 0 | Q172: 0 | R172: 0 | S172: 1 | T172: 1 | U172: 1 | V172: 1 | W172: 0 | X172: 0 | Y172: 0 | Z172: 1 | AA172: 0 | AB172: 0 | AH172: 0 | AU172: 0 | AV172: 1 | AW172: 0 | AX172: 0 | BF172: 0 | BM172: 0
B173: 2016 | C173: 1,3-BUTADIENE | D173: 000106990 | E173: 1316215617667 | F173: 98221SHLLLWESTM | G173: 324 Petroleum | H173: 324110 | I173: TESORO REFINING & MARKETING CO LLC | J173: W MARCH POINT RD | K173: ANACORTES | L173: WA | M173: 98221 | N173: Fuels and related products | O173: TRI subuse Info | P173: 1 | Q173: 398 | R173: 399 | S173: 1 | T173: 1 | U173: 1 | V173: 1 | W173: 0 | X173: 1 | Y173: 0 | Z173: 1 | AA173: 0 | AB173: 0 | AH173: 0 | AU173: 0 | AV173: 0 | AW173: 0 | AX173: 0 | BF173: 0 | BM173: 1
B174: 2016 | C174: 1,3-BUTADIENE | D174: 000106990 | E174: 1316215620194 | F174: 94553TSCCRAVONR | G174: 324 Petroleum | H174: 324110 | I174: TESORO REFINING & MARKETING CO LLC | J174: 150 SOLANO WAY | K174: MARTINEZ | L174: CA | M174: 94553 | P174: 12 | Q174: 210 | R174: 222 | S174: 1 | T174: 1 | U174: 1 | V174: 1 | W174: 0 | X174: 1 | Y174: 0 | Z174: 0 | AA174: 1 | AB174: 1 | AH174: 0 | AU174: 0 | AV174: 0 | AW174: 0 | AX174: 0 | BF174: 0 | BM174: 0
B175: 2016 | C175: 1,3-BUTADIENE | D175: 000106990 | E175: 1316215601840 | F175: 84103MCLCM474WE | G175: 324 Petroleum | H175: 324110 | I175: TESORO REFINING & MARKETING COMPANY LLC - SLC | J175: 474 W 900 N | K175: SALT LAKE CITY | L175: UT | M175: 84103 | P175: 86 | Q175: 95 | R175: 181 | S175: 1 | T175: 1 | U175: 1 | V175: 1 | W175: 0 | X175: 0 | Y175: 1 | Z175: 1 | AA175: 0 | AB175: 0 | AH175: 1 | AU175: 0 | AV175: 1 | AW175: 0 | AX175: 0 | BF175: 0 | BM175: 0
B176: 2016 | C176: 1,3-BUTADIENE | D176: 000106990 | E176: 1316215324892 | F176: 48667THDWCMICHI | G176: 325 Chemicals | H176: 325320 | I176: THE DOW CHEMICAL CO | J176: 1790 BUILDING | K176: MIDLAND | L176: MI | M176: 48667 | N176: Repackaging | O176: Based on CDR | P176: 3 | Q176: 13 | R176: 16 | S176: 1 | T176: 1 | U176: 1 | V176: 1 | W176: 1 | X176: 1 | Y176: 0 | Z176: 1 | AA176: 0 | AB176: 0 | AH176: 0 | AU176: 0 | AV176: 0 | AW176: 0 | AX176: 0 | BF176: 0 | BM176: 1
B177: 2016 | C177: 1,3-BUTADIENE | D177: 000106990 | E177: 1316215512361 | F177: 70765THDWCHIGHW | G177: 325 Chemicals | H177: 325199 | I177: THE DOW CHEMICAL CO - LOUISIANA OPERATIONS | J177: 21255 LA HWY 1 S | K177: PLAQUEMINE | L177: LA | M177: 70764 | P177: 3048 | Q177: 2155 | R177: 5203 | S177: 1 | T177: 1 | U177: 1 | V177: 1 | W177: 1 | X177: 1 | Y177: 1 | Z177: 1 | AA177: 1 | AB177: 1 | AH177: 0 | AU177: 0 | AV177: 0 | AW177: 1 | AX177: 1 | BF177: 0 | BM177: 1
B178: 2016 | C178: 1,3-BUTADIENE | D178: 000106990 | E178: 1316215528415 | F178: 77262GDYRT2000G | G178: 325 Chemicals | H178: 325212 | I178: THE GOODYEAR TIRE & RUBBER CO | J178: 2000 GOODYEAR DR | K178: HOUSTON | L178: TX | M178: 77017 | N178: Plastics and Rubber Compounding | O178: TRI subuse Info and Company information | P178: 9799 | Q178: 3372 | R178: 13171 | S178: 1 | T178: 1 | U178: 1 | V178: 0 | W178: 1 | X178: 1 | Y178: 0 | Z178: 0 | AA178: 0 | AB178: 1 | AH178: 0 | AU178: 0 | AV178: 0 | AW178: 0 | AX178: 0 | BF178: 0 | BM178: 0
B179: 2016 | C179: 1,3-BUTADIENE | D179: 000106990 | E179: 1316215475854 | F179: 43616SNRFN1819W | G179: 324 Petroleum | H179: 324110 | I179: TOLEDO REFINING CO LLC | J179: 1819 WOODVILLE RD | K179: OREGON | L179: OH | M179: 43616 | N179: Processing as a reactant | O179: TRI subuse Info | P179: 250 | Q179: 0 | R179: 250 | S179: 1 | T179: 1 | U179: 1 | V179: 1 | W179: 0 | X179: 0 | Y179: 0 | Z179: 1 | AA179: 0 | AB179: 0 | AH179: 0 | AU179: 0 | AV179: 0 | AW179: 0 | AX179: 0 | BF179: 0 | BM179: 0
B180: 2016 | C180: 1,3-BUTADIENE | D180: 000106990 | E180: 1316215355734 | F180: 90509MBLLC3700W | G180: 324 Petroleum | H180: 324110 | I180: TORRANCE REFINING CO LLC | J180: 3700 W 190TH ST | K180: TORRANCE | L180: CA | M180: 90504 | P180: 2 | Q180: 350 | R180: 352 | S180: 1 | T180: 1 | U180: 1 | V180: 1 | W180: 0 | X180: 1 | Y180: 1 | Z180: 1 | AA180: 0 | AB180: 0 | AH180: 0 | AU180: 0 | AV180: 0 | AW180: 1 | AX180: 0 | BF180: 0 | BM180: 1
B181: 2016 | C181: 1,3-BUTADIENE | D181: 000106990 | E181: 1316215616020 | F181: 81503CLRDC56924 | G181: 325 Chemicals | H181: 325212 | I181: TOTAL PETROCHEMICALS & REFINING USA INC (TOTAL CRAY VALLEY) | J181: 569 24 1/4 RD | K181: GRAND JUNCTION | L181: CO | M181: 81505 | N181: Plastics and Rubber Compounding | O181: TRI subuse Info and Company information | P181: 12 | Q181: 5958 | R181: 5970 | S181: 1 | T181: 1 | U181: 1 | V181: 0 | W181: 0 | X181: 0 | Y181: 0 | Z181: 0 | AA181: 0 | AB181: 1 | AH181: 0 | AU181: 0 | AV181: 0 | AW181: 0 | AX181: 0 | BF181: 0 | BM181: 0
B182: 2016 | C182: 1,3-BUTADIENE | D182: 000106990 | E182: 1316215522588 | F182: 77640FNLNDHIGHW | G182: 324 Petroleum | H182: 324110 | I182: TOTAL PETROCHEMICALS & REFINING USA INC-PORT ARTHUR REFI | J182: 7600 32ND ST | K182: PORT ARTHUR | L182: TX | M182: 77642 | N182: Manufacturing | O182: TRI flag and company website information | P182: 9.92 | Q182: 165621.67 | R182: 165631.59 | S182: 1 | T182: 1 | U182: 1 | V182: 1 | W182: 0 | X182: 0 | Y182: 0 | Z182: 1 | AA182: 0 | AB182: 0 | AH182: 0 | AU182: 0 | AV182: 0 | AW182: 0 | AX182: 0 | BF182: 0 | BM182: 0
B183: 2016 | C183: 1,3-BUTADIENE | D183: 000106990 | E183: 1316215569157 | F183: 77651TXSPT212SP | G183: 325 Chemicals | H183: 325199 | I183: TPC GROUP | J183: 2102 SPUR 136 | K183: PORT NECHES | L183: TX | M183: 77651 | N183: Manufacturing | O183: Based on CDR | P183: 17095 | Q183: 19895 | R183: 36990 | S183: 1 | T183: 1 | U183: 1 | V183: 1 | W183: 0 | X183: 0 | Y183: 1 | Z183: 0 | AA183: 0 | AB183: 0 | AH183: 0 | AU183: 0 | AV183: 0 | AW183: 0 | AX183: 0 | BF183: 0 | BM183: 0
B184: 2016 | C184: 1,3-BUTADIENE | D184: 000106990 | E184: 1316215669831 | F184: 77017TXSPT8600P | G184: 325 Chemicals | H184: 325199 | I184: TPC GROUP LLC | J184: 8600 PARK PL BLVD | K184: HOUSTON | L184: TX | M184: 77017 | N184: Manufacturing | O184: Based on CDR | P184: 11327 | Q184: 5052 | R184: 16379 | S184: 1 | T184: 1 | U184: 1 | V184: 1 | W184: 1 | X184: 0 | Y184: 1 | Z184: 0 | AA184: 0 | AB184: 0 | AH184: 0 | AU184: 0 | AV184: 0 | AW184: 0 | AX184: 0 | BF184: 0 | BM184: 0
B185: 2016 | C185: 1,3-BUTADIENE | D185: 000106990 | E185: 1316215736683 | F185: 3072WSTYRN1468P | G185: 325 Chemicals | H185: 325212 | I185: TRINSEO | J185: 1468 PROSSER DR SE | K185: DALTON | L185: GA | M185: 30721 | N185: Plastics and Rubber Compounding | O185: TRI subuse Info and Company information | P185: 238 | Q185: 105 | R185: 343 | S185: 1 | T185: 1 | U185: 1 | V185: 0 | W185: 0 | X185: 0 | Y185: 0 | Z185: 0 | AA185: 0 | AB185: 1 | AH185: 0 | AU185: 0 | AV185: 0 | AW185: 0 | AX185: 0 | BF185: 0 | BM185: 0
B186: 2016 | C186: 1,3-BUTADIENE | D186: 000106990 | E186: 1316215366523 | F186: 4866WSTYRN164BU | G186: 325 Chemicals | H186: 325211 | I186: TRINSEO LLC-MI OPERATIONS | J186: 1604 BUILDING | K186: MIDLAND | L186: MI | M186: 48667 | N186: Plastics and Rubber Compounding | O186: Company information | P186: 760 | Q186: 15 | R186: 775 | S186: 1 | T186: 1 | U186: 1 | V186: 0 | W186: 0 | X186: 0 | Y186: 0 | Z186: 0 | AA186: 0 | AB186: 1 | AH186: 0 | AU186: 0 | AV186: 0 | AW186: 0 | AX186: 0 | BF186: 0 | BM186: 0
B187: 2016 | C187: 1,3-BUTADIENE | D187: 000106990 | E187: 1316215682980 | F187: 90748NNPCF2402E | G187: 324 Petroleum | H187: 324110 | I187: ULTRAMAR INC WILMINGTON REFINERY | J187: 2402 E. ANAHEIM STREET | K187: WILMINGTON | L187: CA | M187: 90744 | P187: 7 | Q187: 220 | R187: 227 | S187: 1 | T187: 1 | U187: 1 | V187: 1 | W187: 0 | X187: 0 | Y187: 0 | Z187: 0 | AA187: 1 | AB187: 0 | AH187: 0 | AU187: 0 | AV187: 0 | AW187: 0 | AX187: 0 | BF187: 0 | BM187: 0
B188: 2016 | C188: 1,3-BUTADIENE | D188: 000106990 | E188: 1316215426242 | F188: 16365NTDRFPOBOX | G188: 324 Petroleum | H188: 324110 | I188: UNITED REFINING CO | J188: 15 BRADLEY ST | K188: WARREN | L188: PA | M188: 16365 | P188: 0 | Q188: 0 | R188: 0 | S188: 1 | T188: 1 | U188: 1 | V188: 0 | W188: 0 | X188: 0 | Y188: 0 | Z188: 0 | AA188: 0 | AB188: 0 | AH188: 0 | AU188: 0 | AV188: 0 | AW188: 0 | AX188: 0 | BF188: 0 | BM188: 0
B189: 2016 | C189: 1,3-BUTADIENE | D189: 000106990 | E189: 1316215482997 | F189: 7701WVLRNR971MA | G189: 324 Petroleum | H189: 324110 | I189: VALERO ENERGY PARTNERS LP | J189: 9701 MANCHESTER - TANK FARM | K189: HOUSTON | L189: TX | M189: 77012 | P189: 0 | Q189: 0 | R189: 0 | S189: 1 | T189: 1 | U189: 1 | V189: 1 | W189: 0 | X189: 1 | Y189: 1 | Z189: 0 | AA189: 1 | AB189: 1 | AH189: 0 | AU189: 0 | AV189: 0 | AW189: 0 | AX189: 0 | BF189: 0 | BM189: 0
B190: 2016 | C190: 1,3-BUTADIENE | D190: 000106990 | E190: 1316215484801 | F190: 7007WVLRPR1492R | G190: 324 Petroleum | H190: 324110 | I190: VALERO PARTNERS LA LLC- TERMINAL | J190: 14902 RIVER RD | K190: NORCO | L190: LA | M190: 70079 | N190: Repackaging | O190: Based on Site/Name (Terminal) | P190: 5 | Q190: 32 | R190: 37 | S190: 1 | T190: 1 | U190: 1 | V190: 0 | W190: 0 | X190: 0 | Y190: 0 | Z190: 0 | AA190: 0 | AB190: 0 | AH190: 1 | AU190: 0 | AV190: 0 | AW190: 1 | AX190: 0 | BF190: 0 | BM190: 0
B191: 2016 | C191: 1,3-BUTADIENE | D191: 000106990 | E191: 1316215336734 | F191: 70075MRPHY2500E | G191: 324 Petroleum | H191: 324110 | I191: VALERO REFINING - MERAUX LLC MERAUX REFINERY | J191: 2500 E ST BERNARD HWY | K191: MERAUX | L191: LA | M191: 70075 | P191: 1 | Q191: 92 | R191: 93 | S191: 1 | T191: 1 | U191: 1 | V191: 1 | W191: 0 | X191: 0 | Y191: 0 | Z191: 1 | AA191: 1 | AB191: 0 | AH191: 0 | AU191: 0 | AV191: 0 | AW191: 1 | AX191: 0 | BF191: 0 | BM191: 0
B192: 2016 | C192: 1,3-BUTADIENE | D192: 000106990 | E192: 1316215484825 | F192: 70047TRNSM14902 | G192: 324 Petroleum | H192: 324110 | I192: VALERO REFINING - NEW ORLEANS LLC | J192: 14902 RIVER RD | K192: NORCO | L192: LA | M192: 70079 | N192: Processing – incorporation into formulation, mixture, or reaction product | O192: TRI subuse Info | P192: 18 | Q192: 168 | R192: 186 | S192: 1 | T192: 1 | U192: 1 | V192: 1 | W192: 0 | X192: 1 | Y192: 0 | Z192: 0 | AA192: 0 | AB192: 0 | AH192: 1 | AU192: 0 | AV192: 0 | AW192: 1 | AX192: 0 | BF192: 0 | BM192: 0
B193: 2016 | C193: 1,3-BUTADIENE | D193: 000106990 | E193: 1316215515420 | F193: 77012HLLPT9701M | G193: 324 Petroleum | H193: 324110 | I193: VALERO REFINING - TEXAS LP HOUSTON REFINERY | J193: 9701 MANCHESTER | K193: HOUSTON | L193: TX | M193: 77012 | N193: Processing as a reactant | O193: TRI subuse Info | P193: 5 | Q193: 558 | R193: 563 | S193: 1 | T193: 1 | U193: 1 | V193: 1 | W193: 0 | X193: 1 | Y193: 1 | Z193: 0 | AA193: 1 | AB193: 1 | AH193: 0 | AU193: 0 | AV193: 0 | AW193: 0 | AX193: 0 | BF193: 0 | BM193: 0
B194: 2016 | C194: 1,3-BUTADIENE | D194: 000106990 | E194: 1316215453996 | F194: 38109MPCPT543WE | G194: 324 Petroleum | H194: 324110 | I194: VALERO REFINING CO - TENNESSEE LLC | J194: 2385 RIVERPORT ROAD | K194: MEMPHIS | L194: TN | M194: 38109 | N194: Processing as a reactant | O194: TRI subuse Info | P194: 64 | Q194: 66 | R194: =SUM(P194:Q194) -> 130 | S194: 1 | T194: 1 | U194: 1 | V194: 1 | W194: 0 | X194: 1 | Y194: 0 | Z194: 0 | AA194: 1 | AB194: 1 | AH194: 0 | AU194: 0 | AV194: 1 | AW194: 1 | AX194: 0 | BF194: 0 | BM194: 0
B195: 2016 | C195: 1,3-BUTADIENE | D195: 000106990 | E195: 1316215294152 | F195: 73401TTLPTHIGHW | G195: 324 Petroleum | H195: 324110 | I195: VALERO REFINING CO -OKLAHOMA VALERO ARDMORE REFINERY | J195: ONE VALERO WAY | K195: ARDMORE | L195: OK | M195: 73401 | P195: 5 | Q195: 250 | R195: 255 | S195: 1 | T195: 1 | U195: 1 | V195: 1 | W195: 0 | X195: 0 | Y195: 0 | Z195: 1 | AA195: 0 | AB195: 0 | AH195: 0 | AU195: 0 | AV195: 0 | AW195: 0 | AX195: 0 | BF195: 0 | BM195: 0
B196: 2016 | C196: 1,3-BUTADIENE | D196: 000106990 | E196: 1316215209139 | F196: 94510XXNCS3400E | G196: 324 Petroleum | H196: 324110 | I196: VALERO REFINING CO-CALI FORNIA BENICIA REFINERY | J196: 3400 E SECOND ST | K196: BENICIA | L196: CA | M196: 94510 | N196: Processing as a reactant | O196: TRI subuse Info | P196: 36.6 | Q196: 94 | R196: 130.6 | S196: 1 | T196: 1 | U196: 1 | V196: 1 | W196: 0 | X196: 1 | Y196: 0 | Z196: 0 | AA196: 1 | AB196: 1 | AH196: 1 | AU196: 0 | AV196: 0 | AW196: 0 | AX196: 0 | BF196: 0 | BM196: 0
B197: 2016 | C197: 1,3-BUTADIENE | D197: 000106990 | E197: 1316215503184 | F197: 78403CSTLR1300C | G197: 324 Petroleum | H197: 324110 | I197: VALERO REFINING TEXAS LP CORPUS CHRISTI EAST PLANT | J197: 1300 CANTWELL LN | K197: CORPUS CHRISTI | L197: TX | M197: 78407 | P197: 24.67 | Q197: 0 | R197: 24.67 | S197: 1 | T197: 1 | U197: 1 | V197: 1 | W197: 0 | X197: 0 | Y197: 0 | Z197: 0 | AA197: 1 | AB197: 0 | AH197: 0 | AU197: 0 | AV197: 0 | AW197: 0 | AX197: 0 | BF197: 0 | BM197: 0
B198: 2016 | C198: 1,3-BUTADIENE | D198: 000106990 | E198: 1316215280633 | F198: 77592TXSCTLOOP1 | G198: 324 Petroleum | H198: 324110 | I198: VALERO REFINING-TEXAS LP | J198: 1301 LOOP 197 S | K198: TEXAS CITY | L198: TX | M198: 77590 | P198: 250 | Q198: 250 | R198: 500 | S198: 1 | T198: 1 | U198: 1 | V198: 1 | W198: 0 | X198: 0 | Y198: 1 | Z198: 0 | AA198: 1 | AB198: 0 | AH198: 0 | AU198: 0 | AV198: 0 | AW198: 0 | AX198: 0 | BF198: 0 | BM198: 0
B199: 2016 | C199: 1,3-BUTADIENE | D199: 000106990 | E199: 1316215491693 | F199: 78469VLRRF5900U | G199: 324 Petroleum | H199: 324110 | I199: VALERO REFINING-TEXAS LP CORPUS CHRISTI WEST PLANT | J199: 5900 UP RIVER RD | K199: CORPUS CHRISTI | L199: TX | M199: 78407 | P199: 25 | Q199: 153 | R199: 178 | S199: 1 | T199: 1 | U199: 1 | V199: 1 | W199: 0 | X199: 0 | Y199: 0 | Z199: 0 | AA199: 1 | AB199: 0 | AH199: 0 | AU199: 0 | AV199: 0 | AW199: 0 | AX199: 0 | BF199: 0 | BM199: 0
B200: 2016 | C200: 1,3-BUTADIENE | D200: 000106990 | E200: 1316215570805 | F200: 78071DMNDS301LE | G200: 324 Petroleum | H200: 324110 | I200: VALERO THREE RIVERS REFINERY | J200: 301 LEROY ST | K200: THREE RIVERS | L200: TX | M200: 78071 | N200: Processing as a reactant | O200: TRI subuse Info | P200: 20 | Q200: 13 | R200: 33 | S200: 1 | T200: 1 | U200: 1 | V200: 1 | W200: 0 | X200: 1 | Y200: 0 | Z200: 0 | AA200: 1 | AB200: 1 | AH200: 0 | AU200: 0 | AV200: 0 | AW200: 0 | AX200: 0 | BF200: 0 | BM200: 0
... 1025 more rows

Sheet TRI Release Summary
A1: TRI Facility Id | B1: Facility Name | C1: Street Address | D1: City Name | E1: State Abbreviation | F1: Zip Code | G1: OES | H1: Primary NAICS Code | I1: Primary NAICS Description | J1: Release Days | K1: Median Annual Fugitive Rel (kg/yr) | L1: Max Annual Fugitive Rel (kg/yr) | M1: Median Annual Stack Rel (kg/yr) | N1: Max Annual Stack Tot Rel (kg/yr) | O1: Median Average Daily Fugitive Rel (kg/day) | P1: Max Average Daily Fugitive Rel (kg/day) | Q1: Median Average Daily Stack Rel (kg/day) | R1: Max Average Daily Stack Tot Rel (kg/day)
A2: 98203KHKKS14078 | B2: =VLOOKUP($A2, '2016-2021 TRI'!$F:$L, 3, FALSE) -> ACHILLES USA INC | C2: =VLOOKUP($A2, '2016-2021 TRI'!$F:$L, 4, FALSE) -> 1407 80TH ST SW | D2: =VLOOKUP($A2, '2016-2021 TRI'!$F:$L, 5, FALSE) -> EVERETT | E2: =VLOOKUP($A2, '2016-2021 TRI'!$F:$L, 6, FALSE) -> WA | F2: =VLOOKUP($A2, '2016-2021 TRI'!$F:$L, 7, FALSE) -> 98203 | G2: =VLOOKUP($A2, '2016-2021 TRI'!F:N, 9, FALSE) -> Plastics and Rubber Converting | H2: =VLOOKUP($A2, '2016-2021 TRI'!$F:$L, 2, FALSE) -> 326113 | I2: =IFERROR(VLOOKUP(H2, '2012 to 2017 NAICS'!C:D, 2, FALSE), VLOOKUP(H2, '2012 to 2017 NAICS'!A:B, 2, FALSE)) -> Unlaminated Plastics Film and Sheet (except Packaging) Manufacturing | J2: =VLOOKUP(G2, 'OES Summary'!$A$2:$D$15, 3, FALSE) -> 300 | K2: =CONVERT(MEDIAN(IF('2016-2021 TRI'!F:F=$A2,'2016-2021 TRI'!P:P)), "lbm", "kg") -> 227 | L2: =CONVERT(_xlfn.MAXIFS('2016-2021 TRI'!P:P,'2016-2021 TRI'!F:F,A2), "lbm", "kg") -> 227 | M2: =CONVERT(MEDIAN(IF('2016-2021 TRI'!F:F=$A2,'2016-2021 TRI'!Q:Q)), "lbm", "kg") -> 227 | N2: =CONVERT(_xlfn.MAXIFS('2016-2021 TRI'!Q:Q,'2016-2021 TRI'!F:F,A2), "lbm", "kg") -> 227 | O2: =K2/$J2 -> 0.756 | P2: =L2/$J2 -> 0.756 | Q2: =M2/$J2 -> 0.756 | R2: =N2/$J2 -> 0.756
A3: 7101WDCRBN21RED | B3: =VLOOKUP($A3, '2016-2021 TRI'!$F:$L, 3, FALSE) -> ADA CARBON SOLUTIONS (RED RIVER) LLC | C3: =VLOOKUP($A3, '2016-2021 TRI'!$F:$L, 4, FALSE) -> 201 RED RIVER MINE RD | D3: =VLOOKUP($A3, '2016-2021 TRI'!$F:$L, 5, FALSE) -> COUSHATTA | E3: =VLOOKUP($A3, '2016-2021 TRI'!$F:$L, 6, FALSE) -> LA | F3: =VLOOKUP($A3, '2016-2021 TRI'!$F:$L, 7, FALSE) -> 71019 | G3: =VLOOKUP($A3, '2016-2021 TRI'!F:N, 9, FALSE) -> Processing - Incorporation into formulation, mixture, or reaction product | H3: =VLOOKUP($A3, '2016-2021 TRI'!$F:$L, 2, FALSE) -> 325998 | I3: =IFERROR(VLOOKUP(H3, '2012 to 2017 NAICS'!C:D, 2, FALSE), VLOOKUP(H3, '2012 to 2017 NAICS'!A:B, 2, FALSE)) -> All Other Miscellaneous Chemical Product and Preparation Manufacturing | J3: =VLOOKUP(G3, 'OES Summary'!$A$2:$D$15, 3, FALSE) -> 250 | K3: =CONVERT(MEDIAN(IF('2016-2021 TRI'!F:F=$A3,'2016-2021 TRI'!P:P)), "lbm", "kg") -> 0 | L3: =CONVERT(_xlfn.MAXIFS('2016-2021 TRI'!P:P,'2016-2021 TRI'!F:F,A3), "lbm", "kg") -> 0 | M3: =CONVERT(MEDIAN(IF('2016-2021 TRI'!F:F=$A3,'2016-2021 TRI'!Q:Q)), "lbm", "kg") -> 2 | N3: =CONVERT(_xlfn.MAXIFS('2016-2021 TRI'!Q:Q,'2016-2021 TRI'!F:F,A3), "lbm", "kg") -> 39 | O3: 0.000 | P3: 0.000 | Q3: 0.010 | R3: 0.156
A4: 79721FNLNDIS20E | B4: =VLOOKUP($A4, '2016-2021 TRI'!$F:$L, 3, FALSE) -> ALON USA-BIG SPRING REFINERY | C4: =VLOOKUP($A4, '2016-2021 TRI'!$F:$L, 4, FALSE) -> IH 20 AT REFINERY RD | D4: =VLOOKUP($A4, '2016-2021 TRI'!$F:$L, 5, FALSE) -> BIG SPRING | E4: =VLOOKUP($A4, '2016-2021 TRI'!$F:$L, 6, FALSE) -> TX | F4: =VLOOKUP($A4, '2016-2021 TRI'!$F:$L, 7, FALSE) -> 79720 | G4: =VLOOKUP($A4, '2016-2021 TRI'!F:N, 9, FALSE) -> Processing - Incorporation into formulation, mixture, or reaction product | H4: =VLOOKUP($A4, '2016-2021 TRI'!$F:$L, 2, FALSE) -> 324110 | I4: =IFERROR(VLOOKUP(H4, '2012 to 2017 NAICS'!C:D, 2, FALSE), VLOOKUP(H4, '2012 to 2017 NAICS'!A:B, 2, FALSE)) -> Petroleum Refineries | J4: =VLOOKUP(G4, 'OES Summary'!$A$2:$D$15, 3, FALSE) -> 250 | K4: =CONVERT(MEDIAN(IF('2016-2021 TRI'!F:F=$A4,'2016-2021 TRI'!P:P)), "lbm", "kg") -> 0 | L4: =CONVERT(_xlfn.MAXIFS('2016-2021 TRI'!P:P,'2016-2021 TRI'!F:F,A4), "lbm", "kg") -> 2 | M4: =CONVERT(MEDIAN(IF('2016-2021 TRI'!F:F=$A4,'2016-2021 TRI'!Q:Q)), "lbm", "kg") -> 1 | N4: =CONVERT(_xlfn.MAXIFS('2016-2021 TRI'!Q:Q,'2016-2021 TRI'!F:F,A4), "lbm", "kg") -> 29 | O4: 0.000 | P4: 0.009 | Q4: 0.003 | R4: 0.118
A5: 40216MRCNS4500C | B5: =VLOOKUP($A5, '2016-2021 TRI'!$F:$L, 3, FALSE) -> AMERICAN SYNTHETIC RUBBER CO | C5: =VLOOKUP($A5, '2016-2021 TRI'!$F:$L, 4, FALSE) -> 4500 CAMPGROUND RD | D5: =VLOOKUP($A5, '2016-2021 TRI'!$F:$L, 5, FALSE) -> LOUISVILLE | E5: =VLOOKUP($A5, '2016-2021 TRI'!$F:$L, 6, FALSE) -> KY | F5: =VLOOKUP($A5, '2016-2021 TRI'!$F:$L, 7, FALSE) -> 40216 | G5: =VLOOKUP($A5, '2016-2021 TRI'!F:N, 9, FALSE) -> Plastics and Rubber Compounding | H5: =VLOOKUP($A5, '2016-2021 TRI'!$F:$L, 2, FALSE) -> 325212 | I5: =IFERROR(VLOOKUP(H5, '2012 to 2017 NAICS'!C:D, 2, FALSE), VLOOKUP(H5, '2012 to 2017 NAICS'!A:B, 2, FALSE)) -> Synthetic Rubber Manufacturing | J5: =VLOOKUP(G5, 'OES Summary'!$A$2:$D$15, 3, FALSE) -> 300 | K5: =CONVERT(MEDIAN(IF('2016-2021 TRI'!F:F=$A5,'2016-2021 TRI'!P:P)), "lbm", "kg") -> 1027 | L5: =CONVERT(_xlfn.MAXIFS('2016-2021 TRI'!P:P,'2016-2021 TRI'!F:F,A5), "lbm", "kg") -> 1689 | M5: =CONVERT(MEDIAN(IF('2016-2021 TRI'!F:F=$A5,'2016-2021 TRI'!Q:Q)), "lbm", "kg") -> 682 | N5: =CONVERT(_xlfn.MAXIFS('2016-2021 TRI'!Q:Q,'2016-2021 TRI'!F:F,A5), "lbm", "kg") -> 1645 | O5: 3.424 | P5: 5.629 | Q5: 2.272 | R5: 5.484
A6: 36505MTCHMHWY43 | B6: =VLOOKUP($A6, '2016-2021 TRI'!$F:$L, 3, FALSE) -> ARKEMA INC | C6: =VLOOKUP($A6, '2016-2021 TRI'!$F:$L, 4, FALSE) -> 13755 HWY 43 N | D6: =VLOOKUP($A6, '2016-2021 TRI'!$F:$L, 5, FALSE) -> AXIS | E6: =VLOOKUP($A6, '2016-2021 TRI'!$F:$L, 6, FALSE) -> AL | F6: =VLOOKUP($A6, '2016-2021 TRI'!$F:$L, 7, FALSE) -> 36505 | G6: =VLOOKUP($A6, '2016-2021 TRI'!F:N, 9, FALSE) -> Plastics and Rubber Compounding | H6: =VLOOKUP($A6, '2016-2021 TRI'!$F:$L, 2, FALSE) -> 325211 | I6: =IFERROR(VLOOKUP(H6, '2012 to 2017 NAICS'!C:D, 2, FALSE), VLOOKUP(H6, '2012 to 2017 NAICS'!A:B, 2, FALSE)) -> Plastics Material and Resin Manufacturing | J6: =VLOOKUP(G6, 'OES Summary'!$A$2:$D$15, 3, FALSE) -> 300 | K6: =CONVERT(MEDIAN(IF('2016-2021 TRI'!F:F=$A6,'2016-2021 TRI'!P:P)), "lbm", "kg") -> 548 | L6: =CONVERT(_xlfn.MAXIFS('2016-2021 TRI'!P:P,'2016-2021 TRI'!F:F,A6), "lbm", "kg") -> 680 | M6: =CONVERT(MEDIAN(IF('2016-2021 TRI'!F:F=$A6,'2016-2021 TRI'!Q:Q)), "lbm", "kg") -> 113 | N6: =CONVERT(_xlfn.MAXIFS('2016-2021 TRI'!Q:Q,'2016-2021 TRI'!F:F,A6), "lbm", "kg") -> 113 | O6: 1.828 | P6: 2.268 | Q6: 0.378 | R6: 0.378
A7: 77631PLYSRFM100 | B7: =VLOOKUP($A7, '2016-2021 TRI'!$F:$L, 3, FALSE) -> ARLANXEO | C7: =VLOOKUP($A7, '2016-2021 TRI'!$F:$L, 4, FALSE) -> 4647 FM 1006 | D7: =VLOOKUP($A7, '2016-2021 TRI'!$F:$L, 5, FALSE) -> ORANGE | E7: =VLOOKUP($A7, '2016-2021 TRI'!$F:$L, 6, FALSE) -> TX | F7: =VLOOKUP($A7, '2016-2021 TRI'!$F:$L, 7, FALSE) -> 77630 | G7: =VLOOKUP($A7, '2016-2021 TRI'!F:N, 9, FALSE) -> Plastics and Rubber Compounding | H7: =VLOOKUP($A7, '2016-2021 TRI'!$F:$L, 2, FALSE) -> 325212 | I7: =IFERROR(VLOOKUP(H7, '2012 to 2017 NAICS'!C:D, 2, FALSE), VLOOKUP(H7, '2012 to 2017 NAICS'!A:B, 2, FALSE)) -> Synthetic Rubber Manufacturing | J7: =VLOOKUP(G7, 'OES Summary'!$A$2:$D$15, 3, FALSE) -> 300 | K7: =CONVERT(MEDIAN(IF('2016-2021 TRI'!F:F=$A7,'2016-2021 TRI'!P:P)), "lbm", "kg") -> 10088 | L7: =CONVERT(_xlfn.MAXIFS('2016-2021 TRI'!P:P,'2016-2021 TRI'!F:F,A7), "lbm", "kg") -> 13793 | M7: =CONVERT(MEDIAN(IF('2016-2021 TRI'!F:F=$A7,'2016-2021 TRI'!Q:Q)), "lbm", "kg") -> 14453 | N7: =CONVERT(_xlfn.MAXIFS('2016-2021 TRI'!Q:Q,'2016-2021 TRI'!F:F,A7), "lbm", "kg") -> 17447 | O7: 33.626 | P7: 45.978 | Q7: 48.175 | R7: 58.156
A8: 37406PLYSR3805A | B8: =VLOOKUP($A8, '2016-2021 TRI'!$F:$L, 3, FALSE) -> BASF CORP | C8: =VLOOKUP($A8, '2016-2021 TRI'!$F:$L, 4, FALSE) -> 32 LOST MOUND DRIVE | D8: =VLOOKUP($A8, '2016-2021 TRI'!$F:$L, 5, FALSE) -> CHATTANOOGA | E8: =VLOOKUP($A8, '2016-2021 TRI'!$F:$L, 6, FALSE) -> TN | F8: =VLOOKUP($A8, '2016-2021 TRI'!$F:$L, 7, FALSE) -> 37406 | G8: =VLOOKUP($A8, '2016-2021 TRI'!F:N, 9, FALSE) -> Processing as a Reactant | H8: =VLOOKUP($A8, '2016-2021 TRI'!$F:$L, 2, FALSE) -> 325212 | I8: =IFERROR(VLOOKUP(H8, '2012 to 2017 NAICS'!C:D, 2, FALSE), VLOOKUP(H8, '2012 to 2017 NAICS'!A:B, 2, FALSE)) -> Synthetic Rubber Manufacturing | J8: =VLOOKUP(G8, 'OES Summary'!$A$2:$D$15, 3, FALSE) -> 350 | K8: =CONVERT(MEDIAN(IF('2016-2021 TRI'!F:F=$A8,'2016-2021 TRI'!P:P)), "lbm", "kg") -> 113 | L8: =CONVERT(_xlfn.MAXIFS('2016-2021 TRI'!P:P,'2016-2021 TRI'!F:F,A8), "lbm", "kg") -> 200 | M8: =CONVERT(MEDIAN(IF('2016-2021 TRI'!F:F=$A8,'2016-2021 TRI'!Q:Q)), "lbm", "kg") -> 12 | N8: =CONVERT(_xlfn.MAXIFS('2016-2021 TRI'!Q:Q,'2016-2021 TRI'!F:F,A8), "lbm", "kg") -> 113 | O8: 0.324 | P8: 0.572 | Q8: 0.034 | R8: 0.324
A9: 37421PLYSR2200P | B9: =VLOOKUP($A9, '2016-2021 TRI'!$F:$L, 3, FALSE) -> BASF CORP | C9: =VLOOKUP($A9, '2016-2021 TRI'!$F:$L, 4, FALSE) -> 2120 POLYMER DR | D9: =VLOOKUP($A9, '2016-2021 TRI'!$F:$L, 5, FALSE) -> CHATTANOOGA | E9: =VLOOKUP($A9, '2016-2021 TRI'!$F:$L, 6, FALSE) -> TN | F9: =VLOOKUP($A9, '2016-2021 TRI'!$F:$L, 7, FALSE) -> 37421 | G9: =VLOOKUP($A9, '2016-2021 TRI'!F:N, 9, FALSE) -> Processing as a Reactant | H9: =VLOOKUP($A9, '2016-2021 TRI'!$F:$L, 2, FALSE) -> 325211 | I9: =IFERROR(VLOOKUP(H9, '2012 to 2017 NAICS'!C:D, 2, FALSE), VLOOKUP(H9, '2012 to 2017 NAICS'!A:B, 2, FALSE)) -> Plastics Material and Resin Manufacturing | J9: =VLOOKUP(G9, 'OES Summary'!$A$2:$D$15, 3, FALSE) -> 350 | K9: =CONVERT(MEDIAN(IF('2016-2021 TRI'!F:F=$A9,'2016-2021 TRI'!P:P)), "lbm", "kg") -> 103 | L9: =CONVERT(_xlfn.MAXIFS('2016-2021 TRI'!P:P,'2016-2021 TRI'!F:F,A9), "lbm", "kg") -> 113 | M9: =CONVERT(MEDIAN(IF('2016-2021 TRI'!F:F=$A9,'2016-2021 TRI'!Q:Q)), "lbm", "kg") -> 80 | N9: =CONVERT(_xlfn.MAXIFS('2016-2021 TRI'!Q:Q,'2016-2021 TRI'!F:F,A9), "lbm", "kg") -> 132 | O9: 0.293 | P9: 0.324 | Q9: 0.227 | R9: 0.377
A10: 15061PLYSR370FR | B10: =VLOOKUP($A10, '2016-2021 TRI'!$F:$L, 3, FALSE) -> BASF CORP | C10: =VLOOKUP($A10, '2016-2021 TRI'!$F:$L, 4, FALSE) -> 370 FRANKFORT RD | D10: =VLOOKUP($A10, '2016-2021 TRI'!$F:$L, 5, FALSE) -> MONACA | E10: =VLOOKUP($A10, '2016-2021 TRI'!$F:$L, 6, FALSE) -> PA | F10: =VLOOKUP($A10, '2016-2021 TRI'!$F:$L, 7, FALSE) -> 15061 | G10: =VLOOKUP($A10, '2016-2021 TRI'!F:N, 9, FALSE) -> Processing as a Reactant | H10: =VLOOKUP($A10, '2016-2021 TRI'!$F:$L, 2, FALSE) -> 325211 | I10: =IFERROR(VLOOKUP(H10, '2012 to 2017 NAICS'!C:D, 2, FALSE), VLOOKUP(H10, '2012 to 2017 NAICS'!A:B, 2, FALSE)) -> Plastics Material and Resin Manufacturing | J10: =VLOOKUP(G10, 'OES Summary'!$A$2:$D$15, 3, FALSE) -> 350 | K10: =CONVERT(MEDIAN(IF('2016-2021 TRI'!F:F=$A10,'2016-2021 TRI'!P:P)), "lbm", "kg") -> 1778 | L10: =CONVERT(_xlfn.MAXIFS('2016-2021 TRI'!P:P,'2016-2021 TRI'!F:F,A10), "lbm", "kg") -> 1794 | M10: =CONVERT(MEDIAN(IF('2016-2021 TRI'!F:F=$A10,'2016-2021 TRI'!Q:Q)), "lbm", "kg") -> 80 | N10: =CONVERT(_xlfn.MAXIFS('2016-2021 TRI'!Q:Q,'2016-2021 TRI'!F:F,A10), "lbm", "kg") -> 90 | O10: 5.080 | P10: 5.126 | Q10: 0.229 | R10: 0.258
A11: 77643BSFFNNEOFI | B11: =VLOOKUP($A11, '2016-2021 TRI'!$F:$L, 3, FALSE) -> BASF TOTAL PETROCHEMICALS LLC | C11: =VLOOKUP($A11, '2016-2021 TRI'!$F:$L, 4, FALSE) -> NE OF INTERSECTION OF HWY 73 & HWY 366 | D11: =VLOOKUP($A11, '2016-2021 TRI'!$F:$L, 5, FALSE) -> PORT ARTHUR | E11: =VLOOKUP($A11, '2016-2021 TRI'!$F:$L, 6, FALSE) -> TX | F11: =VLOOKUP($A11, '2016-2021 TRI'!$F:$L, 7, FALSE) -> 77642 | G11: =VLOOKUP($A11, '2016-2021 TRI'!F:N, 9, FALSE) -> Manufacturing | H11: =VLOOKUP($A11, '2016-2021 TRI'!$F:$L, 2, FALSE) -> 325110 | I11: =IFERROR(VLOOKUP(H11, '2012 to 2017 NAICS'!C:D, 2, FALSE), VLOOKUP(H11, '2012 to 2017 NAICS'!A:B, 2, FALSE)) -> Petrochemical Manufacturing | J11: =VLOOKUP(G11, 'OES Summary'!$A$2:$D$15, 3, FALSE) -> 350 | K11: =CONVERT(MEDIAN(IF('2016-2021 TRI'!F:F=$A11,'2016-2021 TRI'!P:P)), "lbm", "kg") -> 2511 | L11: =CONVERT(_xlfn.MAXIFS('2016-2021 TRI'!P:P,'2016-2021 TRI'!F:F,A11), "lbm", "kg") -> 5443 | M11: =CONVERT(MEDIAN(IF('2016-2021 TRI'!F:F=$A11,'2016-2021 TRI'!Q:Q)), "lbm", "kg") -> 9979 | N11: =CONVERT(_xlfn.MAXIFS('2016-2021 TRI'!Q:Q,'2016-2021 TRI'!F:F,A11), "lbm", "kg") -> 17036 | O11: 7.175 | P11: 15.552 | Q11: 28.512 | R11: 48.673
A12: 7764WBYPRT7632N | B12: =VLOOKUP($A12, '2016-2021 TRI'!$F:$L, 3, FALSE) -> BAYPORT POLYMERS LLC | C12: =VLOOKUP($A12, '2016-2021 TRI'!$F:$L, 4, FALSE) -> 7600 32ND ST | D12: =VLOOKUP($A12, '2016-2021 TRI'!$F:$L, 5, FALSE) -> PORT ARTHUR | E12: =VLOOKUP($A12, '2016-2021 TRI'!$F:$L, 6, FALSE) -> TX | F12: =VLOOKUP($A12, '2016-2021 TRI'!$F:$L, 7, FALSE) -> 77642 | G12: =VLOOKUP($A12, '2016-2021 TRI'!F:N, 9, FALSE) -> Plastics and Rubber Compounding | H12: =VLOOKUP($A12, '2016-2021 TRI'!$F:$L, 2, FALSE) -> 325110 | I12: =IFERROR(VLOOKUP(H12, '2012 to 2017 NAICS'!C:D, 2, FALSE), VLOOKUP(H12, '2012 to 2017 NAICS'!A:B, 2, FALSE)) -> Petrochemical Manufacturing | J12: =VLOOKUP(G12, 'OES Summary'!$A$2:$D$15, 3, FALSE) -> 300 | K12: =CONVERT(MEDIAN(IF('2016-2021 TRI'!F:F=$A12,'2016-2021 TRI'!P:P)), "lbm", "kg") -> 0 | L12: =CONVERT(_xlfn.MAXIFS('2016-2021 TRI'!P:P,'2016-2021 TRI'!F:F,A12), "lbm", "kg") -> 0 | M12: =CONVERT(MEDIAN(IF('2016-2021 TRI'!F:F=$A12,'2016-2021 TRI'!Q:Q)), "lbm", "kg") -> 3 | N12: =CONVERT(_xlfn.MAXIFS('2016-2021 TRI'!Q:Q,'2016-2021 TRI'!F:F,A12), "lbm", "kg") -> 3 | O12: 0.000 | P12: 0.000 | Q12: 0.010 | R12: 0.010
A13: 7759WBLNCH2415T | B13: =VLOOKUP($A13, '2016-2021 TRI'!$F:$L, 3, FALSE) -> BLANCHARD REFINING CO LLC | C13: =VLOOKUP($A13, '2016-2021 TRI'!$F:$L, 4, FALSE) -> 2401 5TH AVE S | D13: =VLOOKUP($A13, '2016-2021 TRI'!$F:$L, 5, FALSE) -> TEXAS CITY | E13: =VLOOKUP($A13, '2016-2021 TRI'!$F:$L, 6, FALSE) -> TX | F13: =VLOOKUP($A13, '2016-2021 TRI'!$F:$L, 7, FALSE) -> 77590 | G13: =VLOOKUP($A13, '2016-2021 TRI'!F:N, 9, FALSE) -> Manufacturing | H13: =VLOOKUP($A13, '2016-2021 TRI'!$F:$L, 2, FALSE) -> 324110 | I13: =IFERROR(VLOOKUP(H13, '2012 to 2017 NAICS'!C:D, 2, FALSE), VLOOKUP(H13, '2012 to 2017 NAICS'!A:B, 2, FALSE)) -> Petroleum Refineries | J13: =VLOOKUP(G13, 'OES Summary'!$A$2:$D$15, 3, FALSE) -> 350 | K13: =CONVERT(MEDIAN(IF('2016-2021 TRI'!F:F=$A13,'2016-2021 TRI'!P:P)), "lbm", "kg") -> 36 | L13: =CONVERT(_xlfn.MAXIFS('2016-2021 TRI'!P:P,'2016-2021 TRI'!F:F,A13), "lbm", "kg") -> 308 | M13: =CONVERT(MEDIAN(IF('2016-2021 TRI'!F:F=$A13,'2016-2021 TRI'!Q:Q)), "lbm", "kg") -> 544 | N13: =CONVERT(_xlfn.MAXIFS('2016-2021 TRI'!Q:Q,'2016-2021 TRI'!F:F,A13), "lbm", "kg") -> 862 | O13: 0.104 | P13: 0.881 | Q13: 1.555 | R13: 2.462
A14: 28214TRNSM7401O | B14: =VLOOKUP($A14, '2016-2021 TRI'!$F:$L, 3, FALSE) -> BLANCHARD TERMINAL CO - CHARLOTTE EAST NC TERMINAL | C14: =VLOOKUP($A14, '2016-2021 TRI'!$F:$L, 4, FALSE) -> 7401 OLD MT HOLLY RD | D14: =VLOOKUP($A14, '2016-2021 TRI'!$F:$L, 5, FALSE) -> CHARLOTTE | E14: =VLOOKUP($A14, '2016-2021 TRI'!$F:$L, 6, FALSE) -> NC | F14: =VLOOKUP($A14, '2016-2021 TRI'!$F:$L, 7, FALSE) -> 28214 | G14: =VLOOKUP($A14, '2016-2021 TRI'!F:N, 9, FALSE) -> Repackaging | H14: =VLOOKUP($A14, '2016-2021 TRI'!$F:$L, 2, FALSE) -> 424710 | I14: =IFERROR(VLOOKUP(H14, '2012 to 2017 NAICS'!C:D, 2, FALSE), VLOOKUP(H14, '2012 to 2017 NAICS'!A:B, 2, FALSE)) -> Petroleum Bulk Stations and Terminals | J14: =VLOOKUP(G14, 'OES Summary'!$A$2:$D$15, 3, FALSE) -> 350 | K14: =CONVERT(MEDIAN(IF('2016-2021 TRI'!F:F=$A14,'2016-2021 TRI'!P:P)), "lbm", "kg") -> 0 | L14: =CONVERT(_xlfn.MAXIFS('2016-2021 TRI'!P:P,'2016-2021 TRI'!F:F,A14), "lbm", "kg") -> 0 | M14: =CONVERT(MEDIAN(IF('2016-2021 TRI'!F:F=$A14,'2016-2021 TRI'!Q:Q)), "lbm", "kg") -> 0 | N14: =CONVERT(_xlfn.MAXIFS('2016-2021 TRI'!Q:Q,'2016-2021 TRI'!F:F,A14), "lbm", "kg") -> 0 | O14: 0.000 | P14: 0.000 | Q14: 0.001 | R14: 0.001
A15: 37209BPXPL14095 | B15: =VLOOKUP($A15, '2016-2021 TRI'!$F:$L, 3, FALSE) -> BLANCHARD TERMINAL CO - NASHVILLE 51 AVE TN TERMINAL | C15: =VLOOKUP($A15, '2016-2021 TRI'!$F:$L, 4, FALSE) -> 1409 51ST AVE N | D15: =VLOOKUP($A15, '2016-2021 TRI'!$F:$L, 5, FALSE) -> NASHVILLE | E15: =VLOOKUP($A15, '2016-2021 TRI'!$F:$L, 6, FALSE) -> TN | F15: =VLOOKUP($A15, '2016-2021 TRI'!$F:$L, 7, FALSE) -> 37209 | G15: =VLOOKUP($A15, '2016-2021 TRI'!F:N, 9, FALSE) -> Repackaging | H15: =VLOOKUP($A15, '2016-2021 TRI'!$F:$L, 2, FALSE) -> 424710 | I15: =IFERROR(VLOOKUP(H15, '2012 to 2017 NAICS'!C:D, 2, FALSE), VLOOKUP(H15, '2012 to 2017 NAICS'!A:B, 2, FALSE)) -> Petroleum Bulk Stations and Terminals | J15: =VLOOKUP(G15, 'OES Summary'!$A$2:$D$15, 3, FALSE) -> 350 | K15: =CONVERT(MEDIAN(IF('2016-2021 TRI'!F:F=$A15,'2016-2021 TRI'!P:P)), "lbm", "kg") -> 0 | L15: =CONVERT(_xlfn.MAXIFS('2016-2021 TRI'!P:P,'2016-2021 TRI'!F:F,A15), "lbm", "kg") -> 0 | M15: =CONVERT(MEDIAN(IF('2016-2021 TRI'!F:F=$A15,'2016-2021 TRI'!Q:Q)), "lbm", "kg") -> 0 | N15: =CONVERT(_xlfn.MAXIFS('2016-2021 TRI'!Q:Q,'2016-2021 TRI'!F:F,A15), "lbm", "kg") -> 0 | O15: 0.001 | P15: 0.001 | Q15: 0.001 | R15: 0.001
A16: 2757WBPPRD377BU | B16: =VLOOKUP($A16, '2016-2021 TRI'!$F:$L, 3, FALSE) -> BLANCHARD TERMINAL CO - SELMA BUFFALO NC TERMINAL | C16: =VLOOKUP($A16, '2016-2021 TRI'!$F:$L, 4, FALSE) -> 3707 BUFFALO ROAD | D16: =VLOOKUP($A16, '2016-2021 TRI'!$F:$L, 5, FALSE) -> SELMA | E16: =VLOOKUP($A16, '2016-2021 TRI'!$F:$L, 6, FALSE) -> NC | F16: =VLOOKUP($A16, '2016-2021 TRI'!$F:$L, 7, FALSE) -> 27576 | G16: =VLOOKUP($A16, '2016-2021 TRI'!F:N, 9, FALSE) -> Repackaging | H16: =VLOOKUP($A16, '2016-2021 TRI'!$F:$L, 2, FALSE) -> 424710 | I16: =IFERROR(VLOOKUP(H16, '2012 to 2017 NAICS'!C:D, 2, FALSE), VLOOKUP(H16, '2012 to 2017 NAICS'!A:B, 2, FALSE)) -> Petroleum Bulk Stations and Terminals | J16: =VLOOKUP(G16, 'OES Summary'!$A$2:$D$15, 3, FALSE) -> 350 | K16: =CONVERT(MEDIAN(IF('2016-2021 TRI'!F:F=$A16,'2016-2021 TRI'!P:P)), "lbm", "kg") -> 1 | L16: =CONVERT(_xlfn.MAXIFS('2016-2021 TRI'!P:P,'2016-2021 TRI'!F:F,A16), "lbm", "kg") -> 1 | M16: =CONVERT(MEDIAN(IF('2016-2021 TRI'!F:F=$A16,'2016-2021 TRI'!Q:Q)), "lbm", "kg") -> 0 | N16: =CONVERT(_xlfn.MAXIFS('2016-2021 TRI'!Q:Q,'2016-2021 TRI'!F:F,A16), "lbm", "kg") -> 0 | O16: 0.003 | P16: 0.003 | Q16: 0.001 | R16: 0.001
A17: 98248RCCHR4519G | B17: =VLOOKUP($A17, '2016-2021 TRI'!$F:$L, 3, FALSE) -> BP CHERRY POINT REFINERY | C17: =VLOOKUP($A17, '2016-2021 TRI'!$F:$L, 4, FALSE) -> 4519 GRANDVIEW RD | D17: =VLOOKUP($A17, '2016-2021 TRI'!$F:$L, 5, FALSE) -> BLAINE | E17: =VLOOKUP($A17, '2016-2021 TRI'!$F:$L, 6, FALSE) -> WA | F17: =VLOOKUP($A17, '2016-2021 TRI'!$F:$L, 7, FALSE) -> 98230 | G17: =VLOOKUP($A17, '2016-2021 TRI'!F:N, 9, FALSE) -> Processing - Incorporation into formulation, mixture, or reaction product | H17: =VLOOKUP($A17, '2016-2021 TRI'!$F:$L, 2, FALSE) -> 324110 | I17: =IFERROR(VLOOKUP(H17, '2012 to 2017 NAICS'!C:D, 2, FALSE), VLOOKUP(H17, '2012 to 2017 NAICS'!A:B, 2, FALSE)) -> Petroleum Refineries | J17: =VLOOKUP(G17, 'OES Summary'!$A$2:$D$15, 3, FALSE) -> 250 | K17: =CONVERT(MEDIAN(IF('2016-2021 TRI'!F:F=$A17,'2016-2021 TRI'!P:P)), "lbm", "kg") -> 16 | L17: =CONVERT(_xlfn.MAXIFS('2016-2021 TRI'!P:P,'2016-2021 TRI'!F:F,A17), "lbm", "kg") -> 515 | M17: =CONVERT(MEDIAN(IF('2016-2021 TRI'!F:F=$A17,'2016-2021 TRI'!Q:Q)), "lbm", "kg") -> 12 | N17: =CONVERT(_xlfn.MAXIFS('2016-2021 TRI'!Q:Q,'2016-2021 TRI'!F:F,A17), "lbm", "kg") -> 21 | O17: 0.064 | P17: 2.058 | Q17: 0.050 | R17: 0.084
A18: 46394MCLCX2815I | B18: =VLOOKUP($A18, '2016-2021 TRI'!$F:$L, 3, FALSE) -> BP PRODUCTS NA WHITING BUSINESS UNIT | C18: =VLOOKUP($A18, '2016-2021 TRI'!$F:$L, 4, FALSE) -> 2815 INDIANAPOLIS BLVD | D18: =VLOOKUP($A18, '2016-2021 TRI'!$F:$L, 5, FALSE) -> WHITING | E18: =VLOOKUP($A18, '2016-2021 TRI'!$F:$L, 6, FALSE) -> IN | F18: =VLOOKUP($A18, '2016-2021 TRI'!$F:$L, 7, FALSE) -> 46394 | G18: =VLOOKUP($A18, '2016-2021 TRI'!F:N, 9, FALSE) -> Manufacturing | H18: =VLOOKUP($A18, '2016-2021 TRI'!$F:$L, 2, FALSE) -> 324110 | I18: =IFERROR(VLOOKUP(H18, '2012 to 2017 NAICS'!C:D, 2, FALSE), VLOOKUP(H18, '2012 to 2017 NAICS'!A:B, 2, FALSE)) -> Petroleum Refineries | J18: =VLOOKUP(G18, 'OES Summary'!$A$2:$D$15, 3, FALSE) -> 350 | K18: =CONVERT(MEDIAN(IF('2016-2021 TRI'!F:F=$A18,'2016-2021 TRI'!P:P)), "lbm", "kg") -> 64 | L18: =CONVERT(_xlfn.MAXIFS('2016-2021 TRI'!P:P,'2016-2021 TRI'!F:F,A18), "lbm", "kg") -> 499 | M18: =CONVERT(MEDIAN(IF('2016-2021 TRI'!F:F=$A18,'2016-2021 TRI'!Q:Q)), "lbm", "kg") -> 194 | N18: =CONVERT(_xlfn.MAXIFS('2016-2021 TRI'!Q:Q,'2016-2021 TRI'!F:F,A18), "lbm", "kg") -> 1275 | O18: 0.181 | P18: 1.426 | Q18: 0.555 | R18: 3.643
A19: 43616SHLCM4001C | B19: =VLOOKUP($A19, '2016-2021 TRI'!$F:$L, 3, FALSE) -> BP-HUSKY REFINING LLC | C19: =VLOOKUP($A19, '2016-2021 TRI'!$F:$L, 4, FALSE) -> 4001 CEDAR POINT RD | D19: =VLOOKUP($A19, '2016-2021 TRI'!$F:$L, 5, FALSE) -> OREGON | E19: =VLOOKUP($A19, '2016-2021 TRI'!$F:$L, 6, FALSE) -> OH | F19: =VLOOKUP($A19, '2016-2021 TRI'!$F:$L, 7, FALSE) -> 43616 | G19: =VLOOKUP($A19, '2016-2021 TRI'!F:N, 9, FALSE) -> Manufacturing | H19: =VLOOKUP($A19, '2016-2021 TRI'!$F:$L, 2, FALSE) -> 324110 | I19: =IFERROR(VLOOKUP(H19, '2012 to 2017 NAICS'!C:D, 2, FALSE), VLOOKUP(H19, '2012 to 2017 NAICS'!A:B, 2, FALSE)) -> Petroleum Refineries | J19: =VLOOKUP(G19, 'OES Summary'!$A$2:$D$15, 3, FALSE) -> 350 | K19: =CONVERT(MEDIAN(IF('2016-2021 TRI'!F:F=$A19,'2016-2021 TRI'!P:P)), "lbm", "kg") -> 15 | L19: =CONVERT(_xlfn.MAXIFS('2016-2021 TRI'!P:P,'2016-2021 TRI'!F:F,A19), "lbm", "kg") -> 22 | M19: =CONVERT(MEDIAN(IF('2016-2021 TRI'!F:F=$A19,'2016-2021 TRI'!Q:Q)), "lbm", "kg") -> 306 | N19: =CONVERT(_xlfn.MAXIFS('2016-2021 TRI'!Q:Q,'2016-2021 TRI'!F:F,A19), "lbm", "kg") -> 544 | O19: 0.041 | P19: 0.062 | Q19: 0.875 | R19: 1.555
A20: 59414MNTNR19001 | B20: =VLOOKUP($A20, '2016-2021 TRI'!$F:$L, 3, FALSE) -> CALUMET MONTANA REFINING LLC. | C20: =VLOOKUP($A20, '2016-2021 TRI'!$F:$L, 4, FALSE) -> 1900 10TH ST NE | D20: =VLOOKUP($A20, '2016-2021 TRI'!$F:$L, 5, FALSE) -> GREAT FALLS | E20: =VLOOKUP($A20, '2016-2021 TRI'!$F:$L, 6, FALSE) -> MT | F20: =VLOOKUP($A20, '2016-2021 TRI'!$F:$L, 7, FALSE) -> 59404 | G20: =VLOOKUP($A20, '2016-2021 TRI'!F:N, 9, FALSE) -> Processing - Incorporation into formulation, mixture, or reaction product | H20: =VLOOKUP($A20, '2016-2021 TRI'!$F:$L, 2, FALSE) -> 324110 | I20: =IFERROR(VLOOKUP(H20, '2012 to 2017 NAICS'!C:D, 2, FALSE), VLOOKUP(H20, '2012 to 2017 NAICS'!A:B, 2, FALSE)) -> Petroleum Refineries | J20: =VLOOKUP(G20, 'OES Summary'!$A$2:$D$15, 3, FALSE) -> 250 | K20: =CONVERT(MEDIAN(IF('2016-2021 TRI'!F:F=$A20,'2016-2021 TRI'!P:P)), "lbm", "kg") -> 0 | L20: =CONVERT(_xlfn.MAXIFS('2016-2021 TRI'!P:P,'2016-2021 TRI'!F:F,A20), "lbm", "kg") -> 0 | M20: =CONVERT(MEDIAN(IF('2016-2021 TRI'!F:F=$A20,'2016-2021 TRI'!Q:Q)), "lbm", "kg") -> 191 | N20: =CONVERT(_xlfn.MAXIFS('2016-2021 TRI'!Q:Q,'2016-2021 TRI'!F:F,A20), "lbm", "kg") -> 191 | O20: 0.000 | P20: 0.000 | Q20: 0.762 | R20: 0.762
A21: 41114CTLTTPOBOX | B21: =VLOOKUP($A21, '2016-2021 TRI'!$F:$L, 3, FALSE) -> CATLETTSBURG REFINING LLC | C21: =VLOOKUP($A21, '2016-2021 TRI'!$F:$L, 4, FALSE) -> 11631 US RT 23 | D21: =VLOOKUP($A21, '2016-2021 TRI'!$F:$L, 5, FALSE) -> CATLETTSBURG | E21: =VLOOKUP($A21, '2016-2021 TRI'!$F:$L, 6, FALSE) -> KY | F21: =VLOOKUP($A21, '2016-2021 TRI'!$F:$L, 7, FALSE) -> 41129 | G21: =VLOOKUP($A21, '2016-2021 TRI'!F:N, 9, FALSE) -> Processing as a reactant | H21: =VLOOKUP($A21, '2016-2021 TRI'!$F:$L, 2, FALSE) -> 324110 | I21: =IFERROR(VLOOKUP(H21, '2012 to 2017 NAICS'!C:D, 2, FALSE), VLOOKUP(H21, '2012 to 2017 NAICS'!A:B, 2, FALSE)) -> Petroleum Refineries | J21: =VLOOKUP(G21, 'OES Summary'!$A$2:$D$15, 3, FALSE) -> 350 | K21: =CONVERT(MEDIAN(IF('2016-2021 TRI'!F:F=$A21,'2016-2021 TRI'!P:P)), "lbm", "kg") -> 85 | L21: =CONVERT(_xlfn.MAXIFS('2016-2021 TRI'!P:P,'2016-2021 TRI'!F:F,A21), "lbm", "kg") -> 93 | M21: =CONVERT(MEDIAN(IF('2016-2021 TRI'!F:F=$A21,'2016-2021 TRI'!Q:Q)), "lbm", "kg") -> 111 | N21: =CONVERT(_xlfn.MAXIFS('2016-2021 TRI'!Q:Q,'2016-2021 TRI'!F:F,A21), "lbm", "kg") -> 194 | O21: 0.242 | P21: 0.267 | Q21: 0.318 | R21: 0.555
A22: 24124HCHSTRT460 | B22: =VLOOKUP($A22, '2016-2021 TRI'!$F:$L, 3, FALSE) -> CELANESE ACETATE LLC - CELCO PLANT | C22: =VLOOKUP($A22, '2016-2021 TRI'!$F:$L, 4, FALSE) -> 3520 VIRGINIA AVE | D22: =VLOOKUP($A22, '2016-2021 TRI'!$F:$L, 5, FALSE) -> NARROWS | E22: =VLOOKUP($A22, '2016-2021 TRI'!$F:$L, 6, FALSE) -> VA | F22: =VLOOKUP($A22, '2016-2021 TRI'!$F:$L, 7, FALSE) -> 24124 | G22: =VLOOKUP($A22, '2016-2021 TRI'!F:N, 9, FALSE) -> Processing - Incorporation into formulation, mixture, or reaction product | H22: =VLOOKUP($A22, '2016-2021 TRI'!$F:$L, 2, FALSE) -> 325220 | I22: =IFERROR(VLOOKUP(H22, '2012 to 2017 NAICS'!C:D, 2, FALSE), VLOOKUP(H22, '2012 to 2017 NAICS'!A:B, 2, FALSE)) -> Artificial and Synthetic Fibers and Filaments Manufacturing | J22: =VLOOKUP(G22, 'OES Summary'!$A$2:$D$15, 3, FALSE) -> 250 | K22: =CONVERT(MEDIAN(IF('2016-2021 TRI'!F:F=$A22,'2016-2021 TRI'!P:P)), "lbm", "kg") -> 113 | L22: =CONVERT(_xlfn.MAXIFS('2016-2021 TRI'!P:P,'2016-2021 TRI'!F:F,A22), "lbm", "kg") -> 113 | M22: =CONVERT(MEDIAN(IF('2016-2021 TRI'!F:F=$A22,'2016-2021 TRI'!Q:Q)), "lbm", "kg") -> 113 | N22: =CONVERT(_xlfn.MAXIFS('2016-2021 TRI'!Q:Q,'2016-2021 TRI'!F:F,A22), "lbm", "kg") -> 113 | O22: 0.454 | P22: 0.454 | Q22: 0.454 | R22: 0.454
A23: 70143TNNCL500WE | B23: =VLOOKUP($A23, '2016-2021 TRI'!$F:$L, 3, FALSE) -> CHALMETTE REFINING LLC | C23: =VLOOKUP($A23, '2016-2021 TRI'!$F:$L, 4, FALSE) -> 500 W ST BERNARD HWY | D23: =VLOOKUP($A23, '2016-2021 TRI'!$F:$L, 5, FALSE) -> CHALMETTE | E23: =VLOOKUP($A23, '2016-2021 TRI'!$F:$L, 6, FALSE) -> LA | F23: =VLOOKUP($A23, '2016-2021 TRI'!$F:$L, 7, FALSE) -> 70043 | G23: =VLOOKUP($A23, '2016-2021 TRI'!F:N, 9, FALSE) -> Processing as a Reactant | H23: =VLOOKUP($A23, '2016-2021 TRI'!$F:$L, 2, FALSE) -> 324110 | I23: =IFERROR(VLOOKUP(H23, '2012 to 2017 NAICS'!C:D, 2, FALSE), VLOOKUP(H23, '2012 to 2017 NAICS'!A:B, 2, FALSE)) -> Petroleum Refineries | J23: =VLOOKUP(G23, 'OES Summary'!$A$2:$D$15, 3, FALSE) -> 350 | K23: =CONVERT(MEDIAN(IF('2016-2021 TRI'!F:F=$A23,'2016-2021 TRI'!P:P)), "lbm", "kg") -> 50 | L23: =CONVERT(_xlfn.MAXIFS('2016-2021 TRI'!P:P,'2016-2021 TRI'!F:F,A23), "lbm", "kg") -> 62 | M23: =CONVERT(MEDIAN(IF('2016-2021 TRI'!F:F=$A23,'2016-2021 TRI'!Q:Q)), "lbm", "kg") -> 716 | N23: =CONVERT(_xlfn.MAXIFS('2016-2021 TRI'!Q:Q,'2016-2021 TRI'!F:F,A23), "lbm", "kg") -> 771 | O23: 0.143 | P23: 0.178 | Q23: 2.046 | R23: 2.203
A24: 77640CHVRN2001S | B24: =VLOOKUP($A24, '2016-2021 TRI'!$F:$L, 3, FALSE) -> CHEVRON PHILLIPS CHEMICAL CO | C24: =VLOOKUP($A24, '2016-2021 TRI'!$F:$L, 4, FALSE) -> 2001 S GULFWAY DR | D24: =VLOOKUP($A24, '2016-2021 TRI'!$F:$L, 5, FALSE) -> PORT ARTHUR | E24: =VLOOKUP($A24, '2016-2021 TRI'!$F:$L, 6, FALSE) -> TX | F24: =VLOOKUP($A24, '2016-2021 TRI'!$F:$L, 7, FALSE) -> 77640 | G24: =VLOOKUP($A24, '2016-2021 TRI'!F:N, 9, FALSE) -> Manufacturing | H24: =VLOOKUP($A24, '2016-2021 TRI'!$F:$L, 2, FALSE) -> 325110 | I24: =IFERROR(VLOOKUP(H24, '2012 to 2017 NAICS'!C:D, 2, FALSE), VLOOKUP(H24, '2012 to 2017 NAICS'!A:B, 2, FALSE)) -> Petrochemical Manufacturing | J24: =VLOOKUP(G24, 'OES Summary'!$A$2:$D$15, 3, FALSE) -> 350 | K24: =CONVERT(MEDIAN(IF('2016-2021 TRI'!F:F=$A24,'2016-2021 TRI'!P:P)), "lbm", "kg") -> 309 | L24: =CONVERT(_xlfn.MAXIFS('2016-2021 TRI'!P:P,'2016-2021 TRI'!F:F,A24), "lbm", "kg") -> 652 | M24: =CONVERT(MEDIAN(IF('2016-2021 TRI'!F:F=$A24,'2016-2021 TRI'!Q:Q)), "lbm", "kg") -> 1794 | N24: =CONVERT(_xlfn.MAXIFS('2016-2021 TRI'!Q:Q,'2016-2021 TRI'!F:F,A24), "lbm", "kg") -> 3652 | O24: 0.882 | P24: 1.864 | Q24: 5.126 | R24: 10.435
A25: 77522CHVRN9500I | B25: =VLOOKUP($A25, '2016-2021 TRI'!$F:$L, 3, FALSE) -> CHEVRON PHILLIPS CHEMICAL CO LP | C25: =VLOOKUP($A25, '2016-2021 TRI'!$F:$L, 4, FALSE) -> 9500 IH-10 E | D25: =VLOOKUP($A25, '2016-2021 TRI'!$F:$L, 5, FALSE) -> BAYTOWN | E25: =VLOOKUP($A25, '2016-2021 TRI'!$F:$L, 6, FALSE) -> TX | F25: =VLOOKUP($A25, '2016-2021 TRI'!$F:$L, 7, FALSE) -> 77521 | G25: =VLOOKUP($A25, '2016-2021 TRI'!F:N, 9, FALSE) -> Manufacturing | H25: =VLOOKUP($A25, '2016-2021 TRI'!$F:$L, 2, FALSE) -> 325110 | I25: =IFERROR(VLOOKUP(H25, '2012 to 2017 NAICS'!C:D, 2, FALSE), VLOOKUP(H25, '2012 to 2017 NAICS'!A:B, 2, FALSE)) -> Petrochemical Manufacturing | J25: =VLOOKUP(G25, 'OES Summary'!$A$2:$D$15, 3, FALSE) -> 350 | K25: =CONVERT(MEDIAN(IF('2016-2021 TRI'!F:F=$A25,'2016-2021 TRI'!P:P)), "lbm", "kg") -> 435 | L25: =CONVERT(_xlfn.MAXIFS('2016-2021 TRI'!P:P,'2016-2021 TRI'!F:F,A25), "lbm", "kg") -> 562 | M25: =CONVERT(MEDIAN(IF('2016-2021 TRI'!F:F=$A25,'2016-2021 TRI'!Q:Q)), "lbm", "kg") -> 5957 | N25: =CONVERT(_xlfn.MAXIFS('2016-2021 TRI'!Q:Q,'2016-2021 TRI'!F:F,A25), "lbm", "kg") -> 15180 | O25: 1.243 | P25: 1.607 | Q25: 17.019 | R25: 43.371
A26: 79008PHLLP2MILE | B26: =VLOOKUP($A26, '2016-2021 TRI'!$F:$L, 3, FALSE) -> CHEVRON PHILLIPS CHEMICAL CO LP BORGER PLANT | C26: =VLOOKUP($A26, '2016-2021 TRI'!$F:$L, 4, FALSE) -> SPUR 119 E | D26: =VLOOKUP($A26, '2016-2021 TRI'!$F:$L, 5, FALSE) -> BORGER | E26: =VLOOKUP($A26, '2016-2021 TRI'!$F:$L, 6, FALSE) -> TX | F26: =VLOOKUP($A26, '2016-2021 TRI'!$F:$L, 7, FALSE) -> 79007 | G26: =VLOOKUP($A26, '2016-2021 TRI'!F:N, 9, FALSE) -> Processing as a reactant | H26: =VLOOKUP($A26, '2016-2021 TRI'!$F:$L, 2, FALSE) -> 325199 | I26: =IFERROR(VLOOKUP(H26, '2012 to 2017 NAICS'!C:D, 2, FALSE), VLOOKUP(H26, '2012 to 2017 NAICS'!A:B, 2, FALSE)) -> All Other Basic Organic Chemical Manufacturing | J26: =VLOOKUP(G26, 'OES Summary'!$A$2:$D$15, 3, FALSE) -> 350 | K26: =CONVERT(MEDIAN(IF('2016-2021 TRI'!F:F=$A26,'2016-2021 TRI'!P:P)), "lbm", "kg") -> 8643 | L26: =CONVERT(_xlfn.MAXIFS('2016-2021 TRI'!P:P,'2016-2021 TRI'!F:F,A26), "lbm", "kg") -> 8662 | M26: =CONVERT(MEDIAN(IF('2016-2021 TRI'!F:F=$A26,'2016-2021 TRI'!Q:Q)), "lbm", "kg") -> 1815 | N26: =CONVERT(_xlfn.MAXIFS('2016-2021 TRI'!Q:Q,'2016-2021 TRI'!F:F,A26), "lbm", "kg") -> 3246 | O26: 24.693 | P26: 24.749 | Q26: 5.185 | R26: 9.275
A27: 77465CHVRNSTATE | B27: =VLOOKUP($A27, '2016-2021 TRI'!$F:$L, 3, FALSE) -> CHEVRON PHILLIPS CHEMICAL CO LP SWEENY COMPLEX | C27: =VLOOKUP($A27, '2016-2021 TRI'!$F:$L, 4, FALSE) -> 21441 LOOP 419 | D27: =VLOOKUP($A27, '2016-2021 TRI'!$F:$L, 5, FALSE) -> SWEENY | E27: =VLOOKUP($A27, '2016-2021 TRI'!$F:$L, 6, FALSE) -> TX | F27: =VLOOKUP($A27, '2016-2021 TRI'!$F:$L, 7, FALSE) -> 77480 | G27: =VLOOKUP($A27, '2016-2021 TRI'!F:N, 9, FALSE) -> Manufacturing | H27: =VLOOKUP($A27, '2016-2021 TRI'!$F:$L, 2, FALSE) -> 325110 | I27: =IFERROR(VLOOKUP(H27, '2012 to 2017 NAICS'!C:D, 2, FALSE), VLOOKUP(H27, '2012 to 2017 NAICS'!A:B, 2, FALSE)) -> Petrochemical Manufacturing | J27: =VLOOKUP(G27, 'OES Summary'!$A$2:$D$15, 3, FALSE) -> 350 | K27: =CONVERT(MEDIAN(IF('2016-2021 TRI'!F:F=$A27,'2016-2021 TRI'!P:P)), "lbm", "kg") -> 1566 | L27: =CONVERT(_xlfn.MAXIFS('2016-2021 TRI'!P:P,'2016-2021 TRI'!F:F,A27), "lbm", "kg") -> 1962 | M27: =CONVERT(MEDIAN(IF('2016-2021 TRI'!F:F=$A27,'2016-2021 TRI'!Q:Q)), "lbm", "kg") -> 1760 | N27: =CONVERT(_xlfn.MAXIFS('2016-2021 TRI'!Q:Q,'2016-2021 TRI'!F:F,A27), "lbm", "kg") -> 5346 | O27: 4.473 | P27: 5.605 | Q27: 5.029 | R27: 15.276
A28: 84116CHVRN2351N | B28: =VLOOKUP($A28, '2016-2021 TRI'!$F:$L, 3, FALSE) -> CHEVRON PRODUCTS CO - SALT LAKE REFINERY | C28: =VLOOKUP($A28, '2016-2021 TRI'!$F:$L, 4, FALSE) -> 2351 NORTH 1100 WEST | D28: =VLOOKUP($A28, '2016-2021 TRI'!$F:$L, 5, FALSE) -> SALT LAKE CITY | E28: =VLOOKUP($A28, '2016-2021 TRI'!$F:$L, 6, FALSE) -> UT | F28: =VLOOKUP($A28, '2016-2021 TRI'!$F:$L, 7, FALSE) -> 84116 | G28: =VLOOKUP($A28, '2016-2021 TRI'!F:N, 9, FALSE) -> Processing as a reactant | H28: =VLOOKUP($A28, '2016-2021 TRI'!$F:$L, 2, FALSE) -> 324110 | I28: =IFERROR(VLOOKUP(H28, '2012 to 2017 NAICS'!C:D, 2, FALSE), VLOOKUP(H28, '2012 to 2017 NAICS'!A:B, 2, FALSE)) -> Petroleum Refineries | J28: =VLOOKUP(G28, 'OES Summary'!$A$2:$D$15, 3, FALSE) -> 350 | K28: =CONVERT(MEDIAN(IF('2016-2021 TRI'!F:F=$A28,'2016-2021 TRI'!P:P)), "lbm", "kg") -> 9 | L28: =CONVERT(_xlfn.MAXIFS('2016-2021 TRI'!P:P,'2016-2021 TRI'!F:F,A28), "lbm", "kg") -> 42 | M28: =CONVERT(MEDIAN(IF('2016-2021 TRI'!F:F=$A28,'2016-2021 TRI'!Q:Q)), "lbm", "kg") -> 1344 | N28: =CONVERT(_xlfn.MAXIFS('2016-2021 TRI'!Q:Q,'2016-2021 TRI'!F:F,A28), "lbm", "kg") -> 2969 | O28: 0.027 | P28: 0.119 | Q28: 3.840 | R28: 8.482
A29: 90245CHVRN324WE | B29: =VLOOKUP($A29, '2016-2021 TRI'!$F:$L, 3, FALSE) -> CHEVRON PRODUCTS CO DIV OF CHEVRON USA INC. | C29: =VLOOKUP($A29, '2016-2021 TRI'!$F:$L, 4, FALSE) -> 324 W EL SEGUNDO BLVD | D29: =VLOOKUP($A29, '2016-2021 TRI'!$F:$L, 5, FALSE) -> EL SEGUNDO | E29: =VLOOKUP($A29, '2016-2021 TRI'!$F:$L, 6, FALSE) -> CA | F29: =VLOOKUP($A29, '2016-2021 TRI'!$F:$L, 7, FALSE) -> 90245 | G29: =VLOOKUP($A29, '2016-2021 TRI'!F:N, 9, FALSE) -> Manufacturing | H29: =VLOOKUP($A29, '2016-2021 TRI'!$F:$L, 2, FALSE) -> 324110 | I29: =IFERROR(VLOOKUP(H29, '2012 to 2017 NAICS'!C:D, 2, FALSE), VLOOKUP(H29, '2012 to 2017 NAICS'!A:B, 2, FALSE)) -> Petroleum Refineries | J29: =VLOOKUP(G29, 'OES Summary'!$A$2:$D$15, 3, FALSE) -> 350 | K29: =CONVERT(MEDIAN(IF('2016-2021 TRI'!F:F=$A29,'2016-2021 TRI'!P:P)), "lbm", "kg") -> 10 | L29: =CONVERT(_xlfn.MAXIFS('2016-2021 TRI'!P:P,'2016-2021 TRI'!F:F,A29), "lbm", "kg") -> 11 | M29: =CONVERT(MEDIAN(IF('2016-2021 TRI'!F:F=$A29,'2016-2021 TRI'!Q:Q)), "lbm", "kg") -> 3 | N29: =CONVERT(_xlfn.MAXIFS('2016-2021 TRI'!Q:Q,'2016-2021 TRI'!F:F,A29), "lbm", "kg") -> 5 | O29: 0.029 | P29: 0.031 | Q29: 0.010 | R29: 0.016
A30: 39567CHVRNPOBOX | B30: =VLOOKUP($A30, '2016-2021 TRI'!$F:$L, 3, FALSE) -> CHEVRON PRODUCTS CO PASCAGOULA REFINERY | C30: =VLOOKUP($A30, '2016-2021 TRI'!$F:$L, 4, FALSE) -> 250 INDUSTRIAL RD | D30: =VLOOKUP($A30, '2016-2021 TRI'!$F:$L, 5, FALSE) -> PASCAGOULA | E30: =VLOOKUP($A30, '2016-2021 TRI'!$F:$L, 6, FALSE) -> MS | F30: =VLOOKUP($A30, '2016-2021 TRI'!$F:$L, 7, FALSE) -> 39581 | G30: =VLOOKUP($A30, '2016-2021 TRI'!F:N, 9, FALSE) -> Manufacturing | H30: =VLOOKUP($A30, '2016-2021 TRI'!$F:$L, 2, FALSE) -> 324110 | I30: =IFERROR(VLOOKUP(H30, '2012 to 2017 NAICS'!C:D, 2, FALSE), VLOOKUP(H30, '2012 to 2017 NAICS'!A:B, 2, FALSE)) -> Petroleum Refineries | J30: =VLOOKUP(G30, 'OES Summary'!$A$2:$D$15, 3, FALSE) -> 350 | K30: =CONVERT(MEDIAN(IF('2016-2021 TRI'!F:F=$A30,'2016-2021 TRI'!P:P)), "lbm", "kg") -> 612 | L30: =CONVERT(_xlfn.MAXIFS('2016-2021 TRI'!P:P,'2016-2021 TRI'!F:F,A30), "lbm", "kg") -> 726 | M30: =CONVERT(MEDIAN(IF('2016-2021 TRI'!F:F=$A30,'2016-2021 TRI'!Q:Q)), "lbm", "kg") -> 29 | N30: =CONVERT(_xlfn.MAXIFS('2016-2021 TRI'!Q:Q,'2016-2021 TRI'!F:F,A30), "lbm", "kg") -> 59 | O30: 1.750 | P30: 2.074 | Q30: 0.084 | R30: 0.168
A31: 94802CHVRN841ST | B31: =VLOOKUP($A31, '2016-2021 TRI'!$F:$L, 3, FALSE) -> CHEVRON PRODUCTS CO RICHMOND REFINERY | C31: =VLOOKUP($A31, '2016-2021 TRI'!$F:$L, 4, FALSE) -> 841 CHEVRON WAY | D31: =VLOOKUP($A31, '2016-2021 TRI'!$F:$L, 5, FALSE) -> RICHMOND | E31: =VLOOKUP($A31, '2016-2021 TRI'!$F:$L, 6, FALSE) -> CA | F31: =VLOOKUP($A31, '2016-2021 TRI'!$F:$L, 7, FALSE) -> 94801 | G31: =VLOOKUP($A31, '2016-2021 TRI'!F:N, 9, FALSE) -> Processing as a reactant | H31: =VLOOKUP($A31, '2016-2021 TRI'!$F:$L, 2, FALSE) -> 324110 | I31: =IFERROR(VLOOKUP(H31, '2012 to 2017 NAICS'!C:D, 2, FALSE), VLOOKUP(H31, '2012 to 2017 NAICS'!A:B, 2, FALSE)) -> Petroleum Refineries | J31: =VLOOKUP(G31, 'OES Summary'!$A$2:$D$15, 3, FALSE) -> 350 | K31: =CONVERT(MEDIAN(IF('2016-2021 TRI'!F:F=$A31,'2016-2021 TRI'!P:P)), "lbm", "kg") -> 70 | L31: =CONVERT(_xlfn.MAXIFS('2016-2021 TRI'!P:P,'2016-2021 TRI'!F:F,A31), "lbm", "kg") -> 118 | M31: =CONVERT(MEDIAN(IF('2016-2021 TRI'!F:F=$A31,'2016-2021 TRI'!Q:Q)), "lbm", "kg") -> 98 | N31: =CONVERT(_xlfn.MAXIFS('2016-2021 TRI'!Q:Q,'2016-2021 TRI'!F:F,A31), "lbm", "kg") -> 177 | O31: 0.201 | P31: 0.337 | Q31: 0.279 | R31: 0.505
A32: 94802CHVRN576ST | B32: =VLOOKUP($A32, '2016-2021 TRI'!$F:$L, 3, FALSE) -> CHEVRON RICHMOND TECHNOLOGY CENTER | C32: =VLOOKUP($A32, '2016-2021 TRI'!$F:$L, 4, FALSE) -> 100 CHEVRON WAY - RM10-3114 | D32: =VLOOKUP($A32, '2016-2021 TRI'!$F:$L, 5, FALSE) -> RICHMOND | E32: =VLOOKUP($A32, '2016-2021 TRI'!$F:$L, 6, FALSE) -> CA | F32: =VLOOKUP($A32, '2016-2021 TRI'!$F:$L, 7, FALSE) -> 94801 | G32: =VLOOKUP($A32, '2016-2021 TRI'!F:N, 9, FALSE) -> Processing - Incorporation into formulation, mixture, or reaction product | H32: =VLOOKUP($A32, '2016-2021 TRI'!$F:$L, 2, FALSE) -> 541715 | I32: =IFERROR(VLOOKUP(H32, '2012 to 2017 NAICS'!C:D, 2, FALSE), VLOOKUP(H32, '2012 to 2017 NAICS'!A:B, 2, FALSE)) -> Research and Development in the Physical, Engineering, and Life Sciences (except Nanotechnology and Biotechnology) | J32: =VLOOKUP(G32, 'OES Summary'!$A$2:$D$15, 3, FALSE) -> 250 | K32: =CONVERT(MEDIAN(IF('2016-2021 TRI'!F:F=$A32,'2016-2021 TRI'!P:P)), "lbm", "kg") -> 0 | L32: =CONVERT(_xlfn.MAXIFS('2016-2021 TRI'!P:P,'2016-2021 TRI'!F:F,A32), "lbm", "kg") -> 0 | M32: =CONVERT(MEDIAN(IF('2016-2021 TRI'!F:F=$A32,'2016-2021 TRI'!Q:Q)), "lbm", "kg") -> 0 | N32: =CONVERT(_xlfn.MAXIFS('2016-2021 TRI'!Q:Q,'2016-2021 TRI'!F:F,A32), "lbm", "kg") -> 0 | O32: 0.000 | P32: 0.000 | Q32: 0.000 | R32: 0.000
A33: 82007FRNTR2700E | B33: =VLOOKUP($A33, '2016-2021 TRI'!$F:$L, 3, FALSE) -> CHEYENNE RENEWABLE DIESEL CO LLC | C33: =VLOOKUP($A33, '2016-2021 TRI'!$F:$L, 4, FALSE) -> 2700 E. 5TH STREET | D33: =VLOOKUP($A33, '2016-2021 TRI'!$F:$L, 5, FALSE) -> CHEYENNE | E33: =VLOOKUP($A33, '2016-2021 TRI'!$F:$L, 6, FALSE) -> WY | F33: =VLOOKUP($A33, '2016-2021 TRI'!$F:$L, 7, FALSE) -> 82007 | G33: =VLOOKUP($A33, '2016-2021 TRI'!F:N, 9, FALSE) -> Processing as a reactant | H33: =VLOOKUP($A33, '2016-2021 TRI'!$F:$L, 2, FALSE) -> 324110 | I33: =IFERROR(VLOOKUP(H33, '2012 to 2017 NAICS'!C:D, 2, FALSE), VLOOKUP(H33, '2012 to 2017 NAICS'!A:B, 2, FALSE)) -> Petroleum Refineries | J33: =VLOOKUP(G33, 'OES Summary'!$A$2:$D$15, 3, FALSE) -> 350 | K33: =CONVERT(MEDIAN(IF('2016-2021 TRI'!F:F=$A33,'2016-2021 TRI'!P:P)), "lbm", "kg") -> 4 | L33: =CONVERT(_xlfn.MAXIFS('2016-2021 TRI'!P:P,'2016-2021 TRI'!F:F,A33), "lbm", "kg") -> 5 | M33: =CONVERT(MEDIAN(IF('2016-2021 TRI'!F:F=$A33,'2016-2021 TRI'!Q:Q)), "lbm", "kg") -> 0 | N33: =CONVERT(_xlfn.MAXIFS('2016-2021 TRI'!Q:Q,'2016-2021 TRI'!F:F,A33), "lbm", "kg") -> 0 | O33: 0.010 | P33: 0.013 | Q33: 0.000 | R33: 0.000
A34: 59044CNXRF803HI | B34: =VLOOKUP($A34, '2016-2021 TRI'!$F:$L, 3, FALSE) -> CHS INC. LAUREL REFINERY | C34: =VLOOKUP($A34, '2016-2021 TRI'!$F:$L, 4, FALSE) -> 803 HWY 212 S | D34: =VLOOKUP($A34, '2016-2021 TRI'!$F:$L, 5, FALSE) -> LAUREL | E34: =VLOOKUP($A34, '2016-2021 TRI'!$F:$L, 6, FALSE) -> MT | F34: =VLOOKUP($A34, '2016-2021 TRI'!$F:$L, 7, FALSE) -> 59044 | G34: =VLOOKUP($A34, '2016-2021 TRI'!F:N, 9, FALSE) -> Processing as a reactant | H34: =VLOOKUP($A34, '2016-2021 TRI'!$F:$L, 2, FALSE) -> 324110 | I34: =IFERROR(VLOOKUP(H34, '2012 to 2017 NAICS'!C:D, 2, FALSE), VLOOKUP(H34, '2012 to 2017 NAICS'!A:B, 2, FALSE)) -> Petroleum Refineries | J34: =VLOOKUP(G34, 'OES Summary'!$A$2:$D$15, 3, FALSE) -> 350 | K34: =CONVERT(MEDIAN(IF('2016-2021 TRI'!F:F=$A34,'2016-2021 TRI'!P:P)), "lbm", "kg") -> 133 | L34: =CONVERT(_xlfn.MAXIFS('2016-2021 TRI'!P:P,'2016-2021 TRI'!F:F,A34), "lbm", "kg") -> 137 | M34: =CONVERT(MEDIAN(IF('2016-2021 TRI'!F:F=$A34,'2016-2021 TRI'!Q:Q)), "lbm", "kg") -> 1140 | N34: =CONVERT(_xlfn.MAXIFS('2016-2021 TRI'!Q:Q,'2016-2021 TRI'!F:F,A34), "lbm", "kg") -> 4826 | O34: 0.381 | P34: 0.391 | Q34: 3.258 | R34: 13.788
A35: 67460NTNLC2000M | B35: =VLOOKUP($A35, '2016-2021 TRI'!$F:$L, 3, FALSE) -> CHS MCPHERSON REFINERY - SRU | C35: =VLOOKUP($A35, '2016-2021 TRI'!$F:$L, 4, FALSE) -> 2000 S MAIN ST | D35: =VLOOKUP($A35, '2016-2021 TRI'!$F:$L, 5, FALSE) -> MCPHERSON | E35: =VLOOKUP($A35, '2016-2021 TRI'!$F:$L, 6, FALSE) -> KS | F35: =VLOOKUP($A35, '2016-2021 TRI'!$F:$L, 7, FALSE) -> 67460 | G35: =VLOOKUP($A35, '2016-2021 TRI'!F:N, 9, FALSE) -> Processing as a reactant | H35: =VLOOKUP($A35, '2016-2021 TRI'!$F:$L, 2, FALSE) -> 324110 | I35: =IFERROR(VLOOKUP(H35, '2012 to 2017 NAICS'!C:D, 2, FALSE), VLOOKUP(H35, '2012 to 2017 NAICS'!A:B, 2, FALSE)) -> Petroleum Refineries | J35: =VLOOKUP(G35, 'OES Summary'!$A$2:$D$15, 3, FALSE) -> 350 | K35: =CONVERT(MEDIAN(IF('2016-2021 TRI'!F:F=$A35,'2016-2021 TRI'!P:P)), "lbm", "kg") -> 2 | L35: =CONVERT(_xlfn.MAXIFS('2016-2021 TRI'!P:P,'2016-2021 TRI'!F:F,A35), "lbm", "kg") -> 3 | M35: =CONVERT(MEDIAN(IF('2016-2021 TRI'!F:F=$A35,'2016-2021 TRI'!Q:Q)), "lbm", "kg") -> 7 | N35: =CONVERT(_xlfn.MAXIFS('2016-2021 TRI'!Q:Q,'2016-2021 TRI'!F:F,A35), "lbm", "kg") -> 13 | O35: 0.007 | P35: 0.009 | Q35: 0.020 | R35: 0.036
A36: 70602CTGPTHIGHW | B36: =VLOOKUP($A36, '2016-2021 TRI'!$F:$L, 3, FALSE) -> CITGO PETROLEUM CORP | C36: =VLOOKUP($A36, '2016-2021 TRI'!$F:$L, 4, FALSE) -> 1601 HWY 108 E | D36: =VLOOKUP($A36, '2016-2021 TRI'!$F:$L, 5, FALSE) -> SULPHUR | E36: =VLOOKUP($A36, '2016-2021 TRI'!$F:$L, 6, FALSE) -> LA | F36: =VLOOKUP($A36, '2016-2021 TRI'!$F:$L, 7, FALSE) -> 70665 | G36: =VLOOKUP($A36, '2016-2021 TRI'!F:N, 9, FALSE) -> Processing - Incorporation into formulation, mixture, or reaction product | H36: =VLOOKUP($A36, '2016-2021 TRI'!$F:$L, 2, FALSE) -> 324110 | I36: =IFERROR(VLOOKUP(H36, '2012 to 2017 NAICS'!C:D, 2, FALSE), VLOOKUP(H36, '2012 to 2017 NAICS'!A:B, 2, FALSE)) -> Petroleum Refineries | J36: =VLOOKUP(G36, 'OES Summary'!$A$2:$D$15, 3, FALSE) -> 250 | K36: =CONVERT(MEDIAN(IF('2016-2021 TRI'!F:F=$A36,'2016-2021 TRI'!P:P)), "lbm", "kg") -> 129 | L36: =CONVERT(_xlfn.MAXIFS('2016-2021 TRI'!P:P,'2016-2021 TRI'!F:F,A36), "lbm", "kg") -> 133 | M36: =CONVERT(MEDIAN(IF('2016-2021 TRI'!F:F=$A36,'2016-2021 TRI'!Q:Q)), "lbm", "kg") -> 198 | N36: =CONVERT(_xlfn.MAXIFS('2016-2021 TRI'!Q:Q,'2016-2021 TRI'!F:F,A36), "lbm", "kg") -> 764 | O36: 0.517 | P36: 0.532 | Q36: 0.792 | R36: 3.055
A37: 60439NCLCR135TH | B37: =VLOOKUP($A37, '2016-2021 TRI'!$F:$L, 3, FALSE) -> CITGO PETROLEUM CORP LEMONT REFINERY | C37: =VLOOKUP($A37, '2016-2021 TRI'!$F:$L, 4, FALSE) -> 135TH ST & NEW AVE | D37: =VLOOKUP($A37, '2016-2021 TRI'!$F:$L, 5, FALSE) -> LEMONT | E37: =VLOOKUP($A37, '2016-2021 TRI'!$F:$L, 6, FALSE) -> IL | F37: =VLOOKUP($A37, '2016-2021 TRI'!$F:$L, 7, FALSE) -> 60439 | G37: =VLOOKUP($A37, '2016-2021 TRI'!F:N, 9, FALSE) -> Processing - Incorporation into formulation, mixture, or reaction product | H37: =VLOOKUP($A37, '2016-2021 TRI'!$F:$L, 2, FALSE) -> 324110 | I37: =IFERROR(VLOOKUP(H37, '2012 to 2017 NAICS'!C:D, 2, FALSE), VLOOKUP(H37, '2012 to 2017 NAICS'!A:B, 2, FALSE)) -> Petroleum Refineries | J37: =VLOOKUP(G37, 'OES Summary'!$A$2:$D$15, 3, FALSE) -> 250 | K37: =CONVERT(MEDIAN(IF('2016-2021 TRI'!F:F=$A37,'2016-2021 TRI'!P:P)), "lbm", "kg") -> 2 | L37: =CONVERT(_xlfn.MAXIFS('2016-2021 TRI'!P:P,'2016-2021 TRI'!F:F,A37), "lbm", "kg") -> 4 | M37: =CONVERT(MEDIAN(IF('2016-2021 TRI'!F:F=$A37,'2016-2021 TRI'!Q:Q)), "lbm", "kg") -> 0 | N37: =CONVERT(_xlfn.MAXIFS('2016-2021 TRI'!Q:Q,'2016-2021 TRI'!F:F,A37), "lbm", "kg") -> 0 | O37: 0.007 | P37: 0.015 | Q37: 0.000 | R37: 0.000
A38: 78408CHMPL1801N | B38: =VLOOKUP($A38, '2016-2021 TRI'!$F:$L, 3, FALSE) -> CITGO REFINING & CHEMICALS CO LP EAST PLANT | C38: =VLOOKUP($A38, '2016-2021 TRI'!$F:$L, 4, FALSE) -> 1801 NUECES BAY BLVD | D38: =VLOOKUP($A38, '2016-2021 TRI'!$F:$L, 5, FALSE) -> CORPUS CHRISTI | E38: =VLOOKUP($A38, '2016-2021 TRI'!$F:$L, 6, FALSE) -> TX | F38: =VLOOKUP($A38, '2016-2021 TRI'!$F:$L, 7, FALSE) -> 78407 | G38: =VLOOKUP($A38, '2016-2021 TRI'!F:N, 9, FALSE) -> Processing - Incorporation into formulation, mixture, or reaction product | H38: =VLOOKUP($A38, '2016-2021 TRI'!$F:$L, 2, FALSE) -> 324110 | I38: =IFERROR(VLOOKUP(H38, '2012 to 2017 NAICS'!C:D, 2, FALSE), VLOOKUP(H38, '2012 to 2017 NAICS'!A:B, 2, FALSE)) -> Petroleum Refineries | J38: =VLOOKUP(G38, 'OES Summary'!$A$2:$D$15, 3, FALSE) -> 250 | K38: =CONVERT(MEDIAN(IF('2016-2021 TRI'!F:F=$A38,'2016-2021 TRI'!P:P)), "lbm", "kg") -> 50 | L38: =CONVERT(_xlfn.MAXIFS('2016-2021 TRI'!P:P,'2016-2021 TRI'!F:F,A38), "lbm", "kg") -> 78 | M38: =CONVERT(MEDIAN(IF('2016-2021 TRI'!F:F=$A38,'2016-2021 TRI'!Q:Q)), "lbm", "kg") -> 0 | N38: =CONVERT(_xlfn.MAXIFS('2016-2021 TRI'!Q:Q,'2016-2021 TRI'!F:F,A38), "lbm", "kg") -> 71 | O38: 0.199 | P38: 0.310 | Q38: 0.000 | R38: 0.282
A39: 78409CHMPL7350I | B39: =VLOOKUP($A39, '2016-2021 TRI'!$F:$L, 3, FALSE) -> CITGO REFINING & CHEMICALS CO LP-WEST PLANT | C39: =VLOOKUP($A39, '2016-2021 TRI'!$F:$L, 4, FALSE) -> 7350 INTERSTATE HWY 37 | D39: =VLOOKUP($A39, '2016-2021 TRI'!$F:$L, 5, FALSE) -> CORPUS CHRISTI | E39: =VLOOKUP($A39, '2016-2021 TRI'!$F:$L, 6, FALSE) -> TX | F39: =VLOOKUP($A39, '2016-2021 TRI'!$F:$L, 7, FALSE) -> 78409 | G39: =VLOOKUP($A39, '2016-2021 TRI'!F:N, 9, FALSE) -> Processing - Incorporation into formulation, mixture, or reaction product | H39: =VLOOKUP($A39, '2016-2021 TRI'!$F:$L, 2, FALSE) -> 324110 | I39: =IFERROR(VLOOKUP(H39, '2012 to 2017 NAICS'!C:D, 2, FALSE), VLOOKUP(H39, '2012 to 2017 NAICS'!A:B, 2, FALSE)) -> Petroleum Refineries | J39: =VLOOKUP(G39, 'OES Summary'!$A$2:$D$15, 3, FALSE) -> 250 | K39: =CONVERT(MEDIAN(IF('2016-2021 TRI'!F:F=$A39,'2016-2021 TRI'!P:P)), "lbm", "kg") -> 10 | L39: =CONVERT(_xlfn.MAXIFS('2016-2021 TRI'!P:P,'2016-2021 TRI'!F:F,A39), "lbm", "kg") -> 11 | M39: =CONVERT(MEDIAN(IF('2016-2021 TRI'!F:F=$A39,'2016-2021 TRI'!Q:Q)), "lbm", "kg") -> 0 | N39: =CONVERT(_xlfn.MAXIFS('2016-2021 TRI'!Q:Q,'2016-2021 TRI'!F:F,A39), "lbm", "kg") -> 0 | O39: 0.040 | P39: 0.044 | Q39: 0.000 | R39: 0.000
A40: 84029SFTYK11600 | B40: =VLOOKUP($A40, '2016-2021 TRI'!$F:$L, 3, FALSE) -> CLEAN HARBORS ARAGONITE LLC | C40: =VLOOKUP($A40, '2016-2021 TRI'!$F:$L, 4, FALSE) -> 11600 NORTH APTUS ROAD | D40: =VLOOKUP($A40, '2016-2021 TRI'!$F:$L, 5, FALSE) -> GRANTSVILLE | E40: =VLOOKUP($A40, '2016-2021 TRI'!$F:$L, 6, FALSE) -> UT | F40: =VLOOKUP($A40, '2016-2021 TRI'!$F:$L, 7, FALSE) -> 84029 | G40: =VLOOKUP($A40, '2016-2021 TRI'!F:N, 9, FALSE) -> Waste Handling, Disposal, Treatment, and Recycling | H40: =VLOOKUP($A40, '2016-2021 TRI'!$F:$L, 2, FALSE) -> 562211 | I40: =IFERROR(VLOOKUP(H40, '2012 to 2017 NAICS'!C:D, 2, FALSE), VLOOKUP(H40, '2012 to 2017 NAICS'!A:B, 2, FALSE)) -> Hazardous Waste Treatment and Disposal | J40: =VLOOKUP(G40, 'OES Summary'!$A$2:$D$15, 3, FALSE) -> 250 | K40: =CONVERT(MEDIAN(IF('2016-2021 TRI'!F:F=$A40,'2016-2021 TRI'!P:P)), "lbm", "kg") -> 1 | L40: =CONVERT(_xlfn.MAXIFS('2016-2021 TRI'!P:P,'2016-2021 TRI'!F:F,A40), "lbm", "kg") -> 1 | M40: =CONVERT(MEDIAN(IF('2016-2021 TRI'!F:F=$A40,'2016-2021 TRI'!Q:Q)), "lbm", "kg") -> 0 | N40: =CONVERT(_xlfn.MAXIFS('2016-2021 TRI'!Q:Q,'2016-2021 TRI'!F:F,A40), "lbm", "kg") -> 0 | O40: 0.006 | P40: 0.006 | Q40: 0.000 | R40: 0.000
A41: 77536SFTYK2027B | B41: =VLOOKUP($A41, '2016-2021 TRI'!$F:$L, 3, FALSE) -> CLEAN HARBORS DEER PARK LLC | C41: =VLOOKUP($A41, '2016-2021 TRI'!$F:$L, 4, FALSE) -> 2027 INDEPENDENCE PARKWAY SOUTH | D41: =VLOOKUP($A41, '2016-2021 TRI'!$F:$L, 5, FALSE) -> LA PORTE | E41: =VLOOKUP($A41, '2016-2021 TRI'!$F:$L, 6, FALSE) -> TX | F41: =VLOOKUP($A41, '2016-2021 TRI'!$F:$L, 7, FALSE) -> 77571 | G41: =VLOOKUP($A41, '2016-2021 TRI'!F:N, 9, FALSE) -> Waste Handling, Disposal, Treatment, and Recycling | H41: =VLOOKUP($A41, '2016-2021 TRI'!$F:$L, 2, FALSE) -> 562211 | I41: =IFERROR(VLOOKUP(H41, '2012 to 2017 NAICS'!C:D, 2, FALSE), VLOOKUP(H41, '2012 to 2017 NAICS'!A:B, 2, FALSE)) -> Hazardous Waste Treatment and Disposal | J41: =VLOOKUP(G41, 'OES Summary'!$A$2:$D$15, 3, FALSE) -> 250 | K41: =CONVERT(MEDIAN(IF('2016-2021 TRI'!F:F=$A41,'2016-2021 TRI'!P:P)), "lbm", "kg") -> 0 | L41: =CONVERT(_xlfn.MAXIFS('2016-2021 TRI'!P:P,'2016-2021 TRI'!F:F,A41), "lbm", "kg") -> 0 | M41: =CONVERT(MEDIAN(IF('2016-2021 TRI'!F:F=$A41,'2016-2021 TRI'!Q:Q)), "lbm", "kg") -> 0 | N41: =CONVERT(_xlfn.MAXIFS('2016-2021 TRI'!Q:Q,'2016-2021 TRI'!F:F,A41), "lbm", "kg") -> 1 | O41: 0.000 | P41: 0.000 | Q41: 0.000 | R41: 0.003
A42: 71730NVRNM309AM | B42: =VLOOKUP($A42, '2016-2021 TRI'!$F:$L, 3, FALSE) -> CLEAN HARBORS EL DORADO LLC | C42: =VLOOKUP($A42, '2016-2021 TRI'!$F:$L, 4, FALSE) -> 309 AMERICAN CIR UNION | D42: =VLOOKUP($A42, '2016-2021 TRI'!$F:$L, 5, FALSE) -> EL DORADO | E42: =VLOOKUP($A42, '2016-2021 TRI'!$F:$L, 6, FALSE) -> AR | F42: =VLOOKUP($A42, '2016-2021 TRI'!$F:$L, 7, FALSE) -> 71730 | G42: =VLOOKUP($A42, '2016-2021 TRI'!F:N, 9, FALSE) -> Waste Handling, Disposal, Treatment, and Recycling | H42: =VLOOKUP($A42, '2016-2021 TRI'!$F:$L, 2, FALSE) -> 562211 | I42: =IFERROR(VLOOKUP(H42, '2012 to 2017 NAICS'!C:D, 2, FALSE), VLOOKUP(H42, '2012 to 2017 NAICS'!A:B, 2, FALSE)) -> Hazardous Waste Treatment and Disposal | J42: =VLOOKUP(G42, 'OES Summary'!$A$2:$D$15, 3, FALSE) -> 250 | K42: =CONVERT(MEDIAN(IF('2016-2021 TRI'!F:F=$A42,'2016-2021 TRI'!P:P)), "lbm", "kg") -> 0 | L42: =CONVERT(_xlfn.MAXIFS('2016-2021 TRI'!P:P,'2016-2021 TRI'!F:F,A42), "lbm", "kg") -> 0 | M42: =CONVERT(MEDIAN(IF('2016-2021 TRI'!F:F=$A42,'2016-2021 TRI'!Q:Q)), "lbm", "kg") -> 0 | N42: =CONVERT(_xlfn.MAXIFS('2016-2021 TRI'!Q:Q,'2016-2021 TRI'!F:F,A42), "lbm", "kg") -> 0 | O42: 0.000 | P42: 0.000 | Q42: 0.000 | R42: 0.001
A43: 46304BTHLHBURNS | B43: =VLOOKUP($A43, '2016-2021 TRI'!$F:$L, 3, FALSE) -> CLEVELAND-CLIFFS BURNS HARBOR LLC | C43: =VLOOKUP($A43, '2016-2021 TRI'!$F:$L, 4, FALSE) -> 250 W US HWY 12 | D43: =VLOOKUP($A43, '2016-2021 TRI'!$F:$L, 5, FALSE) -> BURNS HARBOR | E43: =VLOOKUP($A43, '2016-2021 TRI'!$F:$L, 6, FALSE) -> IN | F43: =VLOOKUP($A43, '2016-2021 TRI'!$F:$L, 7, FALSE) -> 46304 | G43: =VLOOKUP($A43, '2016-2021 TRI'!F:N, 9, FALSE) -> Processing - incorporation into formulation, mixture, or reaction product | H43: =VLOOKUP($A43, '2016-2021 TRI'!$F:$L, 2, FALSE) -> 331110 | I43: =IFERROR(VLOOKUP(H43, '2012 to 2017 NAICS'!C:D, 2, FALSE), VLOOKUP(H43, '2012 to 2017 NAICS'!A:B, 2, FALSE)) -> Iron and Steel Mills and Ferroalloy Manufacturing | J43: =VLOOKUP(G43, 'OES Summary'!$A$2:$D$15, 3, FALSE) -> 250 | K43: =CONVERT(MEDIAN(IF('2016-2021 TRI'!F:F=$A43,'2016-2021 TRI'!P:P)), "lbm", "kg") -> 50 | L43: =CONVERT(_xlfn.MAXIFS('2016-2021 TRI'!P:P,'2016-2021 TRI'!F:F,A43), "lbm", "kg") -> 70 | M43: =CONVERT(MEDIAN(IF('2016-2021 TRI'!F:F=$A43,'2016-2021 TRI'!Q:Q)), "lbm", "kg") -> 0 | N43: =CONVERT(_xlfn.MAXIFS('2016-2021 TRI'!Q:Q,'2016-2021 TRI'!F:F,A43), "lbm", "kg") -> 0 | O43: 0.200 | P43: 0.281 | Q43: 0.000 | R43: 0.000
A44: 70723TXCRFFOOTO | B44: =VLOOKUP($A44, '2016-2021 TRI'!$F:$L, 3, FALSE) -> CONVENT REFINERY | C44: =VLOOKUP($A44, '2016-2021 TRI'!$F:$L, 4, FALSE) -> FOOT OF SUNSHINE BRIDGE- LA HW Y 44 | D44: =VLOOKUP($A44, '2016-2021 TRI'!$F:$L, 5, FALSE) -> CONVENT | E44: =VLOOKUP($A44, '2016-2021 TRI'!$F:$L, 6, FALSE) -> LA | F44: =VLOOKUP($A44, '2016-2021 TRI'!$F:$L, 7, FALSE) -> 70723 | G44: =VLOOKUP($A44, '2016-2021 TRI'!F:N, 9, FALSE) -> Processing - incorporation into formulation, mixture, or reaction product | H44: =VLOOKUP($A44, '2016-2021 TRI'!$F:$L, 2, FALSE) -> 324110 | I44: =IFERROR(VLOOKUP(H44, '2012 to 2017 NAICS'!C:D, 2, FALSE), VLOOKUP(H44, '2012 to 2017 NAICS'!A:B, 2, FALSE)) -> Petroleum Refineries | J44: =VLOOKUP(G44, 'OES Summary'!$A$2:$D$15, 3, FALSE) -> 250 | K44: =CONVERT(MEDIAN(IF('2016-2021 TRI'!F:F=$A44,'2016-2021 TRI'!P:P)), "lbm", "kg") -> 5 | L44: =CONVERT(_xlfn.MAXIFS('2016-2021 TRI'!P:P,'2016-2021 TRI'!F:F,A44), "lbm", "kg") -> 6 | M44: =CONVERT(MEDIAN(IF('2016-2021 TRI'!F:F=$A44,'2016-2021 TRI'!Q:Q)), "lbm", "kg") -> 10 | N44: =CONVERT(_xlfn.MAXIFS('2016-2021 TRI'!Q:Q,'2016-2021 TRI'!F:F,A44), "lbm", "kg") -> 106 | O44: 0.022 | P44: 0.024 | Q44: 0.040 | R44: 0.423
A45: 4864WDDPSP34SSA | B45: =VLOOKUP($A45, '2016-2021 TRI'!$F:$L, 3, FALSE) -> DDP SPECIALTY ELECTRONIC MATERIALS US LLC | C45: =VLOOKUP($A45, '2016-2021 TRI'!$F:$L, 4, FALSE) -> 3400 S SAGINAW RD - UNIT 96 | D45: =VLOOKUP($A45, '2016-2021 TRI'!$F:$L, 5, FALSE) -> MIDLAND | E45: =VLOOKUP($A45, '2016-2021 TRI'!$F:$L, 6, FALSE) -> MI | F45: =VLOOKUP($A45, '2016-2021 TRI'!$F:$L, 7, FALSE) -> 48640 | G45: =VLOOKUP($A45, '2016-2021 TRI'!F:N, 9, FALSE) -> Processing - incorporation into formulation, mixture, or reaction product | H45: =VLOOKUP($A45, '2016-2021 TRI'!$F:$L, 2, FALSE) -> 325199 | I45: =IFERROR(VLOOKUP(H45, '2012 to 2017 NAICS'!C:D, 2, FALSE), VLOOKUP(H45, '2012 to 2017 NAICS'!A:B, 2, FALSE)) -> All Other Basic Organic Chemical Manufacturing | J45: =VLOOKUP(G45, 'OES Summary'!$A$2:$D$15, 3, FALSE) -> 250 | K45: =CONVERT(MEDIAN(IF('2016-2021 TRI'!F:F=$A45,'2016-2021 TRI'!P:P)), "lbm", "kg") -> 0 | L45: =CONVERT(_xlfn.MAXIFS('2016-2021 TRI'!P:P,'2016-2021 TRI'!F:F,A45), "lbm", "kg") -> 0 | M45: =CONVERT(MEDIAN(IF('2016-2021 TRI'!F:F=$A45,'2016-2021 TRI'!Q:Q)), "lbm", "kg") -> 233 | N45: =CONVERT(_xlfn.MAXIFS('2016-2021 TRI'!Q:Q,'2016-2021 TRI'!F:F,A45), "lbm", "kg") -> 246 | O45: 0.000 | P45: 0.002 | Q45: 0.933 | R45: 0.985
A46: 77536DRPRK5900H | B46: =VLOOKUP($A46, '2016-2021 TRI'!$F:$L, 3, FALSE) -> DEER PARK REFINING LP | C46: =VLOOKUP($A46, '2016-2021 TRI'!$F:$L, 4, FALSE) -> 5900 HWY 225 EAST | D46: =VLOOKUP($A46, '2016-2021 TRI'!$F:$L, 5, FALSE) -> DEER PARK | E46: =VLOOKUP($A46, '2016-2021 TRI'!$F:$L, 6, FALSE) -> TX | F46: =VLOOKUP($A46, '2016-2021 TRI'!$F:$L, 7, FALSE) -> 77536 | G46: =VLOOKUP($A46, '2016-2021 TRI'!F:N, 9, FALSE) -> Manufacturing | H46: =VLOOKUP($A46, '2016-2021 TRI'!$F:$L, 2, FALSE) -> 324110 | I46: =IFERROR(VLOOKUP(H46, '2012 to 2017 NAICS'!C:D, 2, FALSE), VLOOKUP(H46, '2012 to 2017 NAICS'!A:B, 2, FALSE)) -> Petroleum Refineries | J46: =VLOOKUP(G46, 'OES Summary'!$A$2:$D$15, 3, FALSE) -> 350 | K46: =CONVERT(MEDIAN(IF('2016-2021 TRI'!F:F=$A46,'2016-2021 TRI'!P:P)), "lbm", "kg") -> 68 | L46: =CONVERT(_xlfn.MAXIFS('2016-2021 TRI'!P:P,'2016-2021 TRI'!F:F,A46), "lbm", "kg") -> 150 | M46: =CONVERT(MEDIAN(IF('2016-2021 TRI'!F:F=$A46,'2016-2021 TRI'!Q:Q)), "lbm", "kg") -> 5443 | N46: =CONVERT(_xlfn.MAXIFS('2016-2021 TRI'!Q:Q,'2016-2021 TRI'!F:F,A46), "lbm", "kg") -> 5443 | O46: 0.195 | P46: 0.428 | Q46: 15.552 | R46: 15.552
A47: 19706TXCDL2000W | B47: =VLOOKUP($A47, '2016-2021 TRI'!$F:$L, 3, FALSE) -> DELAWARE CITY REFINERY | C47: =VLOOKUP($A47, '2016-2021 TRI'!$F:$L, 4, FALSE) -> 4550 WRANGLE HILL RD | D47: =VLOOKUP($A47, '2016-2021 TRI'!$F:$L, 5, FALSE) -> DELAWARE CITY | E47: =VLOOKUP($A47, '2016-2021 TRI'!$F:$L, 6, FALSE) -> DE | F47: =VLOOKUP($A47, '2016-2021 TRI'!$F:$L, 7, FALSE) -> 19706 | G47: =VLOOKUP($A47, '2016-2021 TRI'!F:N, 9, FALSE) -> Processing as a Reactant | H47: =VLOOKUP($A47, '2016-2021 TRI'!$F:$L, 2, FALSE) -> 324110 | I47: =IFERROR(VLOOKUP(H47, '2012 to 2017 NAICS'!C:D, 2, FALSE), VLOOKUP(H47, '2012 to 2017 NAICS'!A:B, 2, FALSE)) -> Petroleum Refineries | J47: =VLOOKUP(G47, 'OES Summary'!$A$2:$D$15, 3, FALSE) -> 350 | K47: =CONVERT(MEDIAN(IF('2016-2021 TRI'!F:F=$A47,'2016-2021 TRI'!P:P)), "lbm", "kg") -> 76 | L47: =CONVERT(_xlfn.MAXIFS('2016-2021 TRI'!P:P,'2016-2021 TRI'!F:F,A47), "lbm", "kg") -> 89 | M47: =CONVERT(MEDIAN(IF('2016-2021 TRI'!F:F=$A47,'2016-2021 TRI'!Q:Q)), "lbm", "kg") -> 36 | N47: =CONVERT(_xlfn.MAXIFS('2016-2021 TRI'!Q:Q,'2016-2021 TRI'!F:F,A47), "lbm", "kg") -> 41 | O47: 0.218 | P47: 0.255 | Q47: 0.103 | R47: 0.117
A48: 75702LGLRL1702E | B48: =VLOOKUP($A48, '2016-2021 TRI'!$F:$L, 3, FALSE) -> DELEK TYLER REFINERY | C48: =VLOOKUP($A48, '2016-2021 TRI'!$F:$L, 4, FALSE) -> 1702 E COMMERCE ST | D48: =VLOOKUP($A48, '2016-2021 TRI'!$F:$L, 5, FALSE) -> TYLER | E48: =VLOOKUP($A48, '2016-2021 TRI'!$F:$L, 6, FALSE) -> TX | F48: =VLOOKUP($A48, '2016-2021 TRI'!$F:$L, 7, FALSE) -> 75702 | G48: =VLOOKUP($A48, '2016-2021 TRI'!F:N, 9, FALSE) -> Processing as a reactant | H48: =VLOOKUP($A48, '2016-2021 TRI'!$F:$L, 2, FALSE) -> 324110 | I48: =IFERROR(VLOOKUP(H48, '2012 to 2017 NAICS'!C:D, 2, FALSE), VLOOKUP(H48, '2012 to 2017 NAICS'!A:B, 2, FALSE)) -> Petroleum Refineries | J48: =VLOOKUP(G48, 'OES Summary'!$A$2:$D$15, 3, FALSE) -> 350 | K48: =CONVERT(MEDIAN(IF('2016-2021 TRI'!F:F=$A48,'2016-2021 TRI'!P:P)), "lbm", "kg") -> 15 | L48: =CONVERT(_xlfn.MAXIFS('2016-2021 TRI'!P:P,'2016-2021 TRI'!F:F,A48), "lbm", "kg") -> 19 | M48: =CONVERT(MEDIAN(IF('2016-2021 TRI'!F:F=$A48,'2016-2021 TRI'!Q:Q)), "lbm", "kg") -> 442 | N48: =CONVERT(_xlfn.MAXIFS('2016-2021 TRI'!Q:Q,'2016-2021 TRI'!F:F,A48), "lbm", "kg") -> 498 | O48: 0.041 | P48: 0.054 | Q48: 1.263 | R48: 1.424
A49: 7006WDNKPR56HIG | B49: =VLOOKUP($A49, '2016-2021 TRI'!$F:$L, 3, FALSE) -> DENKA PERFORMANCE ELASTOMER LLC | C49: =VLOOKUP($A49, '2016-2021 TRI'!$F:$L, 4, FALSE) -> 560 HIGHWAY 44 | D49: =VLOOKUP($A49, '2016-2021 TRI'!$F:$L, 5, FALSE) -> LA PLACE | E49: =VLOOKUP($A49, '2016-2021 TRI'!$F:$L, 6, FALSE) -> LA | F49: =VLOOKUP($A49, '2016-2021 TRI'!$F:$L, 7, FALSE) -> 70068 | G49: =VLOOKUP($A49, '2016-2021 TRI'!F:N, 9, FALSE) -> Plastics and Rubber Compounding | H49: =VLOOKUP($A49, '2016-2021 TRI'!$F:$L, 2, FALSE) -> 325212 | I49: =IFERROR(VLOOKUP(H49, '2012 to 2017 NAICS'!C:D, 2, FALSE), VLOOKUP(H49, '2012 to 2017 NAICS'!A:B, 2, FALSE)) -> Synthetic Rubber Manufacturing | J49: =VLOOKUP(G49, 'OES Summary'!$A$2:$D$15, 3, FALSE) -> 300 | K49: =CONVERT(MEDIAN(IF('2016-2021 TRI'!F:F=$A49,'2016-2021 TRI'!P:P)), "lbm", "kg") -> 317 | L49: =CONVERT(_xlfn.MAXIFS('2016-2021 TRI'!P:P,'2016-2021 TRI'!F:F,A49), "lbm", "kg") -> 412 | M49: =CONVERT(MEDIAN(IF('2016-2021 TRI'!F:F=$A49,'2016-2021 TRI'!Q:Q)), "lbm", "kg") -> 749 | N49: =CONVERT(_xlfn.MAXIFS('2016-2021 TRI'!Q:Q,'2016-2021 TRI'!F:F,A49), "lbm", "kg") -> 1499 | O49: 1.056 | P49: 1.374 | Q49: 2.497 | R49: 4.997
A50: 7007WDMNDG14891 | B50: =VLOOKUP($A50, '2016-2021 TRI'!$F:$L, 3, FALSE) -> DIAMOND GREEN DIESEL LLC | C50: =VLOOKUP($A50, '2016-2021 TRI'!$F:$L, 4, FALSE) -> 14891 AIRLINE DR | D50: =VLOOKUP($A50, '2016-2021 TRI'!$F:$L, 5, FALSE) -> NORCO | E50: =VLOOKUP($A50, '2016-2021 TRI'!$F:$L, 6, FALSE) -> LA | F50: =VLOOKUP($A50, '2016-2021 TRI'!$F:$L, 7, FALSE) -> 70079 | G50: =VLOOKUP($A50, '2016-2021 TRI'!F:N, 9, FALSE) -> Processing - incorporation into formulation, mixture, or reaction product | H50: =VLOOKUP($A50, '2016-2021 TRI'!$F:$L, 2, FALSE) -> 325199 | I50: =IFERROR(VLOOKUP(H50, '2012 to 2017 NAICS'!C:D, 2, FALSE), VLOOKUP(H50, '2012 to 2017 NAICS'!A:B, 2, FALSE)) -> All Other Basic Organic Chemical Manufacturing | J50: =VLOOKUP(G50, 'OES Summary'!$A$2:$D$15, 3, FALSE) -> 250 | K50: =CONVERT(MEDIAN(IF('2016-2021 TRI'!F:F=$A50,'2016-2021 TRI'!P:P)), "lbm", "kg") -> 0 | L50: =CONVERT(_xlfn.MAXIFS('2016-2021 TRI'!P:P,'2016-2021 TRI'!F:F,A50), "lbm", "kg") -> 0 | M50: =CONVERT(MEDIAN(IF('2016-2021 TRI'!F:F=$A50,'2016-2021 TRI'!Q:Q)), "lbm", "kg") -> 0 | N50: =CONVERT(_xlfn.MAXIFS('2016-2021 TRI'!Q:Q,'2016-2021 TRI'!F:F,A50), "lbm", "kg") -> 2 | O50: 0.000 | P50: 0.000 | Q50: 0.000 | R50: 0.007
A51: 79086DMNDSSTARR | B51: =VLOOKUP($A51, '2016-2021 TRI'!$F:$L, 3, FALSE) -> DIAMOND SHAMROCK REFINING CO LP | C51: =VLOOKUP($A51, '2016-2021 TRI'!$F:$L, 4, FALSE) -> 6701 FM 119 | D51: =VLOOKUP($A51, '2016-2021 TRI'!$F:$L, 5, FALSE) -> SUNRAY | E51: =VLOOKUP($A51, '2016-2021 TRI'!$F:$L, 6, FALSE) -> TX | F51: =VLOOKUP($A51, '2016-2021 TRI'!$F:$L, 7, FALSE) -> 79086 | G51: =VLOOKUP($A51, '2016-2021 TRI'!F:N, 9, FALSE) -> Processing - incorporation into formulation, mixture, or reaction product | H51: =VLOOKUP($A51, '2016-2021 TRI'!$F:$L, 2, FALSE) -> 324110 | I51: =IFERROR(VLOOKUP(H51, '2012 to 2017 NAICS'!C:D, 2, FALSE), VLOOKUP(H51, '2012 to 2017 NAICS'!A:B, 2, FALSE)) -> Petroleum Refineries | J51: =VLOOKUP(G51, 'OES Summary'!$A$2:$D$15, 3, FALSE) -> 250 | K51: =CONVERT(MEDIAN(IF('2016-2021 TRI'!F:F=$A51,'2016-2021 TRI'!P:P)), "lbm", "kg") -> 113 | L51: =CONVERT(_xlfn.MAXIFS('2016-2021 TRI'!P:P,'2016-2021 TRI'!F:F,A51), "lbm", "kg") -> 113 | M51: =CONVERT(MEDIAN(IF('2016-2021 TRI'!F:F=$A51,'2016-2021 TRI'!Q:Q)), "lbm", "kg") -> 113 | N51: =CONVERT(_xlfn.MAXIFS('2016-2021 TRI'!Q:Q,'2016-2021 TRI'!F:F,A51), "lbm", "kg") -> 113 | O51: 0.454 | P51: 0.454 | Q51: 0.454 | R51: 0.454
A52: 77507DXCHM10701 | B52: =VLOOKUP($A52, '2016-2021 TRI'!$F:$L, 3, FALSE) -> DIXIE CHEMICAL CO INC | C52: =VLOOKUP($A52, '2016-2021 TRI'!$F:$L, 4, FALSE) -> 10601 BAY AREA BLVD | D52: =VLOOKUP($A52, '2016-2021 TRI'!$F:$L, 5, FALSE) -> PASADENA | E52: =VLOOKUP($A52, '2016-2021 TRI'!$F:$L, 6, FALSE) -> TX | F52: =VLOOKUP($A52, '2016-2021 TRI'!$F:$L, 7, FALSE) -> 77507 | G52: =VLOOKUP($A52, '2016-2021 TRI'!F:N, 9, FALSE) -> Processing as a reactant | H52: =VLOOKUP($A52, '2016-2021 TRI'!$F:$L, 2, FALSE) -> 325199 | I52: =IFERROR(VLOOKUP(H52, '2012 to 2017 NAICS'!C:D, 2, FALSE), VLOOKUP(H52, '2012 to 2017 NAICS'!A:B, 2, FALSE)) -> All Other Basic Organic Chemical Manufacturing | J52: =VLOOKUP(G52, 'OES Summary'!$A$2:$D$15, 3, FALSE) -> 350 | K52: =CONVERT(MEDIAN(IF('2016-2021 TRI'!F:F=$A52,'2016-2021 TRI'!P:P)), "lbm", "kg") -> 1128 | L52: =CONVERT(_xlfn.MAXIFS('2016-2021 TRI'!P:P,'2016-2021 TRI'!F:F,A52), "lbm", "kg") -> 5012 | M52: =CONVERT(MEDIAN(IF('2016-2021 TRI'!F:F=$A52,'2016-2021 TRI'!Q:Q)), "lbm", "kg") -> 1463 | N52: =CONVERT(_xlfn.MAXIFS('2016-2021 TRI'!Q:Q,'2016-2021 TRI'!F:F,A52), "lbm", "kg") -> 2359 | O52: 3.223 | P52: 14.321 | Q52: 4.180 | R52: 6.739
A53: 77541THDWCBUILD | B53: =VLOOKUP($A53, '2016-2021 TRI'!$F:$L, 3, FALSE) -> DOW CHEMICAL CO FREEPORT FACILITY | C53: =VLOOKUP($A53, '2016-2021 TRI'!$F:$L, 4, FALSE) -> 2301 N BRAZOSPORT BLVD | D53: =VLOOKUP($A53, '2016-2021 TRI'!$F:$L, 5, FALSE) -> FREEPORT | E53: =VLOOKUP($A53, '2016-2021 TRI'!$F:$L, 6, FALSE) -> TX | F53: =VLOOKUP($A53, '2016-2021 TRI'!$F:$L, 7, FALSE) -> 775413257 | G53: =VLOOKUP($A53, '2016-2021 TRI'!F:N, 9, FALSE) -> Processing as a reactant | H53: =VLOOKUP($A53, '2016-2021 TRI'!$F:$L, 2, FALSE) -> 325199 | I53: =IFERROR(VLOOKUP(H53, '2012 to 2017 NAICS'!C:D, 2, FALSE), VLOOKUP(H53, '2012 to 2017 NAICS'!A:B, 2, FALSE)) -> All Other Basic Organic Chemical Manufacturing | J53: =VLOOKUP(G53, 'OES Summary'!$A$2:$D$15, 3, FALSE) -> 350 | K53: =CONVERT(MEDIAN(IF('2016-2021 TRI'!F:F=$A53,'2016-2021 TRI'!P:P)), "lbm", "kg") -> 400 | L53: =CONVERT(_xlfn.MAXIFS('2016-2021 TRI'!P:P,'2016-2021 TRI'!F:F,A53), "lbm", "kg") -> 486 | M53: =CONVERT(MEDIAN(IF('2016-2021 TRI'!F:F=$A53,'2016-2021 TRI'!Q:Q)), "lbm", "kg") -> 3997 | N53: =CONVERT(_xlfn.MAXIFS('2016-2021 TRI'!Q:Q,'2016-2021 TRI'!F:F,A53), "lbm", "kg") -> 5091 | O53: 1.142 | P53: 1.388 | Q53: 11.419 | R53: 14.545
A54: 35217BCCKDRAILR | B54: =VLOOKUP($A54, '2016-2021 TRI'!$F:$L, 3, FALSE) -> DRUMMOND CO INC ABC COKE DIV | C54: =VLOOKUP($A54, '2016-2021 TRI'!$F:$L, 4, FALSE) -> ONE RAILROAD AVE | D54: =VLOOKUP($A54, '2016-2021 TRI'!$F:$L, 5, FALSE) -> TARRANT | E54: =VLOOKUP($A54, '2016-2021 TRI'!$F:$L, 6, FALSE) -> AL | F54: =VLOOKUP($A54, '2016-2021 TRI'!$F:$L, 7, FALSE) -> 35217 | G54: =VLOOKUP($A54, '2016-2021 TRI'!F:N, 9, FALSE) -> Processing - incorporation into formulation, mixture, or reaction product | H54: =VLOOKUP($A54, '2016-2021 TRI'!$F:$L, 2, FALSE) -> 324199 | I54: =IFERROR(VLOOKUP(H54, '2012 to 2017 NAICS'!C:D, 2, FALSE), VLOOKUP(H54, '2012 to 2017 NAICS'!A:B, 2, FALSE)) -> All Other Petroleum and Coal Products Manufacturing | J54: =VLOOKUP(G54, 'OES Summary'!$A$2:$D$15, 3, FALSE) -> 250 | K54: =CONVERT(MEDIAN(IF('2016-2021 TRI'!F:F=$A54,'2016-2021 TRI'!P:P)), "lbm", "kg") -> 20 | L54: =CONVERT(_xlfn.MAXIFS('2016-2021 TRI'!P:P,'2016-2021 TRI'!F:F,A54), "lbm", "kg") -> 21 | M54: =CONVERT(MEDIAN(IF('2016-2021 TRI'!F:F=$A54,'2016-2021 TRI'!Q:Q)), "lbm", "kg") -> 163 | N54: =CONVERT(_xlfn.MAXIFS('2016-2021 TRI'!Q:Q,'2016-2021 TRI'!F:F,A54), "lbm", "kg") -> 205 | O54: 0.082 | P54: 0.083 | Q54: 0.652 | R54: 0.820
A55: 7051WDHNBR818SU | B55: =VLOOKUP($A55, '2016-2021 TRI'!$F:$L, 3, FALSE) -> DUHON BROTHERS OIL CO INC | C55: =VLOOKUP($A55, '2016-2021 TRI'!$F:$L, 4, FALSE) -> 818 SOUTH HENRY STREET | D55: =VLOOKUP($A55, '2016-2021 TRI'!$F:$L, 5, FALSE) -> ABBEVILLE | E55: =VLOOKUP($A55, '2016-2021 TRI'!$F:$L, 6, FALSE) -> LA | F55: =VLOOKUP($A55, '2016-2021 TRI'!$F:$L, 7, FALSE) -> 70510 | G55: =VLOOKUP($A55, '2016-2021 TRI'!F:N, 9, FALSE) -> Repackaging | H55: =VLOOKUP($A55, '2016-2021 TRI'!$F:$L, 2, FALSE) -> 447190 | I55: =IFERROR(VLOOKUP(H55, '2012 to 2017 NAICS'!C:D, 2, FALSE), VLOOKUP(H55, '2012 to 2017 NAICS'!A:B, 2, FALSE)) -> Other Gasoline Stations | J55: =VLOOKUP(G55, 'OES Summary'!$A$2:$D$15, 3, FALSE) -> 350 | K55: =CONVERT(MEDIAN(IF('2016-2021 TRI'!F:F=$A55,'2016-2021 TRI'!P:P)), "lbm", "kg") -> 12 | L55: =CONVERT(_xlfn.MAXIFS('2016-2021 TRI'!P:P,'2016-2021 TRI'!F:F,A55), "lbm", "kg") -> 14 | M55: =CONVERT(MEDIAN(IF('2016-2021 TRI'!F:F=$A55,'2016-2021 TRI'!Q:Q)), "lbm", "kg") -> 45 | N55: =CONVERT(_xlfn.MAXIFS('2016-2021 TRI'!Q:Q,'2016-2021 TRI'!F:F,A55), "lbm", "kg") -> 50 | O55: 0.034 | P55: 0.039 | Q55: 0.130 | R55: 0.143
A56: 70669PPGNDCOLUM | B56: =VLOOKUP($A56, '2016-2021 TRI'!$F:$L, 3, FALSE) -> EAGLE US 2 LLC | C56: =VLOOKUP($A56, '2016-2021 TRI'!$F:$L, 4, FALSE) -> 1300 PPG DR | D56: =VLOOKUP($A56, '2016-2021 TRI'!$F:$L, 5, FALSE) -> WESTLAKE | E56: =VLOOKUP($A56, '2016-2021 TRI'!$F:$L, 6, FALSE) -> LA | F56: =VLOOKUP($A56, '2016-2021 TRI'!$F:$L, 7, FALSE) -> 70669 | G56: =VLOOKUP($A56, '2016-2021 TRI'!F:N, 9, FALSE) -> Processing - incorporation into formulation, mixture, or reaction product | H56: =VLOOKUP($A56, '2016-2021 TRI'!$F:$L, 2, FALSE) -> 325180 | I56: =IFERROR(VLOOKUP(H56, '2012 to 2017 NAICS'!C:D, 2, FALSE), VLOOKUP(H56, '2012 to 2017 NAICS'!A:B, 2, FALSE)) -> Other Basic Inorganic Chemical Manufacturing | J56: =VLOOKUP(G56, 'OES Summary'!$A$2:$D$15, 3, FALSE) -> 250 | K56: =CONVERT(MEDIAN(IF('2016-2021 TRI'!F:F=$A56,'2016-2021 TRI'!P:P)), "lbm", "kg") -> 227 | L56: =CONVERT(_xlfn.MAXIFS('2016-2021 TRI'!P:P,'2016-2021 TRI'!F:F,A56), "lbm", "kg") -> 227 | M56: =CONVERT(MEDIAN(IF('2016-2021 TRI'!F:F=$A56,'2016-2021 TRI'!Q:Q)), "lbm", "kg") -> 227 | N56: =CONVERT(_xlfn.MAXIFS('2016-2021 TRI'!Q:Q,'2016-2021 TRI'!F:F,A56), "lbm", "kg") -> 227 | O56: 0.907 | P56: 0.907 | Q56: 0.907 | R56: 0.907
A57: 37662TNNSSEASTM | B57: =VLOOKUP($A57, '2016-2021 TRI'!$F:$L, 3, FALSE) -> EASTMAN CHEMICAL CO TENNESSEE OPERATIONS | C57: =VLOOKUP($A57, '2016-2021 TRI'!$F:$L, 4, FALSE) -> 100 EASTMAN RD | D57: =VLOOKUP($A57, '2016-2021 TRI'!$F:$L, 5, FALSE) -> KINGSPORT | E57: =VLOOKUP($A57, '2016-2021 TRI'!$F:$L, 6, FALSE) -> TN | F57: =VLOOKUP($A57, '2016-2021 TRI'!$F:$L, 7, FALSE) -> 37660 | G57: =VLOOKUP($A57, '2016-2021 TRI'!F:N, 9, FALSE) -> Plastics and Rubber Compounding | H57: =VLOOKUP($A57, '2016-2021 TRI'!$F:$L, 2, FALSE) -> 325211 | I57: =IFERROR(VLOOKUP(H57, '2012 to 2017 NAICS'!C:D, 2, FALSE), VLOOKUP(H57, '2012 to 2017 NAICS'!A:B, 2, FALSE)) -> Plastics Material and Resin Manufacturing | J57: =VLOOKUP(G57, 'OES Summary'!$A$2:$D$15, 3, FALSE) -> 300 | K57: =CONVERT(MEDIAN(IF('2016-2021 TRI'!F:F=$A57,'2016-2021 TRI'!P:P)), "lbm", "kg") -> 208 | L57: =CONVERT(_xlfn.MAXIFS('2016-2021 TRI'!P:P,'2016-2021 TRI'!F:F,A57), "lbm", "kg") -> 876 | M57: =CONVERT(MEDIAN(IF('2016-2021 TRI'!F:F=$A57,'2016-2021 TRI'!Q:Q)), "lbm", "kg") -> 664 | N57: =CONVERT(_xlfn.MAXIFS('2016-2021 TRI'!Q:Q,'2016-2021 TRI'!F:F,A57), "lbm", "kg") -> 847 | O57: 0.692 | P57: 2.921 | Q57: 2.212 | R57: 2.824
A58: 75607TXSSTOFFHI | B58: =VLOOKUP($A58, '2016-2021 TRI'!$F:$L, 3, FALSE) -> EASTMAN CHEMICAL CO TEXAS OPERATIONS | C58: =VLOOKUP($A58, '2016-2021 TRI'!$F:$L, 4, FALSE) -> 300 KODAK BLVD | D58: =VLOOKUP($A58, '2016-2021 TRI'!$F:$L, 5, FALSE) -> LONGVIEW | E58: =VLOOKUP($A58, '2016-2021 TRI'!$F:$L, 6, FALSE) -> TX | F58: =VLOOKUP($A58, '2016-2021 TRI'!$F:$L, 7, FALSE) -> 75602 | G58: =VLOOKUP($A58, '2016-2021 TRI'!F:N, 9, FALSE) -> Manufacturing | H58: =VLOOKUP($A58, '2016-2021 TRI'!$F:$L, 2, FALSE) -> 325199 | I58: =IFERROR(VLOOKUP(H58, '2012 to 2017 NAICS'!C:D, 2, FALSE), VLOOKUP(H58, '2012 to 2017 NAICS'!A:B, 2, FALSE)) -> All Other Basic Organic Chemical Manufacturing | J58: =VLOOKUP(G58, 'OES Summary'!$A$2:$D$15, 3, FALSE) -> 350 | K58: =CONVERT(MEDIAN(IF('2016-2021 TRI'!F:F=$A58,'2016-2021 TRI'!P:P)), "lbm", "kg") -> 1150 | L58: =CONVERT(_xlfn.MAXIFS('2016-2021 TRI'!P:P,'2016-2021 TRI'!F:F,A58), "lbm", "kg") -> 1459 | M58: =CONVERT(MEDIAN(IF('2016-2021 TRI'!F:F=$A58,'2016-2021 TRI'!Q:Q)), "lbm", "kg") -> 7197 | N58: =CONVERT(_xlfn.MAXIFS('2016-2021 TRI'!Q:Q,'2016-2021 TRI'!F:F,A58), "lbm", "kg") -> 12288 | O58: 3.285 | P58: 4.169 | Q58: 20.562 | R58: 35.108
A59: 77580NTRPR10207 | B59: =VLOOKUP($A59, '2016-2021 TRI'!$F:$L, 3, FALSE) -> ENTERPRISE PRODUCTS OPERATING LLC | C59: =VLOOKUP($A59, '2016-2021 TRI'!$F:$L, 4, FALSE) -> 10207 FM 1942 | D59: =VLOOKUP($A59, '2016-2021 TRI'!$F:$L, 5, FALSE) -> MONT BELVIEU | E59: =VLOOKUP($A59, '2016-2021 TRI'!$F:$L, 6, FALSE) -> TX | F59: =VLOOKUP($A59, '2016-2021 TRI'!$F:$L, 7, FALSE) -> 77580 | G59: =VLOOKUP($A59, '2016-2021 TRI'!F:N, 9, FALSE) -> Processing - incorporation into formulation, mixture, or reaction product | H59: =VLOOKUP($A59, '2016-2021 TRI'!$F:$L, 2, FALSE) -> 211112 | I59: =IFERROR(VLOOKUP(H59, '2012 to 2017 NAICS'!C:D, 2, FALSE), VLOOKUP(H59, '2012 to 2017 NAICS'!A:B, 2, FALSE)) -> Natural Gas Liquid Extraction | J59: =VLOOKUP(G59, 'OES Summary'!$A$2:$D$15, 3, FALSE) -> 250 | K59: =CONVERT(MEDIAN(IF('2016-2021 TRI'!F:F=$A59,'2016-2021 TRI'!P:P)), "lbm", "kg") -> 0 | L59: =CONVERT(_xlfn.MAXIFS('2016-2021 TRI'!P:P,'2016-2021 TRI'!F:F,A59), "lbm", "kg") -> 0 | M59: =CONVERT(MEDIAN(IF('2016-2021 TRI'!F:F=$A59,'2016-2021 TRI'!Q:Q)), "lbm", "kg") -> 339 | N59: =CONVERT(_xlfn.MAXIFS('2016-2021 TRI'!Q:Q,'2016-2021 TRI'!F:F,A59), "lbm", "kg") -> 339 | O59: 0.000 | P59: 0.000 | Q59: 1.355 | R59: 1.355
A60: 52732QNTMCUSHWY | B60: =VLOOKUP($A60, '2016-2021 TRI'!$F:$L, 3, FALSE) -> EQUISTAR CHEMICALS CLINTON PLANT | C60: =VLOOKUP($A60, '2016-2021 TRI'!$F:$L, 4, FALSE) -> 3400 ANAMOSA RD HWY 30 W | D60: =VLOOKUP($A60, '2016-2021 TRI'!$F:$L, 5, FALSE) -> CLINTON | E60: =VLOOKUP($A60, '2016-2021 TRI'!$F:$L, 6, FALSE) -> IA | F60: =VLOOKUP($A60, '2016-2021 TRI'!$F:$L, 7, FALSE) -> 52732 | G60: =VLOOKUP($A60, '2016-2021 TRI'!F:N, 9, FALSE) -> Plastics and Rubber Compounding | H60: =VLOOKUP($A60, '2016-2021 TRI'!$F:$L, 2, FALSE) -> 325199 | I60: =IFERROR(VLOOKUP(H60, '2012 to 2017 NAICS'!C:D, 2, FALSE), VLOOKUP(H60, '2012 to 2017 NAICS'!A:B, 2, FALSE)) -> All Other Basic Organic Chemical Manufacturing | J60: =VLOOKUP(G60, 'OES Summary'!$A$2:$D$15, 3, FALSE) -> 300 | K60: =CONVERT(MEDIAN(IF('2016-2021 TRI'!F:F=$A60,'2016-2021 TRI'!P:P)), "lbm", "kg") -> 5012 | L60: =CONVERT(_xlfn.MAXIFS('2016-2021 TRI'!P:P,'2016-2021 TRI'!F:F,A60), "lbm", "kg") -> 5589 | M60: =CONVERT(MEDIAN(IF('2016-2021 TRI'!F:F=$A60,'2016-2021 TRI'!Q:Q)), "lbm", "kg") -> 1785 | N60: =CONVERT(_xlfn.MAXIFS('2016-2021 TRI'!Q:Q,'2016-2021 TRI'!F:F,A60), "lbm", "kg") -> 3026 | O60: 16.705 | P60: 18.631 | Q60: 5.950 | R60: 10.088
A61: 77571QNTMC1515M | B61: =VLOOKUP($A61, '2016-2021 TRI'!$F:$L, 3, FALSE) -> EQUISTAR CHEMICALS LP | C61: =VLOOKUP($A61, '2016-2021 TRI'!$F:$L, 4, FALSE) -> 1515 MILLER CUT OFF RD | D61: =VLOOKUP($A61, '2016-2021 TRI'!$F:$L, 5, FALSE) -> LA PORTE | E61: =VLOOKUP($A61, '2016-2021 TRI'!$F:$L, 6, FALSE) -> TX | F61: =VLOOKUP($A61, '2016-2021 TRI'!$F:$L, 7, FALSE) -> 77571 | G61: =VLOOKUP($A61, '2016-2021 TRI'!F:N, 9, FALSE) -> Plastics and Rubber Compounding | H61: =VLOOKUP($A61, '2016-2021 TRI'!$F:$L, 2, FALSE) -> 325199 | I61: =IFERROR(VLOOKUP(H61, '2012 to 2017 NAICS'!C:D, 2, FALSE), VLOOKUP(H61, '2012 to 2017 NAICS'!A:B, 2, FALSE)) -> All Other Basic Organic Chemical Manufacturing | J61: =VLOOKUP(G61, 'OES Summary'!$A$2:$D$15, 3, FALSE) -> 300 | K61: =CONVERT(MEDIAN(IF('2016-2021 TRI'!F:F=$A61,'2016-2021 TRI'!P:P)), "lbm", "kg") -> 522 | L61: =CONVERT(_xlfn.MAXIFS('2016-2021 TRI'!P:P,'2016-2021 TRI'!F:F,A61), "lbm", "kg") -> 635 | M61: =CONVERT(MEDIAN(IF('2016-2021 TRI'!F:F=$A61,'2016-2021 TRI'!Q:Q)), "lbm", "kg") -> 1406 | N61: =CONVERT(_xlfn.MAXIFS('2016-2021 TRI'!Q:Q,'2016-2021 TRI'!F:F,A61), "lbm", "kg") -> 2041 | O61: 1.739 | P61: 2.117 | Q61: 4.687 | R61: 6.804
A62: 60450QNTMC8805N | B62: =VLOOKUP($A62, '2016-2021 TRI'!$F:$L, 3, FALSE) -> EQUISTAR CHEMICALS LP | C62: =VLOOKUP($A62, '2016-2021 TRI'!$F:$L, 4, FALSE) -> 8805 NORTH TABLER RD | D62: =VLOOKUP($A62, '2016-2021 TRI'!$F:$L, 5, FALSE) -> MORRIS | E62: =VLOOKUP($A62, '2016-2021 TRI'!$F:$L, 6, FALSE) -> IL | F62: =VLOOKUP($A62, '2016-2021 TRI'!$F:$L, 7, FALSE) -> 60450 | G62: =VLOOKUP($A62, '2016-2021 TRI'!F:N, 9, FALSE) -> Plastics and Rubber Compounding | H62: =VLOOKUP($A62, '2016-2021 TRI'!$F:$L, 2, FALSE) -> 325110 | I62: =IFERROR(VLOOKUP(H62, '2012 to 2017 NAICS'!C:D, 2, FALSE), VLOOKUP(H62, '2012 to 2017 NAICS'!A:B, 2, FALSE)) -> Petrochemical Manufacturing | J62: =VLOOKUP(G62, 'OES Summary'!$A$2:$D$15, 3, FALSE) -> 300 | K62: =CONVERT(MEDIAN(IF('2016-2021 TRI'!F:F=$A62,'2016-2021 TRI'!P:P)), "lbm", "kg") -> 120 | L62: =CONVERT(_xlfn.MAXIFS('2016-2021 TRI'!P:P,'2016-2021 TRI'!F:F,A62), "lbm", "kg") -> 188 | M62: =CONVERT(MEDIAN(IF('2016-2021 TRI'!F:F=$A62,'2016-2021 TRI'!Q:Q)), "lbm", "kg") -> 349 | N62: =CONVERT(_xlfn.MAXIFS('2016-2021 TRI'!Q:Q,'2016-2021 TRI'!F:F,A62), "lbm", "kg") -> 636 | O62: 0.398 | P62: 0.626 | Q62: 1.163 | R62: 2.120
A63: 78410CCPCC1501M | B63: =VLOOKUP($A63, '2016-2021 TRI'!$F:$L, 3, FALSE) -> EQUISTAR CHEMICALS LP | C63: =VLOOKUP($A63, '2016-2021 TRI'!$F:$L, 4, FALSE) -> 1501 MCKINZIE RD | D63: =VLOOKUP($A63, '2016-2021 TRI'!$F:$L, 5, FALSE) -> CORPUS CHRISTI | E63: =VLOOKUP($A63, '2016-2021 TRI'!$F:$L, 6, FALSE) -> TX | F63: =VLOOKUP($A63, '2016-2021 TRI'!$F:$L, 7, FALSE) -> 78410 | G63: =VLOOKUP($A63, '2016-2021 TRI'!F:N, 9, FALSE) -> Plastics and Rubber Compounding | H63: =VLOOKUP($A63, '2016-2021 TRI'!$F:$L, 2, FALSE) -> 325110 | I63: =IFERROR(VLOOKUP(H63, '2012 to 2017 NAICS'!C:D, 2, FALSE), VLOOKUP(H63, '2012 to 2017 NAICS'!A:B, 2, FALSE)) -> Petrochemical Manufacturing | J63: =VLOOKUP(G63, 'OES Summary'!$A$2:$D$15, 3, FALSE) -> 300 | K63: =CONVERT(MEDIAN(IF('2016-2021 TRI'!F:F=$A63,'2016-2021 TRI'!P:P)), "lbm", "kg") -> 2747 | L63: =CONVERT(_xlfn.MAXIFS('2016-2021 TRI'!P:P,'2016-2021 TRI'!F:F,A63), "lbm", "kg") -> 3004 | M63: =CONVERT(MEDIAN(IF('2016-2021 TRI'!F:F=$A63,'2016-2021 TRI'!Q:Q)), "lbm", "kg") -> 1658 | N63: =CONVERT(_xlfn.MAXIFS('2016-2021 TRI'!Q:Q,'2016-2021 TRI'!F:F,A63), "lbm", "kg") -> 34665 | O63: 9.156 | P63: 10.012 | Q63: 5.525 | R63: 115.551
A64: 26050RGNWSSTATE | B64: =VLOOKUP($A64, '2016-2021 TRI'!$F:$L, 3, FALSE) -> ERGON WEST VIRGINIA INC | C64: =VLOOKUP($A64, '2016-2021 TRI'!$F:$L, 4, FALSE) -> 9995 OHIO RIVER BLVD | D64: =VLOOKUP($A64, '2016-2021 TRI'!$F:$L, 5, FALSE) -> NEWELL | E64: =VLOOKUP($A64, '2016-2021 TRI'!$F:$L, 6, FALSE) -> WV | F64: =VLOOKUP($A64, '2016-2021 TRI'!$F:$L, 7, FALSE) -> 26050 | G64: =VLOOKUP($A64, '2016-2021 TRI'!F:N, 9, FALSE) -> Processing - incorporation into formulation, mixture, or reaction product | H64: =VLOOKUP($A64, '2016-2021 TRI'!$F:$L, 2, FALSE) -> 324110 | I64: =IFERROR(VLOOKUP(H64, '2012 to 2017 NAICS'!C:D, 2, FALSE), VLOOKUP(H64, '2012 to 2017 NAICS'!A:B, 2, FALSE)) -> Petroleum Refineries | J64: =VLOOKUP(G64, 'OES Summary'!$A$2:$D$15, 3, FALSE) -> 250 | K64: =CONVERT(MEDIAN(IF('2016-2021 TRI'!F:F=$A64,'2016-2021 TRI'!P:P)), "lbm", "kg") -> 0 | L64: =CONVERT(_xlfn.MAXIFS('2016-2021 TRI'!P:P,'2016-2021 TRI'!F:F,A64), "lbm", "kg") -> 0 | M64: =CONVERT(MEDIAN(IF('2016-2021 TRI'!F:F=$A64,'2016-2021 TRI'!Q:Q)), "lbm", "kg") -> 0 | N64: =CONVERT(_xlfn.MAXIFS('2016-2021 TRI'!Q:Q,'2016-2021 TRI'!F:F,A64), "lbm", "kg") -> 0 | O64: 0.000 | P64: 0.000 | Q64: 0.000 | R64: 0.000
A65: 70767XXNPR2230H | B65: =VLOOKUP($A65, '2016-2021 TRI'!$F:$L, 3, FALSE) -> EXXONMOBIL ANCHORAGE TANK FARM | C65: =VLOOKUP($A65, '2016-2021 TRI'!$F:$L, 4, FALSE) -> 1420 LAFITON LN | D65: =VLOOKUP($A65, '2016-2021 TRI'!$F:$L, 5, FALSE) -> PORT ALLEN | E65: =VLOOKUP($A65, '2016-2021 TRI'!$F:$L, 6, FALSE) -> LA | F65: =VLOOKUP($A65, '2016-2021 TRI'!$F:$L, 7, FALSE) -> 70767 | G65: =VLOOKUP($A65, '2016-2021 TRI'!F:N, 9, FALSE) -> Repackaging | H65: =VLOOKUP($A65, '2016-2021 TRI'!$F:$L, 2, FALSE) -> 424690 | I65: =IFERROR(VLOOKUP(H65, '2012 to 2017 NAICS'!C:D, 2, FALSE), VLOOKUP(H65, '2012 to 2017 NAICS'!A:B, 2, FALSE)) -> Other Chemical and Allied Products Merchant Wholesalers | J65: =VLOOKUP(G65, 'OES Summary'!$A$2:$D$15, 3, FALSE) -> 350 | K65: =CONVERT(MEDIAN(IF('2016-2021 TRI'!F:F=$A65,'2016-2021 TRI'!P:P)), "lbm", "kg") -> 2 | L65: =CONVERT(_xlfn.MAXIFS('2016-2021 TRI'!P:P,'2016-2021 TRI'!F:F,A65), "lbm", "kg") -> 113 | M65: =CONVERT(MEDIAN(IF('2016-2021 TRI'!F:F=$A65,'2016-2021 TRI'!Q:Q)), "lbm", "kg") -> 0 | N65: =CONVERT(_xlfn.MAXIFS('2016-2021 TRI'!Q:Q,'2016-2021 TRI'!F:F,A65), "lbm", "kg") -> 826 | O65: 0.006 | P65: 0.324 | Q65: 0.000 | R65: 2.359
A66: 70805XXNCH4999S | B66: =VLOOKUP($A66, '2016-2021 TRI'!$F:$L, 3, FALSE) -> EXXONMOBIL BATON ROUGE CHEMICAL PLANT (PART) | C66: =VLOOKUP($A66, '2016-2021 TRI'!$F:$L, 4, FALSE) -> 4999 SCENIC HWY | D66: =VLOOKUP($A66, '2016-2021 TRI'!$F:$L, 5, FALSE) -> BATON ROUGE | E66: =VLOOKUP($A66, '2016-2021 TRI'!$F:$L, 6, FALSE) -> LA | F66: =VLOOKUP($A66, '2016-2021 TRI'!$F:$L, 7, FALSE) -> 70805 | G66: =VLOOKUP($A66, '2016-2021 TRI'!F:N, 9, FALSE) -> Manufacturing | H66: =VLOOKUP($A66, '2016-2021 TRI'!$F:$L, 2, FALSE) -> 325110 | I66: =IFERROR(VLOOKUP(H66, '2012 to 2017 NAICS'!C:D, 2, FALSE), VLOOKUP(H66, '2012 to 2017 NAICS'!A:B, 2, FALSE)) -> Petrochemical Manufacturing | J66: =VLOOKUP(G66, 'OES Summary'!$A$2:$D$15, 3, FALSE) -> 350 | K66: =CONVERT(MEDIAN(IF('2016-2021 TRI'!F:F=$A66,'2016-2021 TRI'!P:P)), "lbm", "kg") -> 1950 | L66: =CONVERT(_xlfn.MAXIFS('2016-2021 TRI'!P:P,'2016-2021 TRI'!F:F,A66), "lbm", "kg") -> 4491 | M66: =CONVERT(MEDIAN(IF('2016-2021 TRI'!F:F=$A66,'2016-2021 TRI'!Q:Q)), "lbm", "kg") -> 1451 | N66: =CONVERT(_xlfn.MAXIFS('2016-2021 TRI'!Q:Q,'2016-2021 TRI'!F:F,A66), "lbm", "kg") -> 2903 | O66: =K66/$J66 -> 5.573 | P66: =L66/$J66 -> 12.830 | Q66: =M66/$J66 -> 4.147 | R66: =N66/$J66 -> 8.294
A67: 70821CPLYM5955S | B67: =VLOOKUP($A67, '2016-2021 TRI'!$F:$L, 3, FALSE) -> EXXONMOBIL BATON ROUGE CHEMICAL PLANT NORTH | C67: =VLOOKUP($A67, '2016-2021 TRI'!$F:$L, 4, FALSE) -> 1836 SHADA AVE | D67: =VLOOKUP($A67, '2016-2021 TRI'!$F:$L, 5, FALSE) -> BATON ROUGE | E67: =VLOOKUP($A67, '2016-2021 TRI'!$F:$L, 6, FALSE) -> LA | F67: =VLOOKUP($A67, '2016-2021 TRI'!$F:$L, 7, FALSE) -> 70805 | G67: =VLOOKUP($A67, '2016-2021 TRI'!F:N, 9, FALSE) -> Processing as a reactant | H67: =VLOOKUP($A67, '2016-2021 TRI'!$F:$L, 2, FALSE) -> 325212 | I67: =IFERROR(VLOOKUP(H67, '2012 to 2017 NAICS'!C:D, 2, FALSE), VLOOKUP(H67, '2012 to 2017 NAICS'!A:B, 2, FALSE)) -> Synthetic Rubber Manufacturing | J67: =VLOOKUP(G67, 'OES Summary'!$A$2:$D$15, 3, FALSE) -> 350 | K67: =CONVERT(MEDIAN(IF('2016-2021 TRI'!F:F=$A67,'2016-2021 TRI'!P:P)), "lbm", "kg") -> 1 | L67: =CONVERT(_xlfn.MAXIFS('2016-2021 TRI'!P:P,'2016-2021 TRI'!F:F,A67), "lbm", "kg") -> 403 | M67: =CONVERT(MEDIAN(IF('2016-2021 TRI'!F:F=$A67,'2016-2021 TRI'!Q:Q)), "lbm", "kg") -> 0 | N67: =CONVERT(_xlfn.MAXIFS('2016-2021 TRI'!Q:Q,'2016-2021 TRI'!F:F,A67), "lbm", "kg") -> 1262 | O67: 0.003 | P67: 1.152 | Q67: 0.000 | R67: 3.607
A68: 70805XXNBT4050S | B68: =VLOOKUP($A68, '2016-2021 TRI'!$F:$L, 3, FALSE) -> EXXONMOBIL BATON ROUGE REFINERY (PART) | C68: =VLOOKUP($A68, '2016-2021 TRI'!$F:$L, 4, FALSE) -> 4045 SCENIC HWY | D68: =VLOOKUP($A68, '2016-2021 TRI'!$F:$L, 5, FALSE) -> BATON ROUGE | E68: =VLOOKUP($A68, '2016-2021 TRI'!$F:$L, 6, FALSE) -> LA | F68: =VLOOKUP($A68, '2016-2021 TRI'!$F:$L, 7, FALSE) -> 70805 | G68: =VLOOKUP($A68, '2016-2021 TRI'!F:N, 9, FALSE) -> Manufacturing | H68: =VLOOKUP($A68, '2016-2021 TRI'!$F:$L, 2, FALSE) -> 324110 | I68: =IFERROR(VLOOKUP(H68, '2012 to 2017 NAICS'!C:D, 2, FALSE), VLOOKUP(H68, '2012 to 2017 NAICS'!A:B, 2, FALSE)) -> Petroleum Refineries | J68: =VLOOKUP(G68, 'OES Summary'!$A$2:$D$15, 3, FALSE) -> 350 | K68: =CONVERT(MEDIAN(IF('2016-2021 TRI'!F:F=$A68,'2016-2021 TRI'!P:P)), "lbm", "kg") -> 120 | L68: =CONVERT(_xlfn.MAXIFS('2016-2021 TRI'!P:P,'2016-2021 TRI'!F:F,A68), "lbm", "kg") -> 172 | M68: =CONVERT(MEDIAN(IF('2016-2021 TRI'!F:F=$A68,'2016-2021 TRI'!Q:Q)), "lbm", "kg") -> 36 | N68: =CONVERT(_xlfn.MAXIFS('2016-2021 TRI'!Q:Q,'2016-2021 TRI'!F:F,A68), "lbm", "kg") -> 91 | O68: 0.343 | P68: 0.492 | Q68: 0.103 | R68: 0.259
A69: 77522XXNCH5000B | B69: =VLOOKUP($A69, '2016-2021 TRI'!$F:$L, 3, FALSE) -> EXXONMOBIL BAYTOWN CHEMICAL PLANT (PART) | C69: =VLOOKUP($A69, '2016-2021 TRI'!$F:$L, 4, FALSE) -> 5000 BAYWAY DR | D69: =VLOOKUP($A69, '2016-2021 TRI'!$F:$L, 5, FALSE) -> BAYTOWN | E69: =VLOOKUP($A69, '2016-2021 TRI'!$F:$L, 6, FALSE) -> TX | F69: =VLOOKUP($A69, '2016-2021 TRI'!$F:$L, 7, FALSE) -> 77520 | G69: =VLOOKUP($A69, '2016-2021 TRI'!F:N, 9, FALSE) -> Processing as a reactant | H69: =VLOOKUP($A69, '2016-2021 TRI'!$F:$L, 2, FALSE) -> 325110 | I69: =IFERROR(VLOOKUP(H69, '2012 to 2017 NAICS'!C:D, 2, FALSE), VLOOKUP(H69, '2012 to 2017 NAICS'!A:B, 2, FALSE)) -> Petrochemical Manufacturing | J69: =VLOOKUP(G69, 'OES Summary'!$A$2:$D$15, 3, FALSE) -> 350 | K69: =CONVERT(MEDIAN(IF('2016-2021 TRI'!F:F=$A69,'2016-2021 TRI'!P:P)), "lbm", "kg") -> 399 | L69: =CONVERT(_xlfn.MAXIFS('2016-2021 TRI'!P:P,'2016-2021 TRI'!F:F,A69), "lbm", "kg") -> 422 | M69: =CONVERT(MEDIAN(IF('2016-2021 TRI'!F:F=$A69,'2016-2021 TRI'!Q:Q)), "lbm", "kg") -> 440 | N69: =CONVERT(_xlfn.MAXIFS('2016-2021 TRI'!Q:Q,'2016-2021 TRI'!F:F,A69), "lbm", "kg") -> 499 | O69: 1.140 | P69: 1.205 | Q69: 1.257 | R69: 1.426
A70: 59101XXNBL700EX | B70: =VLOOKUP($A70, '2016-2021 TRI'!$F:$L, 3, FALSE) -> EXXONMOBIL BILLINGS REFINERY | C70: =VLOOKUP($A70, '2016-2021 TRI'!$F:$L, 4, FALSE) -> 700 EXXONMOBIL RD | D70: =VLOOKUP($A70, '2016-2021 TRI'!$F:$L, 5, FALSE) -> BILLINGS | E70: =VLOOKUP($A70, '2016-2021 TRI'!$F:$L, 6, FALSE) -> MT | F70: =VLOOKUP($A70, '2016-2021 TRI'!$F:$L, 7, FALSE) -> 59101 | G70: =VLOOKUP($A70, '2016-2021 TRI'!F:N, 9, FALSE) -> Processing as a reactant | H70: =VLOOKUP($A70, '2016-2021 TRI'!$F:$L, 2, FALSE) -> 324110 | I70: =IFERROR(VLOOKUP(H70, '2012 to 2017 NAICS'!C:D, 2, FALSE), VLOOKUP(H70, '2012 to 2017 NAICS'!A:B, 2, FALSE)) -> Petroleum Refineries | J70: =VLOOKUP(G70, 'OES Summary'!$A$2:$D$15, 3, FALSE) -> 350 | K70: =CONVERT(MEDIAN(IF('2016-2021 TRI'!F:F=$A70,'2016-2021 TRI'!P:P)), "lbm", "kg") -> 215 | L70: =CONVERT(_xlfn.MAXIFS('2016-2021 TRI'!P:P,'2016-2021 TRI'!F:F,A70), "lbm", "kg") -> 349 | M70: =CONVERT(MEDIAN(IF('2016-2021 TRI'!F:F=$A70,'2016-2021 TRI'!Q:Q)), "lbm", "kg") -> 111 | N70: =CONVERT(_xlfn.MAXIFS('2016-2021 TRI'!Q:Q,'2016-2021 TRI'!F:F,A70), "lbm", "kg") -> 213 | O70: 0.616 | P70: 0.998 | Q70: 0.318 | R70: 0.609
A71: 77522XXNCH3525D | B71: =VLOOKUP($A71, '2016-2021 TRI'!$F:$L, 3, FALSE) -> EXXONMOBIL CHEMICAL CO BAYTOWN OLEFINS PLANT (PART) | C71: =VLOOKUP($A71, '2016-2021 TRI'!$F:$L, 4, FALSE) -> 3525 DECKER DR | D71: =VLOOKUP($A71, '2016-2021 TRI'!$F:$L, 5, FALSE) -> BAYTOWN | E71: =VLOOKUP($A71, '2016-2021 TRI'!$F:$L, 6, FALSE) -> TX | F71: =VLOOKUP($A71, '2016-2021 TRI'!$F:$L, 7, FALSE) -> 77520 | G71: =VLOOKUP($A71, '2016-2021 TRI'!F:N, 9, FALSE) -> Manufacturing | H71: =VLOOKUP($A71, '2016-2021 TRI'!$F:$L, 2, FALSE) -> 325110 | I71: =IFERROR(VLOOKUP(H71, '2012 to 2017 NAICS'!C:D, 2, FALSE), VLOOKUP(H71, '2012 to 2017 NAICS'!A:B, 2, FALSE)) -> Petrochemical Manufacturing | J71: =VLOOKUP(G71, 'OES Summary'!$A$2:$D$15, 3, FALSE) -> 350 | K71: =CONVERT(MEDIAN(IF('2016-2021 TRI'!F:F=$A71,'2016-2021 TRI'!P:P)), "lbm", "kg") -> 6577 | L71: =CONVERT(_xlfn.MAXIFS('2016-2021 TRI'!P:P,'2016-2021 TRI'!F:F,A71), "lbm", "kg") -> 8618 | M71: =CONVERT(MEDIAN(IF('2016-2021 TRI'!F:F=$A71,'2016-2021 TRI'!Q:Q)), "lbm", "kg") -> 13835 | N71: =CONVERT(_xlfn.MAXIFS('2016-2021 TRI'!Q:Q,'2016-2021 TRI'!F:F,A71), "lbm", "kg") -> 19051 | O71: 18.792 | P71: 24.624 | Q71: 39.527 | R71: 54.431
A72: 77701BMNTREASTE | B72: =VLOOKUP($A72, '2016-2021 TRI'!$F:$L, 3, FALSE) -> EXXONMOBIL OIL BEAUMONT REFINERY (PART) | C72: =VLOOKUP($A72, '2016-2021 TRI'!$F:$L, 4, FALSE) -> E END OF BURT ST | D72: =VLOOKUP($A72, '2016-2021 TRI'!$F:$L, 5, FALSE) -> BEAUMONT | E72: =VLOOKUP($A72, '2016-2021 TRI'!$F:$L, 6, FALSE) -> TX | F72: =VLOOKUP($A72, '2016-2021 TRI'!$F:$L, 7, FALSE) -> 77701 | G72: =VLOOKUP($A72, '2016-2021 TRI'!F:N, 9, FALSE) -> Processing as a reactant | H72: =VLOOKUP($A72, '2016-2021 TRI'!$F:$L, 2, FALSE) -> 324110 | I72: =IFERROR(VLOOKUP(H72, '2012 to 2017 NAICS'!C:D, 2, FALSE), VLOOKUP(H72, '2012 to 2017 NAICS'!A:B, 2, FALSE)) -> Petroleum Refineries | J72: =VLOOKUP(G72, 'OES Summary'!$A$2:$D$15, 3, FALSE) -> 350 | K72: =CONVERT(MEDIAN(IF('2016-2021 TRI'!F:F=$A72,'2016-2021 TRI'!P:P)), "lbm", "kg") -> 499 | L72: =CONVERT(_xlfn.MAXIFS('2016-2021 TRI'!P:P,'2016-2021 TRI'!F:F,A72), "lbm", "kg") -> 499 | M72: =CONVERT(MEDIAN(IF('2016-2021 TRI'!F:F=$A72,'2016-2021 TRI'!Q:Q)), "lbm", "kg") -> 93 | N72: =CONVERT(_xlfn.MAXIFS('2016-2021 TRI'!Q:Q,'2016-2021 TRI'!F:F,A72), "lbm", "kg") -> 186 | O72: 1.426 | P72: 1.426 | Q72: 0.266 | R72: 0.531
A73: 77704MBLCHGULFS | B73: =VLOOKUP($A73, '2016-2021 TRI'!$F:$L, 3, FALSE) -> EXXONMOBIL OIL CORP CHEMICAL PLANT (PART) | C73: =VLOOKUP($A73, '2016-2021 TRI'!$F:$L, 4, FALSE) -> 2775 GULF STATES RD | D73: =VLOOKUP($A73, '2016-2021 TRI'!$F:$L, 5, FALSE) -> BEAUMONT | E73: =VLOOKUP($A73, '2016-2021 TRI'!$F:$L, 6, FALSE) -> TX | F73: =VLOOKUP($A73, '2016-2021 TRI'!$F:$L, 7, FALSE) -> 77701 | G73: =VLOOKUP($A73, '2016-2021 TRI'!F:N, 9, FALSE) -> Manufacturing | H73: =VLOOKUP($A73, '2016-2021 TRI'!$F:$L, 2, FALSE) -> 325110 | I73: =IFERROR(VLOOKUP(H73, '2012 to 2017 NAICS'!C:D, 2, FALSE), VLOOKUP(H73, '2012 to 2017 NAICS'!A:B, 2, FALSE)) -> Petrochemical Manufacturing | J73: =VLOOKUP(G73, 'OES Summary'!$A$2:$D$15, 3, FALSE) -> 350 | K73: =CONVERT(MEDIAN(IF('2016-2021 TRI'!F:F=$A73,'2016-2021 TRI'!P:P)), "lbm", "kg") -> 1115 | L73: =CONVERT(_xlfn.MAXIFS('2016-2021 TRI'!P:P,'2016-2021 TRI'!F:F,A73), "lbm", "kg") -> 1412 | M73: =CONVERT(MEDIAN(IF('2016-2021 TRI'!F:F=$A73,'2016-2021 TRI'!Q:Q)), "lbm", "kg") -> 7847 | N73: =CONVERT(_xlfn.MAXIFS('2016-2021 TRI'!Q:Q,'2016-2021 TRI'!F:F,A73), "lbm", "kg") -> 10413 | O73: 3.186 | P73: 4.033 | Q73: 22.420 | R73: 29.750
A74: 60434MBLJLINTER | B74: =VLOOKUP($A74, '2016-2021 TRI'!$F:$L, 3, FALSE) -> EXXONMOBIL OIL CORP JOLIET REFINERY | C74: =VLOOKUP($A74, '2016-2021 TRI'!$F:$L, 4, FALSE) -> 25915 S FRONTAGE RD | D74: =VLOOKUP($A74, '2016-2021 TRI'!$F:$L, 5, FALSE) -> CHANNAHON | E74: =VLOOKUP($A74, '2016-2021 TRI'!$F:$L, 6, FALSE) -> IL | F74: =VLOOKUP($A74, '2016-2021 TRI'!$F:$L, 7, FALSE) -> 60410 | G74: =VLOOKUP($A74, '2016-2021 TRI'!F:N, 9, FALSE) -> Recycling | H74: =VLOOKUP($A74, '2016-2021 TRI'!$F:$L, 2, FALSE) -> 324110 | I74: =IFERROR(VLOOKUP(H74, '2012 to 2017 NAICS'!C:D, 2, FALSE), VLOOKUP(H74, '2012 to 2017 NAICS'!A:B, 2, FALSE)) -> Petroleum Refineries | J74: =VLOOKUP(G74, 'OES Summary'!$A$2:$D$15, 3, FALSE) -> 350 | K74: =CONVERT(MEDIAN(IF('2016-2021 TRI'!F:F=$A74,'2016-2021 TRI'!P:P)), "lbm", "kg") -> 156 | L74: =CONVERT(_xlfn.MAXIFS('2016-2021 TRI'!P:P,'2016-2021 TRI'!F:F,A74), "lbm", "kg") -> 248 | M74: =CONVERT(MEDIAN(IF('2016-2021 TRI'!F:F=$A74,'2016-2021 TRI'!Q:Q)), "lbm", "kg") -> 18 | N74: =CONVERT(_xlfn.MAXIFS('2016-2021 TRI'!Q:Q,'2016-2021 TRI'!F:F,A74), "lbm", "kg") -> 18 | O74: 0.446 | P74: 0.708 | Q74: 0.051 | R74: 0.052
A75: 77522XXNBY2800D | B75: =VLOOKUP($A75, '2016-2021 TRI'!$F:$L, 3, FALSE) -> EXXONMOBIL REFINING & SUPPLY BAYTOWN REFINERY (PART) | C75: =VLOOKUP($A75, '2016-2021 TRI'!$F:$L, 4, FALSE) -> 2800 DECKER DR | D75: =VLOOKUP($A75, '2016-2021 TRI'!$F:$L, 5, FALSE) -> BAYTOWN | E75: =VLOOKUP($A75, '2016-2021 TRI'!$F:$L, 6, FALSE) -> TX | F75: =VLOOKUP($A75, '2016-2021 TRI'!$F:$L, 7, FALSE) -> 775202099 | G75: =VLOOKUP($A75, '2016-2021 TRI'!F:N, 9, FALSE) -> Manufacturing | H75: =VLOOKUP($A75, '2016-2021 TRI'!$F:$L, 2, FALSE) -> 324110 | I75: =IFERROR(VLOOKUP(H75, '2012 to 2017 NAICS'!C:D, 2, FALSE), VLOOKUP(H75, '2012 to 2017 NAICS'!A:B, 2, FALSE)) -> Petroleum Refineries | J75: =VLOOKUP(G75, 'OES Summary'!$A$2:$D$15, 3, FALSE) -> 350 | K75: =CONVERT(MEDIAN(IF('2016-2021 TRI'!F:F=$A75,'2016-2021 TRI'!P:P)), "lbm", "kg") -> 299 | L75: =CONVERT(_xlfn.MAXIFS('2016-2021 TRI'!P:P,'2016-2021 TRI'!F:F,A75), "lbm", "kg") -> 680 | M75: =CONVERT(MEDIAN(IF('2016-2021 TRI'!F:F=$A75,'2016-2021 TRI'!Q:Q)), "lbm", "kg") -> 4990 | N75: =CONVERT(_xlfn.MAXIFS('2016-2021 TRI'!Q:Q,'2016-2021 TRI'!F:F,A75), "lbm", "kg") -> 9072 | O75: 0.855 | P75: 1.944 | Q75: 14.256 | R75: 25.920
A76: 44319FRSTN381WE | B76: =VLOOKUP($A76, '2016-2021 TRI'!$F:$L, 3, FALSE) -> FIRESTONE POLYMERS LLC | C76: =VLOOKUP($A76, '2016-2021 TRI'!$F:$L, 4, FALSE) -> 381 W WILBETH RD | D76: =VLOOKUP($A76, '2016-2021 TRI'!$F:$L, 5, FALSE) -> AKRON | E76: =VLOOKUP($A76, '2016-2021 TRI'!$F:$L, 6, FALSE) -> OH | F76: =VLOOKUP($A76, '2016-2021 TRI'!$F:$L, 7, FALSE) -> 44301 | G76: =VLOOKUP($A76, '2016-2021 TRI'!F:N, 9, FALSE) -> Plastics and Rubber Compounding | H76: =VLOOKUP($A76, '2016-2021 TRI'!$F:$L, 2, FALSE) -> 325212 | I76: =IFERROR(VLOOKUP(H76, '2012 to 2017 NAICS'!C:D, 2, FALSE), VLOOKUP(H76, '2012 to 2017 NAICS'!A:B, 2, FALSE)) -> Synthetic Rubber Manufacturing | J76: =VLOOKUP(G76, 'OES Summary'!$A$2:$D$15, 3, FALSE) -> 300 | K76: =CONVERT(MEDIAN(IF('2016-2021 TRI'!F:F=$A76,'2016-2021 TRI'!P:P)), "lbm", "kg") -> 0 | L76: =CONVERT(_xlfn.MAXIFS('2016-2021 TRI'!P:P,'2016-2021 TRI'!F:F,A76), "lbm", "kg") -> 29 | M76: =CONVERT(MEDIAN(IF('2016-2021 TRI'!F:F=$A76,'2016-2021 TRI'!Q:Q)), "lbm", "kg") -> 5 | N76: =CONVERT(_xlfn.MAXIFS('2016-2021 TRI'!Q:Q,'2016-2021 TRI'!F:F,A76), "lbm", "kg") -> 56 | O76: 0.000 | P76: 0.095 | Q76: 0.018 | R76: 0.187
A77: 70602FRSTNLA108 | B77: =VLOOKUP($A77, '2016-2021 TRI'!$F:$L, 3, FALSE) -> FIRESTONE POLYMERS LLC | C77: =VLOOKUP($A77, '2016-2021 TRI'!$F:$L, 4, FALSE) -> 1801 E LA HWY 108 | D77: =VLOOKUP($A77, '2016-2021 TRI'!$F:$L, 5, FALSE) -> SULPHUR | E77: =VLOOKUP($A77, '2016-2021 TRI'!$F:$L, 6, FALSE) -> LA | F77: =VLOOKUP($A77, '2016-2021 TRI'!$F:$L, 7, FALSE) -> 70665 | G77: =VLOOKUP($A77, '2016-2021 TRI'!F:N, 9, FALSE) -> Plastics and Rubber Compounding | H77: =VLOOKUP($A77, '2016-2021 TRI'!$F:$L, 2, FALSE) -> 325212 | I77: =IFERROR(VLOOKUP(H77, '2012 to 2017 NAICS'!C:D, 2, FALSE), VLOOKUP(H77, '2012 to 2017 NAICS'!A:B, 2, FALSE)) -> Synthetic Rubber Manufacturing | J77: =VLOOKUP(G77, 'OES Summary'!$A$2:$D$15, 3, FALSE) -> 300 | K77: =CONVERT(MEDIAN(IF('2016-2021 TRI'!F:F=$A77,'2016-2021 TRI'!P:P)), "lbm", "kg") -> 2200 | L77: =CONVERT(_xlfn.MAXIFS('2016-2021 TRI'!P:P,'2016-2021 TRI'!F:F,A77), "lbm", "kg") -> 23133 | M77: =CONVERT(MEDIAN(IF('2016-2021 TRI'!F:F=$A77,'2016-2021 TRI'!Q:Q)), "lbm", "kg") -> 4196 | N77: =CONVERT(_xlfn.MAXIFS('2016-2021 TRI'!Q:Q,'2016-2021 TRI'!F:F,A77), "lbm", "kg") -> 6804 | O77: 7.333 | P77: 77.111 | Q77: 13.986 | R77: 22.680
A78: 78408STHWS1700N | B78: =VLOOKUP($A78, '2016-2021 TRI'!$F:$L, 3, FALSE) -> FLINT HILLS RESOURCES CORPUS CHRISTI LLC - EAST PLANT | C78: =VLOOKUP($A78, '2016-2021 TRI'!$F:$L, 4, FALSE) -> 1700 NUECES BAY BLVD | D78: =VLOOKUP($A78, '2016-2021 TRI'!$F:$L, 5, FALSE) -> CORPUS CHRISTI | E78: =VLOOKUP($A78, '2016-2021 TRI'!$F:$L, 6, FALSE) -> TX | F78: =VLOOKUP($A78, '2016-2021 TRI'!$F:$L, 7, FALSE) -> 78407 | G78: =VLOOKUP($A78, '2016-2021 TRI'!F:N, 9, FALSE) -> Recycling | H78: =VLOOKUP($A78, '2016-2021 TRI'!$F:$L, 2, FALSE) -> 324110 | I78: =IFERROR(VLOOKUP(H78, '2012 to 2017 NAICS'!C:D, 2, FALSE), VLOOKUP(H78, '2012 to 2017 NAICS'!A:B, 2, FALSE)) -> Petroleum Refineries | J78: =VLOOKUP(G78, 'OES Summary'!$A$2:$D$15, 3, FALSE) -> 350 | K78: =CONVERT(MEDIAN(IF('2016-2021 TRI'!F:F=$A78,'2016-2021 TRI'!P:P)), "lbm", "kg") -> 25 | L78: =CONVERT(_xlfn.MAXIFS('2016-2021 TRI'!P:P,'2016-2021 TRI'!F:F,A78), "lbm", "kg") -> 26 | M78: =CONVERT(MEDIAN(IF('2016-2021 TRI'!F:F=$A78,'2016-2021 TRI'!Q:Q)), "lbm", "kg") -> 7 | N78: =CONVERT(_xlfn.MAXIFS('2016-2021 TRI'!Q:Q,'2016-2021 TRI'!F:F,A78), "lbm", "kg") -> 27 | O78: 0.071 | P78: 0.074 | Q78: 0.021 | R78: 0.076
A79: 78410KCHRFSUNTI | B79: =VLOOKUP($A79, '2016-2021 TRI'!$F:$L, 3, FALSE) -> FLINT HILLS RESOURCES CORPUS CHRISTI LLC - WEST PLANT | C79: =VLOOKUP($A79, '2016-2021 TRI'!$F:$L, 4, FALSE) -> 2825 SUNTIDE RD | D79: =VLOOKUP($A79, '2016-2021 TRI'!$F:$L, 5, FALSE) -> CORPUS CHRISTI | E79: =VLOOKUP($A79, '2016-2021 TRI'!$F:$L, 6, FALSE) -> TX | F79: =VLOOKUP($A79, '2016-2021 TRI'!$F:$L, 7, FALSE) -> 78409 | G79: =VLOOKUP($A79, '2016-2021 TRI'!F:N, 9, FALSE) -> Recycling | H79: =VLOOKUP($A79, '2016-2021 TRI'!$F:$L, 2, FALSE) -> 324110 | I79: =IFERROR(VLOOKUP(H79, '2012 to 2017 NAICS'!C:D, 2, FALSE), VLOOKUP(H79, '2012 to 2017 NAICS'!A:B, 2, FALSE)) -> Petroleum Refineries | J79: =VLOOKUP(G79, 'OES Summary'!$A$2:$D$15, 3, FALSE) -> 350 | K79: =CONVERT(MEDIAN(IF('2016-2021 TRI'!F:F=$A79,'2016-2021 TRI'!P:P)), "lbm", "kg") -> 85 | L79: =CONVERT(_xlfn.MAXIFS('2016-2021 TRI'!P:P,'2016-2021 TRI'!F:F,A79), "lbm", "kg") -> 127 | M79: =CONVERT(MEDIAN(IF('2016-2021 TRI'!F:F=$A79,'2016-2021 TRI'!Q:Q)), "lbm", "kg") -> 204 | N79: =CONVERT(_xlfn.MAXIFS('2016-2021 TRI'!Q:Q,'2016-2021 TRI'!F:F,A79), "lbm", "kg") -> 238 | O79: 0.242 | P79: 0.362 | Q79: 0.583 | R79: 0.679
A80: 55164KCHRFPOBOX | B80: =VLOOKUP($A80, '2016-2021 TRI'!$F:$L, 3, FALSE) -> FLINT HILLS RESOURCES PINE BEND LLC | C80: =VLOOKUP($A80, '2016-2021 TRI'!$F:$L, 4, FALSE) -> 13775 CLARK RD | D80: =VLOOKUP($A80, '2016-2021 TRI'!$F:$L, 5, FALSE) -> ROSEMOUNT | E80: =VLOOKUP($A80, '2016-2021 TRI'!$F:$L, 6, FALSE) -> MN | F80: =VLOOKUP($A80, '2016-2021 TRI'!$F:$L, 7, FALSE) -> 55068 | G80: =VLOOKUP($A80, '2016-2021 TRI'!F:N, 9, FALSE) -> Processing as a reactant | H80: =VLOOKUP($A80, '2016-2021 TRI'!$F:$L, 2, FALSE) -> 324110 | I80: =IFERROR(VLOOKUP(H80, '2012 to 2017 NAICS'!C:D, 2, FALSE), VLOOKUP(H80, '2012 to 2017 NAICS'!A:B, 2, FALSE)) -> Petroleum Refineries | J80: =VLOOKUP(G80, 'OES Summary'!$A$2:$D$15, 3, FALSE) -> 350 | K80: =CONVERT(MEDIAN(IF('2016-2021 TRI'!F:F=$A80,'2016-2021 TRI'!P:P)), "lbm", "kg") -> 1 | L80: =CONVERT(_xlfn.MAXIFS('2016-2021 TRI'!P:P,'2016-2021 TRI'!F:F,A80), "lbm", "kg") -> 1 | M80: =CONVERT(MEDIAN(IF('2016-2021 TRI'!F:F=$A80,'2016-2021 TRI'!Q:Q)), "lbm", "kg") -> 0 | N80: =CONVERT(_xlfn.MAXIFS('2016-2021 TRI'!Q:Q,'2016-2021 TRI'!F:F,A80), "lbm", "kg") -> 0 | O80: 0.002 | P80: 0.004 | Q80: 0.000 | R80: 0.000
A81: 77978FRMSPPOBOX | B81: =VLOOKUP($A81, '2016-2021 TRI'!$F:$L, 3, FALSE) -> FORMOSA PLASTICS CORP TEXAS | C81: =VLOOKUP($A81, '2016-2021 TRI'!$F:$L, 4, FALSE) -> 201 FORMOSA DR | D81: =VLOOKUP($A81, '2016-2021 TRI'!$F:$L, 5, FALSE) -> POINT COMFORT | E81: =VLOOKUP($A81, '2016-2021 TRI'!$F:$L, 6, FALSE) -> TX | F81: =VLOOKUP($A81, '2016-2021 TRI'!$F:$L, 7, FALSE) -> 77978 | G81: =VLOOKUP($A81, '2016-2021 TRI'!F:N, 9, FALSE) -> Plastics and Rubber Compounding | H81: =VLOOKUP($A81, '2016-2021 TRI'!$F:$L, 2, FALSE) -> 325211 | I81: =IFERROR(VLOOKUP(H81, '2012 to 2017 NAICS'!C:D, 2, FALSE), VLOOKUP(H81, '2012 to 2017 NAICS'!A:B, 2, FALSE)) -> Plastics Material and Resin Manufacturing | J81: =VLOOKUP(G81, 'OES Summary'!$A$2:$D$15, 3, FALSE) -> 300 | K81: =CONVERT(MEDIAN(IF('2016-2021 TRI'!F:F=$A81,'2016-2021 TRI'!P:P)), "lbm", "kg") -> 399 | L81: =CONVERT(_xlfn.MAXIFS('2016-2021 TRI'!P:P,'2016-2021 TRI'!F:F,A81), "lbm", "kg") -> 708 | M81: =CONVERT(MEDIAN(IF('2016-2021 TRI'!F:F=$A81,'2016-2021 TRI'!Q:Q)), "lbm", "kg") -> 3539 | N81: =CONVERT(_xlfn.MAXIFS('2016-2021 TRI'!Q:Q,'2016-2021 TRI'!F:F,A81), "lbm", "kg") -> 23116 | O81: 1.331 | P81: 2.360 | Q81: 11.797 | R81: 77.052
A82: 7754WBLCBP231NB | B82: =VLOOKUP($A82, '2016-2021 TRI'!$F:$L, 3, FALSE) -> FREEPORT_OLIN BC | C82: =VLOOKUP($A82, '2016-2021 TRI'!$F:$L, 4, FALSE) -> 2301 N BRAZOSPORT BLVD | D82: =VLOOKUP($A82, '2016-2021 TRI'!$F:$L, 5, FALSE) -> FREEPORT | E82: =VLOOKUP($A82, '2016-2021 TRI'!$F:$L, 6, FALSE) -> TX | F82: =VLOOKUP($A82, '2016-2021 TRI'!$F:$L, 7, FALSE) -> 77541 | G82: =VLOOKUP($A82, '2016-2021 TRI'!F:N, 9, FALSE) -> Processing as a reactant | H82: =VLOOKUP($A82, '2016-2021 TRI'!$F:$L, 2, FALSE) -> 325199 | I82: =IFERROR(VLOOKUP(H82, '2012 to 2017 NAICS'!C:D, 2, FALSE), VLOOKUP(H82, '2012 to 2017 NAICS'!A:B, 2, FALSE)) -> All Other Basic Organic Chemical Manufacturing | J82: =VLOOKUP(G82, 'OES Summary'!$A$2:$D$15, 3, FALSE) -> 350 | K82: =CONVERT(MEDIAN(IF('2016-2021 TRI'!F:F=$A82,'2016-2021 TRI'!P:P)), "lbm", "kg") -> 0 | L82: =CONVERT(_xlfn.MAXIFS('2016-2021 TRI'!P:P,'2016-2021 TRI'!F:F,A82), "lbm", "kg") -> 0 | M82: =CONVERT(MEDIAN(IF('2016-2021 TRI'!F:F=$A82,'2016-2021 TRI'!Q:Q)), "lbm", "kg") -> 0 | N82: =CONVERT(_xlfn.MAXIFS('2016-2021 TRI'!Q:Q,'2016-2021 TRI'!F:F,A82), "lbm", "kg") -> 0 | O82: 0.000 | P82: 0.000 | Q82: 0.000 | R82: 0.000
A83: 81001BFGDR50WIL | B83: =VLOOKUP($A83, '2016-2021 TRI'!$F:$L, 3, FALSE) -> GOODRICH CARBON OPERATIONS | C83: =VLOOKUP($A83, '2016-2021 TRI'!$F:$L, 4, FALSE) -> 50 WILLIAM WHITE BLVD | D83: =VLOOKUP($A83, '2016-2021 TRI'!$F:$L, 5, FALSE) -> PUEBLO | E83: =VLOOKUP($A83, '2016-2021 TRI'!$F:$L, 6, FALSE) -> CO | F83: =VLOOKUP($A83, '2016-2021 TRI'!$F:$L, 7, FALSE) -> 81001 | G83: =VLOOKUP($A83, '2016-2021 TRI'!F:N, 9, FALSE) -> Recycling | H83: =VLOOKUP($A83, '2016-2021 TRI'!$F:$L, 2, FALSE) -> 336413 | I83: =IFERROR(VLOOKUP(H83, '2012 to 2017 NAICS'!C:D, 2, FALSE), VLOOKUP(H83, '2012 to 2017 NAICS'!A:B, 2, FALSE)) -> Other Aircraft Parts and Auxiliary Equipment Manufacturing | J83: =VLOOKUP(G83, 'OES Summary'!$A$2:$D$15, 3, FALSE) -> 350 | K83: =CONVERT(MEDIAN(IF('2016-2021 TRI'!F:F=$A83,'2016-2021 TRI'!P:P)), "lbm", "kg") -> 2 | L83: =CONVERT(_xlfn.MAXIFS('2016-2021 TRI'!P:P,'2016-2021 TRI'!F:F,A83), "lbm", "kg") -> 2 | M83: =CONVERT(MEDIAN(IF('2016-2021 TRI'!F:F=$A83,'2016-2021 TRI'!Q:Q)), "lbm", "kg") -> 0 | N83: =CONVERT(_xlfn.MAXIFS('2016-2021 TRI'!Q:Q,'2016-2021 TRI'!F:F,A83), "lbm", "kg") -> 1 | O83: 0.006 | P83: 0.006 | Q83: 0.001 | R83: 0.004
A84: 99224GDRCH11135 | B84: =VLOOKUP($A84, '2016-2021 TRI'!$F:$L, 3, FALSE) -> GOODRICH LANDING SYSTEMS CARBON OPERATIONS | C84: =VLOOKUP($A84, '2016-2021 TRI'!$F:$L, 4, FALSE) -> 11135 W WESTBOW BLVD | D84: =VLOOKUP($A84, '2016-2021 TRI'!$F:$L, 5, FALSE) -> SPOKANE | E84: =VLOOKUP($A84, '2016-2021 TRI'!$F:$L, 6, FALSE) -> WA | F84: =VLOOKUP($A84, '2016-2021 TRI'!$F:$L, 7, FALSE) -> 99224 | G84: =VLOOKUP($A84, '2016-2021 TRI'!F:N, 9, FALSE) -> Recycling | H84: =VLOOKUP($A84, '2016-2021 TRI'!$F:$L, 2, FALSE) -> 336413 | I84: =IFERROR(VLOOKUP(H84, '2012 to 2017 NAICS'!C:D, 2, FALSE), VLOOKUP(H84, '2012 to 2017 NAICS'!A:B, 2, FALSE)) -> Other Aircraft Parts and Auxiliary Equipment Manufacturing | J84: =VLOOKUP(G84, 'OES Summary'!$A$2:$D$15, 3, FALSE) -> 350 | K84: =CONVERT(MEDIAN(IF('2016-2021 TRI'!F:F=$A84,'2016-2021 TRI'!P:P)), "lbm", "kg") -> 0 | L84: =CONVERT(_xlfn.MAXIFS('2016-2021 TRI'!P:P,'2016-2021 TRI'!F:F,A84), "lbm", "kg") -> 0 | M84: =CONVERT(MEDIAN(IF('2016-2021 TRI'!F:F=$A84,'2016-2021 TRI'!Q:Q)), "lbm", "kg") -> 4 | N84: =CONVERT(_xlfn.MAXIFS('2016-2021 TRI'!Q:Q,'2016-2021 TRI'!F:F,A84), "lbm", "kg") -> 6 | O84: 0.000 | P84: 0.000 | Q84: 0.011 | R84: 0.018
A85: 44306THGDY1452E | B85: =VLOOKUP($A85, '2016-2021 TRI'!$F:$L, 3, FALSE) -> GOODYEAR AKRON PLANT 5 | C85: =VLOOKUP($A85, '2016-2021 TRI'!$F:$L, 4, FALSE) -> 1452 E ARCHWOOD AVE | D85: =VLOOKUP($A85, '2016-2021 TRI'!$F:$L, 5, FALSE) -> AKRON | E85: =VLOOKUP($A85, '2016-2021 TRI'!$F:$L, 6, FALSE) -> OH | F85: =VLOOKUP($A85, '2016-2021 TRI'!$F:$L, 7, FALSE) -> 44306 | G85: =VLOOKUP($A85, '2016-2021 TRI'!F:N, 9, FALSE) -> Plastics and Rubber Compounding | H85: =VLOOKUP($A85, '2016-2021 TRI'!$F:$L, 2, FALSE) -> 325212 | I85: =IFERROR(VLOOKUP(H85, '2012 to 2017 NAICS'!C:D, 2, FALSE), VLOOKUP(H85, '2012 to 2017 NAICS'!A:B, 2, FALSE)) -> Synthetic Rubber Manufacturing | J85: =VLOOKUP(G85, 'OES Summary'!$A$2:$D$15, 3, FALSE) -> 300 | K85: =CONVERT(MEDIAN(IF('2016-2021 TRI'!F:F=$A85,'2016-2021 TRI'!P:P)), "lbm", "kg") -> 174 | L85: =CONVERT(_xlfn.MAXIFS('2016-2021 TRI'!P:P,'2016-2021 TRI'!F:F,A85), "lbm", "kg") -> 202 | M85: =CONVERT(MEDIAN(IF('2016-2021 TRI'!F:F=$A85,'2016-2021 TRI'!Q:Q)), "lbm", "kg") -> 176 | N85: =CONVERT(_xlfn.MAXIFS('2016-2021 TRI'!Q:Q,'2016-2021 TRI'!F:F,A85), "lbm", "kg") -> 231 | O85: 0.581 | P85: 0.674 | Q85: 0.585 | R85: 0.770
A86: 44316GDYRC1485E | B86: =VLOOKUP($A86, '2016-2021 TRI'!$F:$L, 3, FALSE) -> GOODYEAR CHEMICAL R&D | C86: =VLOOKUP($A86, '2016-2021 TRI'!$F:$L, 4, FALSE) -> 1485 E ARCHWOOD AVE | D86: =VLOOKUP($A86, '2016-2021 TRI'!$F:$L, 5, FALSE) -> AKRON | E86: =VLOOKUP($A86, '2016-2021 TRI'!$F:$L, 6, FALSE) -> OH | F86: =VLOOKUP($A86, '2016-2021 TRI'!$F:$L, 7, FALSE) -> 44306 | G86: =VLOOKUP($A86, '2016-2021 TRI'!F:N, 9, FALSE) -> Plastics and Rubber Compounding | H86: =VLOOKUP($A86, '2016-2021 TRI'!$F:$L, 2, FALSE) -> 325212 | I86: =IFERROR(VLOOKUP(H86, '2012 to 2017 NAICS'!C:D, 2, FALSE), VLOOKUP(H86, '2012 to 2017 NAICS'!A:B, 2, FALSE)) -> Synthetic Rubber Manufacturing | J86: =VLOOKUP(G86, 'OES Summary'!$A$2:$D$15, 3, FALSE) -> 300 | K86: =CONVERT(MEDIAN(IF('2016-2021 TRI'!F:F=$A86,'2016-2021 TRI'!P:P)), "lbm", "kg") -> 157 | L86: =CONVERT(_xlfn.MAXIFS('2016-2021 TRI'!P:P,'2016-2021 TRI'!F:F,A86), "lbm", "kg") -> 157 | M86: =CONVERT(MEDIAN(IF('2016-2021 TRI'!F:F=$A86,'2016-2021 TRI'!Q:Q)), "lbm", "kg") -> 909 | N86: =CONVERT(_xlfn.MAXIFS('2016-2021 TRI'!Q:Q,'2016-2021 TRI'!F:F,A86), "lbm", "kg") -> 909 | O86: 0.523 | P86: 0.523 | Q86: 3.030 | R86: 3.030
A87: 77720THGDYINTER | B87: =VLOOKUP($A87, '2016-2021 TRI'!$F:$L, 3, FALSE) -> GOODYEAR TIRE & RUBBER CO | C87: =VLOOKUP($A87, '2016-2021 TRI'!$F:$L, 4, FALSE) -> 11241 INTERSTATE HWY 10 | D87: =VLOOKUP($A87, '2016-2021 TRI'!$F:$L, 5, FALSE) -> BEAUMONT | E87: =VLOOKUP($A87, '2016-2021 TRI'!$F:$L, 6, FALSE) -> TX | F87: =VLOOKUP($A87, '2016-2021 TRI'!$F:$L, 7, FALSE) -> 77705 | G87: =VLOOKUP($A87, '2016-2021 TRI'!F:N, 9, FALSE) -> Plastics and Rubber Compounding | H87: =VLOOKUP($A87, '2016-2021 TRI'!$F:$L, 2, FALSE) -> 325212 | I87: =IFERROR(VLOOKUP(H87, '2012 to 2017 NAICS'!C:D, 2, FALSE), VLOOKUP(H87, '2012 to 2017 NAICS'!A:B, 2, FALSE)) -> Synthetic Rubber Manufacturing | J87: =VLOOKUP(G87, 'OES Summary'!$A$2:$D$15, 3, FALSE) -> 300 | K87: =CONVERT(MEDIAN(IF('2016-2021 TRI'!F:F=$A87,'2016-2021 TRI'!P:P)), "lbm", "kg") -> 8418 | L87: =CONVERT(_xlfn.MAXIFS('2016-2021 TRI'!P:P,'2016-2021 TRI'!F:F,A87), "lbm", "kg") -> 10416 | M87: =CONVERT(MEDIAN(IF('2016-2021 TRI'!F:F=$A87,'2016-2021 TRI'!Q:Q)), "lbm", "kg") -> 4076 | N87: =CONVERT(_xlfn.MAXIFS('2016-2021 TRI'!Q:Q,'2016-2021 TRI'!F:F,A87), "lbm", "kg") -> 5467 | O87: 28.061 | P87: 34.719 | Q87: 13.587 | R87: 18.222
A88: 7839WGLFCSSUTHF | B88: =VLOOKUP($A88, '2016-2021 TRI'!$F:$L, 3, FALSE) -> GULF COAST GROWTH VENTURES LLC | C88: =VLOOKUP($A88, '2016-2021 TRI'!$F:$L, 4, FALSE) -> 4589 FM 2986 | D88: =VLOOKUP($A88, '2016-2021 TRI'!$F:$L, 5, FALSE) -> GREGORY | E88: =VLOOKUP($A88, '2016-2021 TRI'!$F:$L, 6, FALSE) -> TX | F88: =VLOOKUP($A88, '2016-2021 TRI'!$F:$L, 7, FALSE) -> 78359 | G88: =VLOOKUP($A88, '2016-2021 TRI'!F:N, 9, FALSE) -> Plastics and Rubber Compounding | H88: =VLOOKUP($A88, '2016-2021 TRI'!$F:$L, 2, FALSE) -> 325211 | I88: =IFERROR(VLOOKUP(H88, '2012 to 2017 NAICS'!C:D, 2, FALSE), VLOOKUP(H88, '2012 to 2017 NAICS'!A:B, 2, FALSE)) -> Plastics Material and Resin Manufacturing | J88: =VLOOKUP(G88, 'OES Summary'!$A$2:$D$15, 3, FALSE) -> 300 | K88: =CONVERT(MEDIAN(IF('2016-2021 TRI'!F:F=$A88,'2016-2021 TRI'!P:P)), "lbm", "kg") -> 75 | L88: =CONVERT(_xlfn.MAXIFS('2016-2021 TRI'!P:P,'2016-2021 TRI'!F:F,A88), "lbm", "kg") -> 75 | M88: =CONVERT(MEDIAN(IF('2016-2021 TRI'!F:F=$A88,'2016-2021 TRI'!Q:Q)), "lbm", "kg") -> 4605 | N88: =CONVERT(_xlfn.MAXIFS('2016-2021 TRI'!Q:Q,'2016-2021 TRI'!F:F,A88), "lbm", "kg") -> 4605 | O88: 0.251 | P88: 0.251 | Q88: 15.350 | R88: 15.350
A89: 77011HBFLL6107I | B89: =VLOOKUP($A89, '2016-2021 TRI'!$F:$L, 3, FALSE) -> H.B. FULLER CONSTRUCTION PRODUCTS INC. | C89: =VLOOKUP($A89, '2016-2021 TRI'!$F:$L, 4, FALSE) -> 6107 INDUSTRIAL WAY | D89: =VLOOKUP($A89, '2016-2021 TRI'!$F:$L, 5, FALSE) -> HOUSTON | E89: =VLOOKUP($A89, '2016-2021 TRI'!$F:$L, 6, FALSE) -> TX | F89: =VLOOKUP($A89, '2016-2021 TRI'!$F:$L, 7, FALSE) -> 77011 | G89: =VLOOKUP($A89, '2016-2021 TRI'!F:N, 9, FALSE) -> Processing - Incorporation into formulation, mixture, or reaction product | H89: =VLOOKUP($A89, '2016-2021 TRI'!$F:$L, 2, FALSE) -> 325520 | I89: =IFERROR(VLOOKUP(H89, '2012 to 2017 NAICS'!C:D, 2, FALSE), VLOOKUP(H89, '2012 to 2017 NAICS'!A:B, 2, FALSE)) -> Adhesive Manufacturing | J89: =VLOOKUP(G89, 'OES Summary'!$A$2:$D$15, 3, FALSE) -> 250 | K89: =CONVERT(MEDIAN(IF('2016-2021 TRI'!F:F=$A89,'2016-2021 TRI'!P:P)), "lbm", "kg") -> 227 | L89: =CONVERT(_xlfn.MAXIFS('2016-2021 TRI'!P:P,'2016-2021 TRI'!F:F,A89), "lbm", "kg") -> 227 | M89: =CONVERT(MEDIAN(IF('2016-2021 TRI'!F:F=$A89,'2016-2021 TRI'!Q:Q)), "lbm", "kg") -> 227 | N89: =CONVERT(_xlfn.MAXIFS('2016-2021 TRI'!Q:Q,'2016-2021 TRI'!F:F,A89), "lbm", "kg") -> 227 | O89: 0.907 | P89: 0.907 | Q89: 0.907 | R89: 0.907
A90: 67042TXCRF1401S | B90: =VLOOKUP($A90, '2016-2021 TRI'!$F:$L, 3, FALSE) -> HOLLYFRONTIER EL DORADO REFINING LLC | C90: =VLOOKUP($A90, '2016-2021 TRI'!$F:$L, 4, FALSE) -> 1401 S DOUGLAS RD | D90: =VLOOKUP($A90, '2016-2021 TRI'!$F:$L, 5, FALSE) -> EL DORADO | E90: =VLOOKUP($A90, '2016-2021 TRI'!$F:$L, 6, FALSE) -> KS | F90: =VLOOKUP($A90, '2016-2021 TRI'!$F:$L, 7, FALSE) -> 67042 | G90: =VLOOKUP($A90, '2016-2021 TRI'!F:N, 9, FALSE) -> Processing as a reactant | H90: =VLOOKUP($A90, '2016-2021 TRI'!$F:$L, 2, FALSE) -> 324110 | I90: =IFERROR(VLOOKUP(H90, '2012 to 2017 NAICS'!C:D, 2, FALSE), VLOOKUP(H90, '2012 to 2017 NAICS'!A:B, 2, FALSE)) -> Petroleum Refineries | J90: =VLOOKUP(G90, 'OES Summary'!$A$2:$D$15, 3, FALSE) -> 350 | K90: =CONVERT(MEDIAN(IF('2016-2021 TRI'!F:F=$A90,'2016-2021 TRI'!P:P)), "lbm", "kg") -> 0 | L90: =CONVERT(_xlfn.MAXIFS('2016-2021 TRI'!P:P,'2016-2021 TRI'!F:F,A90), "lbm", "kg") -> 1 | M90: =CONVERT(MEDIAN(IF('2016-2021 TRI'!F:F=$A90,'2016-2021 TRI'!Q:Q)), "lbm", "kg") -> 204 | N90: =CONVERT(_xlfn.MAXIFS('2016-2021 TRI'!Q:Q,'2016-2021 TRI'!F:F,A90), "lbm", "kg") -> 249 | O90: 0.001 | P90: 0.003 | Q90: 0.583 | R90: 0.713
A91: 98221PGTSN600ST | B91: =VLOOKUP($A91, '2016-2021 TRI'!$F:$L, 3, FALSE) -> HOLLYFRONTIER PUGET SOUND REFINING LLC | C91: =VLOOKUP($A91, '2016-2021 TRI'!$F:$L, 4, FALSE) -> 8505 SOUTH TEXAS RD | D91: =VLOOKUP($A91, '2016-2021 TRI'!$F:$L, 5, FALSE) -> ANACORTES | E91: =VLOOKUP($A91, '2016-2021 TRI'!$F:$L, 6, FALSE) -> WA | F91: =VLOOKUP($A91, '2016-2021 TRI'!$F:$L, 7, FALSE) -> 98221 | G91: =VLOOKUP($A91, '2016-2021 TRI'!F:N, 9, FALSE) -> Recycling | H91: =VLOOKUP($A91, '2016-2021 TRI'!$F:$L, 2, FALSE) -> 324110 | I91: =IFERROR(VLOOKUP(H91, '2012 to 2017 NAICS'!C:D, 2, FALSE), VLOOKUP(H91, '2012 to 2017 NAICS'!A:B, 2, FALSE)) -> Petroleum Refineries | J91: =VLOOKUP(G91, 'OES Summary'!$A$2:$D$15, 3, FALSE) -> 350 | K91: =CONVERT(MEDIAN(IF('2016-2021 TRI'!F:F=$A91,'2016-2021 TRI'!P:P)), "lbm", "kg") -> 5 | L91: =CONVERT(_xlfn.MAXIFS('2016-2021 TRI'!P:P,'2016-2021 TRI'!F:F,A91), "lbm", "kg") -> 6 | M91: =CONVERT(MEDIAN(IF('2016-2021 TRI'!F:F=$A91,'2016-2021 TRI'!Q:Q)), "lbm", "kg") -> 12 | N91: =CONVERT(_xlfn.MAXIFS('2016-2021 TRI'!Q:Q,'2016-2021 TRI'!F:F,A91), "lbm", "kg") -> 29 | O91: 0.014 | P91: 0.018 | Q91: 0.033 | R91: 0.082
A92: 74107SNRFN1700S | B92: =VLOOKUP($A92, '2016-2021 TRI'!$F:$L, 3, FALSE) -> HOLLYFRONTIER TULSA REFINING WEST FACILITY | C92: =VLOOKUP($A92, '2016-2021 TRI'!$F:$L, 4, FALSE) -> 1700 S UNION | D92: =VLOOKUP($A92, '2016-2021 TRI'!$F:$L, 5, FALSE) -> TULSA | E92: =VLOOKUP($A92, '2016-2021 TRI'!$F:$L, 6, FALSE) -> OK | F92: =VLOOKUP($A92, '2016-2021 TRI'!$F:$L, 7, FALSE) -> 74107 | G92: =VLOOKUP($A92, '2016-2021 TRI'!F:N, 9, FALSE) -> Processing as a reactant | H92: =VLOOKUP($A92, '2016-2021 TRI'!$F:$L, 2, FALSE) -> 324110 | I92: =IFERROR(VLOOKUP(H92, '2012 to 2017 NAICS'!C:D, 2, FALSE), VLOOKUP(H92, '2012 to 2017 NAICS'!A:B, 2, FALSE)) -> Petroleum Refineries | J92: =VLOOKUP(G92, 'OES Summary'!$A$2:$D$15, 3, FALSE) -> 350 | K92: =CONVERT(MEDIAN(IF('2016-2021 TRI'!F:F=$A92,'2016-2021 TRI'!P:P)), "lbm", "kg") -> 2 | L92: =CONVERT(_xlfn.MAXIFS('2016-2021 TRI'!P:P,'2016-2021 TRI'!F:F,A92), "lbm", "kg") -> 2 | M92: =CONVERT(MEDIAN(IF('2016-2021 TRI'!F:F=$A92,'2016-2021 TRI'!Q:Q)), "lbm", "kg") -> 0 | N92: =CONVERT(_xlfn.MAXIFS('2016-2021 TRI'!Q:Q,'2016-2021 TRI'!F:F,A92), "lbm", "kg") -> 113 | O92: 0.006 | P92: 0.006 | Q92: 0.000 | R92: 0.324
A93: 84087PHLLP393SO | B93: =VLOOKUP($A93, '2016-2021 TRI'!$F:$L, 3, FALSE) -> HOLLYFRONTIER WOODS CROSS REFINING LLC | C93: =VLOOKUP($A93, '2016-2021 TRI'!$F:$L, 4, FALSE) -> 393 S 800 W | D93: =VLOOKUP($A93, '2016-2021 TRI'!$F:$L, 5, FALSE) -> WOODS CROSS | E93: =VLOOKUP($A93, '2016-2021 TRI'!$F:$L, 6, FALSE) -> UT | F93: =VLOOKUP($A93, '2016-2021 TRI'!$F:$L, 7, FALSE) -> 84087 | G93: =VLOOKUP($A93, '2016-2021 TRI'!F:N, 9, FALSE) -> Processing as a reactant | H93: =VLOOKUP($A93, '2016-2021 TRI'!$F:$L, 2, FALSE) -> 324110 | I93: =IFERROR(VLOOKUP(H93, '2012 to 2017 NAICS'!C:D, 2, FALSE), VLOOKUP(H93, '2012 to 2017 NAICS'!A:B, 2, FALSE)) -> Petroleum Refineries | J93: =VLOOKUP(G93, 'OES Summary'!$A$2:$D$15, 3, FALSE) -> 350 | K93: =CONVERT(MEDIAN(IF('2016-2021 TRI'!F:F=$A93,'2016-2021 TRI'!P:P)), "lbm", "kg") -> 2 | L93: =CONVERT(_xlfn.MAXIFS('2016-2021 TRI'!P:P,'2016-2021 TRI'!F:F,A93), "lbm", "kg") -> 113 | M93: =CONVERT(MEDIAN(IF('2016-2021 TRI'!F:F=$A93,'2016-2021 TRI'!Q:Q)), "lbm", "kg") -> 0 | N93: =CONVERT(_xlfn.MAXIFS('2016-2021 TRI'!Q:Q,'2016-2021 TRI'!F:F,A93), "lbm", "kg") -> 0 | O93: 0.006 | P93: 0.324 | Q93: 0.000 | R93: 0.000
A94: 77017LYNDL12000 | B94: =VLOOKUP($A94, '2016-2021 TRI'!$F:$L, 3, FALSE) -> HOUSTON REFINING LP | C94: =VLOOKUP($A94, '2016-2021 TRI'!$F:$L, 4, FALSE) -> 12000 LAWNDALE ST | D94: =VLOOKUP($A94, '2016-2021 TRI'!$F:$L, 5, FALSE) -> HOUSTON | E94: =VLOOKUP($A94, '2016-2021 TRI'!$F:$L, 6, FALSE) -> TX | F94: =VLOOKUP($A94, '2016-2021 TRI'!$F:$L, 7, FALSE) -> 77017 | G94: =VLOOKUP($A94, '2016-2021 TRI'!F:N, 9, FALSE) -> Processing - Incorporation into formulation, mixture, or reaction product | H94: =VLOOKUP($A94, '2016-2021 TRI'!$F:$L, 2, FALSE) -> 324110 | I94: =IFERROR(VLOOKUP(H94, '2012 to 2017 NAICS'!C:D, 2, FALSE), VLOOKUP(H94, '2012 to 2017 NAICS'!A:B, 2, FALSE)) -> Petroleum Refineries | J94: =VLOOKUP(G94, 'OES Summary'!$A$2:$D$15, 3, FALSE) -> 250 | K94: =CONVERT(MEDIAN(IF('2016-2021 TRI'!F:F=$A94,'2016-2021 TRI'!P:P)), "lbm", "kg") -> 120 | L94: =CONVERT(_xlfn.MAXIFS('2016-2021 TRI'!P:P,'2016-2021 TRI'!F:F,A94), "lbm", "kg") -> 217 | M94: =CONVERT(MEDIAN(IF('2016-2021 TRI'!F:F=$A94,'2016-2021 TRI'!Q:Q)), "lbm", "kg") -> 1413 | N94: =CONVERT(_xlfn.MAXIFS('2016-2021 TRI'!Q:Q,'2016-2021 TRI'!F:F,A94), "lbm", "kg") -> 1483 | O94: 0.479 | P94: 0.867 | Q94: 5.652 | R94: 5.933
A95: 44301BFGDR240WE | B95: =VLOOKUP($A95, '2016-2021 TRI'!$F:$L, 3, FALSE) -> HUNTSMAN ADVANCED MATERIALS AMERICAS LLC | C95: =VLOOKUP($A95, '2016-2021 TRI'!$F:$L, 4, FALSE) -> 240 W EMERLING AVE | D95: =VLOOKUP($A95, '2016-2021 TRI'!$F:$L, 5, FALSE) -> AKRON | E95: =VLOOKUP($A95, '2016-2021 TRI'!$F:$L, 6, FALSE) -> OH | F95: =VLOOKUP($A95, '2016-2021 TRI'!$F:$L, 7, FALSE) -> 44301 | G95: =VLOOKUP($A95, '2016-2021 TRI'!F:N, 9, FALSE) -> Processing as a reactant | H95: =VLOOKUP($A95, '2016-2021 TRI'!$F:$L, 2, FALSE) -> 325199 | I95: =IFERROR(VLOOKUP(H95, '2012 to 2017 NAICS'!C:D, 2, FALSE), VLOOKUP(H95, '2012 to 2017 NAICS'!A:B, 2, FALSE)) -> All Other Basic Organic Chemical Manufacturing | J95: =VLOOKUP(G95, 'OES Summary'!$A$2:$D$15, 3, FALSE) -> 350 | K95: =CONVERT(MEDIAN(IF('2016-2021 TRI'!F:F=$A95,'2016-2021 TRI'!P:P)), "lbm", "kg") -> 783 | L95: =CONVERT(_xlfn.MAXIFS('2016-2021 TRI'!P:P,'2016-2021 TRI'!F:F,A95), "lbm", "kg") -> 961 | M95: =CONVERT(MEDIAN(IF('2016-2021 TRI'!F:F=$A95,'2016-2021 TRI'!Q:Q)), "lbm", "kg") -> 3888 | N95: =CONVERT(_xlfn.MAXIFS('2016-2021 TRI'!Q:Q,'2016-2021 TRI'!F:F,A95), "lbm", "kg") -> 4677 | O95: 2.236 | P95: 2.745 | Q95: 11.109 | R95: 13.364
A96: 77651TXCCHHWY36 | B96: =VLOOKUP($A96, '2016-2021 TRI'!$F:$L, 3, FALSE) -> HUNTSMAN PETROCHEMICAL LLC PORT NECHES FACILITY | C96: =VLOOKUP($A96, '2016-2021 TRI'!$F:$L, 4, FALSE) -> 6001 HWY 366 | D96: =VLOOKUP($A96, '2016-2021 TRI'!$F:$L, 5, FALSE) -> PORT NECHES | E96: =VLOOKUP($A96, '2016-2021 TRI'!$F:$L, 6, FALSE) -> TX | F96: =VLOOKUP($A96, '2016-2021 TRI'!$F:$L, 7, FALSE) -> 77651 | G96: =VLOOKUP($A96, '2016-2021 TRI'!F:N, 9, FALSE) -> Recycling | H96: =VLOOKUP($A96, '2016-2021 TRI'!$F:$L, 2, FALSE) -> 325199 | I96: =IFERROR(VLOOKUP(H96, '2012 to 2017 NAICS'!C:D, 2, FALSE), VLOOKUP(H96, '2012 to 2017 NAICS'!A:B, 2, FALSE)) -> All Other Basic Organic Chemical Manufacturing | J96: =VLOOKUP(G96, 'OES Summary'!$A$2:$D$15, 3, FALSE) -> 350 | K96: =CONVERT(MEDIAN(IF('2016-2021 TRI'!F:F=$A96,'2016-2021 TRI'!P:P)), "lbm", "kg") -> 77 | L96: =CONVERT(_xlfn.MAXIFS('2016-2021 TRI'!P:P,'2016-2021 TRI'!F:F,A96), "lbm", "kg") -> 181 | M96: =CONVERT(MEDIAN(IF('2016-2021 TRI'!F:F=$A96,'2016-2021 TRI'!Q:Q)), "lbm", "kg") -> 64 | N96: =CONVERT(_xlfn.MAXIFS('2016-2021 TRI'!Q:Q,'2016-2021 TRI'!F:F,A96), "lbm", "kg") -> 85 | O96: 0.220 | P96: 0.517 | Q96: 0.183 | R96: 0.242
A97: 96707CHVRN91480 | B97: =VLOOKUP($A97, '2016-2021 TRI'!$F:$L, 3, FALSE) -> IES DOWNSTREAM LLC - KAPOLEI TERMINAL | C97: =VLOOKUP($A97, '2016-2021 TRI'!$F:$L, 4, FALSE) -> 91-480 MALAKOLE ST | D97: =VLOOKUP($A97, '2016-2021 TRI'!$F:$L, 5, FALSE) -> KAPOLEI | E97: =VLOOKUP($A97, '2016-2021 TRI'!$F:$L, 6, FALSE) -> HI | F97: =VLOOKUP($A97, '2016-2021 TRI'!$F:$L, 7, FALSE) -> 96707 | G97: =VLOOKUP($A97, '2016-2021 TRI'!F:N, 9, FALSE) -> Repackaging | H97: =VLOOKUP($A97, '2016-2021 TRI'!$F:$L, 2, FALSE) -> 324110 | I97: =IFERROR(VLOOKUP(H97, '2012 to 2017 NAICS'!C:D, 2, FALSE), VLOOKUP(H97, '2012 to 2017 NAICS'!A:B, 2, FALSE)) -> Petroleum Refineries | J97: =VLOOKUP(G97, 'OES Summary'!$A$2:$D$15, 3, FALSE) -> 350 | K97: =CONVERT(MEDIAN(IF('2016-2021 TRI'!F:F=$A97,'2016-2021 TRI'!P:P)), "lbm", "kg") -> 998 | L97: =CONVERT(_xlfn.MAXIFS('2016-2021 TRI'!P:P,'2016-2021 TRI'!F:F,A97), "lbm", "kg") -> 998 | M97: =CONVERT(MEDIAN(IF('2016-2021 TRI'!F:F=$A97,'2016-2021 TRI'!Q:Q)), "lbm", "kg") -> 6 | N97: =CONVERT(_xlfn.MAXIFS('2016-2021 TRI'!Q:Q,'2016-2021 TRI'!F:F,A97), "lbm", "kg") -> 8 | O97: 2.851 | P97: 2.851 | Q97: 0.018 | R97: 0.022
A98: 35601MCCHMFINLE | B98: =VLOOKUP($A98, '2016-2021 TRI'!$F:$L, 3, FALSE) -> INDORAMA VENTURES | C98: =VLOOKUP($A98, '2016-2021 TRI'!$F:$L, 4, FALSE) -> 1401 FINLEY ISLAND RD | D98: =VLOOKUP($A98, '2016-2021 TRI'!$F:$L, 5, FALSE) -> DECATUR | E98: =VLOOKUP($A98, '2016-2021 TRI'!$F:$L, 6, FALSE) -> AL | F98: =VLOOKUP($A98, '2016-2021 TRI'!$F:$L, 7, FALSE) -> 35601 | G98: =VLOOKUP($A98, '2016-2021 TRI'!F:N, 9, FALSE) -> Processing as a reactant | H98: =VLOOKUP($A98, '2016-2021 TRI'!$F:$L, 2, FALSE) -> 325110 | I98: =IFERROR(VLOOKUP(H98, '2012 to 2017 NAICS'!C:D, 2, FALSE), VLOOKUP(H98, '2012 to 2017 NAICS'!A:B, 2, FALSE)) -> Petrochemical Manufacturing | J98: =VLOOKUP(G98, 'OES Summary'!$A$2:$D$15, 3, FALSE) -> 350 | K98: =CONVERT(MEDIAN(IF('2016-2021 TRI'!F:F=$A98,'2016-2021 TRI'!P:P)), "lbm", "kg") -> 885 | L98: =CONVERT(_xlfn.MAXIFS('2016-2021 TRI'!P:P,'2016-2021 TRI'!F:F,A98), "lbm", "kg") -> 1270 | M98: =CONVERT(MEDIAN(IF('2016-2021 TRI'!F:F=$A98,'2016-2021 TRI'!Q:Q)), "lbm", "kg") -> 354 | N98: =CONVERT(_xlfn.MAXIFS('2016-2021 TRI'!Q:Q,'2016-2021 TRI'!F:F,A98), "lbm", "kg") -> 590 | O98: 2.527 | P98: 3.629 | Q98: 1.011 | R98: 1.685
A99: 70663CCDNTHIGHW | B99: =VLOOKUP($A99, '2016-2021 TRI'!$F:$L, 3, FALSE) -> INDORAMA VENTURES OLEFINS LLC | C99: =VLOOKUP($A99, '2016-2021 TRI'!$F:$L, 4, FALSE) -> 4300 HIGHWAY 108 | D99: =VLOOKUP($A99, '2016-2021 TRI'!$F:$L, 5, FALSE) -> WESTLAKE | E99: =VLOOKUP($A99, '2016-2021 TRI'!$F:$L, 6, FALSE) -> LA | F99: =VLOOKUP($A99, '2016-2021 TRI'!$F:$L, 7, FALSE) -> 70669 | G99: =VLOOKUP($A99, '2016-2021 TRI'!F:N, 9, FALSE) -> Processing - Incorporation into formulation, mixture, or reaction product | H99: =VLOOKUP($A99, '2016-2021 TRI'!$F:$L, 2, FALSE) -> 325110 | I99: =IFERROR(VLOOKUP(H99, '2012 to 2017 NAICS'!C:D, 2, FALSE), VLOOKUP(H99, '2012 to 2017 NAICS'!A:B, 2, FALSE)) -> Petrochemical Manufacturing | J99: =VLOOKUP(G99, 'OES Summary'!$A$2:$D$15, 3, FALSE) -> 250 | K99: =CONVERT(MEDIAN(IF('2016-2021 TRI'!F:F=$A99,'2016-2021 TRI'!P:P)), "lbm", "kg") -> 1269 | L99: =CONVERT(_xlfn.MAXIFS('2016-2021 TRI'!P:P,'2016-2021 TRI'!F:F,A99), "lbm", "kg") -> 1275 | M99: =CONVERT(MEDIAN(IF('2016-2021 TRI'!F:F=$A99,'2016-2021 TRI'!Q:Q)), "lbm", "kg") -> 420 | N99: =CONVERT(_xlfn.MAXIFS('2016-2021 TRI'!Q:Q,'2016-2021 TRI'!F:F,A99), "lbm", "kg") -> 442 | O99: 5.077 | P99: 5.100 | Q99: 1.678 | R99: 1.769
A100: 45805BPCHMFORTA | B100: =VLOOKUP($A100, '2016-2021 TRI'!$F:$L, 3, FALSE) -> INEOS NITRILES USA LLC | C100: =VLOOKUP($A100, '2016-2021 TRI'!$F:$L, 4, FALSE) -> 1900 FORT AMANDA RD | D100: =VLOOKUP($A100, '2016-2021 TRI'!$F:$L, 5, FALSE) -> LIMA | E100: =VLOOKUP($A100, '2016-2021 TRI'!$F:$L, 6, FALSE) -> OH | F100: =VLOOKUP($A100, '2016-2021 TRI'!$F:$L, 7, FALSE) -> 45804 | G100: =VLOOKUP($A100, '2016-2021 TRI'!F:N, 9, FALSE) -> Processing as a reactant | H100: =VLOOKUP($A100, '2016-2021 TRI'!$F:$L, 2, FALSE) -> 325199 | I100: =IFERROR(VLOOKUP(H100, '2012 to 2017 NAICS'!C:D, 2, FALSE), VLOOKUP(H100, '2012 to 2017 NAICS'!A:B, 2, FALSE)) -> All Other Basic Organic Chemical Manufacturing | J100: =VLOOKUP(G100, 'OES Summary'!$A$2:$D$15, 3, FALSE) -> 350 | K100: =CONVERT(MEDIAN(IF('2016-2021 TRI'!F:F=$A100,'2016-2021 TRI'!P:P)), "lbm", "kg") -> 0 | L100: =CONVERT(_xlfn.MAXIFS('2016-2021 TRI'!P:P,'2016-2021 TRI'!F:F,A100), "lbm", "kg") -> 0 | M100: =CONVERT(MEDIAN(IF('2016-2021 TRI'!F:F=$A100,'2016-2021 TRI'!Q:Q)), "lbm", "kg") -> 234 | N100: =CONVERT(_xlfn.MAXIFS('2016-2021 TRI'!Q:Q,'2016-2021 TRI'!F:F,A100), "lbm", "kg") -> 234 | O100: 0.000 | P100: 0.000 | Q100: 0.667 | R100: 0.667
A101: 77507HNTSM12222 | B101: =VLOOKUP($A101, '2016-2021 TRI'!$F:$L, 3, FALSE) -> INEOS STYROLUTION AMERICA LLC | C101: =VLOOKUP($A101, '2016-2021 TRI'!$F:$L, 4, FALSE) -> 12222 PORT RD | D101: =VLOOKUP($A101, '2016-2021 TRI'!$F:$L, 5, FALSE) -> PASADENA | E101: =VLOOKUP($A101, '2016-2021 TRI'!$F:$L, 6, FALSE) -> TX | F101: =VLOOKUP($A101, '2016-2021 TRI'!$F:$L, 7, FALSE) -> 77507 | G101: =VLOOKUP($A101, '2016-2021 TRI'!F:N, 9, FALSE) -> Plastics and Rubber Compounding | H101: =VLOOKUP($A101, '2016-2021 TRI'!$F:$L, 2, FALSE) -> 325110 | I101: =IFERROR(VLOOKUP(H101, '2012 to 2017 NAICS'!C:D, 2, FALSE), VLOOKUP(H101, '2012 to 2017 NAICS'!A:B, 2, FALSE)) -> Petrochemical Manufacturing | J101: =VLOOKUP(G101, 'OES Summary'!$A$2:$D$15, 3, FALSE) -> 300 | K101: =CONVERT(MEDIAN(IF('2016-2021 TRI'!F:F=$A101,'2016-2021 TRI'!P:P)), "lbm", "kg") -> 0 | L101: =CONVERT(_xlfn.MAXIFS('2016-2021 TRI'!P:P,'2016-2021 TRI'!F:F,A101), "lbm", "kg") -> 0 | M101: =CONVERT(MEDIAN(IF('2016-2021 TRI'!F:F=$A101,'2016-2021 TRI'!Q:Q)), "lbm", "kg") -> 218 | N101: =CONVERT(_xlfn.MAXIFS('2016-2021 TRI'!Q:Q,'2016-2021 TRI'!F:F,A101), "lbm", "kg") -> 226 | O101: 0.000 | P101: 0.000 | Q101: 0.728 | R101: 0.753
A102: 45001MNSNT356TH | B102: =VLOOKUP($A102, '2016-2021 TRI'!$F:$L, 3, FALSE) -> INEOS USA LLC | C102: =VLOOKUP($A102, '2016-2021 TRI'!$F:$L, 4, FALSE) -> 356 THREE RIVERS PKWY | D102: =VLOOKUP($A102, '2016-2021 TRI'!$F:$L, 5, FALSE) -> ADDYSTON | E102: =VLOOKUP($A102, '2016-2021 TRI'!$F:$L, 6, FALSE) -> OH | F102: =VLOOKUP($A102, '2016-2021 TRI'!$F:$L, 7, FALSE) -> 45001 | G102: =VLOOKUP($A102, '2016-2021 TRI'!F:N, 9, FALSE) -> Plastics and Rubber Compounding | H102: =VLOOKUP($A102, '2016-2021 TRI'!$F:$L, 2, FALSE) -> 325211 | I102: =IFERROR(VLOOKUP(H102, '2012 to 2017 NAICS'!C:D, 2, FALSE), VLOOKUP(H102, '2012 to 2017 NAICS'!A:B, 2, FALSE)) -> Plastics Material and Resin Manufacturing | J102: =VLOOKUP(G102, 'OES Summary'!$A$2:$D$15, 3, FALSE) -> 300 | K102: =CONVERT(MEDIAN(IF('2016-2021 TRI'!F:F=$A102,'2016-2021 TRI'!P:P)), "lbm", "kg") -> 125 | L102: =CONVERT(_xlfn.MAXIFS('2016-2021 TRI'!P:P,'2016-2021 TRI'!F:F,A102), "lbm", "kg") -> 680 | M102: =CONVERT(MEDIAN(IF('2016-2021 TRI'!F:F=$A102,'2016-2021 TRI'!Q:Q)), "lbm", "kg") -> 1520 | N102: =CONVERT(_xlfn.MAXIFS('2016-2021 TRI'!Q:Q,'2016-2021 TRI'!F:F,A102), "lbm", "kg") -> 1860 | O102: 0.416 | P102: 2.268 | Q102: 5.065 | R102: 6.199
A103: 77511MCCHM2MISO | B103: =VLOOKUP($A103, '2016-2021 TRI'!$F:$L, 3, FALSE) -> INEOS USA LLC - CHOCOLATE BAYOU PLANT | C103: =VLOOKUP($A103, '2016-2021 TRI'!$F:$L, 4, FALSE) -> 2 MILES S OF INTERSECTION FM2004 & FM2917 | D103: =VLOOKUP($A103, '2016-2021 TRI'!$F:$L, 5, FALSE) -> ALVIN | E103: =VLOOKUP($A103, '2016-2021 TRI'!$F:$L, 6, FALSE) -> TX | F103: =VLOOKUP($A103, '2016-2021 TRI'!$F:$L, 7, FALSE) -> 77511 | G103: =VLOOKUP($A103, '2016-2021 TRI'!F:N, 9, FALSE) -> Manufacturing | H103: =VLOOKUP($A103, '2016-2021 TRI'!$F:$L, 2, FALSE) -> 325199 | I103: =IFERROR(VLOOKUP(H103, '2012 to 2017 NAICS'!C:D, 2, FALSE), VLOOKUP(H103, '2012 to 2017 NAICS'!A:B, 2, FALSE)) -> All Other Basic Organic Chemical Manufacturing | J103: =VLOOKUP(G103, 'OES Summary'!$A$2:$D$15, 3, FALSE) -> 350 | K103: =CONVERT(MEDIAN(IF('2016-2021 TRI'!F:F=$A103,'2016-2021 TRI'!P:P)), "lbm", "kg") -> 7581 | L103: =CONVERT(_xlfn.MAXIFS('2016-2021 TRI'!P:P,'2016-2021 TRI'!F:F,A103), "lbm", "kg") -> 10617 | M103: =CONVERT(MEDIAN(IF('2016-2021 TRI'!F:F=$A103,'2016-2021 TRI'!Q:Q)), "lbm", "kg") -> 35226 | N103: =CONVERT(_xlfn.MAXIFS('2016-2021 TRI'!Q:Q,'2016-2021 TRI'!F:F,A103), "lbm", "kg") -> 41751 | O103: 21.659 | P103: 30.335 | Q103: 100.647 | R103: 119.288
A104: 77630NVSTS355AF | B104: =VLOOKUP($A104, '2016-2021 TRI'!$F:$L, 3, FALSE) -> INV NYLON CHEMICALS AMERICAS ORANGE SITE | C104: =VLOOKUP($A104, '2016-2021 TRI'!$F:$L, 4, FALSE) -> 3055A FM 1006 | D104: =VLOOKUP($A104, '2016-2021 TRI'!$F:$L, 5, FALSE) -> ORANGE | E104: =VLOOKUP($A104, '2016-2021 TRI'!$F:$L, 6, FALSE) -> TX | F104: =VLOOKUP($A104, '2016-2021 TRI'!$F:$L, 7, FALSE) -> 77630 | G104: =VLOOKUP($A104, '2016-2021 TRI'!F:N, 9, FALSE) -> Processing as a reactant | H104: =VLOOKUP($A104, '2016-2021 TRI'!$F:$L, 2, FALSE) -> 325199 | I104: =IFERROR(VLOOKUP(H104, '2012 to 2017 NAICS'!C:D, 2, FALSE), VLOOKUP(H104, '2012 to 2017 NAICS'!A:B, 2, FALSE)) -> All Other Basic Organic Chemical Manufacturing | J104: =VLOOKUP(G104, 'OES Summary'!$A$2:$D$15, 3, FALSE) -> 350 | K104: =CONVERT(MEDIAN(IF('2016-2021 TRI'!F:F=$A104,'2016-2021 TRI'!P:P)), "lbm", "kg") -> 1474 | L104: =CONVERT(_xlfn.MAXIFS('2016-2021 TRI'!P:P,'2016-2021 TRI'!F:F,A104), "lbm", "kg") -> 2449 | M104: =CONVERT(MEDIAN(IF('2016-2021 TRI'!F:F=$A104,'2016-2021 TRI'!Q:Q)), "lbm", "kg") -> 8165 | N104: =CONVERT(_xlfn.MAXIFS('2016-2021 TRI'!Q:Q,'2016-2021 TRI'!F:F,A104), "lbm", "kg") -> 10886 | O104: 4.212 | P104: 6.998 | Q104: 23.328 | R104: 31.103
A105: 77905NVSTS2695L | B105: =VLOOKUP($A105, '2016-2021 TRI'!$F:$L, 3, FALSE) -> INV NYLON CHEMICALS AMERICAS VICTORIA SITE | C105: =VLOOKUP($A105, '2016-2021 TRI'!$F:$L, 4, FALSE) -> 2695 OLD BLOOMINGTON RD NORTH | D105: =VLOOKUP($A105, '2016-2021 TRI'!$F:$L, 5, FALSE) -> VICTORIA | E105: =VLOOKUP($A105, '2016-2021 TRI'!$F:$L, 6, FALSE) -> TX | F105: =VLOOKUP($A105, '2016-2021 TRI'!$F:$L, 7, FALSE) -> 77905 | G105: =VLOOKUP($A105, '2016-2021 TRI'!F:N, 9, FALSE) -> Processing as a reactant | H105: =VLOOKUP($A105, '2016-2021 TRI'!$F:$L, 2, FALSE) -> 325199 | I105: =IFERROR(VLOOKUP(H105, '2012 to 2017 NAICS'!C:D, 2, FALSE), VLOOKUP(H105, '2012 to 2017 NAICS'!A:B, 2, FALSE)) -> All Other Basic Organic Chemical Manufacturing | J105: =VLOOKUP(G105, 'OES Summary'!$A$2:$D$15, 3, FALSE) -> 350 | K105: =CONVERT(MEDIAN(IF('2016-2021 TRI'!F:F=$A105,'2016-2021 TRI'!P:P)), "lbm", "kg") -> 1678 | L105: =CONVERT(_xlfn.MAXIFS('2016-2021 TRI'!P:P,'2016-2021 TRI'!F:F,A105), "lbm", "kg") -> 2191 | M105: =CONVERT(MEDIAN(IF('2016-2021 TRI'!F:F=$A105,'2016-2021 TRI'!Q:Q)), "lbm", "kg") -> 8165 | N105: =CONVERT(_xlfn.MAXIFS('2016-2021 TRI'!Q:Q,'2016-2021 TRI'!F:F,A105), "lbm", "kg") -> 9072 | O105: 4.795 | P105: 6.260 | Q105: 23.328 | R105: 25.920
A106: 77017MBLCH9822L | B106: =VLOOKUP($A106, '2016-2021 TRI'!$F:$L, 3, FALSE) -> INVISTA HOUSTON | C106: =VLOOKUP($A106, '2016-2021 TRI'!$F:$L, 4, FALSE) -> 9822 LA PORTE FWY | D106: =VLOOKUP($A106, '2016-2021 TRI'!$F:$L, 5, FALSE) -> HOUSTON | E106: =VLOOKUP($A106, '2016-2021 TRI'!$F:$L, 6, FALSE) -> TX | F106: =VLOOKUP($A106, '2016-2021 TRI'!$F:$L, 7, FALSE) -> 77017 | G106: =VLOOKUP($A106, '2016-2021 TRI'!F:N, 9, FALSE) -> Recycling | H106: =VLOOKUP($A106, '2016-2021 TRI'!$F:$L, 2, FALSE) -> 325110 | I106: =IFERROR(VLOOKUP(H106, '2012 to 2017 NAICS'!C:D, 2, FALSE), VLOOKUP(H106, '2012 to 2017 NAICS'!A:B, 2, FALSE)) -> Petrochemical Manufacturing | J106: =VLOOKUP(G106, 'OES Summary'!$A$2:$D$15, 3, FALSE) -> 350 | K106: =CONVERT(MEDIAN(IF('2016-2021 TRI'!F:F=$A106,'2016-2021 TRI'!P:P)), "lbm", "kg") -> 12 | L106: =CONVERT(_xlfn.MAXIFS('2016-2021 TRI'!P:P,'2016-2021 TRI'!F:F,A106), "lbm", "kg") -> 13 | M106: =CONVERT(MEDIAN(IF('2016-2021 TRI'!F:F=$A106,'2016-2021 TRI'!Q:Q)), "lbm", "kg") -> 298 | N106: =CONVERT(_xlfn.MAXIFS('2016-2021 TRI'!Q:Q,'2016-2021 TRI'!F:F,A106), "lbm", "kg") -> 544 | O106: 0.034 | P106: 0.038 | Q106: 0.851 | R106: 1.555
A107: 79008CNCPHSTATE | B107: =VLOOKUP($A107, '2016-2021 TRI'!$F:$L, 3, FALSE) -> JOHNSON TANK FARM | C107: =VLOOKUP($A107, '2016-2021 TRI'!$F:$L, 4, FALSE) -> STATE HWY SPUR 119 N | D107: =VLOOKUP($A107, '2016-2021 TRI'!$F:$L, 5, FALSE) -> BORGER | E107: =VLOOKUP($A107, '2016-2021 TRI'!$F:$L, 6, FALSE) -> TX | F107: =VLOOKUP($A107, '2016-2021 TRI'!$F:$L, 7, FALSE) -> 79007 | G107: =VLOOKUP($A107, '2016-2021 TRI'!F:N, 9, FALSE) -> Repackaging | H107: =VLOOKUP($A107, '2016-2021 TRI'!$F:$L, 2, FALSE) -> 486910 | I107: =IFERROR(VLOOKUP(H107, '2012 to 2017 NAICS'!C:D, 2, FALSE), VLOOKUP(H107, '2012 to 2017 NAICS'!A:B, 2, FALSE)) -> Pipeline Transportation of Refined Petroleum Products | J107: =VLOOKUP(G107, 'OES Summary'!$A$2:$D$15, 3, FALSE) -> 350 | K107: =CONVERT(MEDIAN(IF('2016-2021 TRI'!F:F=$A107,'2016-2021 TRI'!P:P)), "lbm", "kg") -> 0 | L107: =CONVERT(_xlfn.MAXIFS('2016-2021 TRI'!P:P,'2016-2021 TRI'!F:F,A107), "lbm", "kg") -> 0 | M107: =CONVERT(MEDIAN(IF('2016-2021 TRI'!F:F=$A107,'2016-2021 TRI'!Q:Q)), "lbm", "kg") -> 35 | N107: =CONVERT(_xlfn.MAXIFS('2016-2021 TRI'!Q:Q,'2016-2021 TRI'!F:F,A107), "lbm", "kg") -> 70 | O107: 0.000 | P107: 0.000 | Q107: 0.100 | R107: 0.201
A108: 77507NSSKC10500 | B108: =VLOOKUP($A108, '2016-2021 TRI'!$F:$L, 3, FALSE) -> JX NIPPON CHEMICAL TEXAS INC | C108: =VLOOKUP($A108, '2016-2021 TRI'!$F:$L, 4, FALSE) -> 10500 BAY AREA BLVD | D108: =VLOOKUP($A108, '2016-2021 TRI'!$F:$L, 5, FALSE) -> PASADENA | E108: =VLOOKUP($A108, '2016-2021 TRI'!$F:$L, 6, FALSE) -> TX | F108: =VLOOKUP($A108, '2016-2021 TRI'!$F:$L, 7, FALSE) -> 77507 | G108: =VLOOKUP($A108, '2016-2021 TRI'!F:N, 9, FALSE) -> Processing as a reactant | H108: =VLOOKUP($A108, '2016-2021 TRI'!$F:$L, 2, FALSE) -> 325110 | I108: =IFERROR(VLOOKUP(H108, '2012 to 2017 NAICS'!C:D, 2, FALSE), VLOOKUP(H108, '2012 to 2017 NAICS'!A:B, 2, FALSE)) -> Petrochemical Manufacturing | J108: =VLOOKUP(G108, 'OES Summary'!$A$2:$D$15, 3, FALSE) -> 350 | K108: =CONVERT(MEDIAN(IF('2016-2021 TRI'!F:F=$A108,'2016-2021 TRI'!P:P)), "lbm", "kg") -> 224 | L108: =CONVERT(_xlfn.MAXIFS('2016-2021 TRI'!P:P,'2016-2021 TRI'!F:F,A108), "lbm", "kg") -> 458 | M108: =CONVERT(MEDIAN(IF('2016-2021 TRI'!F:F=$A108,'2016-2021 TRI'!Q:Q)), "lbm", "kg") -> 394 | N108: =CONVERT(_xlfn.MAXIFS('2016-2021 TRI'!Q:Q,'2016-2021 TRI'!F:F,A108), "lbm", "kg") -> 806 | O108: 0.640 | P108: 1.309 | Q108: 1.127 | R108: 2.302
A109: 77507KNKTX6161U | B109: =VLOOKUP($A109, '2016-2021 TRI'!$F:$L, 3, FALSE) -> KANEKA NORTH AMERICA LLC | C109: =VLOOKUP($A109, '2016-2021 TRI'!$F:$L, 4, FALSE) -> 6161 UNDERWOOD RD | D109: =VLOOKUP($A109, '2016-2021 TRI'!$F:$L, 5, FALSE) -> PASADENA | E109: =VLOOKUP($A109, '2016-2021 TRI'!$F:$L, 6, FALSE) -> TX | F109: =VLOOKUP($A109, '2016-2021 TRI'!$F:$L, 7, FALSE) -> 77507 | G109: =VLOOKUP($A109, '2016-2021 TRI'!F:N, 9, FALSE) -> Plastics and Rubber Compounding | H109: =VLOOKUP($A109, '2016-2021 TRI'!$F:$L, 2, FALSE) -> 325211 | I109: =IFERROR(VLOOKUP(H109, '2012 to 2017 NAICS'!C:D, 2, FALSE), VLOOKUP(H109, '2012 to 2017 NAICS'!A:B, 2, FALSE)) -> Plastics Material and Resin Manufacturing | J109: =VLOOKUP(G109, 'OES Summary'!$A$2:$D$15, 3, FALSE) -> 300 | K109: =CONVERT(MEDIAN(IF('2016-2021 TRI'!F:F=$A109,'2016-2021 TRI'!P:P)), "lbm", "kg") -> 1260 | L109: =CONVERT(_xlfn.MAXIFS('2016-2021 TRI'!P:P,'2016-2021 TRI'!F:F,A109), "lbm", "kg") -> 1864 | M109: =CONVERT(MEDIAN(IF('2016-2021 TRI'!F:F=$A109,'2016-2021 TRI'!Q:Q)), "lbm", "kg") -> 1162 | N109: =CONVERT(_xlfn.MAXIFS('2016-2021 TRI'!Q:Q,'2016-2021 TRI'!F:F,A109), "lbm", "kg") -> 1628 | O109: 4.200 | P109: 6.213 | Q109: 3.874 | R109: 5.426
A110: 7754WKNDRM47CLI | B110: =VLOOKUP($A110, '2016-2021 TRI'!$F:$L, 3, FALSE) -> KINDER MORGAN CRUDE & CONDENSATE LLC | C110: =VLOOKUP($A110, '2016-2021 TRI'!$F:$L, 4, FALSE) -> 407 CLINTON DR | D110: =VLOOKUP($A110, '2016-2021 TRI'!$F:$L, 5, FALSE) -> GALENA PARK | E110: =VLOOKUP($A110, '2016-2021 TRI'!$F:$L, 6, FALSE) -> TX | F110: =VLOOKUP($A110, '2016-2021 TRI'!$F:$L, 7, FALSE) -> 77547 | G110: =VLOOKUP($A110, '2016-2021 TRI'!F:N, 9, FALSE) -> Repackaging | H110: =VLOOKUP($A110, '2016-2021 TRI'!$F:$L, 2, FALSE) -> 324110 | I110: =IFERROR(VLOOKUP(H110, '2012 to 2017 NAICS'!C:D, 2, FALSE), VLOOKUP(H110, '2012 to 2017 NAICS'!A:B, 2, FALSE)) -> Petroleum Refineries | J110: =VLOOKUP(G110, 'OES Summary'!$A$2:$D$15, 3, FALSE) -> 350 | K110: =CONVERT(MEDIAN(IF('2016-2021 TRI'!F:F=$A110,'2016-2021 TRI'!P:P)), "lbm", "kg") -> 227 | L110: =CONVERT(_xlfn.MAXIFS('2016-2021 TRI'!P:P,'2016-2021 TRI'!F:F,A110), "lbm", "kg") -> 227 | M110: =CONVERT(MEDIAN(IF('2016-2021 TRI'!F:F=$A110,'2016-2021 TRI'!Q:Q)), "lbm", "kg") -> 227 | N110: =CONVERT(_xlfn.MAXIFS('2016-2021 TRI'!Q:Q,'2016-2021 TRI'!F:F,A110), "lbm", "kg") -> 227 | O110: 0.648 | P110: 0.648 | Q110: 0.648 | R110: 0.648
A111: 45714SHLLC2982W | B111: =VLOOKUP($A111, '2016-2021 TRI'!$F:$L, 3, FALSE) -> KRATON POLYMERS US LLC | C111: =VLOOKUP($A111, '2016-2021 TRI'!$F:$L, 4, FALSE) -> 2419 STATE RT 618 | D111: =VLOOKUP($A111, '2016-2021 TRI'!$F:$L, 5, FALSE) -> BELPRE | E111: =VLOOKUP($A111, '2016-2021 TRI'!$F:$L, 6, FALSE) -> OH | F111: =VLOOKUP($A111, '2016-2021 TRI'!$F:$L, 7, FALSE) -> 45714 | G111: =VLOOKUP($A111, '2016-2021 TRI'!F:N, 9, FALSE) -> Plastics and Rubber Compounding | H111: =VLOOKUP($A111, '2016-2021 TRI'!$F:$L, 2, FALSE) -> 325212 | I111: =IFERROR(VLOOKUP(H111, '2012 to 2017 NAICS'!C:D, 2, FALSE), VLOOKUP(H111, '2012 to 2017 NAICS'!A:B, 2, FALSE)) -> Synthetic Rubber Manufacturing | J111: =VLOOKUP(G111, 'OES Summary'!$A$2:$D$15, 3, FALSE) -> 300 | K111: =CONVERT(MEDIAN(IF('2016-2021 TRI'!F:F=$A111,'2016-2021 TRI'!P:P)), "lbm", "kg") -> 1095 | L111: =CONVERT(_xlfn.MAXIFS('2016-2021 TRI'!P:P,'2016-2021 TRI'!F:F,A111), "lbm", "kg") -> 4073 | M111: =CONVERT(MEDIAN(IF('2016-2021 TRI'!F:F=$A111,'2016-2021 TRI'!Q:Q)), "lbm", "kg") -> 340 | N111: =CONVERT(_xlfn.MAXIFS('2016-2021 TRI'!Q:Q,'2016-2021 TRI'!F:F,A111), "lbm", "kg") -> 440 | O111: 3.651 | P111: 13.578 | Q111: 1.134 | R111: 1.467
A112: 77530KSLVL17LAK | B112: =VLOOKUP($A112, '2016-2021 TRI'!$F:$L, 3, FALSE) -> K-SOLV CHEMICALS LLC | C112: =VLOOKUP($A112, '2016-2021 TRI'!$F:$L, 4, FALSE) -> 1007 LAKESIDE DR | D112: =VLOOKUP($A112, '2016-2021 TRI'!$F:$L, 5, FALSE) -> CHANNELVIEW | E112: =VLOOKUP($A112, '2016-2021 TRI'!$F:$L, 6, FALSE) -> TX | F112: =VLOOKUP($A112, '2016-2021 TRI'!$F:$L, 7, FALSE) -> 77530 | G112: =VLOOKUP($A112, '2016-2021 TRI'!F:N, 9, FALSE) -> Repackaging | H112: =VLOOKUP($A112, '2016-2021 TRI'!$F:$L, 2, FALSE) -> 424710 | I112: =IFERROR(VLOOKUP(H112, '2012 to 2017 NAICS'!C:D, 2, FALSE), VLOOKUP(H112, '2012 to 2017 NAICS'!A:B, 2, FALSE)) -> Petroleum Bulk Stations and Terminals | J112: =VLOOKUP(G112, 'OES Summary'!$A$2:$D$15, 3, FALSE) -> 350 | K112: =CONVERT(MEDIAN(IF('2016-2021 TRI'!F:F=$A112,'2016-2021 TRI'!P:P)), "lbm", "kg") -> 22 | L112: =CONVERT(_xlfn.MAXIFS('2016-2021 TRI'!P:P,'2016-2021 TRI'!F:F,A112), "lbm", "kg") -> 31 | M112: =CONVERT(MEDIAN(IF('2016-2021 TRI'!F:F=$A112,'2016-2021 TRI'!Q:Q)), "lbm", "kg") -> 2782 | N112: =CONVERT(_xlfn.MAXIFS('2016-2021 TRI'!Q:Q,'2016-2021 TRI'!F:F,A112), "lbm", "kg") -> 3805 | O112: 0.062 | P112: 0.089 | Q112: 7.950 | R112: 10.871
A113: 77507SPTNC11414 | B113: =VLOOKUP($A113, '2016-2021 TRI'!$F:$L, 3, FALSE) -> KURARAY AMERICA INC SEPTON BU | C113: =VLOOKUP($A113, '2016-2021 TRI'!$F:$L, 4, FALSE) -> 11414 CHOATE RD | D113: =VLOOKUP($A113, '2016-2021 TRI'!$F:$L, 5, FALSE) -> PASADENA | E113: =VLOOKUP($A113, '2016-2021 TRI'!$F:$L, 6, FALSE) -> TX | F113: =VLOOKUP($A113, '2016-2021 TRI'!$F:$L, 7, FALSE) -> 77507 | G113: =VLOOKUP($A113, '2016-2021 TRI'!F:N, 9, FALSE) -> Plastics and Rubber Compounding | H113: =VLOOKUP($A113, '2016-2021 TRI'!$F:$L, 2, FALSE) -> 325211 | I113: =IFERROR(VLOOKUP(H113, '2012 to 2017 NAICS'!C:D, 2, FALSE), VLOOKUP(H113, '2012 to 2017 NAICS'!A:B, 2, FALSE)) -> Plastics Material and Resin Manufacturing | J113: =VLOOKUP(G113, 'OES Summary'!$A$2:$D$15, 3, FALSE) -> 300 | K113: =CONVERT(MEDIAN(IF('2016-2021 TRI'!F:F=$A113,'2016-2021 TRI'!P:P)), "lbm", "kg") -> 197 | L113: =CONVERT(_xlfn.MAXIFS('2016-2021 TRI'!P:P,'2016-2021 TRI'!F:F,A113), "lbm", "kg") -> 326 | M113: =CONVERT(MEDIAN(IF('2016-2021 TRI'!F:F=$A113,'2016-2021 TRI'!Q:Q)), "lbm", "kg") -> 326 | N113: =CONVERT(_xlfn.MAXIFS('2016-2021 TRI'!Q:Q,'2016-2021 TRI'!F:F,A113), "lbm", "kg") -> 486 | O113: 0.658 | P113: 1.087 | Q113: 1.086 | R113: 1.621
A114: 77571LNDGS11603 | B114: =VLOOKUP($A114, '2016-2021 TRI'!$F:$L, 3, FALSE) -> LA PORTE SYNGAS PLANT | C114: =VLOOKUP($A114, '2016-2021 TRI'!$F:$L, 4, FALSE) -> 11603 STRANG RD | D114: =VLOOKUP($A114, '2016-2021 TRI'!$F:$L, 5, FALSE) -> LA PORTE | E114: =VLOOKUP($A114, '2016-2021 TRI'!$F:$L, 6, FALSE) -> TX | F114: =VLOOKUP($A114, '2016-2021 TRI'!$F:$L, 7, FALSE) -> 77571 | G114: =VLOOKUP($A114, '2016-2021 TRI'!F:N, 9, FALSE) -> Processing as a reactant | H114: =VLOOKUP($A114, '2016-2021 TRI'!$F:$L, 2, FALSE) -> 325120 | I114: =IFERROR(VLOOKUP(H114, '2012 to 2017 NAICS'!C:D, 2, FALSE), VLOOKUP(H114, '2012 to 2017 NAICS'!A:B, 2, FALSE)) -> Industrial Gas Manufacturing | J114: =VLOOKUP(G114, 'OES Summary'!$A$2:$D$15, 3, FALSE) -> 350 | K114: =CONVERT(MEDIAN(IF('2016-2021 TRI'!F:F=$A114,'2016-2021 TRI'!P:P)), "lbm", "kg") -> 0 | L114: =CONVERT(_xlfn.MAXIFS('2016-2021 TRI'!P:P,'2016-2021 TRI'!F:F,A114), "lbm", "kg") -> 0 | M114: =CONVERT(MEDIAN(IF('2016-2021 TRI'!F:F=$A114,'2016-2021 TRI'!Q:Q)), "lbm", "kg") -> 49 | N114: =CONVERT(_xlfn.MAXIFS('2016-2021 TRI'!Q:Q,'2016-2021 TRI'!F:F,A114), "lbm", "kg") -> 68 | O114: 0.000 | P114: 0.000 | Q114: 0.141 | R114: 0.194
A115: 7066WLCCLL22BAY | B115: =VLOOKUP($A115, '2016-2021 TRI'!$F:$L, 3, FALSE) -> LACC LLC US/LOTTE CHEMICAL LOUISIANA LLC | C115: =VLOOKUP($A115, '2016-2021 TRI'!$F:$L, 4, FALSE) -> 2200 BAYOU D'INDE | D115: =VLOOKUP($A115, '2016-2021 TRI'!$F:$L, 5, FALSE) -> WESTLAKE | E115: =VLOOKUP($A115, '2016-2021 TRI'!$F:$L, 6, FALSE) -> LA | F115: =VLOOKUP($A115, '2016-2021 TRI'!$F:$L, 7, FALSE) -> 70669 | G115: =VLOOKUP($A115, '2016-2021 TRI'!F:N, 9, FALSE) -> Processing - Incorporation into formulation, mixture, or reaction product | H115: =VLOOKUP($A115, '2016-2021 TRI'!$F:$L, 2, FALSE) -> 325199 | I115: =IFERROR(VLOOKUP(H115, '2012 to 2017 NAICS'!C:D, 2, FALSE), VLOOKUP(H115, '2012 to 2017 NAICS'!A:B, 2, FALSE)) -> All Other Basic Organic Chemical Manufacturing | J115: =VLOOKUP(G115, 'OES Summary'!$A$2:$D$15, 3, FALSE) -> 250 | K115: =CONVERT(MEDIAN(IF('2016-2021 TRI'!F:F=$A115,'2016-2021 TRI'!P:P)), "lbm", "kg") -> 322 | L115: =CONVERT(_xlfn.MAXIFS('2016-2021 TRI'!P:P,'2016-2021 TRI'!F:F,A115), "lbm", "kg") -> 957 | M115: =CONVERT(MEDIAN(IF('2016-2021 TRI'!F:F=$A115,'2016-2021 TRI'!Q:Q)), "lbm", "kg") -> 235 | N115: =CONVERT(_xlfn.MAXIFS('2016-2021 TRI'!Q:Q,'2016-2021 TRI'!F:F,A115), "lbm", "kg") -> 657 | O115: 1.288 | P115: 3.828 | Q115: 0.940 | R115: 2.629
A116: 77521NCHML4803D | B116: =VLOOKUP($A116, '2016-2021 TRI'!$F:$L, 3, FALSE) -> LCY ELASTOMERS LP | C116: =VLOOKUP($A116, '2016-2021 TRI'!$F:$L, 4, FALSE) -> 4803 DECKER DR | D116: =VLOOKUP($A116, '2016-2021 TRI'!$F:$L, 5, FALSE) -> BAYTOWN | E116: =VLOOKUP($A116, '2016-2021 TRI'!$F:$L, 6, FALSE) -> TX | F116: =VLOOKUP($A116, '2016-2021 TRI'!$F:$L, 7, FALSE) -> 77520 | G116: =VLOOKUP($A116, '2016-2021 TRI'!F:N, 9, FALSE) -> Plastics and Rubber Compounding | H116: =VLOOKUP($A116, '2016-2021 TRI'!$F:$L, 2, FALSE) -> 325212 | I116: =IFERROR(VLOOKUP(H116, '2012 to 2017 NAICS'!C:D, 2, FALSE), VLOOKUP(H116, '2012 to 2017 NAICS'!A:B, 2, FALSE)) -> Synthetic Rubber Manufacturing | J116: =VLOOKUP(G116, 'OES Summary'!$A$2:$D$15, 3, FALSE) -> 300 | K116: =CONVERT(MEDIAN(IF('2016-2021 TRI'!F:F=$A116,'2016-2021 TRI'!P:P)), "lbm", "kg") -> 853 | L116: =CONVERT(_xlfn.MAXIFS('2016-2021 TRI'!P:P,'2016-2021 TRI'!F:F,A116), "lbm", "kg") -> 1180 | M116: =CONVERT(MEDIAN(IF('2016-2021 TRI'!F:F=$A116,'2016-2021 TRI'!Q:Q)), "lbm", "kg") -> 976 | N116: =CONVERT(_xlfn.MAXIFS('2016-2021 TRI'!Q:Q,'2016-2021 TRI'!F:F,A116), "lbm", "kg") -> 1241 | O116: 2.845 | P116: 3.932 | Q116: 3.254 | R116: 4.137
A117: 45804SHLCM1150S | B117: =VLOOKUP($A117, '2016-2021 TRI'!$F:$L, 3, FALSE) -> LIMA REFINING CO | C117: =VLOOKUP($A117, '2016-2021 TRI'!$F:$L, 4, FALSE) -> 1150 S METCALF ST | D117: =VLOOKUP($A117, '2016-2021 TRI'!$F:$L, 5, FALSE) -> LIMA | E117: =VLOOKUP($A117, '2016-2021 TRI'!$F:$L, 6, FALSE) -> OH | F117: =VLOOKUP($A117, '2016-2021 TRI'!$F:$L, 7, FALSE) -> 45804 | G117: =VLOOKUP($A117, '2016-2021 TRI'!F:N, 9, FALSE) -> Processing as a reactant | H117: =VLOOKUP($A117, '2016-2021 TRI'!$F:$L, 2, FALSE) -> 324110 | I117: =IFERROR(VLOOKUP(H117, '2012 to 2017 NAICS'!C:D, 2, FALSE), VLOOKUP(H117, '2012 to 2017 NAICS'!A:B, 2, FALSE)) -> Petroleum Refineries | J117: =VLOOKUP(G117, 'OES Summary'!$A$2:$D$15, 3, FALSE) -> 350 | K117: =CONVERT(MEDIAN(IF('2016-2021 TRI'!F:F=$A117,'2016-2021 TRI'!P:P)), "lbm", "kg") -> 45 | L117: =CONVERT(_xlfn.MAXIFS('2016-2021 TRI'!P:P,'2016-2021 TRI'!F:F,A117), "lbm", "kg") -> 78 | M117: =CONVERT(MEDIAN(IF('2016-2021 TRI'!F:F=$A117,'2016-2021 TRI'!Q:Q)), "lbm", "kg") -> 30 | N117: =CONVERT(_xlfn.MAXIFS('2016-2021 TRI'!Q:Q,'2016-2021 TRI'!F:F,A117), "lbm", "kg") -> 659 | O117: 0.129 | P117: 0.223 | Q117: 0.085 | R117: 1.883
A118: 00851HSSLVLIMET | B118: =VLOOKUP($A118, '2016-2021 TRI'!$F:$L, 3, FALSE) -> LIMETREE BAY REFINING LLC & LIMETREE BAY TERMINALS LLC | C118: =VLOOKUP($A118, '2016-2021 TRI'!$F:$L, 4, FALSE) -> 1 ESTATE HOPE | D118: =VLOOKUP($A118, '2016-2021 TRI'!$F:$L, 5, FALSE) -> CHRISTIANSTED | E118: =VLOOKUP($A118, '2016-2021 TRI'!$F:$L, 6, FALSE) -> VI | F118: =VLOOKUP($A118, '2016-2021 TRI'!$F:$L, 7, FALSE) -> 820 | G118: =VLOOKUP($A118, '2016-2021 TRI'!F:N, 9, FALSE) -> Processing as a reactant | H118: =VLOOKUP($A118, '2016-2021 TRI'!$F:$L, 2, FALSE) -> 324110 | I118: =IFERROR(VLOOKUP(H118, '2012 to 2017 NAICS'!C:D, 2, FALSE), VLOOKUP(H118, '2012 to 2017 NAICS'!A:B, 2, FALSE)) -> Petroleum Refineries | J118: =VLOOKUP(G118, 'OES Summary'!$A$2:$D$15, 3, FALSE) -> 350 | K118: =CONVERT(MEDIAN(IF('2016-2021 TRI'!F:F=$A118,'2016-2021 TRI'!P:P)), "lbm", "kg") -> 5 | L118: =CONVERT(_xlfn.MAXIFS('2016-2021 TRI'!P:P,'2016-2021 TRI'!F:F,A118), "lbm", "kg") -> 5 | M118: =CONVERT(MEDIAN(IF('2016-2021 TRI'!F:F=$A118,'2016-2021 TRI'!Q:Q)), "lbm", "kg") -> 0 | N118: =CONVERT(_xlfn.MAXIFS('2016-2021 TRI'!Q:Q,'2016-2021 TRI'!F:F,A118), "lbm", "kg") -> 0 | O118: 0.014 | P118: 0.014 | Q118: 0.001 | R118: 0.001
A119: 29201LNDCH750GR | B119: =VLOOKUP($A119, '2016-2021 TRI'!$F:$L, 3, FALSE) -> LINDAU CHEMICALS INC. | C119: =VLOOKUP($A119, '2016-2021 TRI'!$F:$L, 4, FALSE) -> 750 GRANBY LN | D119: =VLOOKUP($A119, '2016-2021 TRI'!$F:$L, 5, FALSE) -> COLUMBIA | E119: =VLOOKUP($A119, '2016-2021 TRI'!$F:$L, 6, FALSE) -> SC | F119: =VLOOKUP($A119, '2016-2021 TRI'!$F:$L, 7, FALSE) -> 29201 | G119: =VLOOKUP($A119, '2016-2021 TRI'!F:N, 9, FALSE) -> Processing as a reactant | H119: =VLOOKUP($A119, '2016-2021 TRI'!$F:$L, 2, FALSE) -> 325199 | I119: =IFERROR(VLOOKUP(H119, '2012 to 2017 NAICS'!C:D, 2, FALSE), VLOOKUP(H119, '2012 to 2017 NAICS'!A:B, 2, FALSE)) -> All Other Basic Organic Chemical Manufacturing | J119: =VLOOKUP(G119, 'OES Summary'!$A$2:$D$15, 3, FALSE) -> 350 | K119: =CONVERT(MEDIAN(IF('2016-2021 TRI'!F:F=$A119,'2016-2021 TRI'!P:P)), "lbm", "kg") -> 278 | L119: =CONVERT(_xlfn.MAXIFS('2016-2021 TRI'!P:P,'2016-2021 TRI'!F:F,A119), "lbm", "kg") -> 363 | M119: =CONVERT(MEDIAN(IF('2016-2021 TRI'!F:F=$A119,'2016-2021 TRI'!Q:Q)), "lbm", "kg") -> 1218 | N119: =CONVERT(_xlfn.MAXIFS('2016-2021 TRI'!Q:Q,'2016-2021 TRI'!F:F,A119), "lbm", "kg") -> 1560 | O119: 0.794 | P119: 1.037 | Q119: 3.480 | R119: 4.458
A120: 77651SPSYN1615M | B120: =VLOOKUP($A120, '2016-2021 TRI'!$F:$L, 3, FALSE) -> LION ELASTOMERS LLC | C120: =VLOOKUP($A120, '2016-2021 TRI'!$F:$L, 4, FALSE) -> 1615 MAIN ST | D120: =VLOOKUP($A120, '2016-2021 TRI'!$F:$L, 5, FALSE) -> PORT NECHES | E120: =VLOOKUP($A120, '2016-2021 TRI'!$F:$L, 6, FALSE) -> TX | F120: =VLOOKUP($A120, '2016-2021 TRI'!$F:$L, 7, FALSE) -> 77651 | G120: =VLOOKUP($A120, '2016-2021 TRI'!F:N, 9, FALSE) -> Plastics and Rubber Compounding | H120: =VLOOKUP($A120, '2016-2021 TRI'!$F:$L, 2, FALSE) -> 325212 | I120: =IFERROR(VLOOKUP(H120, '2012 to 2017 NAICS'!C:D, 2, FALSE), VLOOKUP(H120, '2012 to 2017 NAICS'!A:B, 2, FALSE)) -> Synthetic Rubber Manufacturing | J120: =VLOOKUP(G120, 'OES Summary'!$A$2:$D$15, 3, FALSE) -> 300 | K120: =CONVERT(MEDIAN(IF('2016-2021 TRI'!F:F=$A120,'2016-2021 TRI'!P:P)), "lbm", "kg") -> 2276 | L120: =CONVERT(_xlfn.MAXIFS('2016-2021 TRI'!P:P,'2016-2021 TRI'!F:F,A120), "lbm", "kg") -> 5317 | M120: =CONVERT(MEDIAN(IF('2016-2021 TRI'!F:F=$A120,'2016-2021 TRI'!Q:Q)), "lbm", "kg") -> 1074 | N120: =CONVERT(_xlfn.MAXIFS('2016-2021 TRI'!Q:Q,'2016-2021 TRI'!F:F,A120), "lbm", "kg") -> 2466 | O120: 7.588 | P120: 17.722 | Q120: 3.579 | R120: 8.219
A121: 77630FRSTNFARMR | B121: =VLOOKUP($A121, '2016-2021 TRI'!$F:$L, 3, FALSE) -> LION ELASTOMERS ORANGE LLC | C121: =VLOOKUP($A121, '2016-2021 TRI'!$F:$L, 4, FALSE) -> 5713 FM 1006 | D121: =VLOOKUP($A121, '2016-2021 TRI'!$F:$L, 5, FALSE) -> ORANGE | E121: =VLOOKUP($A121, '2016-2021 TRI'!$F:$L, 6, FALSE) -> TX | F121: =VLOOKUP($A121, '2016-2021 TRI'!$F:$L, 7, FALSE) -> 77630 | G121: =VLOOKUP($A121, '2016-2021 TRI'!F:N, 9, FALSE) -> Plastics and Rubber Compounding | H121: =VLOOKUP($A121, '2016-2021 TRI'!$F:$L, 2, FALSE) -> 325212 | I121: =IFERROR(VLOOKUP(H121, '2012 to 2017 NAICS'!C:D, 2, FALSE), VLOOKUP(H121, '2012 to 2017 NAICS'!A:B, 2, FALSE)) -> Synthetic Rubber Manufacturing | J121: =VLOOKUP(G121, 'OES Summary'!$A$2:$D$15, 3, FALSE) -> 300 | K121: =CONVERT(MEDIAN(IF('2016-2021 TRI'!F:F=$A121,'2016-2021 TRI'!P:P)), "lbm", "kg") -> 1669 | L121: =CONVERT(_xlfn.MAXIFS('2016-2021 TRI'!P:P,'2016-2021 TRI'!F:F,A121), "lbm", "kg") -> 3398 | M121: =CONVERT(MEDIAN(IF('2016-2021 TRI'!F:F=$A121,'2016-2021 TRI'!Q:Q)), "lbm", "kg") -> 217 | N121: =CONVERT(_xlfn.MAXIFS('2016-2021 TRI'!Q:Q,'2016-2021 TRI'!F:F,A121), "lbm", "kg") -> 345 | O121: 5.562 | P121: 11.326 | Q121: 0.723 | R121: 1.151
A122: 71730LNLRF1000M | B122: =VLOOKUP($A122, '2016-2021 TRI'!$F:$L, 3, FALSE) -> LION OIL CO | C122: =VLOOKUP($A122, '2016-2021 TRI'!$F:$L, 4, FALSE) -> 1000 MCHENRY AVE | D122: =VLOOKUP($A122, '2016-2021 TRI'!$F:$L, 5, FALSE) -> EL DORADO | E122: =VLOOKUP($A122, '2016-2021 TRI'!$F:$L, 6, FALSE) -> AR | F122: =VLOOKUP($A122, '2016-2021 TRI'!$F:$L, 7, FALSE) -> 71730 | G122: =VLOOKUP($A122, '2016-2021 TRI'!F:N, 9, FALSE) -> Processing as a reactant | H122: =VLOOKUP($A122, '2016-2021 TRI'!$F:$L, 2, FALSE) -> 324110 | I122: =IFERROR(VLOOKUP(H122, '2012 to 2017 NAICS'!C:D, 2, FALSE), VLOOKUP(H122, '2012 to 2017 NAICS'!A:B, 2, FALSE)) -> Petroleum Refineries | J122: =VLOOKUP(G122, 'OES Summary'!$A$2:$D$15, 3, FALSE) -> 350 | K122: =CONVERT(MEDIAN(IF('2016-2021 TRI'!F:F=$A122,'2016-2021 TRI'!P:P)), "lbm", "kg") -> 4 | L122: =CONVERT(_xlfn.MAXIFS('2016-2021 TRI'!P:P,'2016-2021 TRI'!F:F,A122), "lbm", "kg") -> 5 | M122: =CONVERT(MEDIAN(IF('2016-2021 TRI'!F:F=$A122,'2016-2021 TRI'!Q:Q)), "lbm", "kg") -> 722 | N122: =CONVERT(_xlfn.MAXIFS('2016-2021 TRI'!Q:Q,'2016-2021 TRI'!F:F,A122), "lbm", "kg") -> 878 | O122: 0.012 | P122: 0.014 | Q122: 2.062 | R122: 2.509
A123: 7066WLSNNT221LD | B123: =VLOOKUP($A123, '2016-2021 TRI'!$F:$L, 3, FALSE) -> LOUISIANA INTEGRATED POLYETHYLENE JV LLC | C123: =VLOOKUP($A123, '2016-2021 TRI'!$F:$L, 4, FALSE) -> 2201 OLD SPANISH TRL | D123: =VLOOKUP($A123, '2016-2021 TRI'!$F:$L, 5, FALSE) -> WESTLAKE | E123: =VLOOKUP($A123, '2016-2021 TRI'!$F:$L, 6, FALSE) -> LA | F123: =VLOOKUP($A123, '2016-2021 TRI'!$F:$L, 7, FALSE) -> 70669 | G123: =VLOOKUP($A123, '2016-2021 TRI'!F:N, 9, FALSE) -> Processing as a Reactant | H123: =VLOOKUP($A123, '2016-2021 TRI'!$F:$L, 2, FALSE) -> 325199 | I123: =IFERROR(VLOOKUP(H123, '2012 to 2017 NAICS'!C:D, 2, FALSE), VLOOKUP(H123, '2012 to 2017 NAICS'!A:B, 2, FALSE)) -> All Other Basic Organic Chemical Manufacturing | J123: =VLOOKUP(G123, 'OES Summary'!$A$2:$D$15, 3, FALSE) -> 350 | K123: =CONVERT(MEDIAN(IF('2016-2021 TRI'!F:F=$A123,'2016-2021 TRI'!P:P)), "lbm", "kg") -> 620 | L123: =CONVERT(_xlfn.MAXIFS('2016-2021 TRI'!P:P,'2016-2021 TRI'!F:F,A123), "lbm", "kg") -> 776 | M123: =CONVERT(MEDIAN(IF('2016-2021 TRI'!F:F=$A123,'2016-2021 TRI'!Q:Q)), "lbm", "kg") -> 4076 | N123: =CONVERT(_xlfn.MAXIFS('2016-2021 TRI'!Q:Q,'2016-2021 TRI'!F:F,A123), "lbm", "kg") -> 4509 | O123: 1.770 | P123: 2.216 | Q123: 11.646 | R123: 12.882
A124: 77536lbRZL41TID | B124: =VLOOKUP($A124, '2016-2021 TRI'!$F:$L, 3, FALSE) -> LUBRIZOL CORP DEER PARK FACILITY | C124: =VLOOKUP($A124, '2016-2021 TRI'!$F:$L, 4, FALSE) -> 41 TIDAL RD | D124: =VLOOKUP($A124, '2016-2021 TRI'!$F:$L, 5, FALSE) -> DEER PARK | E124: =VLOOKUP($A124, '2016-2021 TRI'!$F:$L, 6, FALSE) -> TX | F124: =VLOOKUP($A124, '2016-2021 TRI'!$F:$L, 7, FALSE) -> 77536 | G124: =VLOOKUP($A124, '2016-2021 TRI'!F:N, 9, FALSE) -> Processing as a reactant | H124: =VLOOKUP($A124, '2016-2021 TRI'!$F:$L, 2, FALSE) -> 325199 | I124: =IFERROR(VLOOKUP(H124, '2012 to 2017 NAICS'!C:D, 2, FALSE), VLOOKUP(H124, '2012 to 2017 NAICS'!A:B, 2, FALSE)) -> All Other Basic Organic Chemical Manufacturing | J124: =VLOOKUP(G124, 'OES Summary'!$A$2:$D$15, 3, FALSE) -> 350 | K124: =CONVERT(MEDIAN(IF('2016-2021 TRI'!F:F=$A124,'2016-2021 TRI'!P:P)), "lbm", "kg") -> 553 | L124: =CONVERT(_xlfn.MAXIFS('2016-2021 TRI'!P:P,'2016-2021 TRI'!F:F,A124), "lbm", "kg") -> 567 | M124: =CONVERT(MEDIAN(IF('2016-2021 TRI'!F:F=$A124,'2016-2021 TRI'!Q:Q)), "lbm", "kg") -> 266 | N124: =CONVERT(_xlfn.MAXIFS('2016-2021 TRI'!Q:Q,'2016-2021 TRI'!F:F,A124), "lbm", "kg") -> 1832 | O124: 1.579 | P124: 1.619 | Q124: 0.759 | R124: 5.234
A125: 77530RCCHM2502S | B125: =VLOOKUP($A125, '2016-2021 TRI'!$F:$L, 3, FALSE) -> LYONDELL CHEMICAL CO | C125: =VLOOKUP($A125, '2016-2021 TRI'!$F:$L, 4, FALSE) -> 2502 SHELDON RD | D125: =VLOOKUP($A125, '2016-2021 TRI'!$F:$L, 5, FALSE) -> CHANNELVIEW | E125: =VLOOKUP($A125, '2016-2021 TRI'!$F:$L, 6, FALSE) -> TX | F125: =VLOOKUP($A125, '2016-2021 TRI'!$F:$L, 7, FALSE) -> 77530 | G125: =VLOOKUP($A125, '2016-2021 TRI'!F:N, 9, FALSE) -> Manufacturing | H125: =VLOOKUP($A125, '2016-2021 TRI'!$F:$L, 2, FALSE) -> 325110 | I125: =IFERROR(VLOOKUP(H125, '2012 to 2017 NAICS'!C:D, 2, FALSE), VLOOKUP(H125, '2012 to 2017 NAICS'!A:B, 2, FALSE)) -> Petrochemical Manufacturing | J125: =VLOOKUP(G125, 'OES Summary'!$A$2:$D$15, 3, FALSE) -> 350 | K125: =CONVERT(MEDIAN(IF('2016-2021 TRI'!F:F=$A125,'2016-2021 TRI'!P:P)), "lbm", "kg") -> 8286 | L125: =CONVERT(_xlfn.MAXIFS('2016-2021 TRI'!P:P,'2016-2021 TRI'!F:F,A125), "lbm", "kg") -> 15356 | M125: =CONVERT(MEDIAN(IF('2016-2021 TRI'!F:F=$A125,'2016-2021 TRI'!Q:Q)), "lbm", "kg") -> 61966 | N125: =CONVERT(_xlfn.MAXIFS('2016-2021 TRI'!Q:Q,'2016-2021 TRI'!F:F,A125), "lbm", "kg") -> 69844 | O125: 23.673 | P125: 43.875 | Q125: 177.046 | R125: 199.553
A126: 77571QNTMC11603 | B126: =VLOOKUP($A126, '2016-2021 TRI'!$F:$L, 3, FALSE) -> LYONDELLBASELL ACETYLS LLC | C126: =VLOOKUP($A126, '2016-2021 TRI'!$F:$L, 4, FALSE) -> 1350 MILLER CUT OFF RD | D126: =VLOOKUP($A126, '2016-2021 TRI'!$F:$L, 5, FALSE) -> LA PORTE | E126: =VLOOKUP($A126, '2016-2021 TRI'!$F:$L, 6, FALSE) -> TX | F126: =VLOOKUP($A126, '2016-2021 TRI'!$F:$L, 7, FALSE) -> 77571 | G126: =VLOOKUP($A126, '2016-2021 TRI'!F:N, 9, FALSE) -> Processing - incorporation into formulation, mixture, or reaction product | H126: =VLOOKUP($A126, '2016-2021 TRI'!$F:$L, 2, FALSE) -> 325199 | I126: =IFERROR(VLOOKUP(H126, '2012 to 2017 NAICS'!C:D, 2, FALSE), VLOOKUP(H126, '2012 to 2017 NAICS'!A:B, 2, FALSE)) -> All Other Basic Organic Chemical Manufacturing | J126: =VLOOKUP(G126, 'OES Summary'!$A$2:$D$15, 3, FALSE) -> 250 | K126: =CONVERT(MEDIAN(IF('2016-2021 TRI'!F:F=$A126,'2016-2021 TRI'!P:P)), "lbm", "kg") -> 0 | L126: =CONVERT(_xlfn.MAXIFS('2016-2021 TRI'!P:P,'2016-2021 TRI'!F:F,A126), "lbm", "kg") -> 0 | M126: =CONVERT(MEDIAN(IF('2016-2021 TRI'!F:F=$A126,'2016-2021 TRI'!Q:Q)), "lbm", "kg") -> 0 | N126: =CONVERT(_xlfn.MAXIFS('2016-2021 TRI'!Q:Q,'2016-2021 TRI'!F:F,A126), "lbm", "kg") -> 0 | O126: 0.000 | P126: 0.000 | Q126: 0.001 | R126: 0.001
A127: 44306NTWRK1353E | B127: =VLOOKUP($A127, '2016-2021 TRI'!$F:$L, 3, FALSE) -> LYONDELLBASELL ADVANCED POLYMERS INC. | C127: =VLOOKUP($A127, '2016-2021 TRI'!$F:$L, 4, FALSE) -> 1353 EXETER RD | D127: =VLOOKUP($A127, '2016-2021 TRI'!$F:$L, 5, FALSE) -> AKRON | E127: =VLOOKUP($A127, '2016-2021 TRI'!$F:$L, 6, FALSE) -> OH | F127: =VLOOKUP($A127, '2016-2021 TRI'!$F:$L, 7, FALSE) -> 44306 | G127: =VLOOKUP($A127, '2016-2021 TRI'!F:N, 9, FALSE) -> Processing - Incorporation into formulation, mixture, or reaction product | H127: =VLOOKUP($A127, '2016-2021 TRI'!$F:$L, 2, FALSE) -> 325991 | I127: =IFERROR(VLOOKUP(H127, '2012 to 2017 NAICS'!C:D, 2, FALSE), VLOOKUP(H127, '2012 to 2017 NAICS'!A:B, 2, FALSE)) -> Custom Compounding of Purchased Resins | J127: =VLOOKUP(G127, 'OES Summary'!$A$2:$D$15, 3, FALSE) -> 250 | K127: =CONVERT(MEDIAN(IF('2016-2021 TRI'!F:F=$A127,'2016-2021 TRI'!P:P)), "lbm", "kg") -> 2 | L127: =CONVERT(_xlfn.MAXIFS('2016-2021 TRI'!P:P,'2016-2021 TRI'!F:F,A127), "lbm", "kg") -> 2 | M127: =CONVERT(MEDIAN(IF('2016-2021 TRI'!F:F=$A127,'2016-2021 TRI'!Q:Q)), "lbm", "kg") -> 2 | N127: =CONVERT(_xlfn.MAXIFS('2016-2021 TRI'!Q:Q,'2016-2021 TRI'!F:F,A127), "lbm", "kg") -> 2 | O127: 0.009 | P127: 0.009 | Q127: 0.009 | R127: 0.009
A128: 28213NCLCH14700 | B128: =VLOOKUP($A128, '2016-2021 TRI'!$F:$L, 3, FALSE) -> MALLARD CREEK POLYMERS | C128: =VLOOKUP($A128, '2016-2021 TRI'!$F:$L, 4, FALSE) -> 2800 MOREHEAD RD | D128: =VLOOKUP($A128, '2016-2021 TRI'!$F:$L, 5, FALSE) -> CHARLOTTE | E128: =VLOOKUP($A128, '2016-2021 TRI'!$F:$L, 6, FALSE) -> NC | F128: =VLOOKUP($A128, '2016-2021 TRI'!$F:$L, 7, FALSE) -> 28262 | G128: =VLOOKUP($A128, '2016-2021 TRI'!F:N, 9, FALSE) -> Processing as a reactant | H128: =VLOOKUP($A128, '2016-2021 TRI'!$F:$L, 2, FALSE) -> 325211 | I128: =IFERROR(VLOOKUP(H128, '2012 to 2017 NAICS'!C:D, 2, FALSE), VLOOKUP(H128, '2012 to 2017 NAICS'!A:B, 2, FALSE)) -> Plastics Material and Resin Manufacturing | J128: =VLOOKUP(G128, 'OES Summary'!$A$2:$D$15, 3, FALSE) -> 350 | K128: =CONVERT(MEDIAN(IF('2016-2021 TRI'!F:F=$A128,'2016-2021 TRI'!P:P)), "lbm", "kg") -> 19 | L128: =CONVERT(_xlfn.MAXIFS('2016-2021 TRI'!P:P,'2016-2021 TRI'!F:F,A128), "lbm", "kg") -> 4129 | M128: =CONVERT(MEDIAN(IF('2016-2021 TRI'!F:F=$A128,'2016-2021 TRI'!Q:Q)), "lbm", "kg") -> 56 | N128: =CONVERT(_xlfn.MAXIFS('2016-2021 TRI'!Q:Q,'2016-2021 TRI'!F:F,A128), "lbm", "kg") -> 191 | O128: 0.054 | P128: 11.796 | Q128: 0.159 | R128: 0.544
A129: 5860WDKTPR38151 | B129: =VLOOKUP($A129, '2016-2021 TRI'!$F:$L, 3, FALSE) -> MARATHON DICKINSON REFINERY | C129: =VLOOKUP($A129, '2016-2021 TRI'!$F:$L, 4, FALSE) -> 3815 116TH AVE SW | D129: =VLOOKUP($A129, '2016-2021 TRI'!$F:$L, 5, FALSE) -> DICKINSON | E129: =VLOOKUP($A129, '2016-2021 TRI'!$F:$L, 6, FALSE) -> ND | F129: =VLOOKUP($A129, '2016-2021 TRI'!$F:$L, 7, FALSE) -> 58601 | G129: =VLOOKUP($A129, '2016-2021 TRI'!F:N, 9, FALSE) -> Processing - Incorporation into formulation, mixture, or reaction product | H129: =VLOOKUP($A129, '2016-2021 TRI'!$F:$L, 2, FALSE) -> 324110 | I129: =IFERROR(VLOOKUP(H129, '2012 to 2017 NAICS'!C:D, 2, FALSE), VLOOKUP(H129, '2012 to 2017 NAICS'!A:B, 2, FALSE)) -> Petroleum Refineries | J129: =VLOOKUP(G129, 'OES Summary'!$A$2:$D$15, 3, FALSE) -> 250 | K129: =CONVERT(MEDIAN(IF('2016-2021 TRI'!F:F=$A129,'2016-2021 TRI'!P:P)), "lbm", "kg") -> 3 | L129: =CONVERT(_xlfn.MAXIFS('2016-2021 TRI'!P:P,'2016-2021 TRI'!F:F,A129), "lbm", "kg") -> 6 | M129: =CONVERT(MEDIAN(IF('2016-2021 TRI'!F:F=$A129,'2016-2021 TRI'!Q:Q)), "lbm", "kg") -> 1563 | N129: =CONVERT(_xlfn.MAXIFS('2016-2021 TRI'!Q:Q,'2016-2021 TRI'!F:F,A129), "lbm", "kg") -> 1726 | O129: 0.012 | P129: 0.024 | Q129: 6.253 | R129: 6.904
A130: 58554MCLCMNORTH | B130: =VLOOKUP($A130, '2016-2021 TRI'!$F:$L, 3, FALSE) -> MARATHON MANDAN REFINERY | C130: =VLOOKUP($A130, '2016-2021 TRI'!$F:$L, 4, FALSE) -> 900 OLD RED TRL NE | D130: =VLOOKUP($A130, '2016-2021 TRI'!$F:$L, 5, FALSE) -> MANDAN | E130: =VLOOKUP($A130, '2016-2021 TRI'!$F:$L, 6, FALSE) -> ND | F130: =VLOOKUP($A130, '2016-2021 TRI'!$F:$L, 7, FALSE) -> 58554 | G130: =VLOOKUP($A130, '2016-2021 TRI'!F:N, 9, FALSE) -> Manufacturing | H130: =VLOOKUP($A130, '2016-2021 TRI'!$F:$L, 2, FALSE) -> 324110 | I130: =IFERROR(VLOOKUP(H130, '2012 to 2017 NAICS'!C:D, 2, FALSE), VLOOKUP(H130, '2012 to 2017 NAICS'!A:B, 2, FALSE)) -> Petroleum Refineries | J130: =VLOOKUP(G130, 'OES Summary'!$A$2:$D$15, 3, FALSE) -> 350 | K130: =CONVERT(MEDIAN(IF('2016-2021 TRI'!F:F=$A130,'2016-2021 TRI'!P:P)), "lbm", "kg") -> 30 | L130: =CONVERT(_xlfn.MAXIFS('2016-2021 TRI'!P:P,'2016-2021 TRI'!F:F,A130), "lbm", "kg") -> 32 | M130: =CONVERT(MEDIAN(IF('2016-2021 TRI'!F:F=$A130,'2016-2021 TRI'!Q:Q)), "lbm", "kg") -> 8 | N130: =CONVERT(_xlfn.MAXIFS('2016-2021 TRI'!Q:Q,'2016-2021 TRI'!F:F,A130), "lbm", "kg") -> 25 | O130: =K130/$J130 -> 0.086 | P130: =L130/$J130 -> 0.092 | Q130: =M130/$J130 -> 0.023 | R130: =N130/$J130 -> 0.073
A131: 70051MRTHNHWY61 | B131: =VLOOKUP($A131, '2016-2021 TRI'!$F:$L, 3, FALSE) -> MARATHON PETROLEUM CO LP | C131: =VLOOKUP($A131, '2016-2021 TRI'!$F:$L, 4, FALSE) -> 4663 W AIRLINE HWY | D131: =VLOOKUP($A131, '2016-2021 TRI'!$F:$L, 5, FALSE) -> GARYVILLE | E131: =VLOOKUP($A131, '2016-2021 TRI'!$F:$L, 6, FALSE) -> LA | F131: =VLOOKUP($A131, '2016-2021 TRI'!$F:$L, 7, FALSE) -> 70051 | G131: =VLOOKUP($A131, '2016-2021 TRI'!F:N, 9, FALSE) -> Processing - Incorporation into formulation, mixture, or reaction product | H131: =VLOOKUP($A131, '2016-2021 TRI'!$F:$L, 2, FALSE) -> 324110 | I131: =IFERROR(VLOOKUP(H131, '2012 to 2017 NAICS'!C:D, 2, FALSE), VLOOKUP(H131, '2012 to 2017 NAICS'!A:B, 2, FALSE)) -> Petroleum Refineries | J131: =VLOOKUP(G131, 'OES Summary'!$A$2:$D$15, 3, FALSE) -> 250 | K131: =CONVERT(MEDIAN(IF('2016-2021 TRI'!F:F=$A131,'2016-2021 TRI'!P:P)), "lbm", "kg") -> 22 | L131: =CONVERT(_xlfn.MAXIFS('2016-2021 TRI'!P:P,'2016-2021 TRI'!F:F,A131), "lbm", "kg") -> 42 | M131: =CONVERT(MEDIAN(IF('2016-2021 TRI'!F:F=$A131,'2016-2021 TRI'!Q:Q)), "lbm", "kg") -> 59 | N131: =CONVERT(_xlfn.MAXIFS('2016-2021 TRI'!Q:Q,'2016-2021 TRI'!F:F,A131), "lbm", "kg") -> 90 | O131: 0.089 | P131: 0.169 | Q131: 0.236 | R131: 0.361
A132: 48217MRTHN1300S | B132: =VLOOKUP($A132, '2016-2021 TRI'!$F:$L, 3, FALSE) -> MARATHON PETROLEUM CO LP - MICHIGAN REFINING DIV | C132: =VLOOKUP($A132, '2016-2021 TRI'!$F:$L, 4, FALSE) -> 1300 S FORT ST HES DEPT | D132: =VLOOKUP($A132, '2016-2021 TRI'!$F:$L, 5, FALSE) -> DETROIT | E132: =VLOOKUP($A132, '2016-2021 TRI'!$F:$L, 6, FALSE) -> MI | F132: =VLOOKUP($A132, '2016-2021 TRI'!$F:$L, 7, FALSE) -> 48217 | G132: =VLOOKUP($A132, '2016-2021 TRI'!F:N, 9, FALSE) -> Processing - Incorporation into formulation, mixture, or reaction product | H132: =VLOOKUP($A132, '2016-2021 TRI'!$F:$L, 2, FALSE) -> 324110 | I132: =IFERROR(VLOOKUP(H132, '2012 to 2017 NAICS'!C:D, 2, FALSE), VLOOKUP(H132, '2012 to 2017 NAICS'!A:B, 2, FALSE)) -> Petroleum Refineries | J132: =VLOOKUP(G132, 'OES Summary'!$A$2:$D$15, 3, FALSE) -> 250 | K132: =CONVERT(MEDIAN(IF('2016-2021 TRI'!F:F=$A132,'2016-2021 TRI'!P:P)), "lbm", "kg") -> 670 | L132: =CONVERT(_xlfn.MAXIFS('2016-2021 TRI'!P:P,'2016-2021 TRI'!F:F,A132), "lbm", "kg") -> 769 | M132: =CONVERT(MEDIAN(IF('2016-2021 TRI'!F:F=$A132,'2016-2021 TRI'!Q:Q)), "lbm", "kg") -> 166 | N132: =CONVERT(_xlfn.MAXIFS('2016-2021 TRI'!Q:Q,'2016-2021 TRI'!F:F,A132), "lbm", "kg") -> 296 | O132: 2.681 | P132: 3.075 | Q132: 0.664 | R132: 1.185
A133: 77590MRTHNFOOTO | B133: =VLOOKUP($A133, '2016-2021 TRI'!$F:$L, 3, FALSE) -> MARATHON PETROLEUM CO LP (PART) | C133: =VLOOKUP($A133, '2016-2021 TRI'!$F:$L, 4, FALSE) -> 502 10TH ST S | D133: =VLOOKUP($A133, '2016-2021 TRI'!$F:$L, 5, FALSE) -> TEXAS CITY | E133: =VLOOKUP($A133, '2016-2021 TRI'!$F:$L, 6, FALSE) -> TX | F133: =VLOOKUP($A133, '2016-2021 TRI'!$F:$L, 7, FALSE) -> 77590 | G133: =VLOOKUP($A133, '2016-2021 TRI'!F:N, 9, FALSE) -> Manufacturing | H133: =VLOOKUP($A133, '2016-2021 TRI'!$F:$L, 2, FALSE) -> 324110 | I133: =IFERROR(VLOOKUP(H133, '2012 to 2017 NAICS'!C:D, 2, FALSE), VLOOKUP(H133, '2012 to 2017 NAICS'!A:B, 2, FALSE)) -> Petroleum Refineries | J133: =VLOOKUP(G133, 'OES Summary'!$A$2:$D$15, 3, FALSE) -> 350 | K133: =CONVERT(MEDIAN(IF('2016-2021 TRI'!F:F=$A133,'2016-2021 TRI'!P:P)), "lbm", "kg") -> 11 | L133: =CONVERT(_xlfn.MAXIFS('2016-2021 TRI'!P:P,'2016-2021 TRI'!F:F,A133), "lbm", "kg") -> 26 | M133: =CONVERT(MEDIAN(IF('2016-2021 TRI'!F:F=$A133,'2016-2021 TRI'!Q:Q)), "lbm", "kg") -> 2 | N133: =CONVERT(_xlfn.MAXIFS('2016-2021 TRI'!Q:Q,'2016-2021 TRI'!F:F,A133), "lbm", "kg") -> 2 | O133: 0.031 | P133: 0.074 | Q133: 0.005 | R133: 0.006
A134: 62454MRTHNMARAT | B134: =VLOOKUP($A134, '2016-2021 TRI'!$F:$L, 3, FALSE) -> MARATHON PETROLEUM CO LP ILLINOIS REFINING DIV | C134: =VLOOKUP($A134, '2016-2021 TRI'!$F:$L, 4, FALSE) -> 100 S MARATHON AVE | D134: =VLOOKUP($A134, '2016-2021 TRI'!$F:$L, 5, FALSE) -> ROBINSON | E134: =VLOOKUP($A134, '2016-2021 TRI'!$F:$L, 6, FALSE) -> IL | F134: =VLOOKUP($A134, '2016-2021 TRI'!$F:$L, 7, FALSE) -> 62454 | G134: =VLOOKUP($A134, '2016-2021 TRI'!F:N, 9, FALSE) -> Processing - Incorporation into formulation, mixture, or reaction product | H134: =VLOOKUP($A134, '2016-2021 TRI'!$F:$L, 2, FALSE) -> 324110 | I134: =IFERROR(VLOOKUP(H134, '2012 to 2017 NAICS'!C:D, 2, FALSE), VLOOKUP(H134, '2012 to 2017 NAICS'!A:B, 2, FALSE)) -> Petroleum Refineries | J134: =VLOOKUP(G134, 'OES Summary'!$A$2:$D$15, 3, FALSE) -> 250 | K134: =CONVERT(MEDIAN(IF('2016-2021 TRI'!F:F=$A134,'2016-2021 TRI'!P:P)), "lbm", "kg") -> 5 | L134: =CONVERT(_xlfn.MAXIFS('2016-2021 TRI'!P:P,'2016-2021 TRI'!F:F,A134), "lbm", "kg") -> 10 | M134: =CONVERT(MEDIAN(IF('2016-2021 TRI'!F:F=$A134,'2016-2021 TRI'!Q:Q)), "lbm", "kg") -> 60 | N134: =CONVERT(_xlfn.MAXIFS('2016-2021 TRI'!Q:Q,'2016-2021 TRI'!F:F,A134), "lbm", "kg") -> 274 | O134: 0.020 | P134: 0.038 | Q134: 0.240 | R134: 1.094
A135: 44711SHLND2408G | B135: =VLOOKUP($A135, '2016-2021 TRI'!$F:$L, 3, FALSE) -> MARATHON PETROLEUM CO LP OHIO REFINING DIV | C135: =VLOOKUP($A135, '2016-2021 TRI'!$F:$L, 4, FALSE) -> 2408 GAMBRINUS AVE SW | D135: =VLOOKUP($A135, '2016-2021 TRI'!$F:$L, 5, FALSE) -> CANTON | E135: =VLOOKUP($A135, '2016-2021 TRI'!$F:$L, 6, FALSE) -> OH | F135: =VLOOKUP($A135, '2016-2021 TRI'!$F:$L, 7, FALSE) -> 44706 | G135: =VLOOKUP($A135, '2016-2021 TRI'!F:N, 9, FALSE) -> Recycling | H135: =VLOOKUP($A135, '2016-2021 TRI'!$F:$L, 2, FALSE) -> 324110 | I135: =IFERROR(VLOOKUP(H135, '2012 to 2017 NAICS'!C:D, 2, FALSE), VLOOKUP(H135, '2012 to 2017 NAICS'!A:B, 2, FALSE)) -> Petroleum Refineries | J135: =VLOOKUP(G135, 'OES Summary'!$A$2:$D$15, 3, FALSE) -> 350 | K135: =CONVERT(MEDIAN(IF('2016-2021 TRI'!F:F=$A135,'2016-2021 TRI'!P:P)), "lbm", "kg") -> 22 | L135: =CONVERT(_xlfn.MAXIFS('2016-2021 TRI'!P:P,'2016-2021 TRI'!F:F,A135), "lbm", "kg") -> 34 | M135: =CONVERT(MEDIAN(IF('2016-2021 TRI'!F:F=$A135,'2016-2021 TRI'!Q:Q)), "lbm", "kg") -> 8 | N135: =CONVERT(_xlfn.MAXIFS('2016-2021 TRI'!Q:Q,'2016-2021 TRI'!F:F,A135), "lbm", "kg") -> 14 | O135: 0.063 | P135: 0.098 | Q135: 0.022 | R135: 0.039
A136: 94553SHLLL3485P | B136: =VLOOKUP($A136, '2016-2021 TRI'!$F:$L, 3, FALSE) -> MARTINEZ REFINING CO LLC | C136: =VLOOKUP($A136, '2016-2021 TRI'!$F:$L, 4, FALSE) -> 3485 PACHECO BLVD | D136: =VLOOKUP($A136, '2016-2021 TRI'!$F:$L, 5, FALSE) -> MARTINEZ | E136: =VLOOKUP($A136, '2016-2021 TRI'!$F:$L, 6, FALSE) -> CA | F136: =VLOOKUP($A136, '2016-2021 TRI'!$F:$L, 7, FALSE) -> 94553 | G136: =VLOOKUP($A136, '2016-2021 TRI'!F:N, 9, FALSE) -> Processing - Incorporation into formulation, mixture, or reaction product | H136: =VLOOKUP($A136, '2016-2021 TRI'!$F:$L, 2, FALSE) -> 324110 | I136: =IFERROR(VLOOKUP(H136, '2012 to 2017 NAICS'!C:D, 2, FALSE), VLOOKUP(H136, '2012 to 2017 NAICS'!A:B, 2, FALSE)) -> Petroleum Refineries | J136: =VLOOKUP(G136, 'OES Summary'!$A$2:$D$15, 3, FALSE) -> 250 | K136: =CONVERT(MEDIAN(IF('2016-2021 TRI'!F:F=$A136,'2016-2021 TRI'!P:P)), "lbm", "kg") -> 39 | L136: =CONVERT(_xlfn.MAXIFS('2016-2021 TRI'!P:P,'2016-2021 TRI'!F:F,A136), "lbm", "kg") -> 50 | M136: =CONVERT(MEDIAN(IF('2016-2021 TRI'!F:F=$A136,'2016-2021 TRI'!Q:Q)), "lbm", "kg") -> 2 | N136: =CONVERT(_xlfn.MAXIFS('2016-2021 TRI'!Q:Q,'2016-2021 TRI'!F:F,A136), "lbm", "kg") -> 4 | O136: 0.158 | P136: 0.200 | Q136: 0.009 | R136: 0.015
A137: 19061BPLCMPOSTR | B137: =VLOOKUP($A137, '2016-2021 TRI'!$F:$L, 3, FALSE) -> MONROE ENERGY LLC-TRAINER REFINERY | C137: =VLOOKUP($A137, '2016-2021 TRI'!$F:$L, 4, FALSE) -> 4101 POST RD | D137: =VLOOKUP($A137, '2016-2021 TRI'!$F:$L, 5, FALSE) -> TRAINER | E137: =VLOOKUP($A137, '2016-2021 TRI'!$F:$L, 6, FALSE) -> PA | F137: =VLOOKUP($A137, '2016-2021 TRI'!$F:$L, 7, FALSE) -> 19061 | G137: =VLOOKUP($A137, '2016-2021 TRI'!F:N, 9, FALSE) -> Processing - Incorporation into formulation, mixture, or reaction product | H137: =VLOOKUP($A137, '2016-2021 TRI'!$F:$L, 2, FALSE) -> 324110 | I137: =IFERROR(VLOOKUP(H137, '2012 to 2017 NAICS'!C:D, 2, FALSE), VLOOKUP(H137, '2012 to 2017 NAICS'!A:B, 2, FALSE)) -> Petroleum Refineries | J137: =VLOOKUP(G137, 'OES Summary'!$A$2:$D$15, 3, FALSE) -> 250 | K137: =CONVERT(MEDIAN(IF('2016-2021 TRI'!F:F=$A137,'2016-2021 TRI'!P:P)), "lbm", "kg") -> 4 | L137: =CONVERT(_xlfn.MAXIFS('2016-2021 TRI'!P:P,'2016-2021 TRI'!F:F,A137), "lbm", "kg") -> 7 | M137: =CONVERT(MEDIAN(IF('2016-2021 TRI'!F:F=$A137,'2016-2021 TRI'!Q:Q)), "lbm", "kg") -> 3 | N137: =CONVERT(_xlfn.MAXIFS('2016-2021 TRI'!Q:Q,'2016-2021 TRI'!F:F,A137), "lbm", "kg") -> 5 | O137: 0.015 | P137: 0.027 | Q137: 0.012 | R137: 0.020
A138: 77641KMCNC2450S | B138: =VLOOKUP($A138, '2016-2021 TRI'!$F:$L, 3, FALSE) -> MONUMENT CHEMICAL PORT ARTHUR LLC | C138: =VLOOKUP($A138, '2016-2021 TRI'!$F:$L, 4, FALSE) -> 2450 S GULFWAY DR | D138: =VLOOKUP($A138, '2016-2021 TRI'!$F:$L, 5, FALSE) -> PORT ARTHUR | E138: =VLOOKUP($A138, '2016-2021 TRI'!$F:$L, 6, FALSE) -> TX | F138: =VLOOKUP($A138, '2016-2021 TRI'!$F:$L, 7, FALSE) -> 77641 | G138: =VLOOKUP($A138, '2016-2021 TRI'!F:N, 9, FALSE) -> Manufacturing | H138: =VLOOKUP($A138, '2016-2021 TRI'!$F:$L, 2, FALSE) -> 325199 | I138: =IFERROR(VLOOKUP(H138, '2012 to 2017 NAICS'!C:D, 2, FALSE), VLOOKUP(H138, '2012 to 2017 NAICS'!A:B, 2, FALSE)) -> All Other Basic Organic Chemical Manufacturing | J138: =VLOOKUP(G138, 'OES Summary'!$A$2:$D$15, 3, FALSE) -> 350 | K138: =CONVERT(MEDIAN(IF('2016-2021 TRI'!F:F=$A138,'2016-2021 TRI'!P:P)), "lbm", "kg") -> 108 | L138: =CONVERT(_xlfn.MAXIFS('2016-2021 TRI'!P:P,'2016-2021 TRI'!F:F,A138), "lbm", "kg") -> 167 | M138: =CONVERT(MEDIAN(IF('2016-2021 TRI'!F:F=$A138,'2016-2021 TRI'!Q:Q)), "lbm", "kg") -> 163 | N138: =CONVERT(_xlfn.MAXIFS('2016-2021 TRI'!Q:Q,'2016-2021 TRI'!F:F,A138), "lbm", "kg") -> 220 | O138: 0.307 | P138: 0.478 | Q138: 0.466 | R138: 0.630
A139: 77641TXCCHGATE2 | B139: =VLOOKUP($A139, '2016-2021 TRI'!$F:$L, 3, FALSE) -> MOTIVA CHEMICALS LLC | C139: =VLOOKUP($A139, '2016-2021 TRI'!$F:$L, 4, FALSE) -> 4241 SAVANNAH AVE | D139: =VLOOKUP($A139, '2016-2021 TRI'!$F:$L, 5, FALSE) -> PORT ARTHUR | E139: =VLOOKUP($A139, '2016-2021 TRI'!$F:$L, 6, FALSE) -> TX | F139: =VLOOKUP($A139, '2016-2021 TRI'!$F:$L, 7, FALSE) -> 77640 | G139: =VLOOKUP($A139, '2016-2021 TRI'!F:N, 9, FALSE) -> Processing - Incorporation into formulation, mixture, or reaction product | H139: =VLOOKUP($A139, '2016-2021 TRI'!$F:$L, 2, FALSE) -> 325110 | I139: =IFERROR(VLOOKUP(H139, '2012 to 2017 NAICS'!C:D, 2, FALSE), VLOOKUP(H139, '2012 to 2017 NAICS'!A:B, 2, FALSE)) -> Petrochemical Manufacturing | J139: =VLOOKUP(G139, 'OES Summary'!$A$2:$D$15, 3, FALSE) -> 250 | K139: =CONVERT(MEDIAN(IF('2016-2021 TRI'!F:F=$A139,'2016-2021 TRI'!P:P)), "lbm", "kg") -> 736 | L139: =CONVERT(_xlfn.MAXIFS('2016-2021 TRI'!P:P,'2016-2021 TRI'!F:F,A139), "lbm", "kg") -> 1051 | M139: =CONVERT(MEDIAN(IF('2016-2021 TRI'!F:F=$A139,'2016-2021 TRI'!Q:Q)), "lbm", "kg") -> 595 | N139: =CONVERT(_xlfn.MAXIFS('2016-2021 TRI'!Q:Q,'2016-2021 TRI'!F:F,A139), "lbm", "kg") -> 1098 | O139: 2.946 | P139: 4.202 | Q139: 2.381 | R139: 4.391
A140: 77640TXCRFNORTH | B140: =VLOOKUP($A140, '2016-2021 TRI'!$F:$L, 3, FALSE) -> MOTIVA-PORT ARTHUR REFINERY | C140: =VLOOKUP($A140, '2016-2021 TRI'!$F:$L, 4, FALSE) -> 2555 SAVANNAH AVE | D140: =VLOOKUP($A140, '2016-2021 TRI'!$F:$L, 5, FALSE) -> PORT ARTHUR | E140: =VLOOKUP($A140, '2016-2021 TRI'!$F:$L, 6, FALSE) -> TX | F140: =VLOOKUP($A140, '2016-2021 TRI'!$F:$L, 7, FALSE) -> 77640 | G140: =VLOOKUP($A140, '2016-2021 TRI'!F:N, 9, FALSE) -> Processing - Incorporation into formulation, mixture, or reaction product | H140: =VLOOKUP($A140, '2016-2021 TRI'!$F:$L, 2, FALSE) -> 324110 | I140: =IFERROR(VLOOKUP(H140, '2012 to 2017 NAICS'!C:D, 2, FALSE), VLOOKUP(H140, '2012 to 2017 NAICS'!A:B, 2, FALSE)) -> Petroleum Refineries | J140: =VLOOKUP(G140, 'OES Summary'!$A$2:$D$15, 3, FALSE) -> 250 | K140: =CONVERT(MEDIAN(IF('2016-2021 TRI'!F:F=$A140,'2016-2021 TRI'!P:P)), "lbm", "kg") -> 5 | L140: =CONVERT(_xlfn.MAXIFS('2016-2021 TRI'!P:P,'2016-2021 TRI'!F:F,A140), "lbm", "kg") -> 147 | M140: =CONVERT(MEDIAN(IF('2016-2021 TRI'!F:F=$A140,'2016-2021 TRI'!Q:Q)), "lbm", "kg") -> 0 | N140: =CONVERT(_xlfn.MAXIFS('2016-2021 TRI'!Q:Q,'2016-2021 TRI'!F:F,A140), "lbm", "kg") -> 3 | O140: 0.021 | P140: 0.590 | Q140: 0.000 | R140: 0.013
A141: 7007WPNKTR46HIG | B141: =VLOOKUP($A141, '2016-2021 TRI'!$F:$L, 3, FALSE) -> MT. AIRY TERMINAL LLC | C141: =VLOOKUP($A141, '2016-2021 TRI'!$F:$L, 4, FALSE) -> 4006 HIGHWAY 44 | D141: =VLOOKUP($A141, '2016-2021 TRI'!$F:$L, 5, FALSE) -> MOUNT AIRY | E141: =VLOOKUP($A141, '2016-2021 TRI'!$F:$L, 6, FALSE) -> LA | F141: =VLOOKUP($A141, '2016-2021 TRI'!$F:$L, 7, FALSE) -> 70076 | G141: =VLOOKUP($A141, '2016-2021 TRI'!F:N, 9, FALSE) -> Repackaging | H141: =VLOOKUP($A141, '2016-2021 TRI'!$F:$L, 2, FALSE) -> 424710 | I141: =IFERROR(VLOOKUP(H141, '2012 to 2017 NAICS'!C:D, 2, FALSE), VLOOKUP(H141, '2012 to 2017 NAICS'!A:B, 2, FALSE)) -> Petroleum Bulk Stations and Terminals | J141: =VLOOKUP(G141, 'OES Summary'!$A$2:$D$15, 3, FALSE) -> 350 | K141: =CONVERT(MEDIAN(IF('2016-2021 TRI'!F:F=$A141,'2016-2021 TRI'!P:P)), "lbm", "kg") -> 2 | L141: =CONVERT(_xlfn.MAXIFS('2016-2021 TRI'!P:P,'2016-2021 TRI'!F:F,A141), "lbm", "kg") -> 2 | M141: =CONVERT(MEDIAN(IF('2016-2021 TRI'!F:F=$A141,'2016-2021 TRI'!Q:Q)), "lbm", "kg") -> 2 | N141: =CONVERT(_xlfn.MAXIFS('2016-2021 TRI'!Q:Q,'2016-2021 TRI'!F:F,A141), "lbm", "kg") -> 2 | O141: 0.006 | P141: 0.006 | Q141: 0.006 | R141: 0.006
A142: 7610WMSKTF2189G | B142: =VLOOKUP($A142, '2016-2021 TRI'!$F:$L, 3, FALSE) -> MUSKET FT WORTH BULK PLANT | C142: =VLOOKUP($A142, '2016-2021 TRI'!$F:$L, 4, FALSE) -> 5101 LONE STAR BLVD | D142: =VLOOKUP($A142, '2016-2021 TRI'!$F:$L, 5, FALSE) -> FORT WORTH | E142: =VLOOKUP($A142, '2016-2021 TRI'!$F:$L, 6, FALSE) -> TX | F142: =VLOOKUP($A142, '2016-2021 TRI'!$F:$L, 7, FALSE) -> 76106 | G142: =VLOOKUP($A142, '2016-2021 TRI'!F:N, 9, FALSE) -> Repackaging | H142: =VLOOKUP($A142, '2016-2021 TRI'!$F:$L, 2, FALSE) -> 424710 | I142: =IFERROR(VLOOKUP(H142, '2012 to 2017 NAICS'!C:D, 2, FALSE), VLOOKUP(H142, '2012 to 2017 NAICS'!A:B, 2, FALSE)) -> Petroleum Bulk Stations and Terminals | J142: =VLOOKUP(G142, 'OES Summary'!$A$2:$D$15, 3, FALSE) -> 350 | K142: =CONVERT(MEDIAN(IF('2016-2021 TRI'!F:F=$A142,'2016-2021 TRI'!P:P)), "lbm", "kg") -> 0 | L142: =CONVERT(_xlfn.MAXIFS('2016-2021 TRI'!P:P,'2016-2021 TRI'!F:F,A142), "lbm", "kg") -> 0 | M142: =CONVERT(MEDIAN(IF('2016-2021 TRI'!F:F=$A142,'2016-2021 TRI'!Q:Q)), "lbm", "kg") -> 0 | N142: =CONVERT(_xlfn.MAXIFS('2016-2021 TRI'!Q:Q,'2016-2021 TRI'!F:F,A142), "lbm", "kg") -> 0 | O142: 0.000 | P142: 0.000 | Q142: 0.001 | R142: 0.001
A143: 70734NNTXSLAHWY | B143: =VLOOKUP($A143, '2016-2021 TRI'!$F:$L, 3, FALSE) -> NOVA CHEMICALS OLEFINS LLC | C143: =VLOOKUP($A143, '2016-2021 TRI'!$F:$L, 4, FALSE) -> 5205 HWY 3115 | D143: =VLOOKUP($A143, '2016-2021 TRI'!$F:$L, 5, FALSE) -> GEISMAR | E143: =VLOOKUP($A143, '2016-2021 TRI'!$F:$L, 6, FALSE) -> LA | F143: =VLOOKUP($A143, '2016-2021 TRI'!$F:$L, 7, FALSE) -> 70734 | G143: =VLOOKUP($A143, '2016-2021 TRI'!F:N, 9, FALSE) -> Manufacturing | H143: =VLOOKUP($A143, '2016-2021 TRI'!$F:$L, 2, FALSE) -> 325110 | I143: =IFERROR(VLOOKUP(H143, '2012 to 2017 NAICS'!C:D, 2, FALSE), VLOOKUP(H143, '2012 to 2017 NAICS'!A:B, 2, FALSE)) -> Petrochemical Manufacturing | J143: =VLOOKUP(G143, 'OES Summary'!$A$2:$D$15, 3, FALSE) -> 350 | K143: =CONVERT(MEDIAN(IF('2016-2021 TRI'!F:F=$A143,'2016-2021 TRI'!P:P)), "lbm", "kg") -> 3111 | L143: =CONVERT(_xlfn.MAXIFS('2016-2021 TRI'!P:P,'2016-2021 TRI'!F:F,A143), "lbm", "kg") -> 3271 | M143: =CONVERT(MEDIAN(IF('2016-2021 TRI'!F:F=$A143,'2016-2021 TRI'!Q:Q)), "lbm", "kg") -> 536 | N143: =CONVERT(_xlfn.MAXIFS('2016-2021 TRI'!Q:Q,'2016-2021 TRI'!F:F,A143), "lbm", "kg") -> 2016 | O143: 8.890 | P143: 9.345 | Q143: 1.531 | R143: 5.759
A144: 78359CCDNTHWY36 | B144: =VLOOKUP($A144, '2016-2021 TRI'!$F:$L, 3, FALSE) -> OCCIDENTAL CHEMICAL CORP | C144: =VLOOKUP($A144, '2016-2021 TRI'!$F:$L, 4, FALSE) -> 4133 HWY 361 | D144: =VLOOKUP($A144, '2016-2021 TRI'!$F:$L, 5, FALSE) -> GREGORY | E144: =VLOOKUP($A144, '2016-2021 TRI'!$F:$L, 6, FALSE) -> TX | F144: =VLOOKUP($A144, '2016-2021 TRI'!$F:$L, 7, FALSE) -> 78359 | G144: =VLOOKUP($A144, '2016-2021 TRI'!F:N, 9, FALSE) -> Processing - Incorporation into formulation, mixture, or reaction product | H144: =VLOOKUP($A144, '2016-2021 TRI'!$F:$L, 2, FALSE) -> 325199 | I144: =IFERROR(VLOOKUP(H144, '2012 to 2017 NAICS'!C:D, 2, FALSE), VLOOKUP(H144, '2012 to 2017 NAICS'!A:B, 2, FALSE)) -> All Other Basic Organic Chemical Manufacturing | J144: =VLOOKUP(G144, 'OES Summary'!$A$2:$D$15, 3, FALSE) -> 250 | K144: =CONVERT(MEDIAN(IF('2016-2021 TRI'!F:F=$A144,'2016-2021 TRI'!P:P)), "lbm", "kg") -> 72 | L144: =CONVERT(_xlfn.MAXIFS('2016-2021 TRI'!P:P,'2016-2021 TRI'!F:F,A144), "lbm", "kg") -> 141 | M144: =CONVERT(MEDIAN(IF('2016-2021 TRI'!F:F=$A144,'2016-2021 TRI'!Q:Q)), "lbm", "kg") -> 103 | N144: =CONVERT(_xlfn.MAXIFS('2016-2021 TRI'!Q:Q,'2016-2021 TRI'!F:F,A144), "lbm", "kg") -> 183 | O144: 0.290 | P144: 0.562 | Q144: 0.412 | R144: 0.733
A145: 30701THGDY1601H | B145: =VLOOKUP($A145, '2016-2021 TRI'!$F:$L, 3, FALSE) -> OMNOVA SOLUTIONS INC | C145: =VLOOKUP($A145, '2016-2021 TRI'!$F:$L, 4, FALSE) -> 1601 HWY 41 SW | D145: =VLOOKUP($A145, '2016-2021 TRI'!$F:$L, 5, FALSE) -> CALHOUN | E145: =VLOOKUP($A145, '2016-2021 TRI'!$F:$L, 6, FALSE) -> GA | F145: =VLOOKUP($A145, '2016-2021 TRI'!$F:$L, 7, FALSE) -> 30701 | G145: =VLOOKUP($A145, '2016-2021 TRI'!F:N, 9, FALSE) -> Processing as a reactant | H145: =VLOOKUP($A145, '2016-2021 TRI'!$F:$L, 2, FALSE) -> 325212 | I145: =IFERROR(VLOOKUP(H145, '2012 to 2017 NAICS'!C:D, 2, FALSE), VLOOKUP(H145, '2012 to 2017 NAICS'!A:B, 2, FALSE)) -> Synthetic Rubber Manufacturing | J145: =VLOOKUP(G145, 'OES Summary'!$A$2:$D$15, 3, FALSE) -> 350 | K145: =CONVERT(MEDIAN(IF('2016-2021 TRI'!F:F=$A145,'2016-2021 TRI'!P:P)), "lbm", "kg") -> 30 | L145: =CONVERT(_xlfn.MAXIFS('2016-2021 TRI'!P:P,'2016-2021 TRI'!F:F,A145), "lbm", "kg") -> 30 | M145: =CONVERT(MEDIAN(IF('2016-2021 TRI'!F:F=$A145,'2016-2021 TRI'!Q:Q)), "lbm", "kg") -> 24 | N145: =CONVERT(_xlfn.MAXIFS('2016-2021 TRI'!Q:Q,'2016-2021 TRI'!F:F,A145), "lbm", "kg") -> 24 | O145: 0.087 | P145: 0.087 | Q145: 0.067 | R145: 0.067
A146: 44260DVRST165SC | B146: =VLOOKUP($A146, '2016-2021 TRI'!$F:$L, 3, FALSE) -> OMNOVA SOLUTIONS INC-MOGADORE PLANT | C146: =VLOOKUP($A146, '2016-2021 TRI'!$F:$L, 4, FALSE) -> 165 S CLEVELAND AVE | D146: =VLOOKUP($A146, '2016-2021 TRI'!$F:$L, 5, FALSE) -> MOGADORE | E146: =VLOOKUP($A146, '2016-2021 TRI'!$F:$L, 6, FALSE) -> OH | F146: =VLOOKUP($A146, '2016-2021 TRI'!$F:$L, 7, FALSE) -> 44260 | G146: =VLOOKUP($A146, '2016-2021 TRI'!F:N, 9, FALSE) -> Processing as a reactant | H146: =VLOOKUP($A146, '2016-2021 TRI'!$F:$L, 2, FALSE) -> 325212 | I146: =IFERROR(VLOOKUP(H146, '2012 to 2017 NAICS'!C:D, 2, FALSE), VLOOKUP(H146, '2012 to 2017 NAICS'!A:B, 2, FALSE)) -> Synthetic Rubber Manufacturing | J146: =VLOOKUP(G146, 'OES Summary'!$A$2:$D$15, 3, FALSE) -> 350 | K146: =CONVERT(MEDIAN(IF('2016-2021 TRI'!F:F=$A146,'2016-2021 TRI'!P:P)), "lbm", "kg") -> 22 | L146: =CONVERT(_xlfn.MAXIFS('2016-2021 TRI'!P:P,'2016-2021 TRI'!F:F,A146), "lbm", "kg") -> 28 | M146: =CONVERT(MEDIAN(IF('2016-2021 TRI'!F:F=$A146,'2016-2021 TRI'!Q:Q)), "lbm", "kg") -> 41 | N146: =CONVERT(_xlfn.MAXIFS('2016-2021 TRI'!Q:Q,'2016-2021 TRI'!F:F,A146), "lbm", "kg") -> 76 | O146: 0.062 | P146: 0.079 | Q146: 0.117 | R146: 0.218
A147: 54313GNCRP1701C | B147: =VLOOKUP($A147, '2016-2021 TRI'!$F:$L, 3, FALSE) -> OMNOVA SOLUTIONS PERFORMANCE CHEMICALS GREEN BAY FACILITY | C147: =VLOOKUP($A147, '2016-2021 TRI'!$F:$L, 4, FALSE) -> 1701 CORNELL RD | D147: =VLOOKUP($A147, '2016-2021 TRI'!$F:$L, 5, FALSE) -> GREEN BAY | E147: =VLOOKUP($A147, '2016-2021 TRI'!$F:$L, 6, FALSE) -> WI | F147: =VLOOKUP($A147, '2016-2021 TRI'!$F:$L, 7, FALSE) -> 54313 | G147: =VLOOKUP($A147, '2016-2021 TRI'!F:N, 9, FALSE) -> Processing as a reactant | H147: =VLOOKUP($A147, '2016-2021 TRI'!$F:$L, 2, FALSE) -> 325212 | I147: =IFERROR(VLOOKUP(H147, '2012 to 2017 NAICS'!C:D, 2, FALSE), VLOOKUP(H147, '2012 to 2017 NAICS'!A:B, 2, FALSE)) -> Synthetic Rubber Manufacturing | J147: =VLOOKUP(G147, 'OES Summary'!$A$2:$D$15, 3, FALSE) -> 350 | K147: =CONVERT(MEDIAN(IF('2016-2021 TRI'!F:F=$A147,'2016-2021 TRI'!P:P)), "lbm", "kg") -> 4 | L147: =CONVERT(_xlfn.MAXIFS('2016-2021 TRI'!P:P,'2016-2021 TRI'!F:F,A147), "lbm", "kg") -> 5 | M147: =CONVERT(MEDIAN(IF('2016-2021 TRI'!F:F=$A147,'2016-2021 TRI'!Q:Q)), "lbm", "kg") -> 25 | N147: =CONVERT(_xlfn.MAXIFS('2016-2021 TRI'!Q:Q,'2016-2021 TRI'!F:F,A147), "lbm", "kg") -> 29 | O147: 0.013 | P147: 0.015 | Q147: 0.072 | R147: 0.084
A148: 69001DYCPR400SO | B148: =VLOOKUP($A148, '2016-2021 TRI'!$F:$L, 3, FALSE) -> PARKER HANNIFIN | C148: =VLOOKUP($A148, '2016-2021 TRI'!$F:$L, 4, FALSE) -> 400 S ST | D148: =VLOOKUP($A148, '2016-2021 TRI'!$F:$L, 5, FALSE) -> MC COOK | E148: =VLOOKUP($A148, '2016-2021 TRI'!$F:$L, 6, FALSE) -> NE | F148: =VLOOKUP($A148, '2016-2021 TRI'!$F:$L, 7, FALSE) -> 69001 | G148: =VLOOKUP($A148, '2016-2021 TRI'!F:N, 9, FALSE) -> Plastics and Rubber Converting | H148: =VLOOKUP($A148, '2016-2021 TRI'!$F:$L, 2, FALSE) -> 326220 | I148: =IFERROR(VLOOKUP(H148, '2012 to 2017 NAICS'!C:D, 2, FALSE), VLOOKUP(H148, '2012 to 2017 NAICS'!A:B, 2, FALSE)) -> Rubber and Plastics Hoses and Belting Manufacturing | J148: =VLOOKUP(G148, 'OES Summary'!$A$2:$D$15, 3, FALSE) -> 300 | K148: =CONVERT(MEDIAN(IF('2016-2021 TRI'!F:F=$A148,'2016-2021 TRI'!P:P)), "lbm", "kg") -> 0 | L148: =CONVERT(_xlfn.MAXIFS('2016-2021 TRI'!P:P,'2016-2021 TRI'!F:F,A148), "lbm", "kg") -> 0 | M148: =CONVERT(MEDIAN(IF('2016-2021 TRI'!F:F=$A148,'2016-2021 TRI'!Q:Q)), "lbm", "kg") -> 0 | N148: =CONVERT(_xlfn.MAXIFS('2016-2021 TRI'!Q:Q,'2016-2021 TRI'!F:F,A148), "lbm", "kg") -> 0 | O148: 0.000 | P148: 0.000 | Q148: 0.000 | R148: 0.000
A149: 77506CRWNC111RE | B149: =VLOOKUP($A149, '2016-2021 TRI'!$F:$L, 3, FALSE) -> PASADENA REFINING SYSTEM INC | C149: =VLOOKUP($A149, '2016-2021 TRI'!$F:$L, 4, FALSE) -> 111 RED BLUFF RD | D149: =VLOOKUP($A149, '2016-2021 TRI'!$F:$L, 5, FALSE) -> PASADENA | E149: =VLOOKUP($A149, '2016-2021 TRI'!$F:$L, 6, FALSE) -> TX | F149: =VLOOKUP($A149, '2016-2021 TRI'!$F:$L, 7, FALSE) -> 77506 | G149: =VLOOKUP($A149, '2016-2021 TRI'!F:N, 9, FALSE) -> Processing as a reactant | H149: =VLOOKUP($A149, '2016-2021 TRI'!$F:$L, 2, FALSE) -> 324110 | I149: =IFERROR(VLOOKUP(H149, '2012 to 2017 NAICS'!C:D, 2, FALSE), VLOOKUP(H149, '2012 to 2017 NAICS'!A:B, 2, FALSE)) -> Petroleum Refineries | J149: =VLOOKUP(G149, 'OES Summary'!$A$2:$D$15, 3, FALSE) -> 350 | K149: =CONVERT(MEDIAN(IF('2016-2021 TRI'!F:F=$A149,'2016-2021 TRI'!P:P)), "lbm", "kg") -> 66 | L149: =CONVERT(_xlfn.MAXIFS('2016-2021 TRI'!P:P,'2016-2021 TRI'!F:F,A149), "lbm", "kg") -> 105 | M149: =CONVERT(MEDIAN(IF('2016-2021 TRI'!F:F=$A149,'2016-2021 TRI'!Q:Q)), "lbm", "kg") -> 655 | N149: =CONVERT(_xlfn.MAXIFS('2016-2021 TRI'!Q:Q,'2016-2021 TRI'!F:F,A149), "lbm", "kg") -> 2542 | O149: 0.187 | P149: 0.299 | Q149: 1.870 | R149: 7.263
A150: 08066MBLLCBILLI | B150: =VLOOKUP($A150, '2016-2021 TRI'!$F:$L, 3, FALSE) -> PAULSBORO REFINING CO LLC | C150: =VLOOKUP($A150, '2016-2021 TRI'!$F:$L, 4, FALSE) -> 800 BILLINGSPORT RD | D150: =VLOOKUP($A150, '2016-2021 TRI'!$F:$L, 5, FALSE) -> PAULSBORO | E150: =VLOOKUP($A150, '2016-2021 TRI'!$F:$L, 6, FALSE) -> NJ | F150: =VLOOKUP($A150, '2016-2021 TRI'!$F:$L, 7, FALSE) -> 8066 | G150: =VLOOKUP($A150, '2016-2021 TRI'!F:N, 9, FALSE) -> Processing as a reactant | H150: =VLOOKUP($A150, '2016-2021 TRI'!$F:$L, 2, FALSE) -> 324110 | I150: =IFERROR(VLOOKUP(H150, '2012 to 2017 NAICS'!C:D, 2, FALSE), VLOOKUP(H150, '2012 to 2017 NAICS'!A:B, 2, FALSE)) -> Petroleum Refineries | J150: =VLOOKUP(G150, 'OES Summary'!$A$2:$D$15, 3, FALSE) -> 350 | K150: =CONVERT(MEDIAN(IF('2016-2021 TRI'!F:F=$A150,'2016-2021 TRI'!P:P)), "lbm", "kg") -> 20 | L150: =CONVERT(_xlfn.MAXIFS('2016-2021 TRI'!P:P,'2016-2021 TRI'!F:F,A150), "lbm", "kg") -> 21 | M150: =CONVERT(MEDIAN(IF('2016-2021 TRI'!F:F=$A150,'2016-2021 TRI'!Q:Q)), "lbm", "kg") -> 21 | N150: =CONVERT(_xlfn.MAXIFS('2016-2021 TRI'!Q:Q,'2016-2021 TRI'!F:F,A150), "lbm", "kg") -> 55 | O150: 0.057 | P150: 0.060 | Q150: 0.061 | R150: 0.158
A151: 77631DPNTSFARMR | B151: =VLOOKUP($A151, '2016-2021 TRI'!$F:$L, 3, FALSE) -> PERFORMANCE MATERIALS NA INC | C151: =VLOOKUP($A151, '2016-2021 TRI'!$F:$L, 4, FALSE) -> FARM RD 1006 | D151: =VLOOKUP($A151, '2016-2021 TRI'!$F:$L, 5, FALSE) -> ORANGE | E151: =VLOOKUP($A151, '2016-2021 TRI'!$F:$L, 6, FALSE) -> TX | F151: =VLOOKUP($A151, '2016-2021 TRI'!$F:$L, 7, FALSE) -> 77630 | G151: =VLOOKUP($A151, '2016-2021 TRI'!F:N, 9, FALSE) -> Manufacturing | H151: =VLOOKUP($A151, '2016-2021 TRI'!$F:$L, 2, FALSE) -> 325110 | I151: =IFERROR(VLOOKUP(H151, '2012 to 2017 NAICS'!C:D, 2, FALSE), VLOOKUP(H151, '2012 to 2017 NAICS'!A:B, 2, FALSE)) -> Petrochemical Manufacturing | J151: =VLOOKUP(G151, 'OES Summary'!$A$2:$D$15, 3, FALSE) -> 350 | K151: =CONVERT(MEDIAN(IF('2016-2021 TRI'!F:F=$A151,'2016-2021 TRI'!P:P)), "lbm", "kg") -> 696 | L151: =CONVERT(_xlfn.MAXIFS('2016-2021 TRI'!P:P,'2016-2021 TRI'!F:F,A151), "lbm", "kg") -> 748 | M151: =CONVERT(MEDIAN(IF('2016-2021 TRI'!F:F=$A151,'2016-2021 TRI'!Q:Q)), "lbm", "kg") -> 2166 | N151: =CONVERT(_xlfn.MAXIFS('2016-2021 TRI'!Q:Q,'2016-2021 TRI'!F:F,A151), "lbm", "kg") -> 3062 | O151: 1.988 | P151: 2.138 | Q151: 6.188 | R151: 8.748
A152: 70037LLNCRHIGHW | B152: =VLOOKUP($A152, '2016-2021 TRI'!$F:$L, 3, FALSE) -> PHILLIPS 66 - ALLIANCE REFINERY | C152: =VLOOKUP($A152, '2016-2021 TRI'!$F:$L, 4, FALSE) -> 15551 HIGHWAY 23 | D152: =VLOOKUP($A152, '2016-2021 TRI'!$F:$L, 5, FALSE) -> BELLE CHASSE | E152: =VLOOKUP($A152, '2016-2021 TRI'!$F:$L, 6, FALSE) -> LA | F152: =VLOOKUP($A152, '2016-2021 TRI'!$F:$L, 7, FALSE) -> 70037 | G152: =VLOOKUP($A152, '2016-2021 TRI'!F:N, 9, FALSE) -> Processing - incorporation into formulation, mixture, or reaction product | H152: =VLOOKUP($A152, '2016-2021 TRI'!$F:$L, 2, FALSE) -> 324110 | I152: =IFERROR(VLOOKUP(H152, '2012 to 2017 NAICS'!C:D, 2, FALSE), VLOOKUP(H152, '2012 to 2017 NAICS'!A:B, 2, FALSE)) -> Petroleum Refineries | J152: =VLOOKUP(G152, 'OES Summary'!$A$2:$D$15, 3, FALSE) -> 250 | K152: =CONVERT(MEDIAN(IF('2016-2021 TRI'!F:F=$A152,'2016-2021 TRI'!P:P)), "lbm", "kg") -> 43 | L152: =CONVERT(_xlfn.MAXIFS('2016-2021 TRI'!P:P,'2016-2021 TRI'!F:F,A152), "lbm", "kg") -> 51 | M152: =CONVERT(MEDIAN(IF('2016-2021 TRI'!F:F=$A152,'2016-2021 TRI'!Q:Q)), "lbm", "kg") -> 129 | N152: =CONVERT(_xlfn.MAXIFS('2016-2021 TRI'!Q:Q,'2016-2021 TRI'!F:F,A152), "lbm", "kg") -> 179 | O152: 0.171 | P152: 0.203 | Q152: 0.515 | R152: 0.717
A153: 59101CNCBL401SO | B153: =VLOOKUP($A153, '2016-2021 TRI'!$F:$L, 3, FALSE) -> PHILLIPS 66 CO BILLINGS REFINERY | C153: =VLOOKUP($A153, '2016-2021 TRI'!$F:$L, 4, FALSE) -> 401 S 23RD ST | D153: =VLOOKUP($A153, '2016-2021 TRI'!$F:$L, 5, FALSE) -> BILLINGS | E153: =VLOOKUP($A153, '2016-2021 TRI'!$F:$L, 6, FALSE) -> MT | F153: =VLOOKUP($A153, '2016-2021 TRI'!$F:$L, 7, FALSE) -> 59101 | G153: =VLOOKUP($A153, '2016-2021 TRI'!F:N, 9, FALSE) -> Processing as a reactant | H153: =VLOOKUP($A153, '2016-2021 TRI'!$F:$L, 2, FALSE) -> 324110 | I153: =IFERROR(VLOOKUP(H153, '2012 to 2017 NAICS'!C:D, 2, FALSE), VLOOKUP(H153, '2012 to 2017 NAICS'!A:B, 2, FALSE)) -> Petroleum Refineries | J153: =VLOOKUP(G153, 'OES Summary'!$A$2:$D$15, 3, FALSE) -> 350 | K153: =CONVERT(MEDIAN(IF('2016-2021 TRI'!F:F=$A153,'2016-2021 TRI'!P:P)), "lbm", "kg") -> 88 | L153: =CONVERT(_xlfn.MAXIFS('2016-2021 TRI'!P:P,'2016-2021 TRI'!F:F,A153), "lbm", "kg") -> 186 | M153: =CONVERT(MEDIAN(IF('2016-2021 TRI'!F:F=$A153,'2016-2021 TRI'!Q:Q)), "lbm", "kg") -> 1383 | N153: =CONVERT(_xlfn.MAXIFS('2016-2021 TRI'!Q:Q,'2016-2021 TRI'!F:F,A153), "lbm", "kg") -> 2475 | O153: 0.251 | P153: 0.531 | Q153: 3.953 | R153: 7.072
A154: 77480PHLLPSH35A | B154: =VLOOKUP($A154, '2016-2021 TRI'!$F:$L, 3, FALSE) -> PHILLIPS 66 CO SWEENY REFINERY COMPLEX | C154: =VLOOKUP($A154, '2016-2021 TRI'!$F:$L, 4, FALSE) -> 8189 OLD FM 524 | D154: =VLOOKUP($A154, '2016-2021 TRI'!$F:$L, 5, FALSE) -> OLD OCEAN | E154: =VLOOKUP($A154, '2016-2021 TRI'!$F:$L, 6, FALSE) -> TX | F154: =VLOOKUP($A154, '2016-2021 TRI'!$F:$L, 7, FALSE) -> 77463 | G154: =VLOOKUP($A154, '2016-2021 TRI'!F:N, 9, FALSE) -> Processing as a reactant | H154: =VLOOKUP($A154, '2016-2021 TRI'!$F:$L, 2, FALSE) -> 324110 | I154: =IFERROR(VLOOKUP(H154, '2012 to 2017 NAICS'!C:D, 2, FALSE), VLOOKUP(H154, '2012 to 2017 NAICS'!A:B, 2, FALSE)) -> Petroleum Refineries | J154: =VLOOKUP(G154, 'OES Summary'!$A$2:$D$15, 3, FALSE) -> 350 | K154: =CONVERT(MEDIAN(IF('2016-2021 TRI'!F:F=$A154,'2016-2021 TRI'!P:P)), "lbm", "kg") -> 408 | L154: =CONVERT(_xlfn.MAXIFS('2016-2021 TRI'!P:P,'2016-2021 TRI'!F:F,A154), "lbm", "kg") -> 914 | M154: =CONVERT(MEDIAN(IF('2016-2021 TRI'!F:F=$A154,'2016-2021 TRI'!Q:Q)), "lbm", "kg") -> 1025 | N154: =CONVERT(_xlfn.MAXIFS('2016-2021 TRI'!Q:Q,'2016-2021 TRI'!F:F,A154), "lbm", "kg") -> 1070 | O154: 1.166 | P154: 2.613 | Q154: 2.929 | R154: 3.059
A155: 07036XXNXX1400P | B155: =VLOOKUP($A155, '2016-2021 TRI'!$F:$L, 3, FALSE) -> PHILLIPS 66 CO-BAYWAY REFINERY | C155: =VLOOKUP($A155, '2016-2021 TRI'!$F:$L, 4, FALSE) -> 1400 PARK AVE | D155: =VLOOKUP($A155, '2016-2021 TRI'!$F:$L, 5, FALSE) -> LINDEN | E155: =VLOOKUP($A155, '2016-2021 TRI'!$F:$L, 6, FALSE) -> NJ | F155: =VLOOKUP($A155, '2016-2021 TRI'!$F:$L, 7, FALSE) -> 7036 | G155: =VLOOKUP($A155, '2016-2021 TRI'!F:N, 9, FALSE) -> Processing as a reactant | H155: =VLOOKUP($A155, '2016-2021 TRI'!$F:$L, 2, FALSE) -> 324110 | I155: =IFERROR(VLOOKUP(H155, '2012 to 2017 NAICS'!C:D, 2, FALSE), VLOOKUP(H155, '2012 to 2017 NAICS'!A:B, 2, FALSE)) -> Petroleum Refineries | J155: =VLOOKUP(G155, 'OES Summary'!$A$2:$D$15, 3, FALSE) -> 350 | K155: =CONVERT(MEDIAN(IF('2016-2021 TRI'!F:F=$A155,'2016-2021 TRI'!P:P)), "lbm", "kg") -> 2 | L155: =CONVERT(_xlfn.MAXIFS('2016-2021 TRI'!P:P,'2016-2021 TRI'!F:F,A155), "lbm", "kg") -> 3 | M155: =CONVERT(MEDIAN(IF('2016-2021 TRI'!F:F=$A155,'2016-2021 TRI'!Q:Q)), "lbm", "kg") -> 0 | N155: =CONVERT(_xlfn.MAXIFS('2016-2021 TRI'!Q:Q,'2016-2021 TRI'!F:F,A155), "lbm", "kg") -> 0 | O155: 0.007 | P155: 0.009 | Q155: 0.000 | R155: 0.000
A156: 93420NCLSN2555W | B156: =VLOOKUP($A156, '2016-2021 TRI'!$F:$L, 3, FALSE) -> PHILLIPS 66 CO-SANTA MARIA REFINERY | C156: =VLOOKUP($A156, '2016-2021 TRI'!$F:$L, 4, FALSE) -> 2555 WILLOW RD | D156: =VLOOKUP($A156, '2016-2021 TRI'!$F:$L, 5, FALSE) -> ARROYO GRANDE | E156: =VLOOKUP($A156, '2016-2021 TRI'!$F:$L, 6, FALSE) -> CA | F156: =VLOOKUP($A156, '2016-2021 TRI'!$F:$L, 7, FALSE) -> 93420 | G156: =VLOOKUP($A156, '2016-2021 TRI'!F:N, 9, FALSE) -> Processing - Incorporation into formulation, mixture, or reaction product | H156: =VLOOKUP($A156, '2016-2021 TRI'!$F:$L, 2, FALSE) -> 324110 | I156: =IFERROR(VLOOKUP(H156, '2012 to 2017 NAICS'!C:D, 2, FALSE), VLOOKUP(H156, '2012 to 2017 NAICS'!A:B, 2, FALSE)) -> Petroleum Refineries | J156: =VLOOKUP(G156, 'OES Summary'!$A$2:$D$15, 3, FALSE) -> 250 | K156: =CONVERT(MEDIAN(IF('2016-2021 TRI'!F:F=$A156,'2016-2021 TRI'!P:P)), "lbm", "kg") -> 5 | L156: =CONVERT(_xlfn.MAXIFS('2016-2021 TRI'!P:P,'2016-2021 TRI'!F:F,A156), "lbm", "kg") -> 5 | M156: =CONVERT(MEDIAN(IF('2016-2021 TRI'!F:F=$A156,'2016-2021 TRI'!Q:Q)), "lbm", "kg") -> 2 | N156: =CONVERT(_xlfn.MAXIFS('2016-2021 TRI'!Q:Q,'2016-2021 TRI'!F:F,A156), "lbm", "kg") -> 3 | O156: 0.019 | P156: 0.020 | Q156: 0.010 | R156: 0.011
A157: 98248MBLLC3901U | B157: =VLOOKUP($A157, '2016-2021 TRI'!$F:$L, 3, FALSE) -> PHILLIPS 66 FERNDALE REFINERY | C157: =VLOOKUP($A157, '2016-2021 TRI'!$F:$L, 4, FALSE) -> 3901 UNICK RD | D157: =VLOOKUP($A157, '2016-2021 TRI'!$F:$L, 5, FALSE) -> FERNDALE | E157: =VLOOKUP($A157, '2016-2021 TRI'!$F:$L, 6, FALSE) -> WA | F157: =VLOOKUP($A157, '2016-2021 TRI'!$F:$L, 7, FALSE) -> 98248 | G157: =VLOOKUP($A157, '2016-2021 TRI'!F:N, 9, FALSE) -> Processing - Incorporation into formulation, mixture, or reaction product | H157: =VLOOKUP($A157, '2016-2021 TRI'!$F:$L, 2, FALSE) -> 324110 | I157: =IFERROR(VLOOKUP(H157, '2012 to 2017 NAICS'!C:D, 2, FALSE), VLOOKUP(H157, '2012 to 2017 NAICS'!A:B, 2, FALSE)) -> Petroleum Refineries | J157: =VLOOKUP(G157, 'OES Summary'!$A$2:$D$15, 3, FALSE) -> 250 | K157: =CONVERT(MEDIAN(IF('2016-2021 TRI'!F:F=$A157,'2016-2021 TRI'!P:P)), "lbm", "kg") -> 141 | L157: =CONVERT(_xlfn.MAXIFS('2016-2021 TRI'!P:P,'2016-2021 TRI'!F:F,A157), "lbm", "kg") -> 152 | M157: =CONVERT(MEDIAN(IF('2016-2021 TRI'!F:F=$A157,'2016-2021 TRI'!Q:Q)), "lbm", "kg") -> 1 | N157: =CONVERT(_xlfn.MAXIFS('2016-2021 TRI'!Q:Q,'2016-2021 TRI'!F:F,A157), "lbm", "kg") -> 3 | O157: 0.564 | P157: 0.610 | Q157: 0.005 | R157: 0.011
A158: 70669CNCLKOLDSP | B158: =VLOOKUP($A158, '2016-2021 TRI'!$F:$L, 3, FALSE) -> PHILLIPS 66 LAKE CHARLES REFINERY | C158: =VLOOKUP($A158, '2016-2021 TRI'!$F:$L, 4, FALSE) -> 2200 OLD SPANISH TRAIL | D158: =VLOOKUP($A158, '2016-2021 TRI'!$F:$L, 5, FALSE) -> WESTLAKE | E158: =VLOOKUP($A158, '2016-2021 TRI'!$F:$L, 6, FALSE) -> LA | F158: =VLOOKUP($A158, '2016-2021 TRI'!$F:$L, 7, FALSE) -> 70669 | G158: =VLOOKUP($A158, '2016-2021 TRI'!F:N, 9, FALSE) -> Processing as a Reactant | H158: =VLOOKUP($A158, '2016-2021 TRI'!$F:$L, 2, FALSE) -> 324110 | I158: =IFERROR(VLOOKUP(H158, '2012 to 2017 NAICS'!C:D, 2, FALSE), VLOOKUP(H158, '2012 to 2017 NAICS'!A:B, 2, FALSE)) -> Petroleum Refineries | J158: =VLOOKUP(G158, 'OES Summary'!$A$2:$D$15, 3, FALSE) -> 350 | K158: =CONVERT(MEDIAN(IF('2016-2021 TRI'!F:F=$A158,'2016-2021 TRI'!P:P)), "lbm", "kg") -> 72 | L158: =CONVERT(_xlfn.MAXIFS('2016-2021 TRI'!P:P,'2016-2021 TRI'!F:F,A158), "lbm", "kg") -> 76 | M158: =CONVERT(MEDIAN(IF('2016-2021 TRI'!F:F=$A158,'2016-2021 TRI'!Q:Q)), "lbm", "kg") -> 69 | N158: =CONVERT(_xlfn.MAXIFS('2016-2021 TRI'!Q:Q,'2016-2021 TRI'!F:F,A158), "lbm", "kg") -> 299 | O158: 0.207 | P158: 0.216 | Q158: 0.196 | R158: 0.854
A159: 90745NCLCR1520E | B159: =VLOOKUP($A159, '2016-2021 TRI'!$F:$L, 3, FALSE) -> PHILLIPS 66 LOS ANGELES REFINERY CARSON PLANT | C159: =VLOOKUP($A159, '2016-2021 TRI'!$F:$L, 4, FALSE) -> 1520 E SEPULVEDA BLVD | D159: =VLOOKUP($A159, '2016-2021 TRI'!$F:$L, 5, FALSE) -> CARSON | E159: =VLOOKUP($A159, '2016-2021 TRI'!$F:$L, 6, FALSE) -> CA | F159: =VLOOKUP($A159, '2016-2021 TRI'!$F:$L, 7, FALSE) -> 90745 | G159: =VLOOKUP($A159, '2016-2021 TRI'!F:N, 9, FALSE) -> Processing as a reactant | H159: =VLOOKUP($A159, '2016-2021 TRI'!$F:$L, 2, FALSE) -> 324110 | I159: =IFERROR(VLOOKUP(H159, '2012 to 2017 NAICS'!C:D, 2, FALSE), VLOOKUP(H159, '2012 to 2017 NAICS'!A:B, 2, FALSE)) -> Petroleum Refineries | J159: =VLOOKUP(G159, 'OES Summary'!$A$2:$D$15, 3, FALSE) -> 350 | K159: =CONVERT(MEDIAN(IF('2016-2021 TRI'!F:F=$A159,'2016-2021 TRI'!P:P)), "lbm", "kg") -> 13 | L159: =CONVERT(_xlfn.MAXIFS('2016-2021 TRI'!P:P,'2016-2021 TRI'!F:F,A159), "lbm", "kg") -> 16 | M159: =CONVERT(MEDIAN(IF('2016-2021 TRI'!F:F=$A159,'2016-2021 TRI'!Q:Q)), "lbm", "kg") -> 20 | N159: =CONVERT(_xlfn.MAXIFS('2016-2021 TRI'!Q:Q,'2016-2021 TRI'!F:F,A159), "lbm", "kg") -> 59 | O159: 0.038 | P159: 0.047 | Q159: 0.056 | R159: 0.168
A160: 90748NCLLS1660W | B160: =VLOOKUP($A160, '2016-2021 TRI'!$F:$L, 3, FALSE) -> PHILLIPS 66 LOS ANGELES REFINERY WILMINGTON PLANT | C160: =VLOOKUP($A160, '2016-2021 TRI'!$F:$L, 4, FALSE) -> 1660 W ANAHEIM ST | D160: =VLOOKUP($A160, '2016-2021 TRI'!$F:$L, 5, FALSE) -> WILMINGTON | E160: =VLOOKUP($A160, '2016-2021 TRI'!$F:$L, 6, FALSE) -> CA | F160: =VLOOKUP($A160, '2016-2021 TRI'!$F:$L, 7, FALSE) -> 90744 | G160: =VLOOKUP($A160, '2016-2021 TRI'!F:N, 9, FALSE) -> Processing as a reactant | H160: =VLOOKUP($A160, '2016-2021 TRI'!$F:$L, 2, FALSE) -> 324110 | I160: =IFERROR(VLOOKUP(H160, '2012 to 2017 NAICS'!C:D, 2, FALSE), VLOOKUP(H160, '2012 to 2017 NAICS'!A:B, 2, FALSE)) -> Petroleum Refineries | J160: =VLOOKUP(G160, 'OES Summary'!$A$2:$D$15, 3, FALSE) -> 350 | K160: =CONVERT(MEDIAN(IF('2016-2021 TRI'!F:F=$A160,'2016-2021 TRI'!P:P)), "lbm", "kg") -> 22 | L160: =CONVERT(_xlfn.MAXIFS('2016-2021 TRI'!P:P,'2016-2021 TRI'!F:F,A160), "lbm", "kg") -> 27 | M160: =CONVERT(MEDIAN(IF('2016-2021 TRI'!F:F=$A160,'2016-2021 TRI'!Q:Q)), "lbm", "kg") -> 82 | N160: =CONVERT(_xlfn.MAXIFS('2016-2021 TRI'!Q:Q,'2016-2021 TRI'!F:F,A160), "lbm", "kg") -> 91 | O160: 0.063 | P160: 0.078 | Q160: 0.233 | R160: 0.259
A161: 77627NNLCMHWY36 | B161: =VLOOKUP($A161, '2016-2021 TRI'!$F:$L, 3, FALSE) -> PHILLIPS 66 PIPELINE LLC-BEAUMONT TERMINAL | C161: =VLOOKUP($A161, '2016-2021 TRI'!$F:$L, 4, FALSE) -> HWY 366 1/2 MILE E OF INTERSECTION W HWY 347 | D161: =VLOOKUP($A161, '2016-2021 TRI'!$F:$L, 5, FALSE) -> NEDERLAND | E161: =VLOOKUP($A161, '2016-2021 TRI'!$F:$L, 6, FALSE) -> TX | F161: =VLOOKUP($A161, '2016-2021 TRI'!$F:$L, 7, FALSE) -> 77627 | G161: =VLOOKUP($A161, '2016-2021 TRI'!F:N, 9, FALSE) -> Repackaging | H161: =VLOOKUP($A161, '2016-2021 TRI'!$F:$L, 2, FALSE) -> 424710 | I161: =IFERROR(VLOOKUP(H161, '2012 to 2017 NAICS'!C:D, 2, FALSE), VLOOKUP(H161, '2012 to 2017 NAICS'!A:B, 2, FALSE)) -> Petroleum Bulk Stations and Terminals | J161: =VLOOKUP(G161, 'OES Summary'!$A$2:$D$15, 3, FALSE) -> 350 | K161: =CONVERT(MEDIAN(IF('2016-2021 TRI'!F:F=$A161,'2016-2021 TRI'!P:P)), "lbm", "kg") -> 4 | L161: =CONVERT(_xlfn.MAXIFS('2016-2021 TRI'!P:P,'2016-2021 TRI'!F:F,A161), "lbm", "kg") -> 50 | M161: =CONVERT(MEDIAN(IF('2016-2021 TRI'!F:F=$A161,'2016-2021 TRI'!Q:Q)), "lbm", "kg") -> 522 | N161: =CONVERT(_xlfn.MAXIFS('2016-2021 TRI'!Q:Q,'2016-2021 TRI'!F:F,A161), "lbm", "kg") -> 953 | O161: 0.012 | P161: 0.143 | Q161: 1.490 | R161: 2.722
A162: 74603CNCPN1000S | B162: =VLOOKUP($A162, '2016-2021 TRI'!$F:$L, 3, FALSE) -> PHILLIPS 66 PONCA CITY SITE | C162: =VLOOKUP($A162, '2016-2021 TRI'!$F:$L, 4, FALSE) -> 1000 S PINE ST | D162: =VLOOKUP($A162, '2016-2021 TRI'!$F:$L, 5, FALSE) -> PONCA CITY | E162: =VLOOKUP($A162, '2016-2021 TRI'!$F:$L, 6, FALSE) -> OK | F162: =VLOOKUP($A162, '2016-2021 TRI'!$F:$L, 7, FALSE) -> 746017501 | G162: =VLOOKUP($A162, '2016-2021 TRI'!F:N, 9, FALSE) -> Processing as a reactant | H162: =VLOOKUP($A162, '2016-2021 TRI'!$F:$L, 2, FALSE) -> 324110 | I162: =IFERROR(VLOOKUP(H162, '2012 to 2017 NAICS'!C:D, 2, FALSE), VLOOKUP(H162, '2012 to 2017 NAICS'!A:B, 2, FALSE)) -> Petroleum Refineries | J162: =VLOOKUP(G162, 'OES Summary'!$A$2:$D$15, 3, FALSE) -> 350 | K162: =CONVERT(MEDIAN(IF('2016-2021 TRI'!F:F=$A162,'2016-2021 TRI'!P:P)), "lbm", "kg") -> 134 | L162: =CONVERT(_xlfn.MAXIFS('2016-2021 TRI'!P:P,'2016-2021 TRI'!F:F,A162), "lbm", "kg") -> 172 | M162: =CONVERT(MEDIAN(IF('2016-2021 TRI'!F:F=$A162,'2016-2021 TRI'!Q:Q)), "lbm", "kg") -> 30 | N162: =CONVERT(_xlfn.MAXIFS('2016-2021 TRI'!Q:Q,'2016-2021 TRI'!F:F,A162), "lbm", "kg") -> 142 | O162: 0.382 | P162: 0.492 | Q162: 0.085 | R162: 0.407
A163: 94572NCLSNOLDHI | B163: =VLOOKUP($A163, '2016-2021 TRI'!$F:$L, 3, FALSE) -> PHILLIPS 66 SAN FRANCISCO REFINERY | C163: =VLOOKUP($A163, '2016-2021 TRI'!$F:$L, 4, FALSE) -> 1380 SAN PABLO AVE | D163: =VLOOKUP($A163, '2016-2021 TRI'!$F:$L, 5, FALSE) -> RODEO | E163: =VLOOKUP($A163, '2016-2021 TRI'!$F:$L, 6, FALSE) -> CA | F163: =VLOOKUP($A163, '2016-2021 TRI'!$F:$L, 7, FALSE) -> 94572 | G163: =VLOOKUP($A163, '2016-2021 TRI'!F:N, 9, FALSE) -> Processing - Incorporation into formulation, mixture, or reaction product | H163: =VLOOKUP($A163, '2016-2021 TRI'!$F:$L, 2, FALSE) -> 324110 | I163: =IFERROR(VLOOKUP(H163, '2012 to 2017 NAICS'!C:D, 2, FALSE), VLOOKUP(H163, '2012 to 2017 NAICS'!A:B, 2, FALSE)) -> Petroleum Refineries | J163: =VLOOKUP(G163, 'OES Summary'!$A$2:$D$15, 3, FALSE) -> 250 | K163: =CONVERT(MEDIAN(IF('2016-2021 TRI'!F:F=$A163,'2016-2021 TRI'!P:P)), "lbm", "kg") -> 3 | L163: =CONVERT(_xlfn.MAXIFS('2016-2021 TRI'!P:P,'2016-2021 TRI'!F:F,A163), "lbm", "kg") -> 7 | M163: =CONVERT(MEDIAN(IF('2016-2021 TRI'!F:F=$A163,'2016-2021 TRI'!Q:Q)), "lbm", "kg") -> 2 | N163: =CONVERT(_xlfn.MAXIFS('2016-2021 TRI'!Q:Q,'2016-2021 TRI'!F:F,A163), "lbm", "kg") -> 19 | O163: 0.013 | P163: 0.029 | Q163: 0.009 | R163: 0.076
A164: 79008PHLLPSTATE | B164: =VLOOKUP($A164, '2016-2021 TRI'!$F:$L, 3, FALSE) -> PHILLLIPS 66 CO BORGER REFINERY | C164: =VLOOKUP($A164, '2016-2021 TRI'!$F:$L, 4, FALSE) -> STATE HWY SPUR 119 N | D164: =VLOOKUP($A164, '2016-2021 TRI'!$F:$L, 5, FALSE) -> BORGER | E164: =VLOOKUP($A164, '2016-2021 TRI'!$F:$L, 6, FALSE) -> TX | F164: =VLOOKUP($A164, '2016-2021 TRI'!$F:$L, 7, FALSE) -> 79007 | G164: =VLOOKUP($A164, '2016-2021 TRI'!F:N, 9, FALSE) -> Processing - Incorporation into formulation, mixture, or reaction product | H164: =VLOOKUP($A164, '2016-2021 TRI'!$F:$L, 2, FALSE) -> 324110 | I164: =IFERROR(VLOOKUP(H164, '2012 to 2017 NAICS'!C:D, 2, FALSE), VLOOKUP(H164, '2012 to 2017 NAICS'!A:B, 2, FALSE)) -> Petroleum Refineries | J164: =VLOOKUP(G164, 'OES Summary'!$A$2:$D$15, 3, FALSE) -> 250 | K164: =CONVERT(MEDIAN(IF('2016-2021 TRI'!F:F=$A164,'2016-2021 TRI'!P:P)), "lbm", "kg") -> 53 | L164: =CONVERT(_xlfn.MAXIFS('2016-2021 TRI'!P:P,'2016-2021 TRI'!F:F,A164), "lbm", "kg") -> 100 | M164: =CONVERT(MEDIAN(IF('2016-2021 TRI'!F:F=$A164,'2016-2021 TRI'!Q:Q)), "lbm", "kg") -> 1 | N164: =CONVERT(_xlfn.MAXIFS('2016-2021 TRI'!Q:Q,'2016-2021 TRI'!F:F,A164), "lbm", "kg") -> 73 | O164: 0.211 | P164: 0.401 | Q164: 0.005 | R164: 0.292
A165: 70767PLCDR1940L | B165: =VLOOKUP($A165, '2016-2021 TRI'!$F:$L, 3, FALSE) -> PLACID REFINING CO LLC | C165: =VLOOKUP($A165, '2016-2021 TRI'!$F:$L, 4, FALSE) -> 1940 LOUISIANA HWY 1 N | D165: =VLOOKUP($A165, '2016-2021 TRI'!$F:$L, 5, FALSE) -> PORT ALLEN | E165: =VLOOKUP($A165, '2016-2021 TRI'!$F:$L, 6, FALSE) -> LA | F165: =VLOOKUP($A165, '2016-2021 TRI'!$F:$L, 7, FALSE) -> 70767 | G165: =VLOOKUP($A165, '2016-2021 TRI'!F:N, 9, FALSE) -> Manufacturing | H165: =VLOOKUP($A165, '2016-2021 TRI'!$F:$L, 2, FALSE) -> 324110 | I165: =IFERROR(VLOOKUP(H165, '2012 to 2017 NAICS'!C:D, 2, FALSE), VLOOKUP(H165, '2012 to 2017 NAICS'!A:B, 2, FALSE)) -> Petroleum Refineries | J165: =VLOOKUP(G165, 'OES Summary'!$A$2:$D$15, 3, FALSE) -> 350 | K165: =CONVERT(MEDIAN(IF('2016-2021 TRI'!F:F=$A165,'2016-2021 TRI'!P:P)), "lbm", "kg") -> 0 | L165: =CONVERT(_xlfn.MAXIFS('2016-2021 TRI'!P:P,'2016-2021 TRI'!F:F,A165), "lbm", "kg") -> 0 | M165: =CONVERT(MEDIAN(IF('2016-2021 TRI'!F:F=$A165,'2016-2021 TRI'!Q:Q)), "lbm", "kg") -> 2286 | N165: =CONVERT(_xlfn.MAXIFS('2016-2021 TRI'!Q:Q,'2016-2021 TRI'!F:F,A165), "lbm", "kg") -> 4144 | O165: 0.000 | P165: 0.000 | Q165: 6.532 | R165: 11.839
A166: 77640CLRKR1801S | B166: =VLOOKUP($A166, '2016-2021 TRI'!$F:$L, 3, FALSE) -> PREMCOR REFINING GROUP INC PORT ARTHUR | C166: =VLOOKUP($A166, '2016-2021 TRI'!$F:$L, 4, FALSE) -> 1801 S GULFWAY DR | D166: =VLOOKUP($A166, '2016-2021 TRI'!$F:$L, 5, FALSE) -> PORT ARTHUR | E166: =VLOOKUP($A166, '2016-2021 TRI'!$F:$L, 6, FALSE) -> TX | F166: =VLOOKUP($A166, '2016-2021 TRI'!$F:$L, 7, FALSE) -> 77640 | G166: =VLOOKUP($A166, '2016-2021 TRI'!F:N, 9, FALSE) -> Processing as a Reactant | H166: =VLOOKUP($A166, '2016-2021 TRI'!$F:$L, 2, FALSE) -> 324110 | I166: =IFERROR(VLOOKUP(H166, '2012 to 2017 NAICS'!C:D, 2, FALSE), VLOOKUP(H166, '2012 to 2017 NAICS'!A:B, 2, FALSE)) -> Petroleum Refineries | J166: =VLOOKUP(G166, 'OES Summary'!$A$2:$D$15, 3, FALSE) -> 350 | K166: =CONVERT(MEDIAN(IF('2016-2021 TRI'!F:F=$A166,'2016-2021 TRI'!P:P)), "lbm", "kg") -> 59 | L166: =CONVERT(_xlfn.MAXIFS('2016-2021 TRI'!P:P,'2016-2021 TRI'!F:F,A166), "lbm", "kg") -> 94 | M166: =CONVERT(MEDIAN(IF('2016-2021 TRI'!F:F=$A166,'2016-2021 TRI'!Q:Q)), "lbm", "kg") -> 310 | N166: =CONVERT(_xlfn.MAXIFS('2016-2021 TRI'!Q:Q,'2016-2021 TRI'!F:F,A166), "lbm", "kg") -> 318 | O166: 0.167 | P166: 0.270 | Q166: 0.885 | R166: 0.908
A167: 77503MCCHM1500N | B167: =VLOOKUP($A167, '2016-2021 TRI'!$F:$L, 3, FALSE) -> PURITY ISOBUTYLENE PLANT | C167: =VLOOKUP($A167, '2016-2021 TRI'!$F:$L, 4, FALSE) -> 1500 N S ST | D167: =VLOOKUP($A167, '2016-2021 TRI'!$F:$L, 5, FALSE) -> PASADENA | E167: =VLOOKUP($A167, '2016-2021 TRI'!$F:$L, 6, FALSE) -> TX | F167: =VLOOKUP($A167, '2016-2021 TRI'!$F:$L, 7, FALSE) -> 77508 | G167: =VLOOKUP($A167, '2016-2021 TRI'!F:N, 9, FALSE) -> Repackaging | H167: =VLOOKUP($A167, '2016-2021 TRI'!$F:$L, 2, FALSE) -> 325199 | I167: =IFERROR(VLOOKUP(H167, '2012 to 2017 NAICS'!C:D, 2, FALSE), VLOOKUP(H167, '2012 to 2017 NAICS'!A:B, 2, FALSE)) -> All Other Basic Organic Chemical Manufacturing | J167: =VLOOKUP(G167, 'OES Summary'!$A$2:$D$15, 3, FALSE) -> 350 | K167: =CONVERT(MEDIAN(IF('2016-2021 TRI'!F:F=$A167,'2016-2021 TRI'!P:P)), "lbm", "kg") -> 113 | L167: =CONVERT(_xlfn.MAXIFS('2016-2021 TRI'!P:P,'2016-2021 TRI'!F:F,A167), "lbm", "kg") -> 227 | M167: =CONVERT(MEDIAN(IF('2016-2021 TRI'!F:F=$A167,'2016-2021 TRI'!Q:Q)), "lbm", "kg") -> 122 | N167: =CONVERT(_xlfn.MAXIFS('2016-2021 TRI'!Q:Q,'2016-2021 TRI'!F:F,A167), "lbm", "kg") -> 227 | O167: 0.324 | P167: 0.648 | Q167: 0.348 | R167: 0.648
